Workbook

Sheet Log
B3: Ideas for fixing the model
C5: First, keep track of fixed result to make sure changes in structure do not affect the initial outcome
C7: Find the Hlookup and vlookup
C9: Get rid of Indirect in this file
C11: Move Weather Data
B13: Re-structure with Benchmark
C15: Colour Sheet
C17: Use Alt, m, d to test if cell is used
C19: Fix Long Formulas
C21: Transfer to Financial Model

Sheet Diagram
D3: Transmission Step-Down | H3: Data Room 1 | M3: Levelized Cost of Electricity | P3: Euro/kWh
D4: Cap Exp | H4: Data Room 2 | M4: Critical Power Provided | P4: kW | Q4: =F12 -> 4181.789752
H5: Data Room 3
H6: Data Room 4 | M6: Ratio of Critical Power to Cap Exp | P6: kW/Euro
H8: Cooling
B12: Direct Critical Load for IT Equipment | E12: kW | F12: ='Financial Model'!M15 -> 4181.789752 | H12: Critical IT Load | K12: Back-up Equipment
B13: Power Used for Mechanical Equipment | E13: kW | F13: ='Financial Model'!M31 -> 105.4832827 | K13: Power Cost Assumed
B14: Total Power Purchase from Grid | E14: kWh | F14: =SUM(F12:F13)*8760 -> 37556511.79
B15: Base Power Cost | E15: Euro/kWh | F15: =Input!E34 -> 0.2
B16: Total Power Cost from Grid | E16: Euro/yr | F16: =F15*F12*8760 -> 7326495.646
N17: Gen Set
N18: Capital Expenditure | P18: ='Financial Model'!L134+'Financial Model'!L141+'Financial Model'!L148+'Financial Model'!L155+'Financial Model'!L162 -> 6014862.409
N19: Fixed O&M
B20: Equipment to Serve Critical Load
B21: Capital Expenditure | D21: ='Financial Model'!L97 -> 3548919.697 | E21: Euro
B22: Fixed O&M | E22: Euro/Yr
N23: Switch Gear
N24: Capital Expenditure | P24: ='Financial Model'!L136+'Financial Model'!L143+'Financial Model'!L150+'Financial Model'!L157+'Financial Model'!L164 -> 6419940.702
N25: Fixed O&M
B29: Cooling - Chiller/Heat Recovery
B30: Power Used | D30: ='Financial Model'!M54 -> 35716601.83 | E30: kWh | N30: Universal Power Supply
B31: Cost of Power for Cooling | D31: ='Financial Model'!M209 -> 7143320.366 | E31: Euro/yr | N31: Capital Expenditure
N32: Fixed O&M
B34: Capital Expenditure | D34: ='Financial Model'!L130 -> 3066565.231 | E34: Euro
B35: Fixed O&M | E35: Euro/Yr
B36: Heat Recovery Credit | E36: Euro/Yr

Sheet Output
C2: Total Cost of Ownership/Leveized Cost of Electricity
D3: LCOE of IT Critical Load | E3: Euro/kWh
D4: LCOE of Cooling | E4: Euro/kWh
D5: LCOE of Back-up Equipment | E5: Euro/kWh
D6: LCOE of Heat Recovery | E6: Euro/kWh
D7: Total LCOE | E7: Euro/kWh
C9: Drivers
D10: IT Load | E10: kW | G10: ='Financial Model'!M15 -> 4181.789752
D11: Electricity Purchased | E11: kW | G11: =G10*G20 -> 6249.250389
D14: Cap Exp/kWit of Directly Serving IT Load | E14: Euro/kW | G14: =G23/G10 -> 848.6604797
D15: Cap Exp/kWit of Total Electricity Costs | E15: Euro/kW
C17: Efficiency
D18: Electricity for IT | E18: kWh | G18: ='Financial Model'!M16 -> 36632478.23
D19: Electricity Purchased | E19: kWh
D20: PUE | E20: x | G20: ='IT Load Datarooms Calculate'!E79 -> 1.494396122
C22: Capital Expense Components
D23: ='Financial Model'!D391 -> Power for Cooling Data Equipment (Including Direct to Chip) | E23: Euro | G23: ='Financial Model'!K391 -> 3548919.697
D24: ='Financial Model'!D392 -> Power Equipment Capital Expenditures for Back-up | E24: Euro | G24: ='Financial Model'!K392 -> 18855747.38
D25: ='Financial Model'!D393 -> Capital Expenditures for Cooling and Heat Recovery | E25: Euro | G25: ='Financial Model'!K393 -> 2449333.252
D26: Total Capital Expenditures | E26: Euro | G26: =SUM(G23:G25) -> 24854000.32
D28: Capital Expenditures per kW | E28: Euro | G28: =G26/G10 -> 5943.388309

Sheet Input
G1: Result | H1: =Output!$D$55 -> -577739833.2 | I1: Fixed | J1: -577739833.2
C2: OCP CE TCO tool v1.11 | E2: Library
E3: Power
A4: =IF(D3,"=1","") ->  | E4: Cooling
A5: =IF(D4,"=2","") ->  | E5: Data
A6: =IF(D5,"=3","") -> 
C7: Scenario | D7: 1
B8: IT Operations
A9: 0 | E9: =G9 -> Benchmark Case | G9: Benchmark Case | H9: Benchmark Case Corrected | I9: Only Air Cooled | J9: Only Direct to Chip, Load Factor | K9: Only Air, Load Factor | L9: Best Direct to Chip, Load Factor | M9: Scenario 7 | N9: Scenario 8 | O9: Scenario 9 | P9: Scenario 10 | Q9: Scenario 11 | R9: Scenario 12 | S9: Scenario 12 | T9: Scenario 12 | U9: Scenario 12 | V9: Scenario 12 | W9: Scenario 12 | X9: Scenario 12 | Y9: Scenario 12 | Z9: Scenario 12 | AA9: Scenario 12 | AB9: Scenario 12 | AC9: Scenario 12 | AD9: Scenario 12 | AE9: Scenario 12 | AF9: Scenario 12 | AG9: Scenario 12 | AH9: Scenario 12 | AI9: Scenario 12 | AJ9: Scenario 12 | AK9: Scenario 12 | AL9: Scenario 12 | AM9: Scenario 12 | AN9: Scenario 12 | AO9: Scenario 12 | AP9: Scenario 12 | AQ9: Scenario 12 | AR9: Scenario 12 | AS9: Scenario 12
B10: IT Operations
A11: 0 | C11: Load Factor of Data Center | E11: 1 | G11: 1 | H11: 1 | I11: 1 | J11: 1 | K11: 1 | L11: 1 | M11: 1 | N11: 1 | O11: 1 | P11: 1 | Q11: 1 | R11: 1 | S11: 1 | T11: 1 | U11: 1 | V11: 1 | W11: 1 | X11: 1 | Y11: 1 | Z11: 1 | AA11: 1 | AB11: 1 | AC11: 1 | AD11: 1 | AE11: 1 | AF11: 1 | AG11: 1 | AH11: 1 | AI11: 1 | AJ11: 1 | AK11: 1 | AL11: 1 | AM11: 1 | AN11: 1 | AO11: 1 | AP11: 1 | AQ11: 1 | AR11: 1 | AS11: 1
C13: Dataroom configurations
A14: 0 | C14: Dataroom | D14: 1 | E14: =Forms!G10 -> 2-dtc-l2l | G14: =$E$14 -> 2-dtc-l2l | H14: =$E$14 -> 2-dtc-l2l | I14: 2-dtc-l2l | J14: 2-dtc-l2l | K14: 2-dtc-l2l | L14: 2-dtc-l2l | M14: 2-dtc-l2l | N14: 2-dtc-l2l | O14: 2-dtc-l2l | P14: 2-dtc-l2l | Q14: 2-dtc-l2l | R14: 2-dtc-l2l | S14: 2-dtc-l2l | T14: 2-dtc-l2l | U14: 2-dtc-l2l | V14: 2-dtc-l2l | W14: 2-dtc-l2l | X14: 2-dtc-l2l | Y14: 2-dtc-l2l | Z14: 2-dtc-l2l | AA14: 2-dtc-l2l | AB14: 2-dtc-l2l | AC14: 2-dtc-l2l | AD14: 2-dtc-l2l | AE14: 2-dtc-l2l | AF14: 2-dtc-l2l | AG14: 2-dtc-l2l | AH14: 2-dtc-l2l | AI14: 2-dtc-l2l | AJ14: 2-dtc-l2l | AK14: 2-dtc-l2l | AL14: 2-dtc-l2l | AM14: 2-dtc-l2l | AN14: 2-dtc-l2l | AO14: 2-dtc-l2l | AP14: 2-dtc-l2l | AQ14: 2-dtc-l2l | AR14: 2-dtc-l2l | AS14: 2-dtc-l2l
A15: 0 | C15: Dataroom | D15: 2 | E15: =Forms!G12 -> 1-air | G15: =$E$15 -> 1-air | H15: =$E$15 -> 1-air | I15: 1-air | J15: 1-air | K15: 1-air | L15: 1-air | M15: 1-air | N15: 1-air | O15: 1-air | P15: 1-air | Q15: 1-air | R15: 1-air | S15: 1-air | T15: 1-air | U15: 1-air | V15: 1-air | W15: 1-air | X15: 1-air | Y15: 1-air | Z15: 1-air | AA15: 1-air | AB15: 1-air | AC15: 1-air | AD15: 1-air | AE15: 1-air | AF15: 1-air | AG15: 1-air | AH15: 1-air | AI15: 1-air | AJ15: 1-air | AK15: 1-air | AL15: 1-air | AM15: 1-air | AN15: 1-air | AO15: 1-air | AP15: 1-air | AQ15: 1-air | AR15: 1-air | AS15: 1-air
A16: 0 | C16: Dataroom | D16: 3 | E16: None | G16: =$E$16 -> None | H16: =$E$16 -> None | I16: None | J16: None | K16: None | L16: None | M16: None | N16: None | O16: None | P16: None | Q16: None | R16: None | S16: None | T16: None | U16: None | V16: None | W16: None | X16: None | Y16: None | Z16: None | AA16: None | AB16: None | AC16: None | AD16: None | AE16: None | AF16: None | AG16: None | AH16: None | AI16: None | AJ16: None | AK16: None | AL16: None | AM16: None | AN16: None | AO16: None | AP16: None | AQ16: None | AR16: None | AS16: None
A17: 0 | C17: Dataroom | D17: 4 | E17: None | G17: =$E$17 -> None | H17: =$E$17 -> None | I17: None | J17: None | K17: None | L17: None | M17: None | N17: None | O17: None | P17: None | Q17: None | R17: None | S17: None | T17: None | U17: None | V17: None | W17: None | X17: None | Y17: None | Z17: None | AA17: None | AB17: None | AC17: None | AD17: None | AE17: None | AF17: None | AG17: None | AH17: None | AI17: None | AJ17: None | AK17: None | AL17: None | AM17: None | AN17: None | AO17: None | AP17: None | AQ17: None | AR17: None | AS17: None
A18: 0
A19: 0 | B19: Facilites Operations | E19: =E9 -> Benchmark Case
C21: Power configurations
A22: 2 | D22: Critical | E22: SE RD Crit | G22: =$E$22 -> SE RD Crit | H22: =$E$22 -> SE RD Crit | I22: SE RD Crit | J22: SE RD Crit | K22: SE RD Crit | L22: SE RD Crit | M22: SE RD Crit | N22: SE RD Crit | O22: SE RD Crit | P22: SE RD Crit | Q22: SE RD Crit | R22: SE RD Crit | S22: SE RD Crit | T22: SE RD Crit | U22: SE RD Crit | V22: SE RD Crit | W22: SE RD Crit | X22: SE RD Crit | Y22: SE RD Crit | Z22: SE RD Crit | AA22: SE RD Crit | AB22: SE RD Crit | AC22: SE RD Crit | AD22: SE RD Crit | AE22: SE RD Crit | AF22: SE RD Crit | AG22: SE RD Crit | AH22: SE RD Crit | AI22: SE RD Crit | AJ22: SE RD Crit | AK22: SE RD Crit | AL22: SE RD Crit | AM22: SE RD Crit | AN22: SE RD Crit | AO22: SE RD Crit | AP22: SE RD Crit | AQ22: SE RD Crit | AR22: SE RD Crit | AS22: SE RD Crit
A23: 2 | D23: Mechanical | E23: SE RD Mech | G23: =$E$23 -> SE RD Mech | H23: =$E$23 -> SE RD Mech | I23: SE RD Mech | J23: SE RD Mech | K23: SE RD Mech | L23: SE RD Mech | M23: SE RD Mech | N23: SE RD Mech | O23: SE RD Mech | P23: SE RD Mech | Q23: SE RD Mech | R23: SE RD Mech | S23: SE RD Mech | T23: SE RD Mech | U23: SE RD Mech | V23: SE RD Mech | W23: SE RD Mech | X23: SE RD Mech | Y23: SE RD Mech | Z23: SE RD Mech | AA23: SE RD Mech | AB23: SE RD Mech | AC23: SE RD Mech | AD23: SE RD Mech | AE23: SE RD Mech | AF23: SE RD Mech | AG23: SE RD Mech | AH23: SE RD Mech | AI23: SE RD Mech | AJ23: SE RD Mech | AK23: SE RD Mech | AL23: SE RD Mech | AM23: SE RD Mech | AN23: SE RD Mech | AO23: SE RD Mech | AP23: SE RD Mech | AQ23: SE RD Mech | AR23: SE RD Mech | AS23: SE RD Mech
A24: 2 | D24: Redundancy | E24: 2N | G24: =$E$24 -> 2N | H24: =$E$24 -> 2N | I24: 2N | J24: 2N | K24: 2N | L24: 2N | M24: 2N | N24: 2N | O24: 2N | P24: 2N | Q24: 2N | R24: 2N | S24: 2N | T24: 2N | U24: 2N | V24: 2N | W24: 2N | X24: 2N | Y24: 2N | Z24: 2N | AA24: 2N | AB24: 2N | AC24: 2N | AD24: 2N | AE24: 2N | AF24: 2N | AG24: 2N | AH24: 2N | AI24: 2N | AJ24: 2N | AK24: 2N | AL24: 2N | AM24: 2N | AN24: 2N | AO24: 2N | AP24: 2N | AQ24: 2N | AR24: 2N | AS24: 2N
C25: Cooling, Heat Recovery Configurations
A26: 2 | D26: Air | E26: SE RD Air | G26: =$E$26 -> SE RD Air | H26: =$E$26 -> SE RD Air | I26: SE RD Air | J26: SE RD Air | K26: SE RD Air | L26: SE RD Air | M26: SE RD Air | N26: SE RD Air | O26: SE RD Air | P26: SE RD Air | Q26: SE RD Air | R26: SE RD Air | S26: SE RD Air | T26: SE RD Air | U26: SE RD Air | V26: SE RD Air | W26: SE RD Air | X26: SE RD Air | Y26: SE RD Air | Z26: SE RD Air | AA26: SE RD Air | AB26: SE RD Air | AC26: SE RD Air | AD26: SE RD Air | AE26: SE RD Air | AF26: SE RD Air | AG26: SE RD Air | AH26: SE RD Air | AI26: SE RD Air | AJ26: SE RD Air | AK26: SE RD Air | AL26: SE RD Air | AM26: SE RD Air | AN26: SE RD Air | AO26: SE RD Air | AP26: SE RD Air | AQ26: SE RD Air | AR26: SE RD Air | AS26: SE RD Air
A27: 2 | D27: Liquid | E27: SE RD Liquid
A28: 2 | D28: Redundancy | E28: N+1
A30: 2 | C30: Environment Zone | D30: Temperature | E30: RD99 Paris
A31: 2 | D31: Humidity | E31: RD99 Paris
A32: 0
A33: 0 | B33: Finanical Operations | E33: =E9 -> Benchmark Case
A34: 1 | C34: Electricity unit cost | E34: 0.2 | G34: 0.2 | H34: 0.2 | I34: 0.2 | J34: 0.2 | K34: 0.2 | L34: 0.2 | M34: 0.2 | N34: 0.2 | O34: 0.2 | P34: 0.2 | Q34: 0.2 | R34: 0.2 | S34: 0.2 | T34: 0.2 | U34: 0.2 | V34: 0.2 | W34: 0.2 | X34: 0.2 | Y34: 0.2 | Z34: 0.2 | AA34: 0.2 | AB34: 0.2 | AC34: 0.2 | AD34: 0.2 | AE34: 0.2 | AF34: 0.2 | AG34: 0.2 | AH34: 0.2 | AI34: 0.2 | AJ34: 0.2 | AK34: 0.2 | AL34: 0.2 | AM34: 0.2 | AN34: 0.2 | AO34: 0.2 | AP34: 0.2 | AQ34: 0.2 | AR34: 0.2 | AS34: 0.2
A35: 1 | C35: Core and shell unit cost | E35: 1800 | G35: 1800 | H35: 1800 | I35: 1800 | J35: 1800 | K35: 1800 | L35: 1800 | M35: 1800 | N35: 1800 | O35: 1800 | P35: 1800 | Q35: 1800 | R35: 1800 | S35: 1800 | T35: 1800 | U35: 1800 | V35: 1800 | W35: 1800 | X35: 1800 | Y35: 1800 | Z35: 1800 | AA35: 1800 | AB35: 1800 | AC35: 1800 | AD35: 1800 | AE35: 1800 | AF35: 1800 | AG35: 1800 | AH35: 1800 | AI35: 1800 | AJ35: 1800 | AK35: 1800 | AL35: 1800 | AM35: 1800 | AN35: 1800 | AO35: 1800 | AP35: 1800 | AQ35: 1800 | AR35: 1800 | AS35: 1800
A36: 2 | C36: Fit-out unit cost | E36: 1800 | G36: 1800 | H36: 1800 | I36: 1800 | J36: 1800 | K36: 1800 | L36: 1800 | M36: 1800 | N36: 1800 | O36: 1800 | P36: 1800 | Q36: 1800 | R36: 1800 | S36: 1800 | T36: 1800 | U36: 1800 | V36: 1800 | W36: 1800 | X36: 1800 | Y36: 1800 | Z36: 1800 | AA36: 1800 | AB36: 1800 | AC36: 1800 | AD36: 1800 | AE36: 1800 | AF36: 1800 | AG36: 1800 | AH36: 1800 | AI36: 1800 | AJ36: 1800 | AK36: 1800 | AL36: 1800 | AM36: 1800 | AN36: 1800 | AO36: 1800 | AP36: 1800 | AQ36: 1800 | AR36: 1800 | AS36: 1800
A37: 2 | C37: Water unit cost | E37: 1 | G37: 1 | H37: 1 | I37: 1 | J37: 1 | K37: 1 | L37: 1 | M37: 1 | N37: 1 | O37: 1 | P37: 1 | Q37: 1 | R37: 1 | S37: 1 | T37: 1 | U37: 1 | V37: 1 | W37: 1 | X37: 1 | Y37: 1 | Z37: 1 | AA37: 1 | AB37: 1 | AC37: 1 | AD37: 1 | AE37: 1 | AF37: 1 | AG37: 1 | AH37: 1 | AI37: 1 | AJ37: 1 | AK37: 1 | AL37: 1 | AM37: 1 | AN37: 1 | AO37: 1 | AP37: 1 | AQ37: 1 | AR37: 1 | AS37: 1
A38: 3 | C38: Value of heat recovery | E38: 0 | G38: 0 | H38: 0 | I38: 0 | J38: 0 | K38: 0 | L38: 0 | M38: 0 | N38: 0 | O38: 0 | P38: 0 | Q38: 0 | R38: 0 | S38: 0 | T38: 0 | U38: 0 | V38: 0 | W38: 0 | X38: 0 | Y38: 0 | Z38: 0 | AA38: 0 | AB38: 0 | AC38: 0 | AD38: 0 | AE38: 0 | AF38: 0 | AG38: 0 | AH38: 0 | AI38: 0 | AJ38: 0 | AK38: 0 | AL38: 0 | AM38: 0 | AN38: 0 | AO38: 0 | AP38: 0 | AQ38: 0 | AR38: 0 | AS38: 0
A39: 2 | C39: Core and Shell maintenance as Percent of Cap Exp | E39: 0.03 | G39: 0.03 | H39: 0.03 | I39: 0.03 | J39: 0.03 | K39: 0.03 | L39: 0.03 | M39: 0.03 | N39: 0.03 | O39: 0.03 | P39: 0.03 | Q39: 0.03 | R39: 0.03 | S39: 0.03 | T39: 0.03 | U39: 0.03 | V39: 0.03 | W39: 0.03 | X39: 0.03 | Y39: 0.03 | Z39: 0.03 | AA39: 0.03 | AB39: 0.03 | AC39: 0.03 | AD39: 0.03 | AE39: 0.03 | AF39: 0.03 | AG39: 0.03 | AH39: 0.03 | AI39: 0.03 | AJ39: 0.03 | AK39: 0.03 | AL39: 0.03 | AM39: 0.03 | AN39: 0.03 | AO39: 0.03 | AP39: 0.03 | AQ39: 0.03 | AR39: 0.03 | AS39: 0.03
A40: 2 | C40: Equipment maintenance as Percent of Cap Exp | E40: 0.03 | G40: 0.03 | H40: 0.03 | I40: 0.03 | J40: 0.03 | K40: 0.03 | L40: 0.03 | M40: 0.03 | N40: 0.03 | O40: 0.03 | P40: 0.03 | Q40: 0.03 | R40: 0.03 | S40: 0.03 | T40: 0.03 | U40: 0.03 | V40: 0.03 | W40: 0.03 | X40: 0.03 | Y40: 0.03 | Z40: 0.03 | AA40: 0.03 | AB40: 0.03 | AC40: 0.03 | AD40: 0.03 | AE40: 0.03 | AF40: 0.03 | AG40: 0.03 | AH40: 0.03 | AI40: 0.03 | AJ40: 0.03 | AK40: 0.03 | AL40: 0.03 | AM40: 0.03 | AN40: 0.03 | AO40: 0.03 | AP40: 0.03 | AQ40: 0.03 | AR40: 0.03 | AS40: 0.03
A41: 3 | C41: electricity CO2 impact | E41: 369 | G41: 369 | H41: 369 | I41: 369 | J41: 369 | K41: 369 | L41: 369 | M41: 369 | N41: 369 | O41: 369 | P41: 369 | Q41: 369 | R41: 369 | S41: 369 | T41: 369 | U41: 369 | V41: 369 | W41: 369 | X41: 369 | Y41: 369 | Z41: 369 | AA41: 369 | AB41: 369 | AC41: 369 | AD41: 369 | AE41: 369 | AF41: 369 | AG41: 369 | AH41: 369 | AI41: 369 | AJ41: 369 | AK41: 369 | AL41: 369 | AM41: 369 | AN41: 369 | AO41: 369 | AP41: 369 | AQ41: 369 | AR41: 369 | AS41: 369
A42: 2 | C42: electricity water impact | E42: 1.8 | G42: 1.8 | H42: 1.8 | I42: 1.8 | J42: 1.8 | K42: 1.8 | L42: 1.8 | M42: 1.8 | N42: 1.8 | O42: 1.8 | P42: 1.8 | Q42: 1.8 | R42: 1.8 | S42: 1.8 | T42: 1.8 | U42: 1.8 | V42: 1.8 | W42: 1.8 | X42: 1.8 | Y42: 1.8 | Z42: 1.8 | AA42: 1.8 | AB42: 1.8 | AC42: 1.8 | AD42: 1.8 | AE42: 1.8 | AF42: 1.8 | AG42: 1.8 | AH42: 1.8 | AI42: 1.8 | AJ42: 1.8 | AK42: 1.8 | AL42: 1.8 | AM42: 1.8 | AN42: 1.8 | AO42: 1.8 | AP42: 1.8 | AQ42: 1.8 | AR42: 1.8 | AS42: 1.8
A43: 2 | C43: Facility, Power and Cooling lifespan | E43: 18 | G43: 18 | H43: 18 | I43: 18 | J43: 18 | K43: 18 | L43: 18 | M43: 18 | N43: 18 | O43: 18 | P43: 18 | Q43: 18 | R43: 18 | S43: 18 | T43: 18 | U43: 18 | V43: 18 | W43: 18 | X43: 18 | Y43: 18 | Z43: 18 | AA43: 18 | AB43: 18 | AC43: 18 | AD43: 18 | AE43: 18 | AF43: 18 | AG43: 18 | AH43: 18 | AI43: 18 | AJ43: 18 | AK43: 18 | AL43: 18 | AM43: 18 | AN43: 18 | AO43: 18 | AP43: 18 | AQ43: 18 | AR43: 18 | AS43: 18
C44: IT equipment lifespan | E44: 6 | G44: 6 | H44: 6 | I44: 6 | J44: 6 | K44: 6 | L44: 6 | M44: 6 | N44: 6 | O44: 6 | P44: 6 | Q44: 6 | R44: 6 | S44: 6 | T44: 6 | U44: 6 | V44: 6 | W44: 6 | X44: 6 | Y44: 6 | Z44: 6 | AA44: 6 | AB44: 6 | AC44: 6 | AD44: 6 | AE44: 6 | AF44: 6 | AG44: 6 | AH44: 6 | AI44: 6 | AJ44: 6 | AK44: 6 | AL44: 6 | AM44: 6 | AN44: 6 | AO44: 6 | AP44: 6 | AQ44: 6 | AR44: 6 | AS44: 6
C45: Discount rate for NPV | E45: 0.05 | G45: 0.05 | H45: 0.05 | I45: 0.05 | J45: 0.05 | K45: 0.05 | L45: 0.05 | M45: 0.05 | N45: 0.05 | O45: 0.05 | P45: 0.05 | Q45: 0.05 | R45: 0.05 | S45: 0.05 | T45: 0.05 | U45: 0.05 | V45: 0.05 | W45: 0.05 | X45: 0.05 | Y45: 0.05 | Z45: 0.05 | AA45: 0.05 | AB45: 0.05 | AC45: 0.05 | AD45: 0.05 | AE45: 0.05 | AF45: 0.05 | AG45: 0.05 | AH45: 0.05 | AI45: 0.05 | AJ45: 0.05 | AK45: 0.05 | AL45: 0.05 | AM45: 0.05 | AN45: 0.05 | AO45: 0.05 | AP45: 0.05 | AQ45: 0.05 | AR45: 0.05 | AS45: 0.05
A46: 3 | C46: CAPEX Financing rate | E46: 0.06 | G46: 0.06 | H46: 0.06 | I46: 0.06 | J46: 0.06 | K46: 0.06 | L46: 0.06 | M46: 0.06 | N46: 0.06 | O46: 0.06 | P46: 0.06 | Q46: 0.06 | R46: 0.06 | S46: 0.06 | T46: 0.06 | U46: 0.06 | V46: 0.06 | W46: 0.06 | X46: 0.06 | Y46: 0.06 | Z46: 0.06 | AA46: 0.06 | AB46: 0.06 | AC46: 0.06 | AD46: 0.06 | AE46: 0.06 | AF46: 0.06 | AG46: 0.06 | AH46: 0.06 | AI46: 0.06 | AJ46: 0.06 | AK46: 0.06 | AL46: 0.06 | AM46: 0.06 | AN46: 0.06 | AO46: 0.06 | AP46: 0.06 | AQ46: 0.06 | AR46: 0.06 | AS46: 0.06
C47: CAPEX % Financed | E47: 0.7 | G47: 0.7 | H47: 0.7 | I47: 0.7 | J47: 0.7 | K47: 0.7 | L47: 0.7 | M47: 0.7 | N47: 0.7 | O47: 0.7 | P47: 0.7 | Q47: 0.7 | R47: 0.7 | S47: 0.7 | T47: 0.7 | U47: 0.7 | V47: 0.7 | W47: 0.7 | X47: 0.7 | Y47: 0.7 | Z47: 0.7 | AA47: 0.7 | AB47: 0.7 | AC47: 0.7 | AD47: 0.7 | AE47: 0.7 | AF47: 0.7 | AG47: 0.7 | AH47: 0.7 | AI47: 0.7 | AJ47: 0.7 | AK47: 0.7 | AL47: 0.7 | AM47: 0.7 | AN47: 0.7 | AO47: 0.7 | AP47: 0.7 | AQ47: 0.7 | AR47: 0.7 | AS47: 0.7
C48: CAPEX Years Financed | E48: 15 | G48: 15 | H48: 15 | I48: 15 | J48: 15 | K48: 15 | L48: 15 | M48: 15 | N48: 15 | O48: 15 | P48: 15 | Q48: 15 | R48: 15 | S48: 15 | T48: 15 | U48: 15 | V48: 15 | W48: 15 | X48: 15 | Y48: 15 | Z48: 15 | AA48: 15 | AB48: 15 | AC48: 15 | AD48: 15 | AE48: 15 | AF48: 15 | AG48: 15 | AH48: 15 | AI48: 15 | AJ48: 15 | AK48: 15 | AL48: 15 | AM48: 15 | AN48: 15 | AO48: 15 | AP48: 15 | AQ48: 15 | AR48: 15 | AS48: 15
A49: 3 | C49: Annual hours | E49: =24*365 -> 8760 | G49: =24*365 -> 8760 | H49: =24*365 -> 8760 | I49: 8760 | J49: 8760 | K49: 8760 | L49: 8760 | M49: 8760 | N49: 8760 | O49: 8760 | P49: 8760 | Q49: 8760 | R49: 8760 | S49: 8760 | T49: 8760 | U49: 8760 | V49: 8760 | W49: 8760 | X49: 8760 | Y49: 8760 | Z49: 8760 | AA49: 8760 | AB49: 8760 | AC49: 8760 | AD49: 8760 | AE49: 8760 | AF49: 8760 | AG49: 8760 | AH49: 8760 | AI49: 8760 | AJ49: 8760 | AK49: 8760 | AL49: 8760 | AM49: 8760 | AN49: 8760 | AO49: 8760 | AP49: 8760 | AQ49: 8760 | AR49: 8760 | AS49: 8760
C50: Inflation Rate (% p.a.) | E50: 0 | G50: 0 | H50: 0 | I50: 0 | J50: 0 | K50: 0 | L50: 0 | M50: 0 | N50: 0 | O50: 0 | P50: 0 | Q50: 0 | R50: 0 | S50: 0 | T50: 0 | U50: 0 | V50: 0 | W50: 0 | X50: 0 | Y50: 0 | Z50: 0 | AA50: 0 | AB50: 0 | AC50: 0 | AD50: 0 | AE50: 0 | AF50: 0 | AG50: 0 | AH50: 0 | AI50: 0 | AJ50: 0 | AK50: 0 | AL50: 0 | AM50: 0 | AN50: 0 | AO50: 0 | AP50: 0 | AQ50: 0 | AR50: 0 | AS50: 0
C51: Currency | E51: Euro | G51: Euro | H51: Euro | I51: Euro | J51: Euro | K51: Euro | L51: Euro | M51: Euro | N51: Euro | O51: Euro | P51: Euro | Q51: Euro | R51: Euro | S51: Euro | T51: Euro | U51: Euro | V51: Euro | W51: Euro | X51: Euro | Y51: Euro | Z51: Euro | AA51: Euro | AB51: Euro | AC51: Euro | AD51: Euro | AE51: Euro | AF51: Euro | AG51: Euro | AH51: Euro | AI51: Euro | AJ51: Euro | AK51: Euro | AL51: Euro | AM51: Euro | AN51: Euro | AO51: Euro | AP51: Euro | AQ51: Euro | AR51: Euro | AS51: Euro
B53: Model Revisions
C54: Fix Energy from Back-up | E54: TRUE | G54: TRUE | H54: FALSE | I54: FALSE | J54: FALSE | K54: FALSE | L54: FALSE | M54: FALSE | N54: FALSE | O54: FALSE | P54: FALSE | Q54: FALSE | R54: FALSE | S54: FALSE | T54: FALSE | U54: FALSE | V54: FALSE | W54: FALSE | X54: FALSE | Y54: FALSE | Z54: FALSE | AA54: FALSE | AB54: FALSE | AC54: FALSE | AD54: FALSE | AE54: FALSE | AF54: FALSE | AG54: FALSE | AH54: FALSE | AI54: FALSE | AJ54: FALSE | AK54: FALSE | AL54: FALSE | AM54: FALSE | AN54: FALSE | AO54: FALSE | AP54: FALSE | AQ54: FALSE | AR54: FALSE | AS54: FALSE
C55: Fix Cash Flow Calculation | E55: TRUE | G55: TRUE | H55: FALSE | I55: FALSE | J55: FALSE | K55: FALSE | L55: FALSE | M55: FALSE | N55: FALSE | O55: FALSE | P55: FALSE | Q55: FALSE | R55: FALSE | S55: FALSE | T55: FALSE | U55: FALSE | V55: FALSE | W55: FALSE | X55: FALSE | Y55: FALSE | Z55: FALSE | AA55: FALSE | AB55: FALSE | AC55: FALSE | AD55: FALSE | AE55: FALSE | AF55: FALSE | AG55: FALSE | AH55: FALSE | AI55: FALSE | AJ55: FALSE | AK55: FALSE | AL55: FALSE | AM55: FALSE | AN55: FALSE | AO55: FALSE | AP55: FALSE | AQ55: FALSE | AR55: FALSE | AS55: FALSE
C56: Apply PUE to Data Rooms as Input | E56: TRUE | G56: TRUE | H56: FALSE | I56: FALSE | J56: FALSE | K56: FALSE | L56: FALSE | M56: FALSE | N56: FALSE | O56: FALSE | P56: FALSE | Q56: FALSE | R56: FALSE | S56: FALSE | T56: FALSE | U56: FALSE | V56: FALSE | W56: FALSE | X56: FALSE | Y56: FALSE | Z56: FALSE | AA56: FALSE | AB56: FALSE | AC56: FALSE | AD56: FALSE | AE56: FALSE | AF56: FALSE | AG56: FALSE | AH56: FALSE | AI56: FALSE | AJ56: FALSE | AK56: FALSE | AL56: FALSE | AM56: FALSE | AN56: FALSE | AO56: FALSE | AP56: FALSE | AQ56: FALSE | AR56: FALSE | AS56: FALSE
C57: Include Income Tax | E57: TRUE | G57: TRUE | H57: FALSE | I57: FALSE | J57: FALSE | K57: FALSE | L57: FALSE | M57: FALSE | N57: FALSE | O57: FALSE | P57: FALSE | Q57: FALSE | R57: FALSE | S57: FALSE | T57: FALSE | U57: FALSE | V57: FALSE | W57: FALSE | X57: FALSE | Y57: FALSE | Z57: FALSE | AA57: FALSE | AB57: FALSE | AC57: FALSE | AD57: FALSE | AE57: FALSE | AF57: FALSE | AG57: FALSE | AH57: FALSE | AI57: FALSE | AJ57: FALSE | AK57: FALSE | AL57: FALSE | AM57: FALSE | AN57: FALSE | AO57: FALSE | AP57: FALSE | AQ57: FALSE | AR57: FALSE | AS57: FALSE

Sheet Financial Model
B1: =K1=M1 -> TRUE | J1: Result | K1: =Output!$D$55 -> -577739833.2 | L1: Fixed | M1: -577739833.2
B2: Timing Flags | H2: Input Source | I2: Input | J2: Input | K2: Sum
D3: Period (Year) | L3: =_xlfn.SEQUENCE(,41,0) -> 0 | M3: 1 | N3: 2 | O3: 3 | P3: 4 | Q3: 5 | R3: 6 | S3: 7 | T3: 8 | U3: 9 | V3: 10 | W3: 11 | X3: 12 | Y3: 13 | Z3: 14 | AA3: 15 | AB3: 16 | AC3: 17 | AD3: 18 | AE3: 19 | AF3: 20 | AG3: 21 | AH3: 22 | AI3: 23 | AJ3: 24 | AK3: 25 | AL3: 26 | AM3: 27 | AN3: 28 | AO3: 29 | AP3: 30 | AQ3: 31 | AR3: 32 | AS3: 33 | AT3: 34 | AU3: 35 | AV3: 36 | AW3: 37 | AX3: 38 | AY3: 39 | AZ3: 40
D4: Capital Expenditure Period | F4: Flag | I4: 0 | L4: =L3=$I$4 -> TRUE | M4: FALSE | N4: FALSE | O4: FALSE | P4: FALSE | Q4: FALSE | R4: FALSE | S4: FALSE | T4: FALSE | U4: FALSE | V4: FALSE | W4: FALSE | X4: FALSE | Y4: FALSE | Z4: FALSE | AA4: FALSE | AB4: FALSE | AC4: FALSE | AD4: FALSE | AE4: FALSE | AF4: FALSE | AG4: FALSE | AH4: FALSE | AI4: FALSE | AJ4: FALSE | AK4: FALSE | AL4: FALSE | AM4: FALSE | AN4: FALSE | AO4: FALSE | AP4: FALSE | AQ4: FALSE | AR4: FALSE | AS4: FALSE | AT4: FALSE | AU4: FALSE | AV4: FALSE | AW4: FALSE | AX4: FALSE | AY4: FALSE | AZ4: FALSE
D5: Lifetime of Electrical Eqipment | F5: Flag | I5: =Input!$E$43 -> 18 | L5: =AND(NOT(L4),L3<=$I$5) -> FALSE | M5: TRUE | N5: TRUE | O5: TRUE | P5: TRUE | Q5: TRUE | R5: TRUE | S5: TRUE | T5: TRUE | U5: TRUE | V5: TRUE | W5: TRUE | X5: TRUE | Y5: TRUE | Z5: TRUE | AA5: TRUE | AB5: TRUE | AC5: TRUE | AD5: TRUE | AE5: FALSE | AF5: FALSE | AG5: FALSE | AH5: FALSE | AI5: FALSE | AJ5: FALSE | AK5: FALSE | AL5: FALSE | AM5: FALSE | AN5: FALSE | AO5: FALSE | AP5: FALSE | AQ5: FALSE | AR5: FALSE | AS5: FALSE | AT5: FALSE | AU5: FALSE | AV5: FALSE | AW5: FALSE | AX5: FALSE | AY5: FALSE | AZ5: FALSE
D6: Lifetime of IT Equipment
B8: Part 1: Physical Characteristics: Demand from Data Needs
G9: Size of Data Center
C10: Electricity for IT Cooling Load | G10: Critical Load | I10: kW Source | J10: Weather Fac | K10: Sum
D11: =TRANSPOSE('IT Load Datarooms Calculate'!E7:H7) -> Critical Electric for Data Room 1: 2-dtc-l2l | F11: kW | G11: =Input!$E$14 -> 2-dtc-l2l | H11: ='Data Room Configure'!$B$19 -> Load | I11: ='IT Load Datarooms Calculate'!E19 -> 1849.381723 | J11: ='IT Load Datarooms Calculate'!E64 -> 1.062871381 | K11: ='IT Load Datarooms Calculate'!E22 -> 51.99802016 | L11: =L5*($I$11*$J$11) -> 0 | M11: =M5*($I$11*$J$11) -> 1965.654906 | N11: 1965.654906 | O11: 1965.654906 | P11: 1965.654906 | Q11: 1965.654906 | R11: 1965.654906 | S11: 1965.654906 | T11: 1965.654906 | U11: 1965.654906 | V11: 1965.654906 | W11: 1965.654906 | X11: 1965.654906 | Y11: 1965.654906 | Z11: 1965.654906 | AA11: 1965.654906 | AB11: 1965.654906 | AC11: 1965.654906 | AD11: 1965.654906 | AE11: 0 | AF11: 0 | AG11: 0 | AH11: 0 | AI11: 0 | AJ11: 0 | AK11: 0 | AL11: 0 | AM11: 0 | AN11: 0 | AO11: 0 | AP11: 0 | AQ11: 0 | AR11: 0 | AS11: 0 | AT11: 0 | AU11: 0 | AV11: 0 | AW11: 0 | AX11: 0 | AY11: 0 | AZ11: 0
D12: Critical Electric for Data Room 2: 1-air | F12: kW | G12: =Input!$E$15 -> 1-air | H12: ='Data Room Configure'!$B$19 -> Load | I12: ='IT Load Datarooms Calculate'!F19 -> 2050.811142 | J12: ='IT Load Datarooms Calculate'!F64 -> 1.080613812 | K12: ='IT Load Datarooms Calculate'!F22 -> 93.21868826 | L12: =L5*($I$12*$J$12) -> 0 | M12: =M5*($I$12*$J$12) -> 2216.134846 | N12: 2216.134846 | O12: 2216.134846 | P12: 2216.134846 | Q12: 2216.134846 | R12: 2216.134846 | S12: 2216.134846 | T12: 2216.134846 | U12: 2216.134846 | V12: 2216.134846 | W12: 2216.134846 | X12: 2216.134846 | Y12: 2216.134846 | Z12: 2216.134846 | AA12: 2216.134846 | AB12: 2216.134846 | AC12: 2216.134846 | AD12: 2216.134846 | AE12: 0 | AF12: 0 | AG12: 0 | AH12: 0 | AI12: 0 | AJ12: 0 | AK12: 0 | AL12: 0 | AM12: 0 | AN12: 0 | AO12: 0 | AP12: 0 | AQ12: 0 | AR12: 0 | AS12: 0 | AT12: 0 | AU12: 0 | AV12: 0 | AW12: 0 | AX12: 0 | AY12: 0 | AZ12: 0
D13: Critical Electric for Data Room 3: None | F13: kW | G13: =Input!$E$16 -> None | H13: ='Data Room Configure'!$B$19 -> Load | I13: ='IT Load Datarooms Calculate'!G19 -> 0 | L13: =$I13*L$5 -> 0 | M13: 0 | N13: 0 | O13: 0 | P13: 0 | Q13: 0 | R13: 0 | S13: 0 | T13: 0 | U13: 0 | V13: =$I13*V$5 -> 0 | W13: 0 | X13: 0 | Y13: 0 | Z13: 0 | AA13: 0 | AB13: 0 | AC13: 0 | AD13: 0 | AE13: 0 | AF13: =$I13*AF$5 -> 0 | AG13: 0 | AH13: 0 | AI13: 0 | AJ13: 0 | AK13: 0 | AL13: 0 | AM13: 0 | AN13: 0 | AO13: 0 | AP13: =$I13*AP$5 -> 0 | AQ13: 0 | AR13: 0 | AS13: 0 | AT13: 0 | AU13: 0 | AV13: 0 | AW13: 0 | AX13: 0 | AY13: 0 | AZ13: 0
D14: Critical Electric for Data Room 4: None | F14: kW | G14: =Input!$E$17 -> None | H14: ='Data Room Configure'!$B$19 -> Load | I14: ='IT Load Datarooms Calculate'!H19 -> 0 | L14: 0 | M14: 0 | N14: 0 | O14: 0 | P14: 0 | Q14: 0 | R14: 0 | S14: 0 | T14: 0 | U14: 0 | V14: 0 | W14: 0 | X14: 0 | Y14: 0 | Z14: 0 | AA14: 0 | AB14: 0 | AC14: 0 | AD14: 0 | AE14: 0 | AF14: 0 | AG14: 0 | AH14: 0 | AI14: 0 | AJ14: 0 | AK14: 0 | AL14: 0 | AM14: 0 | AN14: 0 | AO14: 0 | AP14: 0 | AQ14: 0 | AR14: 0 | AS14: 0 | AT14: 0 | AU14: 0 | AV14: 0 | AW14: 0 | AX14: 0 | AY14: 0 | AZ14: 0
E15: Total Critical Load for IT Equipment | F15: kW | I15: =SUM(I11:I14) -> 3900.192865 | K15: =SUM(K11:K14) -> 145.2167084 | L15: =SUM(L11:L14) -> 0 | M15: =SUM(M11:M14) -> 4181.789752 | N15: 4181.789752 | O15: 4181.789752 | P15: 4181.789752 | Q15: 4181.789752 | R15: 4181.789752 | S15: 4181.789752 | T15: 4181.789752 | U15: 4181.789752 | V15: 4181.789752 | W15: 4181.789752 | X15: 4181.789752 | Y15: 4181.789752 | Z15: 4181.789752 | AA15: 4181.789752 | AB15: 4181.789752 | AC15: 4181.789752 | AD15: 4181.789752 | AE15: 0 | AF15: 0 | AG15: 0 | AH15: 0 | AI15: 0 | AJ15: 0 | AK15: 0 | AL15: 0 | AM15: 0 | AN15: 0 | AO15: 0 | AP15: 0 | AQ15: 0 | AR15: 0 | AS15: 0 | AT15: 0 | AU15: 0 | AV15: 0 | AW15: 0 | AX15: 0 | AY15: 0 | AZ15: 0
E16: Total Energy for Critical IT Equipment | F16: kWh | I16: =Input!E$49 -> 8760 | L16: =L15*$I$16 -> 0 | M16: 36632478.23 | N16: 36632478.23 | O16: 36632478.23 | P16: 36632478.23 | Q16: 36632478.23 | R16: 36632478.23 | S16: 36632478.23 | T16: 36632478.23 | U16: 36632478.23 | V16: 36632478.23 | W16: 36632478.23 | X16: 36632478.23 | Y16: 36632478.23 | Z16: 36632478.23 | AA16: 36632478.23 | AB16: 36632478.23 | AC16: 36632478.23 | AD16: 36632478.23 | AE16: 0 | AF16: 0 | AG16: 0 | AH16: 0 | AI16: 0 | AJ16: 0 | AK16: 0 | AL16: 0 | AM16: 0 | AN16: 0 | AO16: 0 | AP16: 0 | AQ16: 0 | AR16: 0 | AS16: 0 | AT16: 0 | AU16: 0 | AV16: 0 | AW16: 0 | AX16: 0 | AY16: 0 | AZ16: 0
C18: PUE for IT Load (Electricity Purchased/IT Electricity)
D19: =D11 -> Critical Electric for Data Room 1: 2-dtc-l2l
D20: =D12 -> Critical Electric for Data Room 2: 1-air
D21: Critical Electric for Data Room 3: None
D22: Critical Electric for Data Room 4: None
C26: Mechanical Average Load Other than for IT Equipment | G26: Mechanical Load | I26: kW
D27: =D11 -> Critical Electric for Data Room 1: 2-dtc-l2l | F27: kW | G27: =Input!$E$14 -> 2-dtc-l2l | H27: Mech Load | I27: ='IT Load Datarooms Calculate'!H30 -> 48.03147878 | J27: ='IT Load Datarooms Calculate'!E27 -> 0.02317685548 | K27: ='IT Load Datarooms Calculate'!F27 -> 0.9835616438 | L27: =$I27*L$5 -> 0 | M27: =$I27*M$5 -> 48.03147878 | N27: 48.03147878 | O27: 48.03147878 | P27: 48.03147878 | Q27: 48.03147878 | R27: 48.03147878 | S27: 48.03147878 | T27: 48.03147878 | U27: 48.03147878 | V27: 48.03147878 | W27: 48.03147878 | X27: 48.03147878 | Y27: 48.03147878 | Z27: 48.03147878 | AA27: 48.03147878 | AB27: 48.03147878 | AC27: 48.03147878 | AD27: 48.03147878 | AE27: 0 | AF27: 0 | AG27: 0 | AH27: 0 | AI27: 0 | AJ27: 0 | AK27: 0 | AL27: 0 | AM27: 0 | AN27: 0 | AO27: 0 | AP27: 0 | AQ27: 0 | AR27: 0 | AS27: 0 | AT27: 0 | AU27: 0 | AV27: 0 | AW27: 0 | AX27: 0 | AY27: 0 | AZ27: 0
D28: =D12 -> Critical Electric for Data Room 2: 1-air | F28: kW | G28: =Input!$E$15 -> 1-air | H28: Mech Load | I28: ='IT Load Datarooms Calculate'!H35 -> 57.45180397 | L28: =$I28*L$5 -> 0 | M28: 57.45180397 | N28: 57.45180397 | O28: 57.45180397 | P28: 57.45180397 | Q28: 57.45180397 | R28: 57.45180397 | S28: 57.45180397 | T28: 57.45180397 | U28: 57.45180397 | V28: 57.45180397 | W28: 57.45180397 | X28: 57.45180397 | Y28: 57.45180397 | Z28: 57.45180397 | AA28: 57.45180397 | AB28: 57.45180397 | AC28: 57.45180397 | AD28: 57.45180397 | AE28: 0 | AF28: 0 | AG28: 0 | AH28: 0 | AI28: 0 | AJ28: 0 | AK28: 0 | AL28: 0 | AM28: 0 | AN28: 0 | AO28: 0 | AP28: 0 | AQ28: 0 | AR28: 0 | AS28: 0 | AT28: 0 | AU28: 0 | AV28: 0 | AW28: 0 | AX28: 0 | AY28: 0 | AZ28: 0
D29: =D13 -> Critical Electric for Data Room 3: None | F29: kW | G29: =Input!$E$16 -> None | H29: Mech Load | I29: ='IT Load Datarooms Calculate'!H40 -> 0 | L29: 0 | M29: 0 | N29: 0 | O29: 0 | P29: 0 | Q29: 0 | R29: 0 | S29: 0 | T29: 0 | U29: 0 | V29: 0 | W29: 0 | X29: 0 | Y29: 0 | Z29: 0 | AA29: 0 | AB29: 0 | AC29: 0 | AD29: 0 | AE29: 0 | AF29: 0 | AG29: 0 | AH29: 0 | AI29: 0 | AJ29: 0 | AK29: 0 | AL29: 0 | AM29: 0 | AN29: 0 | AO29: 0 | AP29: 0 | AQ29: 0 | AR29: 0 | AS29: 0 | AT29: 0 | AU29: 0 | AV29: 0 | AW29: 0 | AX29: 0 | AY29: 0 | AZ29: 0
D30: =D14 -> Critical Electric for Data Room 4: None | F30: kW | G30: =Input!$E$17 -> None | H30: Mech Load | I30: ='IT Load Datarooms Calculate'!H45 -> 0 | L30: 0 | M30: 0 | N30: 0 | O30: 0 | P30: 0 | Q30: 0 | R30: 0 | S30: 0 | T30: 0 | U30: 0 | V30: 0 | W30: 0 | X30: 0 | Y30: 0 | Z30: 0 | AA30: 0 | AB30: 0 | AC30: 0 | AD30: 0 | AE30: 0 | AF30: 0 | AG30: 0 | AH30: 0 | AI30: 0 | AJ30: 0 | AK30: 0 | AL30: 0 | AM30: 0 | AN30: 0 | AO30: 0 | AP30: 0 | AQ30: 0 | AR30: 0 | AS30: 0 | AT30: 0 | AU30: 0 | AV30: 0 | AW30: 0 | AX30: 0 | AY30: 0 | AZ30: 0
E31: Total Mechanical Load | F31: kW | L31: =SUM(L27:L30) -> 0 | M31: =SUM(M27:M30) -> 105.4832827 | N31: 105.4832827 | O31: 105.4832827 | P31: 105.4832827 | Q31: 105.4832827 | R31: 105.4832827 | S31: 105.4832827 | T31: 105.4832827 | U31: 105.4832827 | V31: 105.4832827 | W31: 105.4832827 | X31: 105.4832827 | Y31: 105.4832827 | Z31: 105.4832827 | AA31: 105.4832827 | AB31: 105.4832827 | AC31: 105.4832827 | AD31: 105.4832827 | AE31: 0 | AF31: 0 | AG31: 0 | AH31: 0 | AI31: 0 | AJ31: 0 | AK31: 0 | AL31: 0 | AM31: 0 | AN31: 0 | AO31: 0 | AP31: 0 | AQ31: 0 | AR31: 0 | AS31: 0 | AT31: 0 | AU31: 0 | AV31: 0 | AW31: 0 | AX31: 0 | AY31: 0 | AZ31: 0
E32: Total Energy for Mechanical Load | F32: kWh | I32: =Input!E$49 -> 8760 | L32: =L31*$I$32 -> 0 | M32: =M31*$I$32 -> 924033.5568 | N32: 924033.5568 | O32: 924033.5568 | P32: 924033.5568 | Q32: 924033.5568 | R32: 924033.5568 | S32: 924033.5568 | T32: 924033.5568 | U32: 924033.5568 | V32: 924033.5568 | W32: 924033.5568 | X32: 924033.5568 | Y32: 924033.5568 | Z32: 924033.5568 | AA32: 924033.5568 | AB32: 924033.5568 | AC32: 924033.5568 | AD32: 924033.5568 | AE32: 0 | AF32: 0 | AG32: 0 | AH32: 0 | AI32: 0 | AJ32: 0 | AK32: 0 | AL32: 0 | AM32: 0 | AN32: 0 | AO32: 0 | AP32: 0 | AQ32: 0 | AR32: 0 | AS32: 0 | AT32: 0 | AU32: 0 | AV32: 0 | AW32: 0 | AX32: 0 | AY32: 0 | AZ32: 0
E34: Total Load to Serve with Equipment | F34: kW | K34: =SUM(L34:XFD34) -> 77170.91463 | L34: =L15+L31 -> 0 | M34: 4287.273035 | N34: 4287.273035 | O34: 4287.273035 | P34: 4287.273035 | Q34: 4287.273035 | R34: 4287.273035 | S34: 4287.273035 | T34: 4287.273035 | U34: 4287.273035 | V34: 4287.273035 | W34: 4287.273035 | X34: 4287.273035 | Y34: 4287.273035 | Z34: 4287.273035 | AA34: 4287.273035 | AB34: 4287.273035 | AC34: 4287.273035 | AD34: 4287.273035 | AE34: 0 | AF34: 0 | AG34: 0 | AH34: 0 | AI34: 0 | AJ34: 0 | AK34: 0 | AL34: 0 | AM34: 0 | AN34: 0 | AO34: 0 | AP34: 0 | AQ34: 0 | AR34: 0 | AS34: 0 | AT34: 0 | AU34: 0 | AV34: 0 | AW34: 0 | AX34: 0 | AY34: 0 | AZ34: 0
C36: Power Consumed by Equipment for Critical Power in Data Rooms | I36: Load | J36: Hours
D37: Genset | F37: kWh | I37: ='Back-up Power Calculate'!E12 -> 4181.789752 | J37: =Input!$E$49 -> 8760 | L37: =$I37*$J37*L$5 -> 0 | M37: 36632478.23 | N37: 36632478.23 | O37: 36632478.23 | P37: 36632478.23 | Q37: 36632478.23 | R37: 36632478.23 | S37: 36632478.23 | T37: 36632478.23 | U37: 36632478.23 | V37: =$I37*$J37*V$5 -> 36632478.23 | W37: 36632478.23 | X37: 36632478.23 | Y37: 36632478.23 | Z37: 36632478.23 | AA37: 36632478.23 | AB37: 36632478.23 | AC37: 36632478.23 | AD37: 36632478.23 | AE37: 0 | AF37: =$I37*$J37*AF$5 -> 0 | AG37: 0 | AH37: 0 | AI37: 0 | AJ37: 0 | AK37: 0 | AL37: 0 | AM37: 0 | AN37: 0 | AO37: 0 | AP37: =$I37*$J37*AP$5 -> 0 | AQ37: 0 | AR37: 0 | AS37: 0 | AT37: 0 | AU37: 0 | AV37: 0 | AW37: 0 | AX37: 0 | AY37: 0 | AZ37: 0
D38: Transformer for Step-Down (TX) | F38: kWh | I38: ='Back-up Power Calculate'!F13 -> 4181.789752 | J38: =Input!$E$49 -> 8760 | L38: 0 | M38: 36632478.23 | N38: 36632478.23 | O38: 36632478.23 | P38: 36632478.23 | Q38: 36632478.23 | R38: 36632478.23 | S38: 36632478.23 | T38: 36632478.23 | U38: 36632478.23 | V38: 36632478.23 | W38: 36632478.23 | X38: 36632478.23 | Y38: 36632478.23 | Z38: 36632478.23 | AA38: 36632478.23 | AB38: 36632478.23 | AC38: 36632478.23 | AD38: 36632478.23 | AE38: 0 | AF38: 0 | AG38: 0 | AH38: 0 | AI38: 0 | AJ38: 0 | AK38: 0 | AL38: 0 | AM38: 0 | AN38: 0 | AO38: 0 | AP38: 0 | AQ38: 0 | AR38: 0 | AS38: 0 | AT38: 0 | AU38: 0 | AV38: 0 | AW38: 0 | AX38: 0 | AY38: 0 | AZ38: 0
D39: Switchboard (SWB) | F39: kWh | I39: ='Back-up Power Calculate'!G12 -> 4139.971855 | J39: =Input!$E$49 -> 8760 | L39: 0 | M39: 36266153.45 | N39: 36266153.45 | O39: 36266153.45 | P39: 36266153.45 | Q39: 36266153.45 | R39: 36266153.45 | S39: 36266153.45 | T39: 36266153.45 | U39: 36266153.45 | V39: 36266153.45 | W39: 36266153.45 | X39: 36266153.45 | Y39: 36266153.45 | Z39: 36266153.45 | AA39: 36266153.45 | AB39: 36266153.45 | AC39: 36266153.45 | AD39: 36266153.45 | AE39: 0 | AF39: 0 | AG39: 0 | AH39: 0 | AI39: 0 | AJ39: 0 | AK39: 0 | AL39: 0 | AM39: 0 | AN39: 0 | AO39: 0 | AP39: 0 | AQ39: 0 | AR39: 0 | AS39: 0 | AT39: 0 | AU39: 0 | AV39: 0 | AW39: 0 | AX39: 0 | AY39: 0 | AZ39: 0
D40: Uninterrupted Power Supply (UPS) | F40: kWh | I40: ='Back-up Power Calculate'!H13 -> 3949.678314 | J40: =Input!$E$49 -> 8760 | L40: 0 | M40: 34599182.03 | N40: 34599182.03 | O40: 34599182.03 | P40: 34599182.03 | Q40: 34599182.03 | R40: 34599182.03 | S40: 34599182.03 | T40: 34599182.03 | U40: 34599182.03 | V40: 34599182.03 | W40: 34599182.03 | X40: 34599182.03 | Y40: 34599182.03 | Z40: 34599182.03 | AA40: 34599182.03 | AB40: 34599182.03 | AC40: 34599182.03 | AD40: 34599182.03 | AE40: 0 | AF40: 0 | AG40: 0 | AH40: 0 | AI40: 0 | AJ40: 0 | AK40: 0 | AL40: 0 | AM40: 0 | AN40: 0 | AO40: 0 | AP40: 0 | AQ40: 0 | AR40: 0 | AS40: 0 | AT40: 0 | AU40: 0 | AV40: 0 | AW40: 0 | AX40: 0 | AY40: 0 | AZ40: 0
C42: Chiller | F42: kWh | I42: ='Back-up Power Calculate'!I12 -> 80.89650169 | J42: =Input!$E$49 -> 8760 | L42: =$I42*$J42*L$5 -> 0 | M42: 708653.3548 | N42: 708653.3548 | O42: 708653.3548 | P42: 708653.3548 | Q42: 708653.3548 | R42: 708653.3548 | S42: 708653.3548 | T42: 708653.3548 | U42: 708653.3548 | V42: 708653.3548 | W42: 708653.3548 | X42: 708653.3548 | Y42: 708653.3548 | Z42: 708653.3548 | AA42: 708653.3548 | AB42: 708653.3548 | AC42: 708653.3548 | AD42: 708653.3548 | AE42: 0 | AF42: 0 | AG42: 0 | AH42: 0 | AI42: 0 | AJ42: 0 | AK42: 0 | AL42: 0 | AM42: 0 | AN42: 0 | AO42: 0 | AP42: 0 | AQ42: 0 | AR42: 0 | AS42: 0 | AT42: 0 | AU42: 0 | AV42: 0 | AW42: 0 | AX42: 0 | AY42: 0 | AZ42: 0
C44: Power Consumed for Mechanical Operations | I44: Load | J44: Hours
D45: Genset | F45: kWh | I45: ='Back-up Power Calculate'!J12 -> 105.4832827 | J45: =Input!$E$49 -> 8760 | L45: =$I45*$J45*L$5 -> 0 | M45: 924033.5568 | N45: 924033.5568 | O45: 924033.5568 | P45: 924033.5568 | Q45: 924033.5568 | R45: 924033.5568 | S45: 924033.5568 | T45: 924033.5568 | U45: 924033.5568 | V45: =$I45*$J45*V$5 -> 924033.5568 | W45: 924033.5568 | X45: 924033.5568 | Y45: 924033.5568 | Z45: 924033.5568 | AA45: 924033.5568 | AB45: 924033.5568 | AC45: 924033.5568 | AD45: 924033.5568 | AE45: 0 | AF45: =$I45*$J45*AF$5 -> 0 | AG45: 0 | AH45: 0 | AI45: 0 | AJ45: 0 | AK45: 0 | AL45: 0 | AM45: 0 | AN45: 0 | AO45: 0 | AP45: =$I45*$J45*AP$5 -> 0 | AQ45: 0 | AR45: 0 | AS45: 0 | AT45: 0 | AU45: 0 | AV45: 0 | AW45: 0 | AX45: 0 | AY45: 0 | AZ45: 0
D46: Transformer for Step-Down (TX) | F46: kWh | I46: ='Back-up Power Calculate'!K12 -> 105.4832827 | J46: =Input!$E$49 -> 8760 | L46: 0 | M46: 924033.5568 | N46: 924033.5568 | O46: 924033.5568 | P46: 924033.5568 | Q46: 924033.5568 | R46: 924033.5568 | S46: 924033.5568 | T46: 924033.5568 | U46: 924033.5568 | V46: 924033.5568 | W46: 924033.5568 | X46: 924033.5568 | Y46: 924033.5568 | Z46: 924033.5568 | AA46: 924033.5568 | AB46: 924033.5568 | AC46: 924033.5568 | AD46: 924033.5568 | AE46: 0 | AF46: 0 | AG46: 0 | AH46: 0 | AI46: 0 | AJ46: 0 | AK46: 0 | AL46: 0 | AM46: 0 | AN46: 0 | AO46: 0 | AP46: 0 | AQ46: 0 | AR46: 0 | AS46: 0 | AT46: 0 | AU46: 0 | AV46: 0 | AW46: 0 | AX46: 0 | AY46: 0 | AZ46: 0
D47: Switchboard (SWB) | F47: kWh | I47: ='Back-up Power Calculate'!L12 -> 104.4284499 | J47: =Input!$E$49 -> 8760 | L47: 0 | M47: 914793.2213 | N47: 914793.2213 | O47: 914793.2213 | P47: 914793.2213 | Q47: 914793.2213 | R47: 914793.2213 | S47: 914793.2213 | T47: 914793.2213 | U47: 914793.2213 | V47: 914793.2213 | W47: 914793.2213 | X47: 914793.2213 | Y47: 914793.2213 | Z47: 914793.2213 | AA47: 914793.2213 | AB47: 914793.2213 | AC47: 914793.2213 | AD47: 914793.2213 | AE47: 0 | AF47: 0 | AG47: 0 | AH47: 0 | AI47: 0 | AJ47: 0 | AK47: 0 | AL47: 0 | AM47: 0 | AN47: 0 | AO47: 0 | AP47: 0 | AQ47: 0 | AR47: 0 | AS47: 0 | AT47: 0 | AU47: 0 | AV47: 0 | AW47: 0 | AX47: 0 | AY47: 0 | AZ47: 0
D49: Total Power Consumed by Equipment | F49: kWh | L49: =SUM(L37:L47) -> 0 | M49: =SUM(M37:M47) -> 147601805.6 | N49: 147601805.6 | O49: 147601805.6 | P49: 147601805.6 | Q49: 147601805.6 | R49: 147601805.6 | S49: 147601805.6 | T49: 147601805.6 | U49: 147601805.6 | V49: 147601805.6 | W49: 147601805.6 | X49: 147601805.6 | Y49: 147601805.6 | Z49: 147601805.6 | AA49: 147601805.6 | AB49: 147601805.6 | AC49: 147601805.6 | AD49: 147601805.6 | AE49: 0 | AF49: 0 | AG49: 0 | AH49: 0 | AI49: 0 | AJ49: 0 | AK49: 0 | AL49: 0 | AM49: 0 | AN49: 0 | AO49: 0 | AP49: 0 | AQ49: 0 | AR49: 0 | AS49: 0 | AT49: 0 | AU49: 0 | AV49: 0 | AW49: 0 | AX49: 0 | AY49: 0 | AZ49: 0
C51: Cooling Load - Chiller for Heat Recovery | I51: Load | J51: Hours
D52: ='Heat Recovery Cooling Calculate'!E4 -> HRU, Air | F52: kWh | I52: ='Heat Recovery Cooling Calculate'!H42 -> 3388.034191 | J52: =Input!$E$49 -> 8760 | L52: =$I52*$J52*L$5 -> 0 | M52: 29679179.51 | N52: 29679179.51 | O52: 29679179.51 | P52: 29679179.51 | Q52: 29679179.51 | R52: 29679179.51 | S52: 29679179.51 | T52: 29679179.51 | U52: 29679179.51 | V52: =$I52*$J52*V$5 -> 29679179.51 | W52: 29679179.51 | X52: 29679179.51 | Y52: 29679179.51 | Z52: 29679179.51 | AA52: 29679179.51 | AB52: 29679179.51 | AC52: 29679179.51 | AD52: 29679179.51 | AE52: 0 | AF52: =$I52*$J52*AF$5 -> 0 | AG52: 0 | AH52: 0 | AI52: 0 | AJ52: 0 | AK52: 0 | AL52: 0 | AM52: 0 | AN52: 0 | AO52: 0 | AP52: =$I52*$J52*AP$5 -> 0 | AQ52: 0 | AR52: 0 | AS52: 0 | AT52: 0 | AU52: 0 | AV52: 0 | AW52: 0 | AX52: 0 | AY52: 0 | AZ52: 0
D53: ='Heat Recovery Cooling Calculate'!I4 -> HRU, Liquid | F53: kWh | I53: ='Heat Recovery Cooling Calculate'!L42 -> 689.203461 | J53: =Input!$E$49 -> 8760 | L53: 0 | M53: 6037422.318 | N53: 6037422.318 | O53: 6037422.318 | P53: 6037422.318 | Q53: 6037422.318 | R53: 6037422.318 | S53: 6037422.318 | T53: 6037422.318 | U53: 6037422.318 | V53: 6037422.318 | W53: 6037422.318 | X53: 6037422.318 | Y53: 6037422.318 | Z53: 6037422.318 | AA53: 6037422.318 | AB53: 6037422.318 | AC53: 6037422.318 | AD53: 6037422.318 | AE53: 0 | AF53: 0 | AG53: 0 | AH53: 0 | AI53: 0 | AJ53: 0 | AK53: 0 | AL53: 0 | AM53: 0 | AN53: 0 | AO53: 0 | AP53: 0 | AQ53: 0 | AR53: 0 | AS53: 0 | AT53: 0 | AU53: 0 | AV53: 0 | AW53: 0 | AX53: 0 | AY53: 0 | AZ53: 0
E54: Total Chiller for Heat Recovery | F54: kWh | L54: =SUM(L52:L53) -> 0 | M54: =SUM(M52:M53) -> 35716601.83 | N54: 35716601.83 | O54: 35716601.83 | P54: 35716601.83 | Q54: 35716601.83 | R54: 35716601.83 | S54: 35716601.83 | T54: 35716601.83 | U54: 35716601.83 | V54: 35716601.83 | W54: 35716601.83 | X54: 35716601.83 | Y54: 35716601.83 | Z54: 35716601.83 | AA54: 35716601.83 | AB54: 35716601.83 | AC54: 35716601.83 | AD54: 35716601.83 | AE54: 0 | AF54: 0 | AG54: 0 | AH54: 0 | AI54: 0 | AJ54: 0 | AK54: 0 | AL54: 0 | AM54: 0 | AN54: 0 | AO54: 0 | AP54: 0 | AQ54: 0 | AR54: 0 | AS54: 0 | AT54: 0 | AU54: 0 | AV54: 0 | AW54: 0 | AX54: 0 | AY54: 0 | AZ54: 0
C56: Racks and Clusters
D57: =D27 -> Critical Electric for Data Room 1: 2-dtc-l2l
D58: =D28 -> Critical Electric for Data Room 2: 1-air
D59: =D29 -> Critical Electric for Data Room 3: None
D60: =D30 -> Critical Electric for Data Room 4: None
C62: Floor Area for Data Rooms (Based on Peak) | F62: See Picture
D63: Data Room 1 | F63: m2 | G63: =G27 -> 2-dtc-l2l | I63: ='IT Load Datarooms Calculate'!E90 -> 334.6833333 | L63: =$I63*L$5 -> 0 | M63: =$I63*M$5 -> 334.6833333 | N63: 334.6833333 | O63: 334.6833333 | P63: 334.6833333 | Q63: 334.6833333 | R63: 334.6833333 | S63: 334.6833333 | T63: 334.6833333 | U63: 334.6833333 | V63: 334.6833333 | W63: 334.6833333 | X63: 334.6833333 | Y63: 334.6833333 | Z63: 334.6833333 | AA63: 334.6833333 | AB63: 334.6833333 | AC63: 334.6833333 | AD63: 334.6833333 | AE63: 0 | AF63: 0 | AG63: 0 | AH63: 0 | AI63: 0 | AJ63: 0 | AK63: 0 | AL63: 0 | AM63: 0 | AN63: 0 | AO63: 0 | AP63: 0 | AQ63: 0 | AR63: 0 | AS63: 0 | AT63: 0 | AU63: 0 | AV63: 0 | AW63: 0 | AX63: 0 | AY63: 0 | AZ63: 0
D64: Data Room 2 | F64: m2 | G64: =G28 -> 1-air | I64: ='IT Load Datarooms Calculate'!F90 -> 694.72 | L64: =$I64*L$5 -> 0 | M64: 694.72 | N64: 694.72 | O64: 694.72 | P64: 694.72 | Q64: 694.72 | R64: 694.72 | S64: 694.72 | T64: 694.72 | U64: 694.72 | V64: 694.72 | W64: 694.72 | X64: 694.72 | Y64: 694.72 | Z64: 694.72 | AA64: 694.72 | AB64: 694.72 | AC64: 694.72 | AD64: 694.72 | AE64: 0 | AF64: 0 | AG64: 0 | AH64: 0 | AI64: 0 | AJ64: 0 | AK64: 0 | AL64: 0 | AM64: 0 | AN64: 0 | AO64: 0 | AP64: 0 | AQ64: 0 | AR64: 0 | AS64: 0 | AT64: 0 | AU64: 0 | AV64: 0 | AW64: 0 | AX64: 0 | AY64: 0 | AZ64: 0
D65: Data Room 3 | F65: m2 | I65: ='IT Load Datarooms Calculate'!G90 -> 0 | L65: =$I65*L$5 -> 0 | M65: 0 | N65: 0 | O65: 0 | P65: 0 | Q65: 0 | R65: 0 | S65: 0 | T65: 0 | U65: 0 | V65: 0 | W65: 0 | X65: 0 | Y65: 0 | Z65: 0 | AA65: 0 | AB65: 0 | AC65: 0 | AD65: 0 | AE65: 0 | AF65: 0 | AG65: 0 | AH65: 0 | AI65: 0 | AJ65: 0 | AK65: 0 | AL65: 0 | AM65: 0 | AN65: 0 | AO65: 0 | AP65: 0 | AQ65: 0 | AR65: 0 | AS65: 0 | AT65: 0 | AU65: 0 | AV65: 0 | AW65: 0 | AX65: 0 | AY65: 0 | AZ65: 0
D66: Data Room 4 | F66: m2 | I66: ='IT Load Datarooms Calculate'!H90 -> 0 | L66: 0 | M66: 0 | N66: 0 | O66: 0 | P66: 0 | Q66: 0 | R66: 0 | S66: 0 | T66: 0 | U66: 0 | V66: 0 | W66: 0 | X66: 0 | Y66: 0 | Z66: 0 | AA66: 0 | AB66: 0 | AC66: 0 | AD66: 0 | AE66: 0 | AF66: 0 | AG66: 0 | AH66: 0 | AI66: 0 | AJ66: 0 | AK66: 0 | AL66: 0 | AM66: 0 | AN66: 0 | AO66: 0 | AP66: 0 | AQ66: 0 | AR66: 0 | AS66: 0 | AT66: 0 | AU66: 0 | AV66: 0 | AW66: 0 | AX66: 0 | AY66: 0 | AZ66: 0
E67: Total Area of Data Rooms | F67: m2 | L67: =SUM(L63:L66) -> 0 | M67: =SUM(M63:M66) -> 1029.403333 | N67: 1029.403333 | O67: 1029.403333 | P67: 1029.403333 | Q67: 1029.403333 | R67: 1029.403333 | S67: 1029.403333 | T67: 1029.403333 | U67: 1029.403333 | V67: 1029.403333 | W67: 1029.403333 | X67: 1029.403333 | Y67: 1029.403333 | Z67: 1029.403333 | AA67: 1029.403333 | AB67: 1029.403333 | AC67: 1029.403333 | AD67: 1029.403333 | AE67: 0 | AF67: 0 | AG67: 0 | AH67: 0 | AI67: 0 | AJ67: 0 | AK67: 0 | AL67: 0 | AM67: 0 | AN67: 0 | AO67: 0 | AP67: 0 | AQ67: 0 | AR67: 0 | AS67: 0 | AT67: 0 | AU67: 0 | AV67: 0 | AW67: 0 | AX67: 0 | AY67: 0 | AZ67: 0
C69: Floor Area for Equipment
D70: Area for Equipment for Critial Load
E71: Genset | F71: m2 | J71: ='Back-up Power Calculate'!E47 -> 217.4530671 | L71: =$J71*L$5 -> 0 | M71: =$J71*M$5 -> 217.4530671 | N71: 217.4530671 | O71: 217.4530671 | P71: 217.4530671 | Q71: 217.4530671 | R71: 217.4530671 | S71: 217.4530671 | T71: 217.4530671 | U71: 217.4530671 | V71: 217.4530671 | W71: 217.4530671 | X71: 217.4530671 | Y71: 217.4530671 | Z71: 217.4530671 | AA71: 217.4530671 | AB71: 217.4530671 | AC71: 217.4530671 | AD71: 217.4530671 | AE71: 0 | AF71: 0 | AG71: 0 | AH71: 0 | AI71: 0 | AJ71: 0 | AK71: 0 | AL71: 0 | AM71: 0 | AN71: 0 | AO71: 0 | AP71: 0 | AQ71: 0 | AR71: 0 | AS71: 0 | AT71: 0 | AU71: 0 | AV71: 0 | AW71: 0 | AX71: 0 | AY71: 0 | AZ71: 0
E72: Transformer for Step-Down (TX) | F72: m2 | J72: ='Back-up Power Calculate'!F47 -> 334.5431802 | L72: =$J72*L$5 -> 0 | M72: 334.5431802 | N72: 334.5431802 | O72: 334.5431802 | P72: 334.5431802 | Q72: 334.5431802 | R72: 334.5431802 | S72: 334.5431802 | T72: 334.5431802 | U72: 334.5431802 | V72: 334.5431802 | W72: 334.5431802 | X72: 334.5431802 | Y72: 334.5431802 | Z72: 334.5431802 | AA72: 334.5431802 | AB72: 334.5431802 | AC72: 334.5431802 | AD72: 334.5431802 | AE72: 0 | AF72: 0 | AG72: 0 | AH72: 0 | AI72: 0 | AJ72: 0 | AK72: 0 | AL72: 0 | AM72: 0 | AN72: 0 | AO72: 0 | AP72: 0 | AQ72: 0 | AR72: 0 | AS72: 0 | AT72: 0 | AU72: 0 | AV72: 0 | AW72: 0 | AX72: 0 | AY72: 0 | AZ72: 0
E73: Switchboard (SWB) | F73: m2 | J73: ='Back-up Power Calculate'!G47 -> 331.1977484 | L73: 0 | M73: 331.1977484 | N73: 331.1977484 | O73: 331.1977484 | P73: 331.1977484 | Q73: 331.1977484 | R73: 331.1977484 | S73: 331.1977484 | T73: 331.1977484 | U73: 331.1977484 | V73: 331.1977484 | W73: 331.1977484 | X73: 331.1977484 | Y73: 331.1977484 | Z73: 331.1977484 | AA73: 331.1977484 | AB73: 331.1977484 | AC73: 331.1977484 | AD73: 331.1977484 | AE73: 0 | AF73: 0 | AG73: 0 | AH73: 0 | AI73: 0 | AJ73: 0 | AK73: 0 | AL73: 0 | AM73: 0 | AN73: 0 | AO73: 0 | AP73: 0 | AQ73: 0 | AR73: 0 | AS73: 0 | AT73: 0 | AU73: 0 | AV73: 0 | AW73: 0 | AX73: 0 | AY73: 0 | AZ73: 0
E74: Uninterrupted Power Supply (UPS) | F74: m2 | J74: ='Back-up Power Calculate'!H48 -> 244.8800555 | L74: 0 | M74: 244.8800555 | N74: 244.8800555 | O74: 244.8800555 | P74: 244.8800555 | Q74: 244.8800555 | R74: 244.8800555 | S74: 244.8800555 | T74: 244.8800555 | U74: 244.8800555 | V74: 244.8800555 | W74: 244.8800555 | X74: 244.8800555 | Y74: 244.8800555 | Z74: 244.8800555 | AA74: 244.8800555 | AB74: 244.8800555 | AC74: 244.8800555 | AD74: 244.8800555 | AE74: 0 | AF74: 0 | AG74: 0 | AH74: 0 | AI74: 0 | AJ74: 0 | AK74: 0 | AL74: 0 | AM74: 0 | AN74: 0 | AO74: 0 | AP74: 0 | AQ74: 0 | AR74: 0 | AS74: 0 | AT74: 0 | AU74: 0 | AV74: 0 | AW74: 0 | AX74: 0 | AY74: 0 | AZ74: 0
E75: Total Equipment for Critical Load | F75: m2 | L75: =SUM(L71:L74) -> 0 | M75: =SUM(M71:M74) -> 1128.074051 | N75: 1128.074051 | O75: 1128.074051 | P75: 1128.074051 | Q75: 1128.074051 | R75: 1128.074051 | S75: 1128.074051 | T75: 1128.074051 | U75: 1128.074051 | V75: 1128.074051 | W75: 1128.074051 | X75: 1128.074051 | Y75: 1128.074051 | Z75: 1128.074051 | AA75: 1128.074051 | AB75: 1128.074051 | AC75: 1128.074051 | AD75: 1128.074051 | AE75: 0 | AF75: 0 | AG75: 0 | AH75: 0 | AI75: 0 | AJ75: 0 | AK75: 0 | AL75: 0 | AM75: 0 | AN75: 0 | AO75: 0 | AP75: 0 | AQ75: 0 | AR75: 0 | AS75: 0 | AT75: 0 | AU75: 0 | AV75: 0 | AW75: 0 | AX75: 0 | AY75: 0 | AZ75: 0
D77: Chiller | F77: m2 | J77: ='Back-up Power Calculate'!I48 -> 3.235860067 | L77: =$J77*L$5 -> 0 | M77: =$J77*M$5 -> 3.235860067 | N77: 3.235860067 | O77: 3.235860067 | P77: 3.235860067 | Q77: 3.235860067 | R77: 3.235860067 | S77: 3.235860067 | T77: 3.235860067 | U77: 3.235860067 | V77: 3.235860067 | W77: 3.235860067 | X77: 3.235860067 | Y77: 3.235860067 | Z77: 3.235860067 | AA77: 3.235860067 | AB77: 3.235860067 | AC77: 3.235860067 | AD77: 3.235860067 | AE77: 0 | AF77: 0 | AG77: 0 | AH77: 0 | AI77: 0 | AJ77: 0 | AK77: 0 | AL77: 0 | AM77: 0 | AN77: 0 | AO77: 0 | AP77: 0 | AQ77: 0 | AR77: 0 | AS77: 0 | AT77: 0 | AU77: 0 | AV77: 0 | AW77: 0 | AX77: 0 | AY77: 0 | AZ77: 0
D79: Area for Equipment for Mechnical
E80: Genset | F80: m2 | J80: ='Back-up Power Calculate'!J47 -> 49.93833578 | L80: =$J80*L$5 -> 0 | M80: =$J80*M$5 -> 49.93833578 | N80: 49.93833578 | O80: 49.93833578 | P80: 49.93833578 | Q80: 49.93833578 | R80: 49.93833578 | S80: 49.93833578 | T80: 49.93833578 | U80: 49.93833578 | V80: 49.93833578 | W80: 49.93833578 | X80: 49.93833578 | Y80: 49.93833578 | Z80: 49.93833578 | AA80: 49.93833578 | AB80: 49.93833578 | AC80: 49.93833578 | AD80: 49.93833578 | AE80: 0 | AF80: 0 | AG80: 0 | AH80: 0 | AI80: 0 | AJ80: 0 | AK80: 0 | AL80: 0 | AM80: 0 | AN80: 0 | AO80: 0 | AP80: 0 | AQ80: 0 | AR80: 0 | AS80: 0 | AT80: 0 | AU80: 0 | AV80: 0 | AW80: 0 | AX80: 0 | AY80: 0 | AZ80: 0
E81: Transformer for Step-Down (TX) | F81: m2 | J81: ='Back-up Power Calculate'!K48 -> 76.82820889 | L81: =$J81*L$5 -> 0 | M81: 76.82820889 | N81: 76.82820889 | O81: 76.82820889 | P81: 76.82820889 | Q81: 76.82820889 | R81: 76.82820889 | S81: 76.82820889 | T81: 76.82820889 | U81: 76.82820889 | V81: 76.82820889 | W81: 76.82820889 | X81: 76.82820889 | Y81: 76.82820889 | Z81: 76.82820889 | AA81: 76.82820889 | AB81: 76.82820889 | AC81: 76.82820889 | AD81: 76.82820889 | AE81: 0 | AF81: 0 | AG81: 0 | AH81: 0 | AI81: 0 | AJ81: 0 | AK81: 0 | AL81: 0 | AM81: 0 | AN81: 0 | AO81: 0 | AP81: 0 | AQ81: 0 | AR81: 0 | AS81: 0 | AT81: 0 | AU81: 0 | AV81: 0 | AW81: 0 | AX81: 0 | AY81: 0 | AZ81: 0
E82: Switchboard (SWB) | F82: m2 | J82: ='Back-up Power Calculate'!L48 -> 76.0599268 | L82: 0 | M82: 76.0599268 | N82: 76.0599268 | O82: 76.0599268 | P82: 76.0599268 | Q82: 76.0599268 | R82: 76.0599268 | S82: 76.0599268 | T82: 76.0599268 | U82: 76.0599268 | V82: 76.0599268 | W82: 76.0599268 | X82: 76.0599268 | Y82: 76.0599268 | Z82: 76.0599268 | AA82: 76.0599268 | AB82: 76.0599268 | AC82: 76.0599268 | AD82: 76.0599268 | AE82: 0 | AF82: 0 | AG82: 0 | AH82: 0 | AI82: 0 | AJ82: 0 | AK82: 0 | AL82: 0 | AM82: 0 | AN82: 0 | AO82: 0 | AP82: 0 | AQ82: 0 | AR82: 0 | AS82: 0 | AT82: 0 | AU82: 0 | AV82: 0 | AW82: 0 | AX82: 0 | AY82: 0 | AZ82: 0
E83: Total Area for Equipment | F83: m2 | L83: =SUM(L80:L82) -> 0 | M83: =SUM(M80:M82) -> 202.8264715 | N83: 202.8264715 | O83: 202.8264715 | P83: 202.8264715 | Q83: 202.8264715 | R83: 202.8264715 | S83: 202.8264715 | T83: 202.8264715 | U83: 202.8264715 | V83: 202.8264715 | W83: 202.8264715 | X83: 202.8264715 | Y83: 202.8264715 | Z83: 202.8264715 | AA83: 202.8264715 | AB83: 202.8264715 | AC83: 202.8264715 | AD83: 202.8264715 | AE83: 0 | AF83: 0 | AG83: 0 | AH83: 0 | AI83: 0 | AJ83: 0 | AK83: 0 | AL83: 0 | AM83: 0 | AN83: 0 | AO83: 0 | AP83: 0 | AQ83: 0 | AR83: 0 | AS83: 0 | AT83: 0 | AU83: 0 | AV83: 0 | AW83: 0 | AX83: 0 | AY83: 0 | AZ83: 0
C85: Water Usage | H85: l/kWh | I85: Load kW | J85: Hrs
D86: Water Usage for Cooling Critical Load | F86: m3 | H86: ='Heat Recovery Cooling Calculate'!H37 -> 1.4 | I86: ='Heat Recovery Cooling Calculate'!H38 -> 3388.034191 | J86: =Input!E$49 -> 8760 | L86: =$H86*$I86*$J86/1000*L5 -> 0 | M86: 41550.85131 | N86: 41550.85131 | O86: 41550.85131 | P86: 41550.85131 | Q86: 41550.85131 | R86: 41550.85131 | S86: 41550.85131 | T86: 41550.85131 | U86: 41550.85131 | V86: 41550.85131 | W86: 41550.85131 | X86: 41550.85131 | Y86: 41550.85131 | Z86: 41550.85131 | AA86: 41550.85131 | AB86: 41550.85131 | AC86: 41550.85131 | AD86: 41550.85131 | AE86: 0 | AF86: 0 | AG86: 0 | AH86: 0 | AI86: 0 | AJ86: 0 | AK86: 0 | AL86: 0 | AM86: 0 | AN86: 0 | AO86: 0 | AP86: 0 | AQ86: 0 | AR86: 0 | AS86: 0 | AT86: 0 | AU86: 0 | AV86: 0 | AW86: 0 | AX86: 0 | AY86: 0 | AZ86: 0
D87: Water Usage for Cooling Mechanical Load | F87: m3 | H87: ='Heat Recovery Cooling Calculate'!L37 -> 1.4 | I87: ='Heat Recovery Cooling Calculate'!L38 -> 689.203461 | J87: =Input!E$49 -> 8760 | L87: =$H87*$I87*$J87/1000*L5 -> 0 | M87: 8452.391245 | N87: 8452.391245 | O87: 8452.391245 | P87: 8452.391245 | Q87: 8452.391245 | R87: 8452.391245 | S87: 8452.391245 | T87: 8452.391245 | U87: 8452.391245 | V87: 8452.391245 | W87: 8452.391245 | X87: 8452.391245 | Y87: 8452.391245 | Z87: 8452.391245 | AA87: 8452.391245 | AB87: 8452.391245 | AC87: 8452.391245 | AD87: 8452.391245 | AE87: 0 | AF87: 0 | AG87: 0 | AH87: 0 | AI87: 0 | AJ87: 0 | AK87: 0 | AL87: 0 | AM87: 0 | AN87: 0 | AO87: 0 | AP87: 0 | AQ87: 0 | AR87: 0 | AS87: 0 | AT87: 0 | AU87: 0 | AV87: 0 | AW87: 0 | AX87: 0 | AY87: 0 | AZ87: 0
D88: Total Water Usage | F88: m3 | L88: =SUM(L86:L87) -> 0 | M88: =SUM(M86:M87) -> 50003.24256 | N88: 50003.24256 | O88: 50003.24256 | P88: 50003.24256 | Q88: 50003.24256 | R88: 50003.24256 | S88: 50003.24256 | T88: 50003.24256 | U88: 50003.24256 | V88: 50003.24256 | W88: 50003.24256 | X88: 50003.24256 | Y88: 50003.24256 | Z88: 50003.24256 | AA88: 50003.24256 | AB88: 50003.24256 | AC88: 50003.24256 | AD88: 50003.24256 | AE88: 0 | AF88: 0 | AG88: 0 | AH88: 0 | AI88: 0 | AJ88: 0 | AK88: 0 | AL88: 0 | AM88: 0 | AN88: 0 | AO88: 0 | AP88: 0 | AQ88: 0 | AR88: 0 | AS88: 0 | AT88: 0 | AU88: 0 | AV88: 0 | AW88: 0 | AX88: 0 | AY88: 0 | AZ88: 0
B90: Part 3: Capital Expenditures for Electiricy Loads
C92: Direct Capital Expenditure for IT Electricity
D93: =D11 -> Critical Electric for Data Room 1: 2-dtc-l2l | F93: =Currency -> Euro | H93: Data Room Cap Exp | I93: ='IT Load Datarooms Calculate'!E99 -> 1745200 | K93: =SUM(L93:XFD93) -> 1745200 | L93: =$I93*L$4 -> 1745200 | M93: 0 | N93: 0 | O93: 0 | P93: 0 | Q93: 0 | R93: 0 | S93: 0 | T93: 0 | U93: 0 | V93: =$I93*V$4 -> 0 | W93: 0 | X93: 0 | Y93: 0 | Z93: 0 | AA93: 0 | AB93: 0 | AC93: 0 | AD93: 0 | AE93: 0 | AF93: =$I93*AF$4 -> 0 | AG93: 0 | AH93: 0 | AI93: 0 | AJ93: 0 | AK93: 0 | AL93: 0 | AM93: 0 | AN93: 0 | AO93: 0 | AP93: =$I93*AP$4 -> 0 | AQ93: 0 | AR93: 0 | AS93: 0 | AT93: 0 | AU93: 0 | AV93: 0 | AW93: 0 | AX93: 0 | AY93: 0 | AZ93: 0
D94: =D12 -> Critical Electric for Data Room 2: 1-air | F94: =Currency -> Euro | H94: Data Room Cap Exp | I94: ='IT Load Datarooms Calculate'!F99 -> 1803719.697 | K94: =SUM(L94:XFD94) -> 1803719.697 | L94: 1803719.697 | M94: 0 | N94: 0 | O94: 0 | P94: 0 | Q94: 0 | R94: 0 | S94: 0 | T94: 0 | U94: 0 | V94: 0 | W94: 0 | X94: 0 | Y94: 0 | Z94: 0 | AA94: 0 | AB94: 0 | AC94: 0 | AD94: 0 | AE94: 0 | AF94: 0 | AG94: 0 | AH94: 0 | AI94: 0 | AJ94: 0 | AK94: 0 | AL94: 0 | AM94: 0 | AN94: 0 | AO94: 0 | AP94: 0 | AQ94: 0 | AR94: 0 | AS94: 0 | AT94: 0 | AU94: 0 | AV94: 0 | AW94: 0 | AX94: 0 | AY94: 0 | AZ94: 0
D95: =D13 -> Critical Electric for Data Room 3: None | F95: =Currency -> Euro | H95: Data Room Cap Exp | I95: ='IT Load Datarooms Calculate'!G99 -> 0 | K95: =SUM(L95:XFD95) -> 0 | L95: 0 | M95: 0 | N95: 0 | O95: 0 | P95: 0 | Q95: 0 | R95: 0 | S95: 0 | T95: 0 | U95: 0 | V95: 0 | W95: 0 | X95: 0 | Y95: 0 | Z95: 0 | AA95: 0 | AB95: 0 | AC95: 0 | AD95: 0 | AE95: 0 | AF95: 0 | AG95: 0 | AH95: 0 | AI95: 0 | AJ95: 0 | AK95: 0 | AL95: 0 | AM95: 0 | AN95: 0 | AO95: 0 | AP95: 0 | AQ95: 0 | AR95: 0 | AS95: 0 | AT95: 0 | AU95: 0 | AV95: 0 | AW95: 0 | AX95: 0 | AY95: 0 | AZ95: 0
D96: =D14 -> Critical Electric for Data Room 4: None | F96: =Currency -> Euro | H96: Data Room Cap Exp | I96: ='IT Load Datarooms Calculate'!H104 -> 0 | K96: =SUM(L96:XFD96) -> 0 | L96: 0 | M96: 0 | N96: 0 | O96: 0 | P96: 0 | Q96: 0 | R96: 0 | S96: 0 | T96: 0 | U96: 0 | V96: 0 | W96: 0 | X96: 0 | Y96: 0 | Z96: 0 | AA96: 0 | AB96: 0 | AC96: 0 | AD96: 0 | AE96: 0 | AF96: 0 | AG96: 0 | AH96: 0 | AI96: 0 | AJ96: 0 | AK96: 0 | AL96: 0 | AM96: 0 | AN96: 0 | AO96: 0 | AP96: 0 | AQ96: 0 | AR96: 0 | AS96: 0 | AT96: 0 | AU96: 0 | AV96: 0 | AW96: 0 | AX96: 0 | AY96: 0 | AZ96: 0
E97: Total Direct Capital Expenditure | F97: =Currency -> Euro | I97: =SUM(I93:I96) -> 3548919.697 | K97: =SUM(L97:XFD97) -> 3548919.697 | L97: 3548919.697 | M97: 0 | N97: 0 | O97: 0 | P97: 0 | Q97: 0 | R97: 0 | S97: 0 | T97: 0 | U97: 0 | V97: 0 | W97: 0 | X97: 0 | Y97: 0 | Z97: 0 | AA97: 0 | AB97: 0 | AC97: 0 | AD97: 0 | AE97: 0 | AF97: 0 | AG97: 0 | AH97: 0 | AI97: 0 | AJ97: 0 | AK97: 0 | AL97: 0 | AM97: 0 | AN97: 0 | AO97: 0 | AP97: 0 | AQ97: 0 | AR97: 0 | AS97: 0 | AT97: 0 | AU97: 0 | AV97: 0 | AW97: 0 | AX97: 0 | AY97: 0 | AZ97: 0
C99: Proportional Cap Exp for IT Electricity
D100: =D93 -> Critical Electric for Data Room 1: 2-dtc-l2l | F100: =Currency -> Euro | I100: ='IT Load Datarooms Calculate'!E103 -> 0 | K100: =SUM(L100:XFD100) -> 0 | L100: =$I100*L$4 -> 0 | M100: =$I100*M$4 -> 0 | N100: 0 | O100: 0 | P100: 0 | Q100: 0 | R100: 0 | S100: 0 | T100: 0 | U100: 0 | V100: 0 | W100: 0 | X100: 0 | Y100: 0 | Z100: 0 | AA100: 0 | AB100: 0 | AC100: 0 | AD100: 0 | AE100: 0 | AF100: 0 | AG100: 0 | AH100: 0 | AI100: 0 | AJ100: 0 | AK100: 0 | AL100: 0 | AM100: 0 | AN100: 0 | AO100: 0 | AP100: 0 | AQ100: 0 | AR100: 0 | AS100: 0 | AT100: 0 | AU100: 0 | AV100: 0 | AW100: 0 | AX100: 0 | AY100: 0 | AZ100: 0
D101: =D94 -> Critical Electric for Data Room 2: 1-air | F101: =Currency -> Euro | I101: ='IT Load Datarooms Calculate'!F103 -> 0 | K101: =SUM(L101:XFD101) -> 0 | L101: =$I101*L$4 -> 0 | M101: 0 | N101: 0 | O101: 0 | P101: 0 | Q101: 0 | R101: 0 | S101: 0 | T101: 0 | U101: 0 | V101: 0 | W101: 0 | X101: 0 | Y101: 0 | Z101: 0 | AA101: 0 | AB101: 0 | AC101: 0 | AD101: 0 | AE101: 0 | AF101: 0 | AG101: 0 | AH101: 0 | AI101: 0 | AJ101: 0 | AK101: 0 | AL101: 0 | AM101: 0 | AN101: 0 | AO101: 0 | AP101: 0 | AQ101: 0 | AR101: 0 | AS101: 0 | AT101: 0 | AU101: 0 | AV101: 0 | AW101: 0 | AX101: 0 | AY101: 0 | AZ101: 0
D102: Critical Electric for Data Room 3: None | F102: =Currency -> Euro | I102: ='IT Load Datarooms Calculate'!G103 -> 0 | K102: =SUM(L102:XFD102) -> 0 | L102: 0 | M102: 0 | N102: 0 | O102: 0 | P102: 0 | Q102: 0 | R102: 0 | S102: 0 | T102: 0 | U102: 0 | V102: 0 | W102: 0 | X102: 0 | Y102: 0 | Z102: 0 | AA102: 0 | AB102: 0 | AC102: 0 | AD102: 0 | AE102: 0 | AF102: 0 | AG102: 0 | AH102: 0 | AI102: 0 | AJ102: 0 | AK102: 0 | AL102: 0 | AM102: 0 | AN102: 0 | AO102: 0 | AP102: 0 | AQ102: 0 | AR102: 0 | AS102: 0 | AT102: 0 | AU102: 0 | AV102: 0 | AW102: 0 | AX102: 0 | AY102: 0 | AZ102: 0
D103: Critical Electric for Data Room 4: None | F103: =Currency -> Euro | I103: ='IT Load Datarooms Calculate'!H103 -> 0 | K103: =SUM(L103:XFD103) -> 0 | L103: 0 | M103: 0 | N103: 0 | O103: 0 | P103: 0 | Q103: 0 | R103: 0 | S103: 0 | T103: 0 | U103: 0 | V103: 0 | W103: 0 | X103: 0 | Y103: 0 | Z103: 0 | AA103: 0 | AB103: 0 | AC103: 0 | AD103: 0 | AE103: 0 | AF103: 0 | AG103: 0 | AH103: 0 | AI103: 0 | AJ103: 0 | AK103: 0 | AL103: 0 | AM103: 0 | AN103: 0 | AO103: 0 | AP103: 0 | AQ103: 0 | AR103: 0 | AS103: 0 | AT103: 0 | AU103: 0 | AV103: 0 | AW103: 0 | AX103: 0 | AY103: 0 | AZ103: 0
E104: Total Proportional Expenditure | F104: =Currency -> Euro | I104: =SUM(I100:I103) -> 0 | K104: =SUM(L104:XFD104) -> 0 | L104: =SUM(L100:L103) -> 0 | M104: =SUM(M100:M103) -> 0 | N104: 0 | O104: 0 | P104: 0 | Q104: 0 | R104: 0 | S104: 0 | T104: 0 | U104: 0 | V104: 0 | W104: 0 | X104: 0 | Y104: 0 | Z104: 0 | AA104: 0 | AB104: 0 | AC104: 0 | AD104: 0 | AE104: 0 | AF104: 0 | AG104: 0 | AH104: 0 | AI104: 0 | AJ104: 0 | AK104: 0 | AL104: 0 | AM104: 0 | AN104: 0 | AO104: 0 | AP104: 0 | AQ104: 0 | AR104: 0 | AS104: 0 | AT104: 0 | AU104: 0 | AV104: 0 | AW104: 0 | AX104: 0 | AY104: 0 | AZ104: 0
C106: Capital Expenditure for IT Core and Shell | I106: Area in m2 | J106: Cost/m2 | K106: Sum
D107: =D100 -> Critical Electric for Data Room 1: 2-dtc-l2l | F107: =Currency -> Euro | I107: ='IT Load Datarooms Calculate'!E108 -> 334.6833333 | J107: =Input!$E$35 -> 1800 | K107: =SUM(L107:XFD107) -> 602430 | L107: =$I107*$J107*L$4 -> 602430 | M107: =$I107*$J107*M$4 -> 0 | N107: 0 | O107: 0 | P107: 0 | Q107: 0 | R107: 0 | S107: 0 | T107: 0 | U107: 0 | V107: 0 | W107: 0 | X107: 0 | Y107: 0 | Z107: 0 | AA107: 0 | AB107: 0 | AC107: 0 | AD107: 0 | AE107: 0 | AF107: 0 | AG107: 0 | AH107: 0 | AI107: 0 | AJ107: 0 | AK107: 0 | AL107: 0 | AM107: 0 | AN107: 0 | AO107: 0 | AP107: 0 | AQ107: 0 | AR107: 0 | AS107: 0 | AT107: 0 | AU107: 0 | AV107: 0 | AW107: 0 | AX107: 0 | AY107: 0 | AZ107: 0
D108: =D101 -> Critical Electric for Data Room 2: 1-air | F108: =Currency -> Euro | I108: ='IT Load Datarooms Calculate'!F108 -> 694.72 | J108: =Input!$E$35 -> 1800 | K108: =SUM(L108:XFD108) -> 1250496 | L108: =$I108*$J108*L$4 -> 1250496 | M108: 0 | N108: 0 | O108: 0 | P108: 0 | Q108: 0 | R108: 0 | S108: 0 | T108: 0 | U108: 0 | V108: 0 | W108: 0 | X108: 0 | Y108: 0 | Z108: 0 | AA108: 0 | AB108: 0 | AC108: 0 | AD108: 0 | AE108: 0 | AF108: 0 | AG108: 0 | AH108: 0 | AI108: 0 | AJ108: 0 | AK108: 0 | AL108: 0 | AM108: 0 | AN108: 0 | AO108: 0 | AP108: 0 | AQ108: 0 | AR108: 0 | AS108: 0 | AT108: 0 | AU108: 0 | AV108: 0 | AW108: 0 | AX108: 0 | AY108: 0 | AZ108: 0
D109: Critical Electric for Data Room 3: None | F109: =Currency -> Euro | I109: ='IT Load Datarooms Calculate'!G108 -> 0 | J109: =Input!$E$35 -> 1800 | K109: =SUM(L109:XFD109) -> 0 | L109: 0 | M109: 0 | N109: 0 | O109: 0 | P109: 0 | Q109: 0 | R109: 0 | S109: 0 | T109: 0 | U109: 0 | V109: 0 | W109: 0 | X109: 0 | Y109: 0 | Z109: 0 | AA109: 0 | AB109: 0 | AC109: 0 | AD109: 0 | AE109: 0 | AF109: 0 | AG109: 0 | AH109: 0 | AI109: 0 | AJ109: 0 | AK109: 0 | AL109: 0 | AM109: 0 | AN109: 0 | AO109: 0 | AP109: 0 | AQ109: 0 | AR109: 0 | AS109: 0 | AT109: 0 | AU109: 0 | AV109: 0 | AW109: 0 | AX109: 0 | AY109: 0 | AZ109: 0
D110: Critical Electric for Data Room 4: None | F110: =Currency -> Euro | I110: ='IT Load Datarooms Calculate'!H108 -> 0 | J110: =Input!$E$35 -> 1800 | K110: =SUM(L110:XFD110) -> 0 | L110: 0 | M110: 0 | N110: 0 | O110: 0 | P110: 0 | Q110: 0 | R110: 0 | S110: 0 | T110: 0 | U110: 0 | V110: 0 | W110: 0 | X110: 0 | Y110: 0 | Z110: 0 | AA110: 0 | AB110: 0 | AC110: 0 | AD110: 0 | AE110: 0 | AF110: 0 | AG110: 0 | AH110: 0 | AI110: 0 | AJ110: 0 | AK110: 0 | AL110: 0 | AM110: 0 | AN110: 0 | AO110: 0 | AP110: 0 | AQ110: 0 | AR110: 0 | AS110: 0 | AT110: 0 | AU110: 0 | AV110: 0 | AW110: 0 | AX110: 0 | AY110: 0 | AZ110: 0
E111: Total Capital Expenditure for Core and Shell | F111: =Currency -> Euro | I111: =SUM(I107:I110) -> 1029.403333 | K111: =SUM(L111:XFD111) -> 1852926 | L111: =SUM(L107:L110) -> 1852926 | M111: =SUM(M107:M110) -> 0 | N111: 0 | O111: 0 | P111: 0 | Q111: 0 | R111: 0 | S111: 0 | T111: 0 | U111: 0 | V111: 0 | W111: 0 | X111: 0 | Y111: 0 | Z111: 0 | AA111: 0 | AB111: 0 | AC111: 0 | AD111: 0 | AE111: 0 | AF111: 0 | AG111: 0 | AH111: 0 | AI111: 0 | AJ111: 0 | AK111: 0 | AL111: 0 | AM111: 0 | AN111: 0 | AO111: 0 | AP111: 0 | AQ111: 0 | AR111: 0 | AS111: 0 | AT111: 0 | AU111: 0 | AV111: 0 | AW111: 0 | AX111: 0 | AY111: 0 | AZ111: 0
C113: Capital Expenditure for Fit-out
D114: =D107 -> Critical Electric for Data Room 1: 2-dtc-l2l | I114: =TRANSPOSE('IT Load Datarooms Calculate'!E112:H112) -> 334.6833333 | J114: =TRANSPOSE('IT Load Datarooms Calculate'!E113:H113) -> 1800 | K114: =SUM(L114:XFD114) -> 602430 | L114: =$I114*$J114*L$4 -> 602430 | M114: =$I114*$J114*M$4 -> 0 | N114: 0 | O114: 0 | P114: 0 | Q114: 0 | R114: 0 | S114: 0 | T114: 0 | U114: 0 | V114: 0 | W114: 0 | X114: 0 | Y114: 0 | Z114: 0 | AA114: 0 | AB114: 0 | AC114: 0 | AD114: 0 | AE114: 0 | AF114: 0 | AG114: 0 | AH114: 0 | AI114: 0 | AJ114: 0 | AK114: 0 | AL114: 0 | AM114: 0 | AN114: 0 | AO114: 0 | AP114: 0 | AQ114: 0 | AR114: 0 | AS114: 0 | AT114: 0 | AU114: 0 | AV114: 0 | AW114: 0 | AX114: 0 | AY114: 0 | AZ114: 0
D115: =D108 -> Critical Electric for Data Room 2: 1-air | I115: 694.72 | J115: 1800 | K115: =SUM(L115:XFD115) -> 1250496 | L115: =$I115*$J115*L$4 -> 1250496 | M115: 0 | N115: 0 | O115: 0 | P115: 0 | Q115: 0 | R115: 0 | S115: 0 | T115: 0 | U115: 0 | V115: 0 | W115: 0 | X115: 0 | Y115: 0 | Z115: 0 | AA115: 0 | AB115: 0 | AC115: 0 | AD115: 0 | AE115: 0 | AF115: 0 | AG115: 0 | AH115: 0 | AI115: 0 | AJ115: 0 | AK115: 0 | AL115: 0 | AM115: 0 | AN115: 0 | AO115: 0 | AP115: 0 | AQ115: 0 | AR115: 0 | AS115: 0 | AT115: 0 | AU115: 0 | AV115: 0 | AW115: 0 | AX115: 0 | AY115: 0 | AZ115: 0
D116: Critical Electric for Data Room 3: None | I116: 0 | J116: 1800 | K116: 0 | L116: =$I116*$J116*L$4 -> 0 | M116: 0 | N116: 0 | O116: 0 | P116: 0 | Q116: 0 | R116: 0 | S116: 0 | T116: 0 | U116: 0 | V116: 0 | W116: 0 | X116: 0 | Y116: 0 | Z116: 0 | AA116: 0 | AB116: 0 | AC116: 0 | AD116: 0 | AE116: 0 | AF116: 0 | AG116: 0 | AH116: 0 | AI116: 0 | AJ116: 0 | AK116: 0 | AL116: 0 | AM116: 0 | AN116: 0 | AO116: 0 | AP116: 0 | AQ116: 0 | AR116: 0 | AS116: 0 | AT116: 0 | AU116: 0 | AV116: 0 | AW116: 0 | AX116: 0 | AY116: 0 | AZ116: 0
D117: Critical Electric for Data Room 4: None | I117: 0 | J117: 1800 | K117: 0 | L117: =$I117*$J117*L$4 -> 0 | M117: 0 | N117: 0 | O117: 0 | P117: 0 | Q117: 0 | R117: 0 | S117: 0 | T117: 0 | U117: 0 | V117: 0 | W117: 0 | X117: 0 | Y117: 0 | Z117: 0 | AA117: 0 | AB117: 0 | AC117: 0 | AD117: 0 | AE117: 0 | AF117: 0 | AG117: 0 | AH117: 0 | AI117: 0 | AJ117: 0 | AK117: 0 | AL117: 0 | AM117: 0 | AN117: 0 | AO117: 0 | AP117: 0 | AQ117: 0 | AR117: 0 | AS117: 0 | AT117: 0 | AU117: 0 | AV117: 0 | AW117: 0 | AX117: 0 | AY117: 0 | AZ117: 0
E118: Total Capital Expenditures for Fit-out for Data Rooms | K118: =SUM(L118:XFD118) -> 1852926 | L118: =SUM(L114:L117) -> 1852926 | M118: =SUM(M114:M117) -> 0 | N118: 0 | O118: 0 | P118: 0 | Q118: 0 | R118: 0 | S118: 0 | T118: 0 | U118: 0 | V118: 0 | W118: 0 | X118: 0 | Y118: 0 | Z118: 0 | AA118: 0 | AB118: 0 | AC118: 0 | AD118: 0 | AE118: 0 | AF118: 0 | AG118: 0 | AH118: 0 | AI118: 0 | AJ118: 0 | AK118: 0 | AL118: 0 | AM118: 0 | AN118: 0 | AO118: 0 | AP118: 0 | AQ118: 0 | AR118: 0 | AS118: 0 | AT118: 0 | AU118: 0 | AV118: 0 | AW118: 0 | AX118: 0 | AY118: 0 | AZ118: 0
E120: Total Expenditures for IT Electricity | F120: =Currency -> Euro | L120: =L97+L104+L111+L118 -> 7254771.697 | M120: =M97+M104+M111+M118 -> 0 | N120: 0 | O120: 0 | P120: 0 | Q120: 0 | R120: 0 | S120: 0 | T120: 0 | U120: 0 | V120: 0 | W120: 0 | X120: 0 | Y120: 0 | Z120: 0 | AA120: 0 | AB120: 0 | AC120: 0 | AD120: 0 | AE120: 0 | AF120: 0 | AG120: 0 | AH120: 0 | AI120: 0 | AJ120: 0 | AK120: 0 | AL120: 0 | AM120: 0 | AN120: 0 | AO120: 0 | AP120: 0 | AQ120: 0 | AR120: 0 | AS120: 0 | AT120: 0 | AU120: 0 | AV120: 0 | AW120: 0 | AX120: 0 | AY120: 0 | AZ120: 0
D122: Cooling Capital Expenditures Including Core and Shell | H122: Number | I122: Cost/Unit | J122: Load/Area
E123: ='Heat Recovery Cooling Calculate'!E4 -> HRU, Air | F123: =Currency -> Euro | H123: ='Heat Recovery Cooling Calculate'!H78 -> 1 | I123: ='Heat Recovery Cooling Calculate'!H75 -> 500 | J123: ='Heat Recovery Cooling Calculate'!H74 -> 4209.463042 | L123: =$H123*$I123*$J123*L$4 -> 2104731.521 | M123: 0 | N123: 0 | O123: 0 | P123: 0 | Q123: 0 | R123: 0 | S123: 0 | T123: 0 | U123: 0 | V123: =$H123*$I123*$J123*V$4 -> 0 | W123: 0 | X123: 0 | Y123: 0 | Z123: 0 | AA123: 0 | AB123: 0 | AC123: 0 | AD123: 0 | AE123: 0 | AF123: =$H123*$I123*$J123*AF$4 -> 0 | AG123: 0 | AH123: 0 | AI123: 0 | AJ123: 0 | AK123: 0 | AL123: 0 | AM123: 0 | AN123: 0 | AO123: 0 | AP123: =$H123*$I123*$J123*AP$4 -> 0 | AQ123: 0 | AR123: 0 | AS123: 0 | AT123: 0 | AU123: 0 | AV123: 0 | AW123: 0 | AX123: 0 | AY123: 0 | AZ123: 0
E124: ='Heat Recovery Cooling Calculate'!I4 -> HRU, Liquid | F124: =Currency -> Euro | H124: ='Heat Recovery Cooling Calculate'!L78 -> 1 | I124: ='Heat Recovery Cooling Calculate'!L75 -> 500 | J124: ='Heat Recovery Cooling Calculate'!L74 -> 689.203461 | L124: 344601.7305 | M124: 0 | N124: 0 | O124: 0 | P124: 0 | Q124: 0 | R124: 0 | S124: 0 | T124: 0 | U124: 0 | V124: 0 | W124: 0 | X124: 0 | Y124: 0 | Z124: 0 | AA124: 0 | AB124: 0 | AC124: 0 | AD124: 0 | AE124: 0 | AF124: 0 | AG124: 0 | AH124: 0 | AI124: 0 | AJ124: 0 | AK124: 0 | AL124: 0 | AM124: 0 | AN124: 0 | AO124: 0 | AP124: 0 | AQ124: 0 | AR124: 0 | AS124: 0 | AT124: 0 | AU124: 0 | AV124: 0 | AW124: 0 | AX124: 0 | AY124: 0 | AZ124: 0
E126: Equipment Cooling - Critical Load Core and Shell | F126: =Currency -> Euro | H126: =H124 -> 1 | I126: ='Heat Recovery Cooling Calculate'!H84 -> 1800 | J126: ='Heat Recovery Cooling Calculate'!H85 -> 147.3312065 | L126: =$H126*$I126*$J126*L$4 -> 265196.1717 | M126: 0 | N126: 0 | O126: 0 | P126: 0 | Q126: 0 | R126: 0 | S126: 0 | T126: 0 | U126: 0 | V126: 0 | W126: 0 | X126: 0 | Y126: 0 | Z126: 0 | AA126: 0 | AB126: 0 | AC126: 0 | AD126: 0 | AE126: 0 | AF126: 0 | AG126: 0 | AH126: 0 | AI126: 0 | AJ126: 0 | AK126: 0 | AL126: 0 | AM126: 0 | AN126: 0 | AO126: 0 | AP126: 0 | AQ126: 0 | AR126: 0 | AS126: 0 | AT126: 0 | AU126: 0 | AV126: 0 | AW126: 0 | AX126: 0 | AY126: 0 | AZ126: 0
E127: Equipment Cooling - Mechanical Load Core and Shell | F127: =Currency -> Euro | H127: =H124 -> 1 | I127: ='Heat Recovery Cooling Calculate'!L88 -> 1800 | J127: ='Heat Recovery Cooling Calculate'!$L$89 -> 24.12212113 | L127: =$H127*$I127*$J127*L$4 -> 43419.81804 | M127: =$H127*$I127*$J127*M$4 -> 0 | N127: 0 | O127: 0 | P127: 0 | Q127: 0 | R127: 0 | S127: 0 | T127: 0 | U127: 0 | V127: 0 | W127: 0 | X127: 0 | Y127: 0 | Z127: 0 | AA127: 0 | AB127: 0 | AC127: 0 | AD127: 0 | AE127: 0 | AF127: 0 | AG127: 0 | AH127: 0 | AI127: 0 | AJ127: 0 | AK127: 0 | AL127: 0 | AM127: 0 | AN127: 0 | AO127: 0 | AP127: 0 | AQ127: 0 | AR127: 0 | AS127: 0 | AT127: 0 | AU127: 0 | AV127: 0 | AW127: 0 | AX127: 0 | AY127: 0 | AZ127: 0
E128: Equipment Cooling - Fit Out | F128: =Currency -> Euro | H128: =H126 -> 1 | I128: ='Heat Recovery Cooling Calculate'!H88 -> 1800 | J128: ='Heat Recovery Cooling Calculate'!H89 -> 147.3312065 | L128: =$H128*$I128*$J128*L$4 -> 265196.1717 | M128: =$H128*$I128*$J128*M$4 -> 0 | N128: 0 | O128: 0 | P128: 0 | Q128: 0 | R128: 0 | S128: 0 | T128: 0 | U128: 0 | V128: 0 | W128: 0 | X128: 0 | Y128: 0 | Z128: 0 | AA128: 0 | AB128: 0 | AC128: 0 | AD128: 0 | AE128: 0 | AF128: 0 | AG128: 0 | AH128: 0 | AI128: 0 | AJ128: 0 | AK128: 0 | AL128: 0 | AM128: 0 | AN128: 0 | AO128: 0 | AP128: 0 | AQ128: 0 | AR128: 0 | AS128: 0 | AT128: 0 | AU128: 0 | AV128: 0 | AW128: 0 | AX128: 0 | AY128: 0 | AZ128: 0
H129: =H124 -> 1 | I129: =I128 -> 1800 | J129: ='Heat Recovery Cooling Calculate'!$L$89 -> 24.12212113 | L129: =$H129*$I129*$J129*L$4 -> 43419.81804 | M129: =$H129*$I129*$J129*M$4 -> 0 | N129: 0 | O129: 0 | P129: 0 | Q129: 0 | R129: 0 | S129: 0 | T129: 0 | U129: 0 | V129: 0 | W129: 0 | X129: 0 | Y129: 0 | Z129: 0 | AA129: 0 | AB129: 0 | AC129: 0 | AD129: 0 | AE129: 0 | AF129: 0 | AG129: 0 | AH129: 0 | AI129: 0 | AJ129: 0 | AK129: 0 | AL129: 0 | AM129: 0 | AN129: 0 | AO129: 0 | AP129: 0 | AQ129: 0 | AR129: 0 | AS129: 0 | AT129: 0 | AU129: 0 | AV129: 0 | AW129: 0 | AX129: 0 | AY129: 0 | AZ129: 0
E130: Total Cooling Equipment Cap Exo | F130: =Currency -> Euro | L130: =SUM(L123:L129) -> 3066565.231 | M130: =SUM(M123:M128) -> 0 | N130: 0 | O130: 0 | P130: 0 | Q130: 0 | R130: 0 | S130: 0 | T130: 0 | U130: 0 | V130: 0 | W130: 0 | X130: 0 | Y130: 0 | Z130: 0 | AA130: 0 | AB130: 0 | AC130: 0 | AD130: 0 | AE130: 0 | AF130: 0 | AG130: 0 | AH130: 0 | AI130: 0 | AJ130: 0 | AK130: 0 | AL130: 0 | AM130: 0 | AN130: 0 | AO130: 0 | AP130: 0 | AQ130: 0 | AR130: 0 | AS130: 0 | AT130: 0 | AU130: 0 | AV130: 0 | AW130: 0 | AX130: 0 | AY130: 0 | AZ130: 0
C132: Capital Expenditures for Power Equipment
D133: Area for Equipment for Critial Load | H133: Number | I133: Cost/kW | J133: Load
E134: Genset | F134: =Currency -> Euro | H134: ='Back-up Power Calculate'!$E$46 -> 2 | I134: ='Back-up Power Calculate'!E51 -> 500 | J134: ='Back-up Power Calculate'!E50 -> 4181.789752 | L134: =$H134*$I134*$J134*L$4 -> 4181789.752 | M134: =$H134*$I134*$J134*M$4 -> 0 | N134: 0 | O134: 0 | P134: 0 | Q134: 0 | R134: 0 | S134: 0 | T134: 0 | U134: 0 | V134: 0 | W134: 0 | X134: 0 | Y134: 0 | Z134: 0 | AA134: 0 | AB134: 0 | AC134: 0 | AD134: 0 | AE134: 0 | AF134: 0 | AG134: 0 | AH134: 0 | AI134: 0 | AJ134: 0 | AK134: 0 | AL134: 0 | AM134: 0 | AN134: 0 | AO134: 0 | AP134: 0 | AQ134: 0 | AR134: 0 | AS134: 0 | AT134: 0 | AU134: 0 | AV134: 0 | AW134: 0 | AX134: 0 | AY134: 0 | AZ134: 0
E135: Transformer for Step-Down (TX) | F135: =Currency -> Euro | H135: ='Back-up Power Calculate'!F46 -> 2 | I135: ='Back-up Power Calculate'!F51 -> 500 | J135: ='Back-up Power Calculate'!F50 -> 4181.789752 | L135: =$H135*$I135*$J135*L$4 -> 4181789.752 | M135: 0 | N135: 0 | O135: 0 | P135: 0 | Q135: 0 | R135: 0 | S135: 0 | T135: 0 | U135: 0 | V135: 0 | W135: 0 | X135: 0 | Y135: 0 | Z135: 0 | AA135: 0 | AB135: 0 | AC135: 0 | AD135: 0 | AE135: 0 | AF135: 0 | AG135: 0 | AH135: 0 | AI135: 0 | AJ135: 0 | AK135: 0 | AL135: 0 | AM135: 0 | AN135: 0 | AO135: 0 | AP135: 0 | AQ135: 0 | AR135: 0 | AS135: 0 | AT135: 0 | AU135: 0 | AV135: 0 | AW135: 0 | AX135: 0 | AY135: 0 | AZ135: 0
E136: Switchboard (SWB) | F136: =Currency -> Euro | H136: ='Back-up Power Calculate'!G46 -> 2 | I136: ='Back-up Power Calculate'!G51 -> 500 | J136: ='Back-up Power Calculate'!G50 -> 4139.971855 | L136: 4139971.855 | M136: 0 | N136: 0 | O136: 0 | P136: 0 | Q136: 0 | R136: 0 | S136: 0 | T136: 0 | U136: 0 | V136: 0 | W136: 0 | X136: 0 | Y136: 0 | Z136: 0 | AA136: 0 | AB136: 0 | AC136: 0 | AD136: 0 | AE136: 0 | AF136: 0 | AG136: 0 | AH136: 0 | AI136: 0 | AJ136: 0 | AK136: 0 | AL136: 0 | AM136: 0 | AN136: 0 | AO136: 0 | AP136: 0 | AQ136: 0 | AR136: 0 | AS136: 0 | AT136: 0 | AU136: 0 | AV136: 0 | AW136: 0 | AX136: 0 | AY136: 0 | AZ136: 0
E137: Uninterrupted Power Supply (UPS) | F137: =Currency -> Euro | H137: ='Back-up Power Calculate'!H46 -> 2 | I137: ='Back-up Power Calculate'!H51 -> 434 | J137: ='Back-up Power Calculate'!H50 -> 3949.678314 | L137: 3428320.777 | M137: 0 | N137: 0 | O137: 0 | P137: 0 | Q137: 0 | R137: 0 | S137: 0 | T137: 0 | U137: 0 | V137: 0 | W137: 0 | X137: 0 | Y137: 0 | Z137: 0 | AA137: 0 | AB137: 0 | AC137: 0 | AD137: 0 | AE137: 0 | AF137: 0 | AG137: 0 | AH137: 0 | AI137: 0 | AJ137: 0 | AK137: 0 | AL137: 0 | AM137: 0 | AN137: 0 | AO137: 0 | AP137: 0 | AQ137: 0 | AR137: 0 | AS137: 0 | AT137: 0 | AU137: 0 | AV137: 0 | AW137: 0 | AX137: 0 | AY137: 0 | AZ137: 0
E138: Total Equipment for Critical Load | F138: =Currency -> Euro | L138: =SUM(L134:L137) -> 15931872.14 | M138: =SUM(M134:M137) -> 0 | N138: 0 | O138: 0 | P138: 0 | Q138: 0 | R138: 0 | S138: 0 | T138: 0 | U138: 0 | V138: 0 | W138: 0 | X138: 0 | Y138: 0 | Z138: 0 | AA138: 0 | AB138: 0 | AC138: 0 | AD138: 0 | AE138: 0 | AF138: 0 | AG138: 0 | AH138: 0 | AI138: 0 | AJ138: 0 | AK138: 0 | AL138: 0 | AM138: 0 | AN138: 0 | AO138: 0 | AP138: 0 | AQ138: 0 | AR138: 0 | AS138: 0 | AT138: 0 | AU138: 0 | AV138: 0 | AW138: 0 | AX138: 0 | AY138: 0 | AZ138: 0
D140: Area for Equipment for Mechnical | H140: Number | I140: Cost/kW | J140: Load
E141: Genset | F141: =Currency -> Euro | H141: ='Back-up Power Calculate'!I46 -> 2 | I141: ='Back-up Power Calculate'!J51 -> 500 | J141: ='Back-up Power Calculate'!J50 -> 960.3526111 | L141: =$H141*$I141*$J141*L$4 -> 960352.6111 | M141: =$H141*$I141*$J141*M$4 -> 0 | N141: 0 | O141: 0 | P141: 0 | Q141: 0 | R141: 0 | S141: 0 | T141: 0 | U141: 0 | V141: 0 | W141: 0 | X141: 0 | Y141: 0 | Z141: 0 | AA141: 0 | AB141: 0 | AC141: 0 | AD141: 0 | AE141: 0 | AF141: 0 | AG141: 0 | AH141: 0 | AI141: 0 | AJ141: 0 | AK141: 0 | AL141: 0 | AM141: 0 | AN141: 0 | AO141: 0 | AP141: 0 | AQ141: 0 | AR141: 0 | AS141: 0 | AT141: 0 | AU141: 0 | AV141: 0 | AW141: 0 | AX141: 0 | AY141: 0 | AZ141: 0
E142: Transformer for Step-Down (TX) | F142: =Currency -> Euro | H142: ='Back-up Power Calculate'!K46 -> 2 | I142: ='Back-up Power Calculate'!K51 -> 500 | J142: ='Back-up Power Calculate'!K50 -> 960.3526111 | L142: =$H142*$I142*$J142*L$4 -> 960352.6111 | M142: 0 | N142: 0 | O142: 0 | P142: 0 | Q142: 0 | R142: 0 | S142: 0 | T142: 0 | U142: 0 | V142: 0 | W142: 0 | X142: 0 | Y142: 0 | Z142: 0 | AA142: 0 | AB142: 0 | AC142: 0 | AD142: 0 | AE142: 0 | AF142: 0 | AG142: 0 | AH142: 0 | AI142: 0 | AJ142: 0 | AK142: 0 | AL142: 0 | AM142: 0 | AN142: 0 | AO142: 0 | AP142: 0 | AQ142: 0 | AR142: 0 | AS142: 0 | AT142: 0 | AU142: 0 | AV142: 0 | AW142: 0 | AX142: 0 | AY142: 0 | AZ142: 0
E143: Switchboard (SWB) | F143: =Currency -> Euro | H143: ='Back-up Power Calculate'!L46 -> 2 | I143: ='Back-up Power Calculate'!L51 -> 500 | J143: ='Back-up Power Calculate'!L50 -> 950.749085 | L143: 950749.085 | M143: 0 | N143: 0 | O143: 0 | P143: 0 | Q143: 0 | R143: 0 | S143: 0 | T143: 0 | U143: 0 | V143: 0 | W143: 0 | X143: 0 | Y143: 0 | Z143: 0 | AA143: 0 | AB143: 0 | AC143: 0 | AD143: 0 | AE143: 0 | AF143: 0 | AG143: 0 | AH143: 0 | AI143: 0 | AJ143: 0 | AK143: 0 | AL143: 0 | AM143: 0 | AN143: 0 | AO143: 0 | AP143: 0 | AQ143: 0 | AR143: 0 | AS143: 0 | AT143: 0 | AU143: 0 | AV143: 0 | AW143: 0 | AX143: 0 | AY143: 0 | AZ143: 0
E144: Total Area for Equipment | F144: =Currency -> Euro | L144: =SUM(L141:L143) -> 2871454.307 | M144: =SUM(M141:M143) -> 0 | N144: 0 | O144: 0 | P144: 0 | Q144: 0 | R144: 0 | S144: 0 | T144: 0 | U144: 0 | V144: 0 | W144: 0 | X144: 0 | Y144: 0 | Z144: 0 | AA144: 0 | AB144: 0 | AC144: 0 | AD144: 0 | AE144: 0 | AF144: 0 | AG144: 0 | AH144: 0 | AI144: 0 | AJ144: 0 | AK144: 0 | AL144: 0 | AM144: 0 | AN144: 0 | AO144: 0 | AP144: 0 | AQ144: 0 | AR144: 0 | AS144: 0 | AT144: 0 | AU144: 0 | AV144: 0 | AW144: 0 | AX144: 0 | AY144: 0 | AZ144: 0
C146: Capital Expenditures for Core and Shell for Equipment
D147: Area and Capital Expenditure | I147: Cost/m2 | J147: m2
E148: Genset | F148: =Currency -> Euro | I148: ='Back-up Power Calculate'!$E$62 -> 1800 | J148: =TRANSPOSE('Back-up Power Calculate'!E63:H63) -> 217.4530671 | L148: =$I148*$J148*L$4 -> 391415.5208 | M148: =$I148*$J148*M$4 -> 0 | N148: 0 | O148: 0 | P148: 0 | Q148: 0 | R148: 0 | S148: 0 | T148: 0 | U148: 0 | V148: 0 | W148: 0 | X148: 0 | Y148: 0 | Z148: 0 | AA148: 0 | AB148: 0 | AC148: 0 | AD148: 0 | AE148: 0 | AF148: 0 | AG148: 0 | AH148: 0 | AI148: 0 | AJ148: 0 | AK148: 0 | AL148: 0 | AM148: 0 | AN148: 0 | AO148: 0 | AP148: 0 | AQ148: 0 | AR148: 0 | AS148: 0 | AT148: 0 | AU148: 0 | AV148: 0 | AW148: 0 | AX148: 0 | AY148: 0 | AZ148: 0
E149: Transformer for Step-Down (TX) | F149: =Currency -> Euro | I149: ='Back-up Power Calculate'!$E$62 -> 1800 | J149: 334.5431802 | L149: =$I149*$J149*L$4 -> 602177.7243 | M149: 0 | N149: 0 | O149: 0 | P149: 0 | Q149: 0 | R149: 0 | S149: 0 | T149: 0 | U149: 0 | V149: 0 | W149: 0 | X149: 0 | Y149: 0 | Z149: 0 | AA149: 0 | AB149: 0 | AC149: 0 | AD149: 0 | AE149: 0 | AF149: 0 | AG149: 0 | AH149: 0 | AI149: 0 | AJ149: 0 | AK149: 0 | AL149: 0 | AM149: 0 | AN149: 0 | AO149: 0 | AP149: 0 | AQ149: 0 | AR149: 0 | AS149: 0 | AT149: 0 | AU149: 0 | AV149: 0 | AW149: 0 | AX149: 0 | AY149: 0 | AZ149: 0
E150: Switchboard (SWB) | F150: =Currency -> Euro | I150: ='Back-up Power Calculate'!$E$62 -> 1800 | J150: 331.1977484 | L150: 596155.9471 | M150: 0 | N150: 0 | O150: 0 | P150: 0 | Q150: 0 | R150: 0 | S150: 0 | T150: 0 | U150: 0 | V150: 0 | W150: 0 | X150: 0 | Y150: 0 | Z150: 0 | AA150: 0 | AB150: 0 | AC150: 0 | AD150: 0 | AE150: 0 | AF150: 0 | AG150: 0 | AH150: 0 | AI150: 0 | AJ150: 0 | AK150: 0 | AL150: 0 | AM150: 0 | AN150: 0 | AO150: 0 | AP150: 0 | AQ150: 0 | AR150: 0 | AS150: 0 | AT150: 0 | AU150: 0 | AV150: 0 | AW150: 0 | AX150: 0 | AY150: 0 | AZ150: 0
E151: Uninterrupted Power Supply (UPS) | F151: =Currency -> Euro | I151: ='Back-up Power Calculate'!$E$62 -> 1800 | J151: 244.8800555 | L151: 440784.0998 | M151: 0 | N151: 0 | O151: 0 | P151: 0 | Q151: 0 | R151: 0 | S151: 0 | T151: 0 | U151: 0 | V151: 0 | W151: 0 | X151: 0 | Y151: 0 | Z151: 0 | AA151: 0 | AB151: 0 | AC151: 0 | AD151: 0 | AE151: 0 | AF151: 0 | AG151: 0 | AH151: 0 | AI151: 0 | AJ151: 0 | AK151: 0 | AL151: 0 | AM151: 0 | AN151: 0 | AO151: 0 | AP151: 0 | AQ151: 0 | AR151: 0 | AS151: 0 | AT151: 0 | AU151: 0 | AV151: 0 | AW151: 0 | AX151: 0 | AY151: 0 | AZ151: 0
E152: Total Equipment for Critical Load | F152: =Currency -> Euro | L152: =SUM(L148:L151) -> 2030533.292 | M152: =SUM(M148:M151) -> 0 | N152: =SUM(N148:N151) -> 0 | O152: 0 | P152: 0 | Q152: 0 | R152: 0 | S152: 0 | T152: 0 | U152: 0 | V152: 0 | W152: 0 | X152: 0 | Y152: 0 | Z152: 0 | AA152: 0 | AB152: 0 | AC152: 0 | AD152: 0 | AE152: 0 | AF152: 0 | AG152: 0 | AH152: 0 | AI152: 0 | AJ152: 0 | AK152: 0 | AL152: 0 | AM152: 0 | AN152: 0 | AO152: 0 | AP152: 0 | AQ152: 0 | AR152: 0 | AS152: 0 | AT152: 0 | AU152: 0 | AV152: 0 | AW152: 0 | AX152: 0 | AY152: 0 | AZ152: 0
D154: Area for Equipment for Mechnical | I154: Cost/m2 | J154: m2
E155: Genset | F155: =Currency -> Euro | I155: ='Back-up Power Calculate'!$E$62 -> 1800 | J155: =TRANSPOSE('Back-up Power Calculate'!J63:L63) -> 49.93833578 | L155: =$I155*$J155*L$4 -> 89889.0044 | M155: 0 | N155: 0 | O155: 0 | P155: 0 | Q155: 0 | R155: 0 | S155: 0 | T155: 0 | U155: 0 | V155: =$I155*$J155*V$4 -> 0 | W155: 0 | X155: 0 | Y155: 0 | Z155: 0 | AA155: 0 | AB155: 0 | AC155: 0 | AD155: 0 | AE155: 0 | AF155: =$I155*$J155*AF$4 -> 0 | AG155: 0 | AH155: 0 | AI155: 0 | AJ155: 0 | AK155: 0 | AL155: 0 | AM155: 0 | AN155: 0 | AO155: 0 | AP155: =$I155*$J155*AP$4 -> 0 | AQ155: 0 | AR155: 0 | AS155: 0 | AT155: 0 | AU155: 0 | AV155: 0 | AW155: 0 | AX155: 0 | AY155: 0 | AZ155: 0
E156: Transformer for Step-Down (TX) | F156: =Currency -> Euro | I156: ='Back-up Power Calculate'!$E$62 -> 1800 | J156: 76.82820889 | L156: 138290.776 | M156: 0 | N156: 0 | O156: 0 | P156: 0 | Q156: 0 | R156: 0 | S156: 0 | T156: 0 | U156: 0 | V156: 0 | W156: 0 | X156: 0 | Y156: 0 | Z156: 0 | AA156: 0 | AB156: 0 | AC156: 0 | AD156: 0 | AE156: 0 | AF156: 0 | AG156: 0 | AH156: 0 | AI156: 0 | AJ156: 0 | AK156: 0 | AL156: 0 | AM156: 0 | AN156: 0 | AO156: 0 | AP156: 0 | AQ156: 0 | AR156: 0 | AS156: 0 | AT156: 0 | AU156: 0 | AV156: 0 | AW156: 0 | AX156: 0 | AY156: 0 | AZ156: 0
E157: Switchboard (SWB) | F157: =Currency -> Euro | I157: ='Back-up Power Calculate'!$E$62 -> 1800 | J157: 76.0599268 | L157: 136907.8682 | M157: 0 | N157: 0 | O157: 0 | P157: 0 | Q157: 0 | R157: 0 | S157: 0 | T157: 0 | U157: 0 | V157: 0 | W157: 0 | X157: 0 | Y157: 0 | Z157: 0 | AA157: 0 | AB157: 0 | AC157: 0 | AD157: 0 | AE157: 0 | AF157: 0 | AG157: 0 | AH157: 0 | AI157: 0 | AJ157: 0 | AK157: 0 | AL157: 0 | AM157: 0 | AN157: 0 | AO157: 0 | AP157: 0 | AQ157: 0 | AR157: 0 | AS157: 0 | AT157: 0 | AU157: 0 | AV157: 0 | AW157: 0 | AX157: 0 | AY157: 0 | AZ157: 0
E158: Total Area for Equipment | F158: =Currency -> Euro | L158: =SUM(L155:L157) -> 365087.6486 | M158: =SUM(M155:M157) -> 0 | N158: 0 | O158: 0 | P158: 0 | Q158: 0 | R158: 0 | S158: 0 | T158: 0 | U158: 0 | V158: 0 | W158: 0 | X158: 0 | Y158: 0 | Z158: 0 | AA158: 0 | AB158: 0 | AC158: 0 | AD158: 0 | AE158: 0 | AF158: 0 | AG158: 0 | AH158: 0 | AI158: 0 | AJ158: 0 | AK158: 0 | AL158: 0 | AM158: 0 | AN158: 0 | AO158: 0 | AP158: 0 | AQ158: 0 | AR158: 0 | AS158: 0 | AT158: 0 | AU158: 0 | AV158: 0 | AW158: 0 | AX158: 0 | AY158: 0 | AZ158: 0
C160: Capital Expenditures for Fit-Out
D161: Area for Equipment for Critial Load | I161: Cost/m2 | J161: m2
E162: Genset | F162: =Currency -> Euro | I162: =Input!$E$36 -> 1800 | J162: =TRANSPOSE('Back-up Power Calculate'!E47:H47) -> 217.4530671 | L162: =$I162*$J162*L$4 -> 391415.5208 | M162: 0 | N162: 0 | O162: 0 | P162: 0 | Q162: 0 | R162: 0 | S162: 0 | T162: 0 | U162: 0 | V162: =$I162*$J162*V$4 -> 0 | W162: 0 | X162: 0 | Y162: 0 | Z162: 0 | AA162: 0 | AB162: 0 | AC162: 0 | AD162: 0 | AE162: 0 | AF162: =$I162*$J162*AF$4 -> 0 | AG162: 0 | AH162: 0 | AI162: 0 | AJ162: 0 | AK162: 0 | AL162: 0 | AM162: 0 | AN162: 0 | AO162: 0 | AP162: =$I162*$J162*AP$4 -> 0 | AQ162: 0 | AR162: 0 | AS162: 0 | AT162: 0 | AU162: 0 | AV162: 0 | AW162: 0 | AX162: 0 | AY162: 0 | AZ162: 0
E163: Transformer for Step-Down (TX) | F163: =Currency -> Euro | I163: =Input!$E$36 -> 1800 | J163: 334.5431802 | L163: 602177.7243 | M163: 0 | N163: 0 | O163: 0 | P163: 0 | Q163: 0 | R163: 0 | S163: 0 | T163: 0 | U163: 0 | V163: 0 | W163: 0 | X163: 0 | Y163: 0 | Z163: 0 | AA163: 0 | AB163: 0 | AC163: 0 | AD163: 0 | AE163: 0 | AF163: 0 | AG163: 0 | AH163: 0 | AI163: 0 | AJ163: 0 | AK163: 0 | AL163: 0 | AM163: 0 | AN163: 0 | AO163: 0 | AP163: 0 | AQ163: 0 | AR163: 0 | AS163: 0 | AT163: 0 | AU163: 0 | AV163: 0 | AW163: 0 | AX163: 0 | AY163: 0 | AZ163: 0
E164: Switchboard (SWB) | F164: =Currency -> Euro | I164: =Input!$E$36 -> 1800 | J164: 331.1977484 | L164: 596155.9471 | M164: 0 | N164: 0 | O164: 0 | P164: 0 | Q164: 0 | R164: 0 | S164: 0 | T164: 0 | U164: 0 | V164: 0 | W164: 0 | X164: 0 | Y164: 0 | Z164: 0 | AA164: 0 | AB164: 0 | AC164: 0 | AD164: 0 | AE164: 0 | AF164: 0 | AG164: 0 | AH164: 0 | AI164: 0 | AJ164: 0 | AK164: 0 | AL164: 0 | AM164: 0 | AN164: 0 | AO164: 0 | AP164: 0 | AQ164: 0 | AR164: 0 | AS164: 0 | AT164: 0 | AU164: 0 | AV164: 0 | AW164: 0 | AX164: 0 | AY164: 0 | AZ164: 0
E165: Uninterrupted Power Supply (UPS) | F165: =Currency -> Euro | I165: =Input!$E$36 -> 1800 | J165: 244.8800555 | L165: 440784.0998 | M165: 0 | N165: 0 | O165: 0 | P165: 0 | Q165: 0 | R165: 0 | S165: 0 | T165: 0 | U165: 0 | V165: 0 | W165: 0 | X165: 0 | Y165: 0 | Z165: 0 | AA165: 0 | AB165: 0 | AC165: 0 | AD165: 0 | AE165: 0 | AF165: 0 | AG165: 0 | AH165: 0 | AI165: 0 | AJ165: 0 | AK165: 0 | AL165: 0 | AM165: 0 | AN165: 0 | AO165: 0 | AP165: 0 | AQ165: 0 | AR165: 0 | AS165: 0 | AT165: 0 | AU165: 0 | AV165: 0 | AW165: 0 | AX165: 0 | AY165: 0 | AZ165: 0
E166: Total Equipment for Critical Load | F166: =Currency -> Euro | L166: =SUM(L162:L165) -> 2030533.292 | M166: =SUM(M162:M165) -> 0 | N166: 0 | O166: 0 | P166: 0 | Q166: 0 | R166: 0 | S166: 0 | T166: 0 | U166: 0 | V166: 0 | W166: 0 | X166: 0 | Y166: 0 | Z166: 0 | AA166: 0 | AB166: 0 | AC166: 0 | AD166: 0 | AE166: 0 | AF166: 0 | AG166: 0 | AH166: 0 | AI166: 0 | AJ166: 0 | AK166: 0 | AL166: 0 | AM166: 0 | AN166: 0 | AO166: 0 | AP166: 0 | AQ166: 0 | AR166: 0 | AS166: 0 | AT166: 0 | AU166: 0 | AV166: 0 | AW166: 0 | AX166: 0 | AY166: 0 | AZ166: 0
D168: Area for Equipment for Mechnical - Fit-out | I168: Cost/m2 | J168: m2
E169: Genset | F169: =Currency -> Euro | I169: =Input!$E$36 -> 1800 | J169: =TRANSPOSE('Back-up Power Calculate'!J47:L47) -> 49.93833578 | L169: =$I169*$J169*L$4 -> 89889.0044 | M169: 0 | N169: 0 | O169: 0 | P169: 0 | Q169: 0 | R169: 0 | S169: 0 | T169: 0 | U169: 0 | V169: =$I169*$J169*V$4 -> 0 | W169: 0 | X169: 0 | Y169: 0 | Z169: 0 | AA169: 0 | AB169: 0 | AC169: 0 | AD169: 0 | AE169: 0 | AF169: =$I169*$J169*AF$4 -> 0 | AG169: 0 | AH169: 0 | AI169: 0 | AJ169: 0 | AK169: 0 | AL169: 0 | AM169: 0 | AN169: 0 | AO169: 0 | AP169: =$I169*$J169*AP$4 -> 0 | AQ169: 0 | AR169: 0 | AS169: 0 | AT169: 0 | AU169: 0 | AV169: 0 | AW169: 0 | AX169: 0 | AY169: 0 | AZ169: 0
E170: Transformer for Step-Down (TX) | F170: =Currency -> Euro | I170: =Input!$E$36 -> 1800 | J170: 76.82820889 | L170: 138290.776 | M170: 0 | N170: 0 | O170: 0 | P170: 0 | Q170: 0 | R170: 0 | S170: 0 | T170: 0 | U170: 0 | V170: 0 | W170: 0 | X170: 0 | Y170: 0 | Z170: 0 | AA170: 0 | AB170: 0 | AC170: 0 | AD170: 0 | AE170: 0 | AF170: 0 | AG170: 0 | AH170: 0 | AI170: 0 | AJ170: 0 | AK170: 0 | AL170: 0 | AM170: 0 | AN170: 0 | AO170: 0 | AP170: 0 | AQ170: 0 | AR170: 0 | AS170: 0 | AT170: 0 | AU170: 0 | AV170: 0 | AW170: 0 | AX170: 0 | AY170: 0 | AZ170: 0
E171: Switchboard (SWB) | F171: =Currency -> Euro | I171: =Input!$E$36 -> 1800 | J171: 76.0599268 | L171: 136907.8682 | M171: 0 | N171: 0 | O171: 0 | P171: 0 | Q171: 0 | R171: 0 | S171: 0 | T171: 0 | U171: 0 | V171: 0 | W171: 0 | X171: 0 | Y171: 0 | Z171: 0 | AA171: 0 | AB171: 0 | AC171: 0 | AD171: 0 | AE171: 0 | AF171: 0 | AG171: 0 | AH171: 0 | AI171: 0 | AJ171: 0 | AK171: 0 | AL171: 0 | AM171: 0 | AN171: 0 | AO171: 0 | AP171: 0 | AQ171: 0 | AR171: 0 | AS171: 0 | AT171: 0 | AU171: 0 | AV171: 0 | AW171: 0 | AX171: 0 | AY171: 0 | AZ171: 0
E172: Total Fit-out Capital Expenditures for Mechanical Fit-out | F172: =Currency -> Euro | L172: =SUM(L169:L171) -> 365087.6486 | M172: =SUM(M169:M171) -> 0 | N172: 0 | O172: 0 | P172: 0 | Q172: 0 | R172: 0 | S172: 0 | T172: 0 | U172: 0 | V172: 0 | W172: 0 | X172: 0 | Y172: 0 | Z172: 0 | AA172: 0 | AB172: 0 | AC172: 0 | AD172: 0 | AE172: 0 | AF172: 0 | AG172: 0 | AH172: 0 | AI172: 0 | AJ172: 0 | AK172: 0 | AL172: 0 | AM172: 0 | AN172: 0 | AO172: 0 | AP172: 0 | AQ172: 0 | AR172: 0 | AS172: 0 | AT172: 0 | AU172: 0 | AV172: 0 | AW172: 0 | AX172: 0 | AY172: 0 | AZ172: 0
E174: Grand Total for Cooling and Back-up Power | F174: =Currency -> Euro | L174: =L138+L144+L152+L158+L166+L172 -> 23594568.32 | M174: =M138+M177+M144+M152+M180+M158+M166+M181+M172+M130 -> 0 | N174: 0 | O174: 0 | P174: 0 | Q174: 0 | R174: 0 | S174: 0 | T174: 0 | U174: 0 | V174: 0 | W174: 0 | X174: 0 | Y174: 0 | Z174: 0 | AA174: 0 | AB174: 0 | AC174: 0 | AD174: 0 | AE174: 0 | AF174: 0 | AG174: 0 | AH174: 0 | AI174: 0 | AJ174: 0 | AK174: 0 | AL174: 0 | AM174: 0 | AN174: 0 | AO174: 0 | AP174: 0 | AQ174: 0 | AR174: 0 | AS174: 0 | AT174: 0 | AU174: 0 | AV174: 0 | AW174: 0 | AX174: 0 | AY174: 0 | AZ174: 0
C176: Capital Expenditures for Chiller
D177: Chiller Direct Capital Expenditures | F177: =Currency -> Euro | H177: ='Back-up Power Calculate'!$E$46 -> 2 | I177: ='Back-up Power Calculate'!I51 -> 324 | J177: ='Back-up Power Calculate'!I50 -> 80.89650169 | L177: =$H177*$I177*$J177*L$4 -> 52420.93309 | M177: 0 | N177: 0 | O177: 0 | P177: 0 | Q177: 0 | R177: 0 | S177: 0 | T177: 0 | U177: 0 | V177: 0 | W177: 0 | X177: 0 | Y177: 0 | Z177: 0 | AA177: 0 | AB177: 0 | AC177: 0 | AD177: 0 | AE177: 0 | AF177: 0 | AG177: 0 | AH177: 0 | AI177: 0 | AJ177: 0 | AK177: 0 | AL177: 0 | AM177: 0 | AN177: 0 | AO177: 0 | AP177: 0 | AQ177: 0 | AR177: 0 | AS177: 0 | AT177: 0 | AU177: 0 | AV177: 0 | AW177: 0 | AX177: 0 | AY177: 0 | AZ177: 0
I179: Cost/m2 | J179: m2
D180: Chiller - Core and Shell | F180: =Currency -> Euro | I180: ='Back-up Power Calculate'!I62 -> 1800 | J180: ='Back-up Power Calculate'!$I$63 -> 3.235860067 | L180: =$I180*$J180*L$4 -> 5824.548121 | M180: 0 | N180: 0 | O180: 0 | P180: 0 | Q180: 0 | R180: 0 | S180: 0 | T180: 0 | U180: 0 | V180: 0 | W180: 0 | X180: 0 | Y180: 0 | Z180: 0 | AA180: 0 | AB180: 0 | AC180: 0 | AD180: 0 | AE180: 0 | AF180: 0 | AG180: 0 | AH180: 0 | AI180: 0 | AJ180: 0 | AK180: 0 | AL180: 0 | AM180: 0 | AN180: 0 | AO180: 0 | AP180: 0 | AQ180: 0 | AR180: 0 | AS180: 0 | AT180: 0 | AU180: 0 | AV180: 0 | AW180: 0 | AX180: 0 | AY180: 0 | AZ180: 0
D181: Chiller - Core and Shell | F181: =Currency -> Euro | I181: =Input!$E$36 -> 1800 | J181: ='Back-up Power Calculate'!$I$63 -> 3.235860067 | L181: =$I181*$J181*L$4 -> 5824.548121 | M181: 0 | N181: 0 | O181: 0 | P181: 0 | Q181: 0 | R181: 0 | S181: 0 | T181: 0 | U181: 0 | V181: 0 | W181: 0 | X181: 0 | Y181: 0 | Z181: 0 | AA181: 0 | AB181: 0 | AC181: 0 | AD181: 0 | AE181: 0 | AF181: 0 | AG181: 0 | AH181: 0 | AI181: 0 | AJ181: 0 | AK181: 0 | AL181: 0 | AM181: 0 | AN181: 0 | AO181: 0 | AP181: 0 | AQ181: 0 | AR181: 0 | AS181: 0 | AT181: 0 | AU181: 0 | AV181: 0 | AW181: 0 | AX181: 0 | AY181: 0 | AZ181: 0
D182: Total Chiller | L182: =L177+L180+L181 -> 64070.02934 | M182: =M177+M180+M181 -> 0 | N182: 0 | O182: 0 | P182: 0 | Q182: 0 | R182: 0 | S182: 0 | T182: 0 | U182: 0 | V182: 0 | W182: 0 | X182: 0 | Y182: 0 | Z182: 0 | AA182: 0 | AB182: 0 | AC182: 0 | AD182: 0 | AE182: 0 | AF182: 0 | AG182: 0 | AH182: 0 | AI182: 0 | AJ182: 0 | AK182: 0 | AL182: 0 | AM182: 0 | AN182: 0 | AO182: 0 | AP182: 0 | AQ182: 0 | AR182: 0 | AS182: 0 | AT182: 0 | AU182: 0 | AV182: 0 | AW182: 0 | AX182: 0 | AY182: 0 | AZ182: 0
C184: Summary
D185: Critical Equipment Capitlal Expenditures | L185: =L120 -> 7254771.697 | M185: =M120 -> 0 | N185: 0 | O185: 0 | P185: 0 | Q185: 0 | R185: 0 | S185: 0 | T185: 0 | U185: 0 | V185: 0 | W185: 0 | X185: 0 | Y185: 0 | Z185: 0 | AA185: 0 | AB185: 0 | AC185: 0 | AD185: 0 | AE185: 0 | AF185: 0 | AG185: 0 | AH185: 0 | AI185: 0 | AJ185: 0 | AK185: 0 | AL185: 0 | AM185: 0 | AN185: 0 | AO185: 0 | AP185: 0 | AQ185: 0 | AR185: 0 | AS185: 0 | AT185: 0 | AU185: 0 | AV185: 0 | AW185: 0 | AX185: 0 | AY185: 0 | AZ185: 0
D186: Cooling Load Capital Expenditures | L186: =L130 -> 3066565.231 | M186: =M130 -> 0 | N186: 0 | O186: 0 | P186: 0 | Q186: 0 | R186: 0 | S186: 0 | T186: 0 | U186: 0 | V186: 0 | W186: 0 | X186: 0 | Y186: 0 | Z186: 0 | AA186: 0 | AB186: 0 | AC186: 0 | AD186: 0 | AE186: 0 | AF186: 0 | AG186: 0 | AH186: 0 | AI186: 0 | AJ186: 0 | AK186: 0 | AL186: 0 | AM186: 0 | AN186: 0 | AO186: 0 | AP186: 0 | AQ186: 0 | AR186: 0 | AS186: 0 | AT186: 0 | AU186: 0 | AV186: 0 | AW186: 0 | AX186: 0 | AY186: 0 | AZ186: 0
D187: Back-up Equipment Capital Expenditures | L187: =L174 -> 23594568.32 | M187: =M174 -> 0 | N187: 0 | O187: 0 | P187: 0 | Q187: 0 | R187: 0 | S187: 0 | T187: 0 | U187: 0 | V187: 0 | W187: 0 | X187: 0 | Y187: 0 | Z187: 0 | AA187: 0 | AB187: 0 | AC187: 0 | AD187: 0 | AE187: 0 | AF187: 0 | AG187: 0 | AH187: 0 | AI187: 0 | AJ187: 0 | AK187: 0 | AL187: 0 | AM187: 0 | AN187: 0 | AO187: 0 | AP187: 0 | AQ187: 0 | AR187: 0 | AS187: 0 | AT187: 0 | AU187: 0 | AV187: 0 | AW187: 0 | AX187: 0 | AY187: 0 | AZ187: 0
D188: Chiller Capital Expenditures | L188: =L182 -> 64070.02934 | M188: =M182 -> 0 | N188: 0 | O188: 0 | P188: 0 | Q188: 0 | R188: 0 | S188: 0 | T188: 0 | U188: 0 | V188: 0 | W188: 0 | X188: 0 | Y188: 0 | Z188: 0 | AA188: 0 | AB188: 0 | AC188: 0 | AD188: 0 | AE188: 0 | AF188: 0 | AG188: 0 | AH188: 0 | AI188: 0 | AJ188: 0 | AK188: 0 | AL188: 0 | AM188: 0 | AN188: 0 | AO188: 0 | AP188: 0 | AQ188: 0 | AR188: 0 | AS188: 0 | AT188: 0 | AU188: 0 | AV188: 0 | AW188: 0 | AX188: 0 | AY188: 0 | AZ188: 0
D189: Total | L189: =SUM(L185:L188) -> 33979975.28 | M189: =SUM(M185:M188) -> 0 | N189: 0 | O189: 0 | P189: 0 | Q189: 0 | R189: 0 | S189: 0 | T189: 0 | U189: 0 | V189: 0 | W189: 0 | X189: 0 | Y189: 0 | Z189: 0 | AA189: 0 | AB189: 0 | AC189: 0 | AD189: 0 | AE189: 0 | AF189: 0 | AG189: 0 | AH189: 0 | AI189: 0 | AJ189: 0 | AK189: 0 | AL189: 0 | AM189: 0 | AN189: 0 | AO189: 0 | AP189: 0 | AQ189: 0 | AR189: 0 | AS189: 0 | AT189: 0 | AU189: 0 | AV189: 0 | AW189: 0 | AX189: 0 | AY189: 0 | AZ189: 0
B192: Part 4: Operating Expenditures for Electricity Loads
C194: Cost of Power to Meet Critical IT Operations
D195: Average Power Usage per Hour | F195: kW | I195: =I15 -> 3900.192865 | L195: =$I$195*L5 -> 0 | M195: 3900.192865 | N195: 3900.192865 | O195: 3900.192865 | P195: 3900.192865 | Q195: 3900.192865 | R195: 3900.192865 | S195: 3900.192865 | T195: 3900.192865 | U195: 3900.192865 | V195: 3900.192865 | W195: 3900.192865 | X195: 3900.192865 | Y195: 3900.192865 | Z195: 3900.192865 | AA195: 3900.192865 | AB195: 3900.192865 | AC195: 3900.192865 | AD195: 3900.192865 | AE195: 0 | AF195: 0 | AG195: 0 | AH195: 0 | AI195: 0 | AJ195: 0 | AK195: 0 | AL195: 0 | AM195: 0 | AN195: 0 | AO195: 0 | AP195: 0 | AQ195: 0 | AR195: 0 | AS195: 0 | AT195: 0 | AU195: 0 | AV195: 0 | AW195: 0 | AX195: 0 | AY195: 0 | AZ195: 0
D196: Hours Applied | F196: Hours | I196: =Input!E49 -> 8760 | L196: =$I$196 -> 8760 | M196: 8760 | N196: 8760 | O196: 8760 | P196: 8760 | Q196: 8760 | R196: 8760 | S196: 8760 | T196: 8760 | U196: 8760 | V196: 8760 | W196: 8760 | X196: 8760 | Y196: 8760 | Z196: 8760 | AA196: 8760 | AB196: 8760 | AC196: 8760 | AD196: 8760 | AE196: 8760 | AF196: 8760 | AG196: 8760 | AH196: 8760 | AI196: 8760 | AJ196: 8760 | AK196: 8760 | AL196: 8760 | AM196: 8760 | AN196: 8760 | AO196: 8760 | AP196: 8760 | AQ196: 8760 | AR196: 8760 | AS196: 8760 | AT196: 8760 | AU196: 8760 | AV196: 8760 | AW196: 8760 | AX196: 8760 | AY196: 8760 | AZ196: 8760
D197: Total Power Usage for Year | F197: kWh | L197: =L195*L196 -> 0 | M197: =M195*M196 -> 34165689.5 | N197: 34165689.5 | O197: 34165689.5 | P197: 34165689.5 | Q197: 34165689.5 | R197: 34165689.5 | S197: 34165689.5 | T197: 34165689.5 | U197: 34165689.5 | V197: 34165689.5 | W197: 34165689.5 | X197: 34165689.5 | Y197: 34165689.5 | Z197: 34165689.5 | AA197: 34165689.5 | AB197: 34165689.5 | AC197: 34165689.5 | AD197: 34165689.5 | AE197: 0 | AF197: 0 | AG197: 0 | AH197: 0 | AI197: 0 | AJ197: 0 | AK197: 0 | AL197: 0 | AM197: 0 | AN197: 0 | AO197: 0 | AP197: 0 | AQ197: 0 | AR197: 0 | AS197: 0 | AT197: 0 | AU197: 0 | AV197: 0 | AW197: 0 | AX197: 0 | AY197: 0 | AZ197: 0
D198: Cost of Power without Inflation | F198: Euro/kWh | L198: =Input!$E$34 -> 0.2 | M198: =Input!$E$34 -> 0.2 | N198: =Input!$E$34 -> 0.2 | O198: =Input!$E$34 -> 0.2 | P198: =Input!$E$34 -> 0.2 | Q198: =Input!$E$34 -> 0.2 | R198: =Input!$E$34 -> 0.2 | S198: =Input!$E$34 -> 0.2 | T198: =Input!$E$34 -> 0.2 | U198: =Input!$E$34 -> 0.2 | V198: =Input!$E$34 -> 0.2 | W198: =Input!$E$34 -> 0.2 | X198: =Input!$E$34 -> 0.2 | Y198: =Input!$E$34 -> 0.2 | Z198: =Input!$E$34 -> 0.2 | AA198: =Input!$E$34 -> 0.2 | AB198: =Input!$E$34 -> 0.2 | AC198: =Input!$E$34 -> 0.2 | AD198: =Input!$E$34 -> 0.2 | AE198: =Input!$E$34 -> 0.2 | AF198: =Input!$E$34 -> 0.2 | AG198: =Input!$E$34 -> 0.2 | AH198: =Input!$E$34 -> 0.2 | AI198: =Input!$E$34 -> 0.2 | AJ198: =Input!$E$34 -> 0.2 | AK198: =Input!$E$34 -> 0.2 | AL198: =Input!$E$34 -> 0.2 | AM198: =Input!$E$34 -> 0.2 | AN198: =Input!$E$34 -> 0.2 | AO198: =Input!$E$34 -> 0.2 | AP198: =Input!$E$34 -> 0.2 | AQ198: =Input!$E$34 -> 0.2 | AR198: =Input!$E$34 -> 0.2 | AS198: =Input!$E$34 -> 0.2 | AT198: =Input!$E$34 -> 0.2 | AU198: =Input!$E$34 -> 0.2 | AV198: =Input!$E$34 -> 0.2 | AW198: =Input!$E$34 -> 0.2 | AX198: =Input!$E$34 -> 0.2 | AY198: =Input!$E$34 -> 0.2 | AZ198: =Input!$E$34 -> 0.2
E199: Total Power Cost for IT Equipment | F199: Euro | L199: =L198*L197 -> 0 | M199: 6833137.9 | N199: 6833137.9 | O199: 6833137.9 | P199: 6833137.9 | Q199: 6833137.9 | R199: 6833137.9 | S199: 6833137.9 | T199: 6833137.9 | U199: 6833137.9 | V199: 6833137.9 | W199: 6833137.9 | X199: 6833137.9 | Y199: 6833137.9 | Z199: 6833137.9 | AA199: 6833137.9 | AB199: 6833137.9 | AC199: 6833137.9 | AD199: 6833137.9 | AE199: 0 | AF199: 0 | AG199: 0 | AH199: 0 | AI199: 0 | AJ199: 0 | AK199: 0 | AL199: 0 | AM199: 0 | AN199: 0 | AO199: 0 | AP199: 0 | AQ199: 0 | AR199: 0 | AS199: 0 | AT199: 0 | AU199: 0 | AV199: 0 | AW199: 0 | AX199: 0 | AY199: 0 | AZ199: 0
C201: Cost of Power Used by Equipment
D202: Total Power Used by Equipment | F202: kWh | L202: =L49 -> 0 | M202: 147601805.6 | N202: 147601805.6 | O202: 147601805.6 | P202: 147601805.6 | Q202: 147601805.6 | R202: 147601805.6 | S202: 147601805.6 | T202: 147601805.6 | U202: 147601805.6 | V202: 147601805.6 | W202: 147601805.6 | X202: 147601805.6 | Y202: 147601805.6 | Z202: 147601805.6 | AA202: 147601805.6 | AB202: 147601805.6 | AC202: 147601805.6 | AD202: 147601805.6 | AE202: 0 | AF202: 0 | AG202: 0 | AH202: 0 | AI202: 0 | AJ202: 0 | AK202: 0 | AL202: 0 | AM202: 0 | AN202: 0 | AO202: 0 | AP202: 0 | AQ202: 0 | AR202: 0 | AS202: 0 | AT202: 0 | AU202: 0 | AV202: 0 | AW202: 0 | AX202: 0 | AY202: 0 | AZ202: 0
D203: Cost of Power without Inflation | F203: Euro/kWh | L203: =L198 -> 0.2 | M203: =M198 -> 0.2 | N203: 0.2 | O203: 0.2 | P203: 0.2 | Q203: 0.2 | R203: 0.2 | S203: 0.2 | T203: 0.2 | U203: 0.2 | V203: 0.2 | W203: 0.2 | X203: 0.2 | Y203: 0.2 | Z203: 0.2 | AA203: 0.2 | AB203: 0.2 | AC203: 0.2 | AD203: 0.2 | AE203: 0.2 | AF203: 0.2 | AG203: 0.2 | AH203: 0.2 | AI203: 0.2 | AJ203: 0.2 | AK203: 0.2 | AL203: 0.2 | AM203: 0.2 | AN203: 0.2 | AO203: 0.2 | AP203: 0.2 | AQ203: 0.2 | AR203: 0.2 | AS203: 0.2 | AT203: 0.2 | AU203: 0.2 | AV203: 0.2 | AW203: 0.2 | AX203: 0.2 | AY203: 0.2 | AZ203: 0.2
E204: Total Power Cost for Cooling IT Equipment | F204: Euro | L204: =L202*L203 -> 0 | M204: 29520361.12 | N204: 29520361.12 | O204: 29520361.12 | P204: 29520361.12 | Q204: 29520361.12 | R204: 29520361.12 | S204: 29520361.12 | T204: 29520361.12 | U204: 29520361.12 | V204: 29520361.12 | W204: 29520361.12 | X204: 29520361.12 | Y204: 29520361.12 | Z204: 29520361.12 | AA204: 29520361.12 | AB204: 29520361.12 | AC204: 29520361.12 | AD204: 29520361.12 | AE204: 0 | AF204: 0 | AG204: 0 | AH204: 0 | AI204: 0 | AJ204: 0 | AK204: 0 | AL204: 0 | AM204: 0 | AN204: 0 | AO204: 0 | AP204: 0 | AQ204: 0 | AR204: 0 | AS204: 0 | AT204: 0 | AU204: 0 | AV204: 0 | AW204: 0 | AX204: 0 | AY204: 0 | AZ204: 0
C206: Chiller Power Cost
D207: Total Power Used by Chiller | F207: kWh | L207: =L54 -> 0 | M207: 35716601.83 | N207: 35716601.83 | O207: 35716601.83 | P207: 35716601.83 | Q207: 35716601.83 | R207: 35716601.83 | S207: 35716601.83 | T207: 35716601.83 | U207: 35716601.83 | V207: 35716601.83 | W207: 35716601.83 | X207: 35716601.83 | Y207: 35716601.83 | Z207: 35716601.83 | AA207: 35716601.83 | AB207: 35716601.83 | AC207: 35716601.83 | AD207: 35716601.83 | AE207: 0 | AF207: 0 | AG207: 0 | AH207: 0 | AI207: 0 | AJ207: 0 | AK207: 0 | AL207: 0 | AM207: 0 | AN207: 0 | AO207: 0 | AP207: 0 | AQ207: 0 | AR207: 0 | AS207: 0 | AT207: 0 | AU207: 0 | AV207: 0 | AW207: 0 | AX207: 0 | AY207: 0 | AZ207: 0
D208: Cost of Power without Inflation | F208: Euro/kWh | L208: =Input!$E$34 -> 0.2 | M208: =Input!$E$34 -> 0.2 | N208: =Input!$E$34 -> 0.2 | O208: =Input!$E$34 -> 0.2 | P208: =Input!$E$34 -> 0.2 | Q208: =Input!$E$34 -> 0.2 | R208: =Input!$E$34 -> 0.2 | S208: =Input!$E$34 -> 0.2 | T208: =Input!$E$34 -> 0.2 | U208: =Input!$E$34 -> 0.2 | V208: =Input!$E$34 -> 0.2 | W208: =Input!$E$34 -> 0.2 | X208: =Input!$E$34 -> 0.2 | Y208: =Input!$E$34 -> 0.2 | Z208: =Input!$E$34 -> 0.2 | AA208: =Input!$E$34 -> 0.2 | AB208: =Input!$E$34 -> 0.2 | AC208: =Input!$E$34 -> 0.2 | AD208: =Input!$E$34 -> 0.2 | AE208: =Input!$E$34 -> 0.2 | AF208: =Input!$E$34 -> 0.2 | AG208: =Input!$E$34 -> 0.2 | AH208: =Input!$E$34 -> 0.2 | AI208: =Input!$E$34 -> 0.2 | AJ208: =Input!$E$34 -> 0.2 | AK208: =Input!$E$34 -> 0.2 | AL208: =Input!$E$34 -> 0.2 | AM208: =Input!$E$34 -> 0.2 | AN208: =Input!$E$34 -> 0.2 | AO208: =Input!$E$34 -> 0.2 | AP208: =Input!$E$34 -> 0.2 | AQ208: =Input!$E$34 -> 0.2 | AR208: =Input!$E$34 -> 0.2 | AS208: =Input!$E$34 -> 0.2 | AT208: =Input!$E$34 -> 0.2 | AU208: =Input!$E$34 -> 0.2 | AV208: =Input!$E$34 -> 0.2 | AW208: =Input!$E$34 -> 0.2 | AX208: =Input!$E$34 -> 0.2 | AY208: =Input!$E$34 -> 0.2 | AZ208: =Input!$E$34 -> 0.2
E209: Total Cost of Running Chillers | F209: Euro | L209: =L207*L208 -> 0 | M209: =M207*M208 -> 7143320.366 | N209: 7143320.366 | O209: 7143320.366 | P209: 7143320.366 | Q209: 7143320.366 | R209: 7143320.366 | S209: 7143320.366 | T209: 7143320.366 | U209: 7143320.366 | V209: 7143320.366 | W209: 7143320.366 | X209: 7143320.366 | Y209: 7143320.366 | Z209: 7143320.366 | AA209: 7143320.366 | AB209: 7143320.366 | AC209: 7143320.366 | AD209: 7143320.366 | AE209: 0 | AF209: 0 | AG209: 0 | AH209: 0 | AI209: 0 | AJ209: 0 | AK209: 0 | AL209: 0 | AM209: 0 | AN209: 0 | AO209: 0 | AP209: 0 | AQ209: 0 | AR209: 0 | AS209: 0 | AT209: 0 | AU209: 0 | AV209: 0 | AW209: 0 | AX209: 0 | AY209: 0 | AZ209: 0
E211: Total Cost of Buying Power without Inflation | F211: =Currency -> Euro | L211: =L209+L204+L199 -> 0 | M211: =M209+M204+M199 -> 43496819.39 | N211: 43496819.39 | O211: 43496819.39 | P211: 43496819.39 | Q211: 43496819.39 | R211: 43496819.39 | S211: 43496819.39 | T211: 43496819.39 | U211: 43496819.39 | V211: 43496819.39 | W211: 43496819.39 | X211: 43496819.39 | Y211: 43496819.39 | Z211: 43496819.39 | AA211: 43496819.39 | AB211: 43496819.39 | AC211: 43496819.39 | AD211: 43496819.39 | AE211: 0 | AF211: 0 | AG211: 0 | AH211: 0 | AI211: 0 | AJ211: 0 | AK211: 0 | AL211: 0 | AM211: 0 | AN211: 0 | AO211: 0 | AP211: 0 | AQ211: 0 | AR211: 0 | AS211: 0 | AT211: 0 | AU211: 0 | AV211: 0 | AW211: 0 | AX211: 0 | AY211: 0 | AZ211: 0
E212: Inflation Index | F212: Index | I212: =Input!E50 -> 0 | K212: =One -> 1 | L212: =K212*(1+$I$212*L5) -> 1 | M212: 1 | N212: 1 | O212: 1 | P212: 1 | Q212: 1 | R212: 1 | S212: 1 | T212: 1 | U212: 1 | V212: 1 | W212: 1 | X212: 1 | Y212: 1 | Z212: 1 | AA212: 1 | AB212: 1 | AC212: 1 | AD212: 1 | AE212: 1 | AF212: 1 | AG212: 1 | AH212: 1 | AI212: 1 | AJ212: 1 | AK212: 1 | AL212: 1 | AM212: 1 | AN212: 1 | AO212: 1 | AP212: 1 | AQ212: 1 | AR212: 1 | AS212: 1 | AT212: 1 | AU212: 1 | AV212: 1 | AW212: 1 | AX212: 1 | AY212: 1 | AZ212: 1
E214: Total Power Cost | F214: Euro | L214: =L211*L212 -> 0 | M214: 43496819.39 | N214: 43496819.39 | O214: 43496819.39 | P214: 43496819.39 | Q214: 43496819.39 | R214: 43496819.39 | S214: 43496819.39 | T214: 43496819.39 | U214: 43496819.39 | V214: 43496819.39 | W214: 43496819.39 | X214: 43496819.39 | Y214: 43496819.39 | Z214: 43496819.39 | AA214: 43496819.39 | AB214: 43496819.39 | AC214: 43496819.39 | AD214: 43496819.39 | AE214: 0 | AF214: 0 | AG214: 0 | AH214: 0 | AI214: 0 | AJ214: 0 | AK214: 0 | AL214: 0 | AM214: 0 | AN214: 0 | AO214: 0 | AP214: 0 | AQ214: 0 | AR214: 0 | AS214: 0 | AT214: 0 | AU214: 0 | AV214: 0 | AW214: 0 | AX214: 0 | AY214: 0 | AZ214: 0
B216: Part 5: Fixed Operating And Maintenance Expenditures
C218: Non-Power Operation and Maintenance for IT in Datarooms
D219: Direct Cap Exp | F219: Euro | I219: =K97 -> 3548919.697 | J219: =Input!E40 -> 0.03 | K219: =SUM(L219:XFD219) -> 1916416.636 | L219: =$I219*$J219*L$5 -> 0 | M219: 106467.5909 | N219: 106467.5909 | O219: 106467.5909 | P219: 106467.5909 | Q219: 106467.5909 | R219: 106467.5909 | S219: 106467.5909 | T219: 106467.5909 | U219: 106467.5909 | V219: =$I219*$J219*V$5 -> 106467.5909 | W219: 106467.5909 | X219: 106467.5909 | Y219: 106467.5909 | Z219: 106467.5909 | AA219: 106467.5909 | AB219: 106467.5909 | AC219: 106467.5909 | AD219: 106467.5909 | AE219: 0 | AF219: =$I219*$J219*AF$5 -> 0 | AG219: 0 | AH219: 0 | AI219: 0 | AJ219: 0 | AK219: 0 | AL219: 0 | AM219: 0 | AN219: 0 | AO219: 0 | AP219: =$I219*$J219*AP$5 -> 0 | AQ219: 0 | AR219: 0 | AS219: 0 | AT219: 0 | AU219: 0 | AV219: 0 | AW219: 0 | AX219: 0 | AY219: 0 | AZ219: 0
D220: Core and Shell | F220: Euro | I220: =K111 -> 1852926 | J220: =Input!E39 -> 0.03 | K220: =SUM(L220:XFD220) -> 1000580.04 | L220: 0 | M220: 55587.78 | N220: 55587.78 | O220: 55587.78 | P220: 55587.78 | Q220: 55587.78 | R220: 55587.78 | S220: 55587.78 | T220: 55587.78 | U220: 55587.78 | V220: 55587.78 | W220: 55587.78 | X220: 55587.78 | Y220: 55587.78 | Z220: 55587.78 | AA220: 55587.78 | AB220: 55587.78 | AC220: 55587.78 | AD220: 55587.78 | AE220: 0 | AF220: 0 | AG220: 0 | AH220: 0 | AI220: 0 | AJ220: 0 | AK220: 0 | AL220: 0 | AM220: 0 | AN220: 0 | AO220: 0 | AP220: 0 | AQ220: 0 | AR220: 0 | AS220: 0 | AT220: 0 | AU220: 0 | AV220: 0 | AW220: 0 | AX220: 0 | AY220: 0 | AZ220: 0
D221: Total Before Inflation | F221: Euro | K221: =SUM(L221:XFD221) -> 2916996.676 | L221: =SUM(L219:L220) -> 0 | M221: =SUM(M219:M220) -> 162055.3709 | N221: 162055.3709 | O221: 162055.3709 | P221: 162055.3709 | Q221: 162055.3709 | R221: 162055.3709 | S221: 162055.3709 | T221: 162055.3709 | U221: 162055.3709 | V221: 162055.3709 | W221: 162055.3709 | X221: 162055.3709 | Y221: 162055.3709 | Z221: 162055.3709 | AA221: 162055.3709 | AB221: 162055.3709 | AC221: 162055.3709 | AD221: 162055.3709 | AE221: 0 | AF221: 0 | AG221: 0 | AH221: 0 | AI221: 0 | AJ221: 0 | AK221: 0 | AL221: 0 | AM221: 0 | AN221: 0 | AO221: 0 | AP221: 0 | AQ221: 0 | AR221: 0 | AS221: 0 | AT221: 0 | AU221: 0 | AV221: 0 | AW221: 0 | AX221: 0 | AY221: 0 | AZ221: 0
C223: Non-Power Operation and Maintenance for Data Rooms
D224: Operation and Maintenance for Electrical Equipment to Cool Racks | I224: Cap Exp | J224: O&M percent
E225: =TRANSPOSE('IT Load Datarooms Calculate'!E9:H9) -> Critical Electric for Data Room 1 | I225: =I93 -> 1745200 | J225: =Input!$E$40 -> 0.03 | L225: =$I225*$J225*L$5 -> 0 | M225: =$I225*$J225*M$5 -> 52356 | N225: 52356 | O225: 52356 | P225: 52356 | Q225: 52356 | R225: 52356 | S225: 52356 | T225: 52356 | U225: 52356 | V225: 52356 | W225: 52356 | X225: 52356 | Y225: 52356 | Z225: 52356 | AA225: 52356 | AB225: 52356 | AC225: 52356 | AD225: 52356 | AE225: 0 | AF225: 0 | AG225: 0 | AH225: 0 | AI225: 0 | AJ225: 0 | AK225: 0 | AL225: 0 | AM225: 0 | AN225: 0 | AO225: 0 | AP225: 0 | AQ225: 0 | AR225: 0 | AS225: 0 | AT225: 0 | AU225: 0 | AV225: 0 | AW225: 0 | AX225: 0 | AY225: 0 | AZ225: 0
E226: Critical Electric for Data Room 2 | I226: =I94 -> 1803719.697 | J226: =Input!$E$40 -> 0.03 | L226: =$I226*$J226*L$5 -> 0 | M226: 54111.59091 | N226: 54111.59091 | O226: 54111.59091 | P226: 54111.59091 | Q226: 54111.59091 | R226: 54111.59091 | S226: 54111.59091 | T226: 54111.59091 | U226: 54111.59091 | V226: 54111.59091 | W226: 54111.59091 | X226: 54111.59091 | Y226: 54111.59091 | Z226: 54111.59091 | AA226: 54111.59091 | AB226: 54111.59091 | AC226: 54111.59091 | AD226: 54111.59091 | AE226: 0 | AF226: 0 | AG226: 0 | AH226: 0 | AI226: 0 | AJ226: 0 | AK226: 0 | AL226: 0 | AM226: 0 | AN226: 0 | AO226: 0 | AP226: 0 | AQ226: 0 | AR226: 0 | AS226: 0 | AT226: 0 | AU226: 0 | AV226: 0 | AW226: 0 | AX226: 0 | AY226: 0 | AZ226: 0
E227: Critical Electric for Data Room 3 | I227: =I95 -> 0 | J227: =Input!$E$40 -> 0.03 | L227: 0 | M227: 0 | N227: 0 | O227: 0 | P227: 0 | Q227: 0 | R227: 0 | S227: 0 | T227: 0 | U227: 0 | V227: 0 | W227: 0 | X227: 0 | Y227: 0 | Z227: 0 | AA227: 0 | AB227: 0 | AC227: 0 | AD227: 0 | AE227: 0 | AF227: 0 | AG227: 0 | AH227: 0 | AI227: 0 | AJ227: 0 | AK227: 0 | AL227: 0 | AM227: 0 | AN227: 0 | AO227: 0 | AP227: 0 | AQ227: 0 | AR227: 0 | AS227: 0 | AT227: 0 | AU227: 0 | AV227: 0 | AW227: 0 | AX227: 0 | AY227: 0 | AZ227: 0
E228: Critical Electric for Data Room 4 | I228: =I96 -> 0 | J228: =Input!$E$40 -> 0.03 | L228: 0 | M228: 0 | N228: 0 | O228: 0 | P228: 0 | Q228: 0 | R228: 0 | S228: 0 | T228: 0 | U228: 0 | V228: 0 | W228: 0 | X228: 0 | Y228: 0 | Z228: 0 | AA228: 0 | AB228: 0 | AC228: 0 | AD228: 0 | AE228: 0 | AF228: 0 | AG228: 0 | AH228: 0 | AI228: 0 | AJ228: 0 | AK228: 0 | AL228: 0 | AM228: 0 | AN228: 0 | AO228: 0 | AP228: 0 | AQ228: 0 | AR228: 0 | AS228: 0 | AT228: 0 | AU228: 0 | AV228: 0 | AW228: 0 | AX228: 0 | AY228: 0 | AZ228: 0
E229: Total O&M for Electric Equipment in Data Rooms | L229: =SUM(L225:L228) -> 0 | M229: =SUM(M225:M228) -> 106467.5909 | N229: 106467.5909 | O229: 106467.5909 | P229: 106467.5909 | Q229: 106467.5909 | R229: 106467.5909 | S229: 106467.5909 | T229: 106467.5909 | U229: 106467.5909 | V229: 106467.5909 | W229: 106467.5909 | X229: 106467.5909 | Y229: 106467.5909 | Z229: 106467.5909 | AA229: 106467.5909 | AB229: 106467.5909 | AC229: 106467.5909 | AD229: 106467.5909 | AE229: 0 | AF229: 0 | AG229: 0 | AH229: 0 | AI229: 0 | AJ229: 0 | AK229: 0 | AL229: 0 | AM229: 0 | AN229: 0 | AO229: 0 | AP229: 0 | AQ229: 0 | AR229: 0 | AS229: 0 | AT229: 0 | AU229: 0 | AV229: 0 | AW229: 0 | AX229: 0 | AY229: 0 | AZ229: 0
D231: Operation and Maintenance for Core and Shell
E232: =E225 -> Critical Electric for Data Room 1 | I232: =K107 -> 602430 | J232: =Input!$E$39 -> 0.03 | L232: =$I232*$J232*L$5 -> 0 | M232: =$I232*$J232*M$5 -> 18072.9 | N232: 18072.9 | O232: 18072.9 | P232: 18072.9 | Q232: 18072.9 | R232: 18072.9 | S232: 18072.9 | T232: 18072.9 | U232: 18072.9 | V232: 18072.9 | W232: 18072.9 | X232: 18072.9 | Y232: 18072.9 | Z232: 18072.9 | AA232: 18072.9 | AB232: 18072.9 | AC232: 18072.9 | AD232: 18072.9 | AE232: 0 | AF232: 0 | AG232: 0 | AH232: 0 | AI232: 0 | AJ232: 0 | AK232: 0 | AL232: 0 | AM232: 0 | AN232: 0 | AO232: 0 | AP232: 0 | AQ232: 0 | AR232: 0 | AS232: 0 | AT232: 0 | AU232: 0 | AV232: 0 | AW232: 0 | AX232: 0 | AY232: 0 | AZ232: 0
E233: =E226 -> Critical Electric for Data Room 2 | I233: =K108 -> 1250496 | J233: =Input!$E$39 -> 0.03 | L233: =$I233*$J233*L$5 -> 0 | M233: 37514.88 | N233: 37514.88 | O233: 37514.88 | P233: 37514.88 | Q233: 37514.88 | R233: 37514.88 | S233: 37514.88 | T233: 37514.88 | U233: 37514.88 | V233: 37514.88 | W233: 37514.88 | X233: 37514.88 | Y233: 37514.88 | Z233: 37514.88 | AA233: 37514.88 | AB233: 37514.88 | AC233: 37514.88 | AD233: 37514.88 | AE233: 0 | AF233: 0 | AG233: 0 | AH233: 0 | AI233: 0 | AJ233: 0 | AK233: 0 | AL233: 0 | AM233: 0 | AN233: 0 | AO233: 0 | AP233: 0 | AQ233: 0 | AR233: 0 | AS233: 0 | AT233: 0 | AU233: 0 | AV233: 0 | AW233: 0 | AX233: 0 | AY233: 0 | AZ233: 0
E234: Critical Electric for Data Room 3 | I234: =K109 -> 0 | J234: =Input!$E$39 -> 0.03 | L234: 0 | M234: 0 | N234: 0 | O234: 0 | P234: 0 | Q234: 0 | R234: 0 | S234: 0 | T234: 0 | U234: 0 | V234: 0 | W234: 0 | X234: 0 | Y234: 0 | Z234: 0 | AA234: 0 | AB234: 0 | AC234: 0 | AD234: 0 | AE234: 0 | AF234: 0 | AG234: 0 | AH234: 0 | AI234: 0 | AJ234: 0 | AK234: 0 | AL234: 0 | AM234: 0 | AN234: 0 | AO234: 0 | AP234: 0 | AQ234: 0 | AR234: 0 | AS234: 0 | AT234: 0 | AU234: 0 | AV234: 0 | AW234: 0 | AX234: 0 | AY234: 0 | AZ234: 0
E235: Critical Electric for Data Room 4 | I235: =K110 -> 0 | J235: =Input!$E$39 -> 0.03 | L235: 0 | M235: 0 | N235: 0 | O235: 0 | P235: 0 | Q235: 0 | R235: 0 | S235: 0 | T235: 0 | U235: 0 | V235: 0 | W235: 0 | X235: 0 | Y235: 0 | Z235: 0 | AA235: 0 | AB235: 0 | AC235: 0 | AD235: 0 | AE235: 0 | AF235: 0 | AG235: 0 | AH235: 0 | AI235: 0 | AJ235: 0 | AK235: 0 | AL235: 0 | AM235: 0 | AN235: 0 | AO235: 0 | AP235: 0 | AQ235: 0 | AR235: 0 | AS235: 0 | AT235: 0 | AU235: 0 | AV235: 0 | AW235: 0 | AX235: 0 | AY235: 0 | AZ235: 0
E236: Total O&M for Core and Shell in Data Rooms | M236: =SUM(M232:M235) -> 55587.78 | N236: =SUM(N232:N235) -> 55587.78 | O236: 55587.78 | P236: 55587.78 | Q236: 55587.78 | R236: 55587.78 | S236: 55587.78 | T236: 55587.78 | U236: 55587.78 | V236: 55587.78 | W236: 55587.78 | X236: 55587.78 | Y236: 55587.78 | Z236: 55587.78 | AA236: 55587.78 | AB236: 55587.78 | AC236: 55587.78 | AD236: 55587.78 | AE236: 0 | AF236: 0 | AG236: 0 | AH236: 0 | AI236: 0 | AJ236: 0 | AK236: 0 | AL236: 0 | AM236: 0 | AN236: 0 | AO236: 0 | AP236: 0 | AQ236: 0 | AR236: 0 | AS236: 0 | AT236: 0 | AU236: 0 | AV236: 0 | AW236: 0 | AX236: 0 | AY236: 0 | AZ236: 0
E238: Total Data for Datarooms | M238: =M229+M236 -> 162055.3709 | N238: =N229+N236 -> 162055.3709 | O238: 162055.3709 | P238: 162055.3709 | Q238: 162055.3709 | R238: 162055.3709 | S238: 162055.3709 | T238: 162055.3709 | U238: 162055.3709 | V238: 162055.3709 | W238: 162055.3709 | X238: 162055.3709 | Y238: 162055.3709 | Z238: 162055.3709 | AA238: 162055.3709 | AB238: 162055.3709 | AC238: 162055.3709 | AD238: 162055.3709 | AE238: 0 | AF238: 0 | AG238: 0 | AH238: 0 | AI238: 0 | AJ238: 0 | AK238: 0 | AL238: 0 | AM238: 0 | AN238: 0 | AO238: 0 | AP238: 0 | AQ238: 0 | AR238: 0 | AS238: 0 | AT238: 0 | AU238: 0 | AV238: 0 | AW238: 0 | AX238: 0 | AY238: 0 | AZ238: 0
C240: Non-Power Operation and Maintenance for Critical Equipment
D241: Operating Expense for Equipment | I241: Cap Exp | J241: Pct of Cap Exp
E242: PowerCrit Gen Set SE RD65 | F242: =Currency -> Euro | I242: =L134 -> 4181789.752 | J242: 0.03 | L242: =$I242*$J242*L$5 -> 0 | M242: =$I242*$J242*M$5 -> 125453.6926 | N242: 125453.6926 | O242: 125453.6926 | P242: 125453.6926 | Q242: 125453.6926 | R242: 125453.6926 | S242: 125453.6926 | T242: 125453.6926 | U242: 125453.6926 | V242: 125453.6926 | W242: 125453.6926 | X242: 125453.6926 | Y242: 125453.6926 | Z242: 125453.6926 | AA242: 125453.6926 | AB242: 125453.6926 | AC242: 125453.6926 | AD242: 125453.6926 | AE242: 0 | AF242: 0 | AG242: 0 | AH242: 0 | AI242: 0 | AJ242: 0 | AK242: 0 | AL242: 0 | AM242: 0 | AN242: 0 | AO242: 0 | AP242: 0 | AQ242: 0 | AR242: 0 | AS242: 0 | AT242: 0 | AU242: 0 | AV242: 0 | AW242: 0 | AX242: 0 | AY242: 0 | AZ242: 0
E243: PowerCrit Trans Step-Down SE RD65 | F243: Euro | I243: =L135 -> 4181789.752 | J243: 0.03 | L243: =$I243*$J243*L$5 -> 0 | M243: 125453.6926 | N243: 125453.6926 | O243: 125453.6926 | P243: 125453.6926 | Q243: 125453.6926 | R243: 125453.6926 | S243: 125453.6926 | T243: 125453.6926 | U243: 125453.6926 | V243: 125453.6926 | W243: 125453.6926 | X243: 125453.6926 | Y243: 125453.6926 | Z243: 125453.6926 | AA243: 125453.6926 | AB243: 125453.6926 | AC243: 125453.6926 | AD243: 125453.6926 | AE243: 0 | AF243: 0 | AG243: 0 | AH243: 0 | AI243: 0 | AJ243: 0 | AK243: 0 | AL243: 0 | AM243: 0 | AN243: 0 | AO243: 0 | AP243: 0 | AQ243: 0 | AR243: 0 | AS243: 0 | AT243: 0 | AU243: 0 | AV243: 0 | AW243: 0 | AX243: 0 | AY243: 0 | AZ243: 0
E244: PowerCrit Switch board SE RD65 | F244: Euro | I244: =L136 -> 4139971.855 | J244: 0.03 | L244: 0 | M244: 124199.1556 | N244: 124199.1556 | O244: 124199.1556 | P244: 124199.1556 | Q244: 124199.1556 | R244: 124199.1556 | S244: 124199.1556 | T244: 124199.1556 | U244: 124199.1556 | V244: 124199.1556 | W244: 124199.1556 | X244: 124199.1556 | Y244: 124199.1556 | Z244: 124199.1556 | AA244: 124199.1556 | AB244: 124199.1556 | AC244: 124199.1556 | AD244: 124199.1556 | AE244: 0 | AF244: 0 | AG244: 0 | AH244: 0 | AI244: 0 | AJ244: 0 | AK244: 0 | AL244: 0 | AM244: 0 | AN244: 0 | AO244: 0 | AP244: 0 | AQ244: 0 | AR244: 0 | AS244: 0 | AT244: 0 | AU244: 0 | AV244: 0 | AW244: 0 | AX244: 0 | AY244: 0 | AZ244: 0
E245: PowerCrit Uninterrupited PS SE RD65 | F245: Euro | I245: =L137 -> 3428320.777 | J245: 0.03 | L245: 0 | M245: 102849.6233 | N245: 102849.6233 | O245: 102849.6233 | P245: 102849.6233 | Q245: 102849.6233 | R245: 102849.6233 | S245: 102849.6233 | T245: 102849.6233 | U245: 102849.6233 | V245: 102849.6233 | W245: 102849.6233 | X245: 102849.6233 | Y245: 102849.6233 | Z245: 102849.6233 | AA245: 102849.6233 | AB245: 102849.6233 | AC245: 102849.6233 | AD245: 102849.6233 | AE245: 0 | AF245: 0 | AG245: 0 | AH245: 0 | AI245: 0 | AJ245: 0 | AK245: 0 | AL245: 0 | AM245: 0 | AN245: 0 | AO245: 0 | AP245: 0 | AQ245: 0 | AR245: 0 | AS245: 0 | AT245: 0 | AU245: 0 | AV245: 0 | AW245: 0 | AX245: 0 | AY245: 0 | AZ245: 0
E246: Chiller SE RD65 | F246: Euro | I246: =L177 -> 52420.93309 | J246: 0.03 | L246: 0 | M246: 1572.627993 | N246: 1572.627993 | O246: 1572.627993 | P246: 1572.627993 | Q246: 1572.627993 | R246: 1572.627993 | S246: 1572.627993 | T246: 1572.627993 | U246: 1572.627993 | V246: 1572.627993 | W246: 1572.627993 | X246: 1572.627993 | Y246: 1572.627993 | Z246: 1572.627993 | AA246: 1572.627993 | AB246: 1572.627993 | AC246: 1572.627993 | AD246: 1572.627993 | AE246: 0 | AF246: 0 | AG246: 0 | AH246: 0 | AI246: 0 | AJ246: 0 | AK246: 0 | AL246: 0 | AM246: 0 | AN246: 0 | AO246: 0 | AP246: 0 | AQ246: 0 | AR246: 0 | AS246: 0 | AT246: 0 | AU246: 0 | AV246: 0 | AW246: 0 | AX246: 0 | AY246: 0 | AZ246: 0
E247: Total | F247: Euro | I247: =SUM(I242:I246) -> 15984293.07 | L247: =SUM(L242:L246) -> 0 | M247: =SUM(M242:M246) -> 479528.7921 | N247: 479528.7921 | O247: 479528.7921 | P247: 479528.7921 | Q247: 479528.7921 | R247: 479528.7921 | S247: 479528.7921 | T247: 479528.7921 | U247: 479528.7921 | V247: 479528.7921 | W247: 479528.7921 | X247: 479528.7921 | Y247: 479528.7921 | Z247: 479528.7921 | AA247: 479528.7921 | AB247: 479528.7921 | AC247: 479528.7921 | AD247: 479528.7921 | AE247: 0 | AF247: 0 | AG247: 0 | AH247: 0 | AI247: 0 | AJ247: 0 | AK247: 0 | AL247: 0 | AM247: 0 | AN247: 0 | AO247: 0 | AP247: 0 | AQ247: 0 | AR247: 0 | AS247: 0 | AT247: 0 | AU247: 0 | AV247: 0 | AW247: 0 | AX247: 0 | AY247: 0 | AZ247: 0
D249: Operating Expense for Core and Shell | I249: Core & Shell %
... 145 more rows

Sheet IT Load Datarooms Calculate
D1: =F1=H1 -> TRUE | E1: Result | F1: =Output!$D$55 -> -577739833.2 | G1: Fixed | H1: -577739833.2
D2: =MID(CELL("filename",B1),FIND("]",CELL("filename",B1))+1,31) -> IT Load Datarooms Calculate | I2: FALSE
B5: Data Room Electricity to Meet IT Requirements
E7: =E9&": "&E10 -> Critical Electric for Data Room 1: 2-dtc-l2l | F7: =F9&": "&F10 -> Critical Electric for Data Room 2: 1-air | G7: =G9&": "&G10 -> Critical Electric for Data Room 3: None | H7: =H9&": "&H10 -> Critical Electric for Data Room 4: None
E8: Data Room 1 | F8: Data Room 2 | G8: Data Room 3 | H8: Data Room 4
E9: Critical Electric for Data Room 1 | F9: Critical Electric for Data Room 2 | G9: Critical Electric for Data Room 3 | H9: Critical Electric for Data Room 4
E10: =TRANSPOSE(Input!E14:E17) -> 2-dtc-l2l | F10: 1-air | G10: None | H10: None
D11: Data Room Configuration | E11: =Input!E14 -> 2-dtc-l2l | F11: =Input!E15 -> 1-air | G11: =Input!E16 -> None | H11: =Input!E17 -> None
D12: Code Definition for Electricity in Data Rooms | E12: ='Detail Calculations'!AG31 -> e_drms_crit-dr1 | F12: ='Detail Calculations'!AG38 -> e_drms_crit-dr2 | G12: ='Detail Calculations'!AG45 -> e_drms_crit-dr3 | H12: ='Detail Calculations'!AG53 -> e_drms_oh-dr4
D14: Load from Data Room Configuration | E14: =_xlfn.XLOOKUP(E$92,'Data Room Configure'!$18:$18,'Data Room Configure'!19:19,0,0) -> 1849.381723 | F14: =_xlfn.XLOOKUP(F$92,'Data Room Configure'!$18:$18,'Data Room Configure'!19:19) -> 2050.811142 | G14: =_xlfn.XLOOKUP(G$92,'Data Room Configure'!$18:$18,'Data Room Configure'!19:19) -> 0 | H14: =_xlfn.XLOOKUP(H$92,'Data Room Configure'!$18:$18,'Data Room Configure'!19:19) -> 0 | BW14: =BW92+1 -> 
D15: Peak load from Detail Calculations | E15: =_xlfn.XLOOKUP(E$12,'Detail Calculations'!$S:$S,'Detail Calculations'!$T:$T,0,0) -> 1849.381723 | F15: =_xlfn.XLOOKUP(F12,'Detail Calculations'!$S:$S,'Detail Calculations'!$T:$T,0,0) -> 2050.811142 | G15: =_xlfn.XLOOKUP(G12,'Detail Calculations'!$S:$S,'Detail Calculations'!$T:$T,0,0) -> 0 | H15: =_xlfn.XLOOKUP(H12,'Detail Calculations'!$S:$S,'Detail Calculations'!$T:$T,0,0) -> 0
D16: Raw Load from Detail | E16: ='Detail Calculations'!EP7 -> 1849.381723 | F16: ='Detail Calculations'!EW7 -> 2050.811142
D18: Load Factor | E18: =Summary!E95 -> 1 | F18: =E18 -> 1 | G18: =F18 -> 1 | H18: =G18 -> 1
D19: Average load from Detail Caclulations | E19: =_xlfn.XLOOKUP(E$12,'Detail Calculations'!$S:$S,'Detail Calculations'!$U:$U,0,0) -> 1849.381723 | F19: =_xlfn.XLOOKUP(F12,'Detail Calculations'!$S:$S,'Detail Calculations'!$U:$U,0,0) -> 2050.811142 | G19: =_xlfn.XLOOKUP(G12,'Detail Calculations'!$S:$S,'Detail Calculations'!$U:$U,0,0) -> 0 | H19: =_xlfn.XLOOKUP(H12,'Detail Calculations'!$S:$S,'Detail Calculations'!$U:$U,0,0) -> 0
D21: Average overhead Load (crit L3 and mech) | E21: =_xlfn.XLOOKUP(AV$568,'Detail Calculations'!$S:$S,'Detail Calculations'!$T:$T,0,0) -> 51.99802016 | F21: =_xlfn.XLOOKUP(AW$568,'Detail Calculations'!$S:$S,'Detail Calculations'!$T:$T,0,0) -> 93.21868826 | G21: =_xlfn.XLOOKUP(AX$568,'Detail Calculations'!$S:$S,'Detail Calculations'!$T:$T,0,0) -> 0 | H21: =_xlfn.XLOOKUP(AY$568,'Detail Calculations'!$S:$S,'Detail Calculations'!$T:$T,0,0) -> 0
D22: Overhead | E22: =E21 -> 51.99802016 | F22: =F21 -> 93.21868826 | G22: 0 | H22: 0
B25: Mechancial Load
E26: Factor from Detail | F26: Weather | G26: Total | H26: Mechanical Load
D27: Data Room 1 Mechanical Load Percent Weather 1 | E27: ='Detail Calculations'!EP9 -> 0.02317685548 | F27: ='Detail Calculations'!V10 -> 0.9835616438 | G27: =E14 -> 1849.381723 | H27: =G27*F27*E27 -> 42.1582581
D28: Data Room 1 Mechanical Load Percent Weather 2 | E28: ='Detail Calculations'!HR9 -> 0.1931929935 | F28: ='Detail Calculations'!W10 -> 0.01643835616 | G28: =G27 -> 1849.381723 | H28: =G28*F28*E28 -> 5.873220678
D29: Data Room 1 Mechanical Load Percent Weather 3 | E29: ='Detail Calculations'!KJ9 -> 0.2891849028 | F29: ='Detail Calculations'!X10 -> 0 | G29: =G28 -> 1849.381723 | H29: =G29*F29*E29 -> 0
D30: Total Mechanical for Load Data Room 1 | H30: =SUM(H27:H29) -> 48.03147878
E31: Factor from Detail | F31: Weather | G31: Total | H31: Mechanical Load
D32: Data Room 2 Mechanical Load Percent Weather 1 | E32: ='Detail Calculations'!EW9 -> 0.02356770897 | F32: =F27 -> 0.9835616438 | G32: =F14 -> 2050.811142 | H32: =G32*F32*E32 -> 47.53840638
D33: Data Room 2 Mechanical Load Percent Weather 2 | E33: ='Detail Calculations'!HY9 -> 0.2940617045 | F33: =F28 -> 0.01643835616 | G33: =G32 -> 2050.811142 | H33: =G33*F33*E33 -> 9.913397587
D34: Data Room 2 Mechanical Load Percent Weather 3 | E34: ='Detail Calculations'!KQ9 -> 0.2940617045 | F34: =F29 -> 0 | G34: =G33 -> 2050.811142 | H34: =G34*F34*E34 -> 0
D35: Total Mechanical Load Mechanical for Data Room 2 | H35: =SUM(H32:H34) -> 57.45180397
D37: Data Room 3 Mechanical Load Percent Weather 1
D38: Data Room 3 Mechanical Load Percent Weather 2
D39: Data Room 3 Mechanical Load Percent Weather 3
D40: Mechanical for Data Room 3 | H40: =SUM(H37:H39) -> 0
D42: Data Room 4 Mechanical Load Percent Weather 1
D43: Data Room 4 Mechanical Load Percent Weather 2
D44: Data Room 4 Mechanical Load Percent Weather 3
D45: Mechanical for Data Room 4 | H45: =SUM(H42:H44) -> 0
D47: Mechanical Load by Data Room | E47: =H30 -> 48.03147878 | F47: =H35 -> 57.45180397
D48: Total Plus Mechanical Load and Overhead | E48: =E47+E15+E22 -> 1949.411222 | F48: =F47+F15+F22 -> 2201.481634 | G48: 0 | H48: 0
D50: Total Mechanical Load for Data Room | E50: =H30+H35 -> 105.4832827 | H50: =H35+H30 -> 105.4832827
D52: Total facility power | E52: ='Back-up Power Calculate'!F12+'Back-up Power Calculate'!K12 -> 4287.273035 | F52: =E50+E67 -> 4287.273035
B54: Power Use Effectivenes
D56: ITE load efficiency (L2) - From Data Room Configure | E56: =_xlfn.XLOOKUP(E$92,'Data Room Configure'!$18:$18,'Data Room Configure'!27:27) -> 0.9874990128 | F56: =_xlfn.XLOOKUP(F$92,'Data Room Configure'!$18:$18,'Data Room Configure'!27:27) -> 0.99 | G56: =_xlfn.XLOOKUP(G$92,'Data Room Configure'!$18:$18,'Data Room Configure'!27:27) -> 0 | H56: =_xlfn.XLOOKUP(H$92,'Data Room Configure'!$18:$18,'Data Room Configure'!27:27) -> 0
D57: ITE load efficiency (L3) - From Data Room Configure | E57: =_xlfn.XLOOKUP(E$92,'Data Room Configure'!$18:$18,'Data Room Configure'!28:28) -> 0.9776240227 | F57: =_xlfn.XLOOKUP(F$92,'Data Room Configure'!$18:$18,'Data Room Configure'!28:28) -> 0.9801 | G57: =_xlfn.XLOOKUP(G$92,'Data Room Configure'!$18:$18,'Data Room Configure'!28:28) -> 0 | H57: =_xlfn.XLOOKUP(H$92,'Data Room Configure'!$18:$18,'Data Room Configure'!28:28) -> 0
D58: ITE load efficiency (L4) - From Data Room Configure | E58: =_xlfn.XLOOKUP(E$92,'Data Room Configure'!$18:$18,'Data Room Configure'!29:29) -> 0.7578749061 | F58: =_xlfn.XLOOKUP(F$92,'Data Room Configure'!$18:$18,'Data Room Configure'!29:29) -> 0.715473 | G58: =_xlfn.XLOOKUP(G$92,'Data Room Configure'!$18:$18,'Data Room Configure'!29:29) -> 0 | H58: =_xlfn.XLOOKUP(H$92,'Data Room Configure'!$18:$18,'Data Room Configure'!29:29) -> 0
D60: ITE load efficiency (L2) | E60: =E$19*E56 -> 1826.262626 | F60: 2030.30303 | G60: 0 | H60: 0 | J60: =E60+F60 -> 3856.565657
D61: ITE load efficiency (L3) | E61: 1808 | F61: 2010 | G61: 0 | H61: 0
D62: ITE load efficiency (L4) | E62: 1401.6 | F62: 1467.3 | G62: 0 | H62: 0
D64: Data Room 1 Factor | E64: ='Detail Calculations'!EP16 -> 1.062871381 | F64: ='Detail Calculations'!EW16 -> 1.080613812
D66: Data Room 1 Electricity Required | E66: =E16*E64 -> 1965.654906 | F66: =F16*F64 -> 2216.134846 | G66: =G16*G64 -> 0 | H66: =H16*H64 -> 0
D67: Accumulated Data Room Load | E67: =F66+E66+G66+H66 -> 4181.789752 | F67: =G66+F66+H66+I66 -> 2216.134846 | G67: =H66+G66+I66+J66 -> 0 | H67: =I66+H66+J66+K66 -> 0
D70: ITE power L3 (rPDU outputs) | E70: =E61 -> 1808 | F70: =F61 -> 2010 | G70: =G61 -> 0 | H70: =H61 -> 0
D71: =D72 -> ITE power L3 (rPDU outputs) | E71: =E72 -> 3818
D72: ITE power L3 (rPDU outputs) | E72: =SUM($E$61:$H$61) -> 3818
D73: Total Electricity Purchased | E73: =E52 -> 4287.273035
C76: Output Metrics (Do Not Affect Financial Calculations)
D77: Resource metrics
D78: L3 | E78: =E52/E72 -> 1.122910695
D79: L4 | E79: =E52/Summary!E27 -> 1.494396122 | F79: =Summary!E27 -> 2868.9
B82: Data Rooms Area
E84: Dataroom1 | F84: Dataroom2 | G84: Dataroom3 | H84: Dataroom4
D85: Type | E85: =TRANSPOSE(Input!E14:E17) -> 2-dtc-l2l | F85: 1-air | G85: None | H85: None
D86: Fixed area from Data Room Configuration | E86: =_xlfn.XLOOKUP(E$92,'Data Room Configure'!$18:$18,'Data Room Configure'!20:20) -> 334.6833333 | F86: =_xlfn.XLOOKUP(F$92,'Data Room Configure'!$18:$18,'Data Room Configure'!20:20) -> 694.72 | G86: =_xlfn.XLOOKUP(G$92,'Data Room Configure'!$18:$18,'Data Room Configure'!20:20) -> 0 | H86: =_xlfn.XLOOKUP(H$92,'Data Room Configure'!$18:$18,'Data Room Configure'!20:20) -> 0 | BW86: =BW14+1 -> 
D87: Proportional area from Data Room Configuration | E87: =_xlfn.XLOOKUP(E$92,'Data Room Configure'!$18:$18,'Data Room Configure'!21:21) -> 0 | F87: =_xlfn.XLOOKUP(F$92,'Data Room Configure'!$18:$18,'Data Room Configure'!21:21) -> 0 | G87: =_xlfn.XLOOKUP(G$92,'Data Room Configure'!$18:$18,'Data Room Configure'!21:21) -> 0 | H87: =_xlfn.XLOOKUP(H$92,'Data Room Configure'!$18:$18,'Data Room Configure'!21:21) -> 0 | BW87: =BW86+1 -> 
D88: Peak Load for Proportional area adjustment | E88: =E15 -> 1849.381723 | F88: =F15 -> 2050.811142 | G88: =G15 -> 0 | H88: =H15 -> 0
D89: Proportional area adjustment | E89: =E88*E87/E100 -> 0 | F89: =F88*F87/F100 -> 0 | G89: =G88*G87/G100 -> 0 | H89: =H88*H87/H100 -> 0
D90: Area Including Proportional Area (based on peak) | E90: =IF(ISNUMBER(E86),E86,0)+E87*E88/E100 -> 334.6833333 | F90: =IF(ISNUMBER(F86),F86,0)+F87*F88/F100 -> 694.72 | G90: =IF(ISNUMBER(G86),G86,0)+G87*G88/G100 -> 0 | H90: =IF(ISNUMBER(H86),H86,0)+H87*H88/H100 -> 0
D91: Area Used in Summary | E91: =E90 -> 334.6833333 | F91: =F90 -> 694.72 | G91: =G90 -> 0 | H91: =H90 -> 0
D92: Configuration Code | E92: =E85 -> 2-dtc-l2l | F92: =F85 -> 1-air | G92: =G85 -> None | H92: =H85 -> None | BW92: =#REF!+1 -> 
D94: Heat rejection to air-side to Detail Calculation | E94: =_xlfn.XLOOKUP(E$92,'Data Room Configure'!$18:$18,'Data Room Configure'!26:26) -> 0.6289929551 | F94: =_xlfn.XLOOKUP(F$92,'Data Room Configure'!$18:$18,'Data Room Configure'!26:26) -> 1 | G94: =_xlfn.XLOOKUP(G$92,'Data Room Configure'!$18:$18,'Data Room Configure'!26:26) -> 0 | H94: =_xlfn.XLOOKUP(H$92,'Data Room Configure'!$18:$18,'Data Room Configure'!26:26) -> 0 | BW94: =#REF!+1 -> 
D95: Proportional losses used in Detail Calculations | E95: =_xlfn.XLOOKUP(E$92,'Data Room Configure'!$18:$18,'Data Room Configure'!24:24) -> 0.02811643454 | F95: =_xlfn.XLOOKUP(F$92,'Data Room Configure'!$18:$18,'Data Room Configure'!24:24) -> 0.04545454545 | G95: =_xlfn.XLOOKUP(G$92,'Data Room Configure'!$18:$18,'Data Room Configure'!24:24) -> 0 | H95: =_xlfn.XLOOKUP(H$92,'Data Room Configure'!$18:$18,'Data Room Configure'!24:24) -> 0 | BW95: =BW102+1 -> 
B97: Capital Expenditures for IT Equipment
D99: Fixed cost (Cap Exp) from Room Configure | E99: =_xlfn.XLOOKUP(E$92,'Data Room Configure'!$18:$18,'Data Room Configure'!22:22) -> 1745200 | F99: =_xlfn.XLOOKUP(F$92,'Data Room Configure'!$18:$18,'Data Room Configure'!22:22) -> 1803719.697 | G99: =_xlfn.XLOOKUP(G$92,'Data Room Configure'!$18:$18,'Data Room Configure'!22:22) -> 0 | H99: =_xlfn.XLOOKUP(H$92,'Data Room Configure'!$18:$18,'Data Room Configure'!22:22) -> 0 | BW99: =BW87+1 -> 
D100: Load Factor | E100: =Summary!$E$95 -> 1 | F100: =Summary!$E$95 -> 1 | G100: =Summary!$E$95 -> 1 | H100: =Summary!$E$95 -> 1
D101: Peak Load from Above | E101: =E15 -> 1849.381723 | F101: =F15 -> 2050.811142 | G101: =G15 -> 0 | H101: =H15 -> 0
D102: Proportional Cost/kW from Room Configure | E102: =_xlfn.XLOOKUP(E$92,'Data Room Configure'!$18:$18,'Data Room Configure'!23:23) -> 0 | F102: =_xlfn.XLOOKUP(F$92,'Data Room Configure'!$18:$18,'Data Room Configure'!23:23) -> 0 | G102: =_xlfn.XLOOKUP(G$92,'Data Room Configure'!$18:$18,'Data Room Configure'!23:23) -> 0 | H102: =_xlfn.XLOOKUP(H$92,'Data Room Configure'!$18:$18,'Data Room Configure'!23:23) -> 0 | BW102: =BW99+1 -> 
D103: Proportional Cap Exp Adjustment | E103: =E101*E102/E18 -> 0 | F103: =F101*F102/F18 -> 0 | G103: =G101*G102/G18 -> 0 | H103: =H101*H102/H18 -> 0
D104: Direct CAPEX for equipment | E104: =IF(ISNUMBER(E99),E99,0)+E101*E102/E18 -> 1745200 | F104: =IF(ISNUMBER(F99),F99,0)+F101*F102/F18 -> 1803719.697 | G104: =IF(ISNUMBER(G99),G99,0)+G101*G102/G18 -> 0 | H104: =IF(ISNUMBER(H99),H99,0)+H101*H102/H18 -> 0
B106: Capital Expenditures for Core and Shell and Fit Out for Data Rooms
D108: Area Including Proportional Area from Above | E108: =E90 -> 334.6833333 | F108: =F90 -> 694.72 | G108: =G90 -> 0 | H108: =H90 -> 0
D109: Core and shell unit cost per m2 | E109: =Input!$E$35 -> 1800 | F109: =Input!$E$35 -> 1800 | G109: =Input!$E$35 -> 1800 | H109: =Input!$E$35 -> 1800
D110: CAPEX core and shell | E110: =E108*E109 -> 602430 | F110: =F108*F109 -> 1250496 | G110: =G108*G109 -> 0 | H110: =H108*H109 -> 0
D112: Area Including Proportional Area from Above | E112: =E108 -> 334.6833333 | F112: =F108 -> 694.72 | G112: =G108 -> 0 | H112: =H108 -> 0
D113: Fit-out Unit Cost per m2 | E113: =Input!$E$36 -> 1800 | F113: =Input!$E$36 -> 1800 | G113: =Input!$E$36 -> 1800 | H113: =Input!$E$36 -> 1800
D114: CAPEX fit-out | E114: =E112*E113 -> 602430 | F114: =F112*F113 -> 1250496 | G114: =G112*G113 -> 0 | H114: =H112*H113 -> 0
D116: Total Capital Expenditure Including Fit Out and Core/Shell | E116: =E104+E110+E114 -> 2950060 | F116: =F104+F110+F114 -> 4304711.697 | G116: =G104+G110+G114 -> 0 | H116: =H104+H110+H114 -> 0
B118: Operating Expenses for Critical Load
D120: Hours | E120: =Summary!$E$127 -> 8760 | F120: =Summary!$E$127 -> 8760 | G120: =Summary!$E$127 -> 8760 | H120: =Summary!$E$127 -> 8760
D121: Electricity Cost | E121: =Summary!$E$112 -> 0.2 | F121: =Summary!$E$112 -> 0.2 | G121: =Summary!$E$112 -> 0.2 | H121: =Summary!$E$112 -> 0.2
D122: OPEX power | E122: =E19*E120*E121 -> 3240116.78 | F122: =F19*F120*F121 -> 3593021.12 | G122: =G19*G120*G121 -> 0 | H122: =H19*H120*H121 -> 0
D124: Direct Cap Exp for Equipment from Above | E124: =E104 -> 1745200 | F124: =F104 -> 1803719.697 | G124: =G104 -> 0 | H124: =H104 -> 0
D125: Equipment Maintenance Percent of Cap Exp | E125: =Input!$E$40 -> 0.03 | F125: =Input!$E$40 -> 0.03 | G125: =Input!$E$40 -> 0.03 | H125: =Input!$E$40 -> 0.03
D126: Direct Equiment Maintenance | E126: =E124*E125 -> 52356 | F126: =F124*F125 -> 54111.59091 | G126: =G124*G125 -> 0 | H126: =H124*H125 -> 0
D128: Cap Exp for Core and Shell of Data Rooms | E128: =E110 -> 602430 | F128: =F110 -> 1250496 | G128: =G110 -> 0 | H128: =H110 -> 0
D129: Core and Shell Maintenance Percent | E129: =Input!$E$39 -> 0.03 | F129: =Input!$E$39 -> 0.03 | G129: =Input!$E$39 -> 0.03 | H129: =Input!$E$39 -> 0.03
D130: Core and Shell Maintenance | E130: =E128*E129 -> 18072.9 | F130: =F128*F129 -> 37514.88 | G130: =G128*G129 -> 0 | H130: =H128*H129 -> 0
D132: Total Operating Expense for Maintenance | E132: =E130+E126 -> 70428.9 | F132: =F130+F126 -> 91626.47091 | G132: =G130+G126 -> 0 | H132: =H130+H126 -> 0
D133: OPEX total | E133: =E122+E132 -> 3310545.68 | F133: =F122+F132 -> 3684647.591 | G133: =G122+G132 -> 0 | H133: =H122+H132 -> 0
D136: Critical power configuration Selection | E136: =Input!E22 -> SE RD Crit
E137: =Input!E23 -> SE RD Mech
AV568: ='Detail Calculations'!AG32 -> e_drms_oh-dr1 | AW568: ='Detail Calculations'!AG39 -> e_drms_oh-dr2 | AX568: ='Detail Calculations'!AG46 -> e_drms_oh-dr3
AV569: HRU, Air | AY569: =Summary!E105 -> SE RD Air | AZ569: HRU, Liquid | BC569: =Summary!E106 -> SE RD Liquid
AV570: Pump | AW570: Compressor | AX570: FreeCooler | AY570: Fans | AZ570: Pump | BA570: Compressor | BB570: FreeCooler | BC570: Fans
AU611: Fixed Area | AV611: =E86 -> 334.6833333 | AW611: =_xlfn.FORMULATEXT(AV611) -> =E86
AU612: Proportioinal Area | AV612: =E87 -> 0 | AW612: =_xlfn.FORMULATEXT(AV612) -> =E87
AU613: Peak Load | AV613: =E15 -> 1849.381723 | AW613: =_xlfn.FORMULATEXT(AV613) -> =E15
AU614: Load Factor | AV614: =Summary!E95 -> 1 | AW614: =_xlfn.FORMULATEXT(AV614) -> =Summary!E95

Sheet Back-up Power Calculate
B1: Back-up and Other Equipment Capacity and Cost
C2: Capacity and Area
E3: =E5&" "&E4&" "&E7 -> PowerCrit Gen Set SE RD65 | F3: PowerCrit Trans Step-Down SE RD65 | G3: PowerCrit Switch board SE RD65 | H3: PowerCrit Uninterrupited PS SE RD65 | I3: Chiller SE RD65 | J3: PowerMech Gen Set SE RD65 | K3: PowerMech Trans Step-up SE RD65 | L3: PowerMech Switch board SE RD65
E4: Gen Set | F4: Trans Step-Down | G4: Switch board | H4: Uninterrupited PS | I4: =I6 -> Chiller | J4: Gen Set | K4: Trans Step-up | L4: Switch board
E5: PowerCrit | F5: PowerCrit | G5: PowerCrit | H5: PowerCrit | J5: PowerMech | K5: PowerMech | L5: PowerMech
E6: Genset | F6: TX | G6: SWB | H6: UPS | I6: Chiller | J6: Genset | K6: TX | L6: SWB
D7: Type | E7: =INDEX(p_configs[],MATCH(E6,p_configs[Power],0),MATCH('IT Load Datarooms Calculate'!$E$136,p_configs[#Headers],0)) -> SE RD65 | F7: =INDEX(p_configs[],MATCH(F6,p_configs[Power],0),MATCH('IT Load Datarooms Calculate'!$E$136,p_configs[#Headers],0)) -> SE RD65 | G7: =INDEX(p_configs[],MATCH(G6,p_configs[Power],0),MATCH('IT Load Datarooms Calculate'!$E$136,p_configs[#Headers],0)) -> SE RD65 | H7: =INDEX(p_configs[],MATCH(H6,p_configs[Power],0),MATCH('IT Load Datarooms Calculate'!$E$136,p_configs[#Headers],0)) -> SE RD65 | I7: =INDEX(p_configs[],MATCH(I6,p_configs[Power],0),MATCH('IT Load Datarooms Calculate'!$E$136,p_configs[#Headers],0)) -> SE RD65 | J7: =INDEX(p_configs[],MATCH(J6,p_configs[Power],0),MATCH('IT Load Datarooms Calculate'!$E$137,p_configs[#Headers],0)) -> SE RD65 | K7: =INDEX(p_configs[],MATCH(K6,p_configs[Power],0),MATCH('IT Load Datarooms Calculate'!$E$136,p_configs[#Headers],0)) -> SE RD65 | L7: =INDEX(p_configs[],MATCH(L6,p_configs[Power],0),MATCH('IT Load Datarooms Calculate'!$E$136,p_configs[#Headers],0)) -> SE RD65
F9: ='Detail Calculations'!AG13 -> q_crit_tx-amb | G9: ='Detail Calculations'!AG15 -> q_crit_swb-ch | H9: ='Detail Calculations'!AG17 -> q_crit_ups-ch | I9: ='Detail Calculations'!AG18 -> e_crit_swb-ch | K9: ='Detail Calculations'!AG21 -> q_mech_tx-amb | L9: ='Detail Calculations'!AG23 -> q_mech_swb-amb
F10: ='Detail Calculations'!AG12 -> e_crit_u-tx | G10: ='Detail Calculations'!AG14 -> e_crit_tx-swb | H10: ='Detail Calculations'!AG16 -> e_crit_swb-ups | I10: ='Detail Calculations'!AK18 -> q_crit_ch-amb | K10: ='Detail Calculations'!AG20 -> e_mech_u-tx | L10: ='Detail Calculations'!AG22 -> e_mech_tx-swb
D12: Annual Average Required Capacity from Detail | E12: =F12 -> 4181.789752 | F12: =_xlfn.XLOOKUP(F$10,'Detail Calculations'!$S:$S,'Detail Calculations'!$U:$U,0,0) -> 4181.789752 | G12: =_xlfn.XLOOKUP(G$10,'Detail Calculations'!$S:$S,'Detail Calculations'!$U:$U,0,0) -> 4139.971855 | H12: =_xlfn.XLOOKUP(H$10,'Detail Calculations'!$S:$S,'Detail Calculations'!$U:$U,0,0) -> 3949.678314 | I12: =_xlfn.XLOOKUP(I10,'Detail Calculations'!$S:$S,'Detail Calculations'!$T:$T,0,0)-_xlfn.XLOOKUP(I9,'Detail Calculations'!$S:$S,'Detail Calculations'!$U:$U) -> 80.89650169 | J12: =K12 -> 105.4832827 | K12: =_xlfn.XLOOKUP(K10,'Detail Calculations'!$S:$S,'Detail Calculations'!$U:$U,0,0) -> 105.4832827 | L12: =_xlfn.XLOOKUP(L10,'Detail Calculations'!$S:$S,'Detail Calculations'!$U:$U,0,0) -> 104.4284499
D13: Peak load | E13: =F13 -> 4181.789752 | F13: =_xlfn.XLOOKUP(F$10,'Detail Calculations'!$S:$S,'Detail Calculations'!$T:$T,0,0) -> 4181.789752 | G13: =_xlfn.XLOOKUP(G$10,'Detail Calculations'!$S:$S,'Detail Calculations'!$T:$T,0,0) -> 4139.971855 | H13: =_xlfn.XLOOKUP(H$10,'Detail Calculations'!$S:$S,'Detail Calculations'!$T:$T,0,0) -> 3949.678314 | I13: =_xlfn.XLOOKUP(I10,'Detail Calculations'!$S:$S,'Detail Calculations'!$T:$T,0,0)-_xlfn.XLOOKUP(I9,'Detail Calculations'!$S:$S,'Detail Calculations'!$T:$T) -> 80.89650169 | J13: =K13 -> 960.3526111 | K13: =_xlfn.XLOOKUP(K10,'Detail Calculations'!$S:$S,'Detail Calculations'!$T:$T,0,0) -> 960.3526111 | L13: =_xlfn.XLOOKUP(L10,'Detail Calculations'!$S:$S,'Detail Calculations'!$T:$T,0,0) -> 950.749085
D14: Annual average overhead | E14: 0 | F14: =_xlfn.XLOOKUP(F$9,'Detail Calculations'!$S:$S,'Detail Calculations'!$U:$U,0,0) -> 41.81789752 | G14: =_xlfn.XLOOKUP(G$9,'Detail Calculations'!$S:$S,'Detail Calculations'!$U:$U,0,0) -> 41.39971855 | H14: =_xlfn.XLOOKUP(H$9,'Detail Calculations'!$S:$S,'Detail Calculations'!$U:$U,0,0) -> 39.49678314 | I14: =_xlfn.XLOOKUP(I$9,'Detail Calculations'!$S:$S,'Detail Calculations'!$U:$U,0,0) -> 3.677113713 | J14: 0 | K14: =_xlfn.XLOOKUP(K$9,'Detail Calculations'!$S:$S,'Detail Calculations'!$U:$U,0,0) -> 1.054832827 | L14: =_xlfn.XLOOKUP(L9,'Detail Calculations'!$S:$S,'Detail Calculations'!$U:$U,0,0) -> 1.044284499
D15: overhead | E15: =E14 -> 0 | F15: 41.81789752 | G15: 41.39971855 | H15: 39.49678314 | I15: 3.677113713 | J15: 0 | K15: 1.054832827 | L15: 1.044284499
E17: =E$7 -> SE RD65 | F17: SE RD65 | G17: SE RD65 | H17: SE RD65 | I17: SE RD65 | J17: SE RD65 | K17: SE RD65 | L17: SE RD65
D18: Fixed area | E18: =_xlfn.XLOOKUP(E$7,'Power Configure'!$15:$15,'Power Configure'!17:17,0,0) -> 0 | F18: =_xlfn.XLOOKUP(F$7,'Power Configure'!$30:$30,'Power Configure'!32:32,0,0) -> 0 | G18: =_xlfn.XLOOKUP(G$7,'Power Configure'!$44:$44,'Power Configure'!46:46,0,0) -> 0 | H18: =_xlfn.XLOOKUP(H$7,'Power Configure'!$57:$57,'Power Configure'!59:59,0,0) -> 0 | I18: =_xlfn.XLOOKUP(I$7,'Power Configure'!$70:$70,'Power Configure'!72:72,0,0) -> 0 | J18: =_xlfn.XLOOKUP(J$7,'Power Configure'!$15:$15,'Power Configure'!17:17,0,0) -> 0 | K18: =_xlfn.XLOOKUP(K$7,'Power Configure'!$30:$30,'Power Configure'!32:32,0,0) -> 0 | L18: =_xlfn.XLOOKUP(L$7,'Power Configure'!$44:$44,'Power Configure'!46:46) -> 0
D19: Proportional area | E19: =_xlfn.XLOOKUP(E$7,'Power Configure'!$15:$15,'Power Configure'!18:18,0,0) -> 0.026 | F19: =_xlfn.XLOOKUP(F$7,'Power Configure'!$30:$30,'Power Configure'!33:33,0,0) -> 0.04 | G19: =_xlfn.XLOOKUP(G$7,'Power Configure'!$44:$44,'Power Configure'!47:47,0,0) -> 0.04 | H19: =_xlfn.XLOOKUP(H$7,'Power Configure'!$57:$57,'Power Configure'!60:60,0,0) -> 0.031 | I19: =_xlfn.XLOOKUP(I$7,'Power Configure'!$70:$70,'Power Configure'!73:73,0,0) -> 0.02 | J19: =_xlfn.XLOOKUP(J$7,'Power Configure'!$15:$15,'Power Configure'!18:18,0,0) -> 0.026 | K19: =_xlfn.XLOOKUP(K$7,'Power Configure'!$30:$30,'Power Configure'!33:33,0,0) -> 0.04 | L19: =_xlfn.XLOOKUP(L$7,'Power Configure'!$44:$44,'Power Configure'!47:47) -> 0.04
D20: Fixed cost | E20: =_xlfn.XLOOKUP(E$7,'Power Configure'!$15:$15,'Power Configure'!19:19,0,0) -> 0 | F20: =_xlfn.XLOOKUP(F$7,'Power Configure'!$30:$30,'Power Configure'!34:34,0,0) -> 0 | G20: =_xlfn.XLOOKUP(G$7,'Power Configure'!$44:$44,'Power Configure'!48:48,0,0) -> 0 | H20: =_xlfn.XLOOKUP(H$7,'Power Configure'!$57:$57,'Power Configure'!61:61,0,0) -> 0 | I20: =_xlfn.XLOOKUP(I$7,'Power Configure'!$70:$70,'Power Configure'!74:74,0,0) -> 0 | J20: =_xlfn.XLOOKUP(J$7,'Power Configure'!$15:$15,'Power Configure'!19:19,0,0) -> 0 | K20: =_xlfn.XLOOKUP(K$7,'Power Configure'!$30:$30,'Power Configure'!34:34,0,0) -> 0 | L20: =_xlfn.XLOOKUP(L$7,'Power Configure'!$44:$44,'Power Configure'!48:48) -> 0
D21: Proportional cost | E21: =_xlfn.XLOOKUP(E$7,'Power Configure'!$15:$15,'Power Configure'!20:20,0,0) -> 500 | F21: =_xlfn.XLOOKUP(F$7,'Power Configure'!$30:$30,'Power Configure'!35:35,0,0) -> 500 | G21: =_xlfn.XLOOKUP(G$7,'Power Configure'!$44:$44,'Power Configure'!49:49,0,0) -> 500 | H21: =_xlfn.XLOOKUP(H$7,'Power Configure'!$57:$57,'Power Configure'!62:62,0,0) -> 434 | I21: =_xlfn.XLOOKUP(I$7,'Power Configure'!$70:$70,'Power Configure'!75:75,0,0) -> 324 | J21: =_xlfn.XLOOKUP(J$7,'Power Configure'!$15:$15,'Power Configure'!20:20,0,0) -> 500 | K21: =_xlfn.XLOOKUP(K$7,'Power Configure'!$30:$30,'Power Configure'!35:35,0,0) -> 500 | L21: =_xlfn.XLOOKUP(L$7,'Power Configure'!$44:$44,'Power Configure'!49:49) -> 500
D22: Proportional losses | E22: =_xlfn.XLOOKUP(E$7,'Power Configure'!$15:$15,'Power Configure'!21:21,0,0) -> 0 | F22: =_xlfn.XLOOKUP(F$7,'Power Configure'!$30:$30,'Power Configure'!36:36,0,0) -> 0.01 | G22: =_xlfn.XLOOKUP(G$7,'Power Configure'!$44:$44,'Power Configure'!50:50,0,0) -> 0.01 | H22: =_xlfn.XLOOKUP(H$7,'Power Configure'!$57:$57,'Power Configure'!63:63,0,0) -> 0.01 | J22: =_xlfn.XLOOKUP(J$7,'Power Configure'!$15:$15,'Power Configure'!21:21,0,0) -> 0 | K22: =_xlfn.XLOOKUP(K$7,'Power Configure'!$30:$30,'Power Configure'!36:36,0,0) -> 0.01 | L22: =_xlfn.XLOOKUP(L$7,'Power Configure'!$44:$44,'Power Configure'!50:50) -> 0.01
D23: COP to Detail Calculations | I23: =_xlfn.XLOOKUP(I$7,'Power Configure'!$70:$70,'Power Configure'!77:77,0,0) -> 22
D24: Heat rejection to air-side
D25: Critical workload efficiency
D26: Fixed water usage
D27: Proportional water usage
D29: Heat recovery potential
D30: Water usage
E31: =E3 -> PowerCrit Gen Set SE RD65 | F31: PowerCrit Trans Step-Down SE RD65 | G31: PowerCrit Switch board SE RD65 | H31: PowerCrit Uninterrupited PS SE RD65 | I31: Chiller SE RD65 | J31: PowerMech Gen Set SE RD65 | K31: PowerMech Trans Step-up SE RD65 | L31: PowerMech Switch board SE RD65
C32: Capital Expenditures for Back-up and Other Equipment
D33: Redundancy | E33: =Summary!$E$104 -> 2N | F33: =Summary!$E$104 -> 2N | G33: =Summary!$E$104 -> 2N | H33: =Summary!$E$104 -> 2N | I33: =Summary!$E$104 -> 2N | J33: =Summary!$E$104 -> 2N | K33: =Summary!$E$104 -> 2N | L33: =Summary!$E$104 -> 2N
D34: Capacity | E34: =_xlfn.XLOOKUP(E$7,'Power Configure'!$15:$15,'Power Configure'!16:16,0,0) -> 0 | F34: =_xlfn.XLOOKUP(F$7,'Power Configure'!$30:$30,'Power Configure'!31:31,0,0) -> 0 | G34: =_xlfn.XLOOKUP(G$7,'Power Configure'!$44:$44,'Power Configure'!45:45,0,0) -> 0 | H34: =_xlfn.XLOOKUP(H$7,'Power Configure'!$57:$57,'Power Configure'!58:58,0,0) -> 0 | I34: =_xlfn.XLOOKUP(I$7,'Power Configure'!$70:$70,'Power Configure'!71:71,0,0) -> 0 | J34: =_xlfn.XLOOKUP(J$7,'Power Configure'!$15:$15,'Power Configure'!16:16,0,0) -> 0 | K34: =_xlfn.XLOOKUP(K$7,'Power Configure'!$30:$30,'Power Configure'!31:31,0,0) -> 0 | L34: =_xlfn.XLOOKUP(L$7,'Power Configure'!$44:$44,'Power Configure'!45:45,0,0) -> 0
D35: Capacity < 0 | E35: =E34>0 -> FALSE | F35: FALSE | G35: FALSE | H35: FALSE | I35: FALSE | J35: FALSE | K35: FALSE | L35: FALSE
D36: Peak Load (Repeated) | E36: =E13 -> 4181.789752 | F36: 4181.789752 | G36: 4139.971855 | H36: 3949.678314 | I36: 80.89650169 | J36: 960.3526111 | K36: 960.3526111 | L36: 950.749085
D37: Load Factor | E37: =Input!$E$11 -> 1 | F37: =Input!$E$11 -> 1 | G37: =Input!$E$11 -> 1 | H37: =Input!$E$11 -> 1 | I37: =Input!$E$11 -> 1 | J37: =Input!$E$11 -> 1 | K37: =Input!$E$11 -> 1 | L37: =Input!$E$11 -> 1
D38: Base Capacity without Redundancy | E38: =ROUNDUP(E35/E36/E37,0) -> 0 | F38: 0 | G38: 0 | H38: 0 | I38: 0 | J38: 0 | K38: 0 | L38: 0
D39: Number for N | E39: =(E$33="N")*1 -> 0 | F39: 0 | G39: 0 | H39: 0 | I39: 0 | J39: 0 | K39: 0 | L39: 0
D40: Number for N+1 | E40: =(E33="N+1")*1+(E33="N+1")*1 -> 0 | F40: 0 | G40: 0 | H40: 0 | I40: 0 | J40: 0 | K40: 0 | L40: 0
D41: Number for 2N | E41: =(E33="2N")*2 -> 2 | F41: 2 | G41: 2 | H41: 2 | I41: 2 | J41: 2 | K41: 2 | L41: 2
D42: Total Number | E42: =SUM(E39:E41) -> 2 | F42: 2 | G42: 2 | H42: 2 | I42: 2 | J42: 2 | K42: 2 | L42: 2
D43: Number of Equipment Pieces | E43: =IF(E35,E42,NA()) -> 
D44: Number of Equipment Pieces | E44: =IF(E34>0,ROUNDUP(E36/E34/E37,0)*_xlfn.IFS(OR(Summary!$E$104="N",Summary!$E$104="N+1"),1,Summary!$E$104="2N",2)+IF(Summary!$E$104="N+1",1,0),"NA") -> NA | F44: =IF(F34>0,ROUNDUP(F36/F34/F37,0)*_xlfn.IFS(OR(Summary!$E$104="N",Summary!$E$104="N+1"),1,Summary!$E$104="2N",2)+IF(Summary!$E$104="N+1",1,0),"NA") -> NA | G44: =IF(G34>0,ROUNDUP(G36/G34/G37,0)*_xlfn.IFS(OR(Summary!$E$104="N",Summary!$E$104="N+1"),1,Summary!$E$104="2N",2)+IF(Summary!$E$104="N+1",1,0),"NA") -> NA | H44: =IF(H34>0,ROUNDUP(H36/H34/H37,0)*_xlfn.IFS(OR(Summary!$E$104="N",Summary!$E$104="N+1"),1,Summary!$E$104="2N",2)+IF(Summary!$E$104="N+1",1,0),"NA") -> NA | I44: =IF(I34>0,ROUNDUP(I36/I34/I37,0)*_xlfn.IFS(OR(Summary!$E$104="N",Summary!$E$104="N+1"),1,Summary!$E$104="2N",2)+IF(Summary!$E$104="N+1",1,0),"NA") -> NA | J44: =IF(J34>0,ROUNDUP(J36/J34/J37,0)*_xlfn.IFS(OR(Summary!$E$104="N",Summary!$E$104="N+1"),1,Summary!$E$104="2N",2)+IF(Summary!$E$104="N+1",1,0),"NA") -> NA | K44: =IF(K34>0,ROUNDUP(K36/K34/K37,0)*_xlfn.IFS(OR(Summary!$E$104="N",Summary!$E$104="N+1"),1,Summary!$E$104="2N",2)+IF(Summary!$E$104="N+1",1,0),"NA") -> NA | L44: =IF(L34>0,ROUNDUP(L36/L34/L37,0)*_xlfn.IFS(OR(Summary!$E$104="N",Summary!$E$104="N+1"),1,Summary!$E$104="2N",2)+IF(Summary!$E$104="N+1",1,0),"NA") -> NA
D46: Number from Redundancy | E46: =IF(E33="2N",2,1) -> 2 | F46: 2 | G46: 2 | H46: 2 | I46: 2 | J46: 2 | K46: 2 | L46: 2
D47: Area | E47: =E48 -> 217.4530671 | F47: 334.5431802 | G47: 331.1977484 | H47: 244.8800555 | I47: 3.235860067 | J47: 49.93833578 | K47: 76.82820889 | L47: 76.0599268
D48: Area (based on peak) (???) | E48: =(IF(ISNUMBER(E44),E18*E44,0)+E19*E13/Summary!$E$95)*IF(Summary!$E$104="2N",2,1) -> 217.4530671 | F48: =(IF(ISNUMBER(F44),F18*F44,0)+F19*F13/Summary!$E$95)*IF(Summary!$E$104="2N",2,1) -> 334.5431802 | G48: =(IF(ISNUMBER(G44),G18*G44,0)+G19*G13/Summary!$E$95)*IF(Summary!$E$104="2N",2,1) -> 331.1977484 | H48: =(IF(ISNUMBER(H44),H18*H44,0)+H19*H13/Summary!$E$95)*IF(Summary!$E$104="2N",2,1) -> 244.8800555 | I48: =(IF(ISNUMBER(I44),I18*I44,0)+I19*I13/Summary!$E$95)*IF(Summary!$E$104="2N",2,1) -> 3.235860067 | J48: =(IF(ISNUMBER(J44),J18*J44,0)+J19*J13/Summary!$E$95)*IF(Summary!$E$104="2N",2,1) -> 49.93833578 | K48: =(IF(ISNUMBER(K44),K18*K44,0)+K19*K13/Summary!$E$95)*IF(Summary!$E$104="2N",2,1) -> 76.82820889 | L48: =(IF(ISNUMBER(L44),L18*L44,0)+L19*L13/Summary!$E$95)*IF(Summary!$E$104="2N",2,1) -> 76.0599268
D50: Required Capacity | E50: =E36 -> 4181.789752 | F50: 4181.789752 | G50: 4139.971855 | H50: 3949.678314 | I50: 80.89650169 | J50: 960.3526111 | K50: 960.3526111 | L50: 950.749085
D51: Proportional Cost | E51: =E21 -> 500 | F51: 500 | G51: 500 | H51: 434 | I51: 324 | J51: 500 | K51: 500 | L51: 500
D52: Load Factor | E52: =Input!$E$11 -> 1 | F52: =Input!$E$11 -> 1 | G52: =Input!$E$11 -> 1 | H52: =Input!$E$11 -> 1 | I52: =Input!$E$11 -> 1 | J52: =Input!$E$11 -> 1 | K52: =Input!$E$11 -> 1 | L52: =Input!$E$11 -> 1
D53: Capital Expenditure per Unit | E53: =E50*E51/E52 -> 2090894.876 | F53: 2090894.876 | G53: 2069985.927 | H53: 1714160.388 | I53: 26210.46655 | J53: 480176.3056 | K53: 480176.3056 | L53: 475374.5425
D54: Total Capital Expenditure | E54: =E53*E46 -> 4181789.752 | F54: 4181789.752 | G54: 4139971.855 | H54: 3428320.777 | I54: 52420.93309 | J54: 960352.6111 | K54: 960352.6111 | L54: 950749.085
D56: Fixed Cost | E56: =E20 -> 0 | F56: 0 | G56: 0 | H56: 0 | I56: 0 | J56: 0 | K56: 0 | L56: 0
D57: Expenditure for Capacity | E57: =E35*E56 -> 0 | F57: 0 | G57: 0 | H57: 0 | I57: 0 | J57: 0 | K57: 0 | L57: 0
D59: CAPEX equipment | E59: =E54+E57 -> 4181789.752 | F59: 4181789.752 | G59: 4139971.855 | H59: 3428320.777 | I59: 52420.93309 | J59: 960352.6111 | K59: 960352.6111 | L59: 950749.085
D60: CAPEX equipment | E60: =(IF(ISNUMBER(E44),E44*E20,0)+E13*E21/Summary!$E$95)*IF(Summary!$E$104="2N",2,1) -> 4181789.752 | F60: =(IF(ISNUMBER(F44),F44*F20,0)+F13*F21/Summary!$E$95)*IF(Summary!$E$104="2N",2,1) -> 4181789.752 | G60: =(IF(ISNUMBER(G44),G44*G20,0)+G13*G21/Summary!$E$95)*IF(Summary!$E$104="2N",2,1) -> 4139971.855 | H60: =(IF(ISNUMBER(H44),H44*H20,0)+H13*H21/Summary!$E$95)*IF(Summary!$E$104="2N",2,1) -> 3428320.777 | I60: =(IF(ISNUMBER(I44),I44*I20,0)+I13*I21/Summary!$E$95)*IF(Summary!$E$104="2N",2,1) -> 52420.93309 | J60: =(IF(ISNUMBER(J44),J44*J20,0)+J13*J21/Summary!$E$95)*IF(Summary!$E$104="2N",2,1) -> 960352.6111 | K60: =(IF(ISNUMBER(K44),K44*K20,0)+K13*K21/Summary!$E$95)*IF(Summary!$E$104="2N",2,1) -> 960352.6111 | L60: =(IF(ISNUMBER(L44),L44*L20,0)+L13*L21/Summary!$E$95)*IF(Summary!$E$104="2N",2,1) -> 950749.085
D62: Cap Exp per m2 for Core and Shell | E62: =Input!$E$35 -> 1800 | F62: =Input!$E$35 -> 1800 | G62: =Input!$E$35 -> 1800 | H62: =Input!$E$35 -> 1800 | I62: =Input!$E$35 -> 1800 | J62: =Input!$E$35 -> 1800 | K62: =Input!$E$35 -> 1800 | L62: =Input!$E$35 -> 1800
D63: Area in m2 | E63: =E48 -> 217.4530671 | F63: 334.5431802 | G63: 331.1977484 | H63: 244.8800555 | I63: 3.235860067 | J63: 49.93833578 | K63: 76.82820889 | L63: 76.0599268
D64: Cap Exp for Core and Shell | E64: =E62*E63 -> 391415.5208 | F64: 602177.7243 | G64: 596155.9471 | H64: 440784.0998 | I64: 5824.548121 | J64: 89889.0044 | K64: 138290.776 | L64: 136907.8682
D65: CAPEX core and shell | E65: =E48*Summary!$E$113 -> 391415.5208 | F65: =F48*Summary!$E$113 -> 602177.7243 | G65: =G48*Summary!$E$113 -> 596155.9471 | H65: =H48*Summary!$E$113 -> 440784.0998 | I65: =I48*Summary!$E$113 -> 5824.548121 | J65: =J48*Summary!$E$113 -> 89889.0044 | K65: =K48*Summary!$E$113 -> 138290.776 | L65: =L48*Summary!$E$113 -> 136907.8682
D67: Cap Exp per m2 for Fit-Out | E67: =Input!$E$36 -> 1800 | F67: =Input!$E$36 -> 1800 | G67: =Input!$E$36 -> 1800 | H67: =Input!$E$36 -> 1800 | I67: =Input!$E$36 -> 1800 | J67: =Input!$E$36 -> 1800 | K67: =Input!$E$36 -> 1800 | L67: =Input!$E$36 -> 1800
D68: Area for Equipment | E68: =E48 -> 217.4530671 | F68: 334.5431802 | G68: 331.1977484 | H68: 244.8800555 | I68: 3.235860067 | J68: 49.93833578 | K68: 76.82820889 | L68: 76.0599268
D69: Cap Exp for Fit-Out | E69: =E67*E68 -> 391415.5208 | F69: 602177.7243 | G69: 596155.9471 | H69: 440784.0998 | I69: 5824.548121 | J69: 89889.0044 | K69: 138290.776 | L69: 136907.8682
D70: CAPEX fit-out | E70: =E48*Summary!$E$114 -> 391415.5208 | F70: =F48*Summary!$E$114 -> 602177.7243 | G70: =G48*Summary!$E$114 -> 596155.9471 | H70: =H48*Summary!$E$114 -> 440784.0998 | I70: =I48*Summary!$E$114 -> 5824.548121 | J70: =J48*Summary!$E$114 -> 89889.0044 | K70: =K48*Summary!$E$114 -> 138290.776 | L70: =L48*Summary!$E$114 -> 136907.8682
D72: CAPEX | E72: =E70+E65+E60 -> 4964620.794 | F72: 5386145.201 | G72: 5332283.749 | H72: 4309888.976 | I72: 64070.02934 | J72: 1140130.62 | K72: 1236934.163 | L72: 1224564.821
C74: Operating Expense for Equipment
D75: Average Load | E75: =E12 -> 4181.789752 | F75: 4181.789752 | G75: 4139.971855 | H75: 3949.678314 | I75: 80.89650169 | J75: 105.4832827 | K75: 105.4832827 | L75: 104.4284499
D76: Power Tariff | E76: =Input!$E$34 -> 0.2 | F76: =Input!$E$34 -> 0.2 | G76: =Input!$E$34 -> 0.2 | H76: =Input!$E$34 -> 0.2 | I76: =Input!$E$34 -> 0.2 | J76: =Input!$E$34 -> 0.2 | K76: =Input!$E$34 -> 0.2 | L76: =Input!$E$34 -> 0.2
D77: Hours | E77: =Input!$E$49 -> 8760 | F77: =Input!$E$49 -> 8760 | G77: =Input!$E$49 -> 8760 | H77: =Input!$E$49 -> 8760 | I77: =Input!$E$49 -> 8760 | J77: =Input!$E$49 -> 8760 | K77: =Input!$E$49 -> 8760 | L77: =Input!$E$49 -> 8760
D78: Power Opexp from Average Load | E78: =E12*E76*E77 -> 7326495.646 | F78: 7326495.646 | G78: 7253230.689 | H78: 6919836.406 | I78: 141730.671 | J78: 184806.7114 | K78: 184806.7114 | L78: 182958.6443
D80: Equipment Maintenance as Percent of Cap Exp | E80: =Input!$E$40 -> 0.03 | F80: =Input!$E$40 -> 0.03 | G80: =Input!$E$40 -> 0.03 | H80: =Input!$E$40 -> 0.03 | I80: =Input!$E$40 -> 0.03 | J80: =Input!$E$40 -> 0.03 | K80: =Input!$E$40 -> 0.03 | L80: =Input!$E$40 -> 0.03
D81: Equipment Capital Expenditure | E81: =E60 -> 4181789.752 | F81: 4181789.752 | G81: 4139971.855 | H81: 3428320.777 | I81: 52420.93309 | J81: 960352.6111 | K81: 960352.6111 | L81: 950749.085
D82: Equipment Operation and Maintenance | E82: =E80*E81 -> 125453.6926 | F82: 125453.6926 | G82: 124199.1556 | H82: 102849.6233 | I82: 1572.627993 | J82: 28810.57833 | K82: 28810.57833 | L82: 28522.47255
D84: Core and Shell Maintenance as Percent of Cap Exp | E84: =Summary!$E$117 -> 0.03 | F84: =Summary!$E$117 -> 0.03 | G84: =Summary!$E$117 -> 0.03 | H84: =Summary!$E$117 -> 0.03 | I84: =Summary!$E$117 -> 0.03 | J84: =Summary!$E$117 -> 0.03 | K84: =Summary!$E$117 -> 0.03 | L84: =Summary!$E$117 -> 0.03
D85: Core and Shell Capital Expenditure | E85: =E64 -> 391415.5208 | F85: 602177.7243 | G85: 596155.9471 | H85: 440784.0998 | I85: 5824.548121 | J85: 89889.0044 | K85: 138290.776 | L85: 136907.8682
D86: Core and Shell Operation and Maintenance | E86: =E84*E85 -> 11742.46562 | F86: 18065.33173 | G86: 17884.67841 | H86: 13223.523 | I86: 174.7364436 | J86: 2696.670132 | K86: 4148.72328 | L86: 4107.236047
D88: Total Non-Fuel Operation and Maintenance | E88: =E82+E86 -> 137196.1582 | F88: 143519.0243 | G88: 142083.8341 | H88: 116073.1463 | I88: 1747.364436 | J88: 31507.24847 | K88: 32959.30161 | L88: 32629.7086
D89: Total Non-Fuel Operation and Maintenance | E89: =E59*Summary!$E$118+E64*Summary!$E$117 -> 137196.1582 | F89: =F59*Summary!$E$118+F64*Summary!$E$117 -> 143519.0243 | G89: =G59*Summary!$E$118+G64*Summary!$E$117 -> 142083.8341 | H89: =H59*Summary!$E$118+H64*Summary!$E$117 -> 116073.1463 | I89: =I59*Summary!$E$118+I64*Summary!$E$117 -> 1747.364436 | J89: =J59*Summary!$E$118+J64*Summary!$E$117 -> 31507.24847 | K89: =K59*Summary!$E$118+K64*Summary!$E$117 -> 32959.30161 | L89: =L59*Summary!$E$118+L64*Summary!$E$117 -> 32629.7086
D90: OPEX maintenance | E90: =E60*Summary!$E$118+E65*Summary!$E$117 -> 137196.1582 | F90: =F60*Summary!$E$118+F65*Summary!$E$117 -> 143519.0243 | G90: =G60*Summary!$E$118+G65*Summary!$E$117 -> 142083.8341 | H90: =H60*Summary!$E$118+H65*Summary!$E$117 -> 116073.1463 | I90: =I60*Summary!$E$118+I65*Summary!$E$117 -> 1747.364436 | J90: =J60*Summary!$E$118+J65*Summary!$E$117 -> 31507.24847 | K90: =K60*Summary!$E$118+K65*Summary!$E$117 -> 32959.30161 | L90: =L60*Summary!$E$118+L65*Summary!$E$117 -> 32629.7086
D92: OPEX total | E92: ='Back-up Power Calculate'!E90+'Heat Recovery Cooling Calculate'!E99+'Heat Recovery Cooling Calculate'!E100+'Back-up Power Calculate'!E78 -> 7463691.804 | F92: ='Back-up Power Calculate'!F90+'Heat Recovery Cooling Calculate'!F99+'Heat Recovery Cooling Calculate'!F100+'Back-up Power Calculate'!F78 -> 7470014.67 | G92: ='Back-up Power Calculate'!G90+'Heat Recovery Cooling Calculate'!G99+'Heat Recovery Cooling Calculate'!G100+'Back-up Power Calculate'!G78 -> 7395314.523 | H92: ='Back-up Power Calculate'!H90+'Heat Recovery Cooling Calculate'!H99+'Heat Recovery Cooling Calculate'!H100+'Back-up Power Calculate'!H78 -> 7035909.552 | I92: ='Back-up Power Calculate'!I90+'Heat Recovery Cooling Calculate'!I99+'Heat Recovery Cooling Calculate'!I100+'Back-up Power Calculate'!I78 -> 143478.0354 | J92: ='Back-up Power Calculate'!J90+'Heat Recovery Cooling Calculate'!J99+'Heat Recovery Cooling Calculate'!J100+'Back-up Power Calculate'!J78 -> 216313.9598 | K92: ='Back-up Power Calculate'!K90+'Heat Recovery Cooling Calculate'!K99+'Heat Recovery Cooling Calculate'!K100+'Back-up Power Calculate'!K78 -> 217766.013 | L92: ='Back-up Power Calculate'!L90+'Heat Recovery Cooling Calculate'!L99+'Heat Recovery Cooling Calculate'!L100+'Back-up Power Calculate'!L78 -> 215588.3529
D93: OPEX | E93: =E92 -> 7463691.804 | F93: 7470014.67 | G93: 7395314.523 | H93: 7035909.552 | I93: 143478.0354 | J93: 216313.9598 | K93: 217766.013 | L93: 215588.3529
B96: Other
D100: Variable that Goes Nowhere | E100: =IF('IT Load Datarooms Calculate'!E19>0.000000000001,'IT Load Datarooms Calculate'!E21/'IT Load Datarooms Calculate'!E19,) -> 0.02811643454 | F100: =IF('IT Load Datarooms Calculate'!F19>0.000000000001,'IT Load Datarooms Calculate'!F21/'IT Load Datarooms Calculate'!F19,) -> 0.04545454545 | G100: =IF('IT Load Datarooms Calculate'!G19>0.000000000001,'IT Load Datarooms Calculate'!G21/'IT Load Datarooms Calculate'!G19,) -> 0 | H100: =IF('IT Load Datarooms Calculate'!H19>0.000000000001,'IT Load Datarooms Calculate'!H21/'IT Load Datarooms Calculate'!H19,) -> 0
D103: CAPEX total | E103: =SUM(E60:E70) -> 5751486.742 | F103: 6594769.736 | G103: 6528858.038 | H103: 5195546.936 | I103: 79325.5973 | J103: 1323608.505 | K103: 1517269.372 | L103: 1502132.678
E104: =IF(E12>0,E14/E12,) -> 0 | F104: =IF(F12>0,F14/F12,) -> 0.01 | G104: =IF(G12>0,G14/G12,) -> 0.01 | H104: =IF(H12>0,H14/H12,) -> 0.01 | I104: =IF(I14>0,I12/I14,) -> 22 | J104: =IF(J12>0,J14/J12,) -> 0 | K104: =IF(K12>0,K14/K12,) -> 0.01 | L104: =IF(L12>0,L14/L12,) -> 0.01

Sheet Heat Recovery Cooling Calculate
B2: Cooling
D3: Water
E4: HRU, Air | H4: SE RD Air | I4: HRU, Liquid | L4: SE RD Liquid
E5: Pump | F5: Compressor | G5: FreeCooler | H5: Fans | I5: Pump | J5: Compressor | K5: FreeCooler | L5: Fans
D7: Load/Overhead Power | E7: =IF(E15>0.000000000001,E13/E15,) -> 405 | F7: 4 | G7: 500 | H7: 48.9624 | I7: 405 | J7: 0 | K7: 500 | L7: 50
D8: Code | E8: ='Detail Calculations'!AH57 -> e_crit_ups-hru,lt | F8: ='Detail Calculations'!AH59 -> e_hru_comp,lt | G8: ='Detail Calculations'!AG61 -> e_hru_fc,lt | H8: ='Detail Calculations'!AH63 -> q_hru_comp-fs,lt | I8: ='Detail Calculations'!AH68 -> e_crit_ups-hru,ht | J8: ='Detail Calculations'!AH70 -> e_hru_comp,ht | K8: ='Detail Calculations'!AG72 -> e_hru_fc,ht | L8: ='Detail Calculations'!AH74 -> q_hru_comp-fs,ht
L9: ='Detail Calculations'!AG74 -> e_hru_fs,ht
C10: Water and Other Costs for Cooling
D11: Type | E11: =INDEX(c_configs[],MATCH('IT Load Datarooms Calculate'!AV570,c_configs[Cooling],0),MATCH('IT Load Datarooms Calculate'!$AY$569,c_configs[#Headers],0)) -> SE RD65 | F11: =INDEX(c_configs[],MATCH('IT Load Datarooms Calculate'!AW570,c_configs[Cooling],0),MATCH('IT Load Datarooms Calculate'!$AY$569,c_configs[#Headers],0)) -> SE RD65 | G11: =INDEX(c_configs[],MATCH('IT Load Datarooms Calculate'!AX570,c_configs[Cooling],0),MATCH('IT Load Datarooms Calculate'!$AY$569,c_configs[#Headers],0)) -> SE RD65 | H11: =INDEX(c_configs[],MATCH('IT Load Datarooms Calculate'!AY570,c_configs[Cooling],0),MATCH('IT Load Datarooms Calculate'!$AY$569,c_configs[#Headers],0)) -> SE RD65 | I11: =INDEX(c_configs[],MATCH('IT Load Datarooms Calculate'!AZ570,c_configs[Cooling],0),MATCH('IT Load Datarooms Calculate'!$BC$569,c_configs[#Headers],0)) -> SE RD65 | J11: =INDEX(c_configs[],MATCH('IT Load Datarooms Calculate'!BA570,c_configs[Cooling],0),MATCH('IT Load Datarooms Calculate'!$BC$569,c_configs[#Headers],0)) -> SE RD65 | K11: =INDEX(c_configs[],MATCH('IT Load Datarooms Calculate'!BB570,c_configs[Cooling],0),MATCH('IT Load Datarooms Calculate'!$BC$569,c_configs[#Headers],0)) -> SE RD65 | L11: =INDEX(c_configs[],MATCH('IT Load Datarooms Calculate'!BC570,c_configs[Cooling],0),MATCH('IT Load Datarooms Calculate'!$BC$569,c_configs[#Headers],0)) -> SE RD65
D12: Peak load | E12: =_xlfn.XLOOKUP(E$30,'Detail Calculations'!$S:$S,'Detail Calculations'!$T:$T,0,0) -> 3359.275925 | F12: =_xlfn.XLOOKUP(F$30,'Detail Calculations'!$S:$S,'Detail Calculations'!$T:$T,0,0) -> 3367.570434 | G12: =_xlfn.XLOOKUP(G$30,'Detail Calculations'!$S:$S,'Detail Calculations'!$T:$T,0,0) -> 3367.570434 | H12: =MAX(_xlfn.XLOOKUP(H$30,'Detail Calculations'!S:S,'Detail Calculations'!T:T,0,0),_xlfn.XLOOKUP(H8,'Detail Calculations'!S:S,'Detail Calculations'!T:T,0,0)) -> 4209.463042 | I12: =_xlfn.XLOOKUP(I$30,'Detail Calculations'!$S:$S,'Detail Calculations'!$T:$T,0,0) -> 686.1336482 | J12: =_xlfn.XLOOKUP(J$30,'Detail Calculations'!$S:$S,'Detail Calculations'!$T:$T,0,0) -> 0 | K12: =_xlfn.XLOOKUP(K$30,'Detail Calculations'!$S:$S,'Detail Calculations'!$T:$T,0,0) -> 687.8278054 | L12: =MAX(_xlfn.XLOOKUP(L30,'Detail Calculations'!S:S,'Detail Calculations'!T:T,0,0),_xlfn.XLOOKUP(L8,'Detail Calculations'!S:S,'Detail Calculations'!T:T,0,0)) -> 689.203461
D13: Annual average load | E13: =_xlfn.XLOOKUP(E$30,'Detail Calculations'!$S:$S,'Detail Calculations'!$U:$U,0,0) -> 3359.275925 | F13: =_xlfn.XLOOKUP(F$30,'Detail Calculations'!$S:$S,'Detail Calculations'!$U:$U,0,0) -> 55.3573222 | G13: =_xlfn.XLOOKUP(G$30,'Detail Calculations'!$S:$S,'Detail Calculations'!$U:$U,0,0) -> 3312.213112 | H13: =VLOOKUP(H30,'Detail Calculations'!$S$12:$X$77,3,FALSE)+VLOOKUP(H8,'Detail Calculations'!$S$12:$X$77,3,FALSE) -> 3388.034191 | I13: =_xlfn.XLOOKUP(I$30,'Detail Calculations'!$S:$S,'Detail Calculations'!$U:$U,0,0) -> 686.1336482 | J13: =_xlfn.XLOOKUP(J$30,'Detail Calculations'!$S:$S,'Detail Calculations'!$U:$U,0,0) -> 0 | K13: =_xlfn.XLOOKUP(K$30,'Detail Calculations'!$S:$S,'Detail Calculations'!$U:$U,0,0) -> 687.8278054 | L13: =_xlfn.XLOOKUP(L30,'Detail Calculations'!S:S,'Detail Calculations'!U:U,0,0)+_xlfn.XLOOKUP(L8,'Detail Calculations'!S:S,'Detail Calculations'!U:U,0,0) -> 689.203461
D14: Average Load | E14: =E13 -> 3359.275925 | F14: 55.3573222 | G14: 3312.213112 | H14: 3388.034191 | I14: 686.1336482 | J14: 0 | K14: 687.8278054 | L14: 689.203461
D15: Annual average overhead | E15: =_xlfn.XLOOKUP(E$8,'Detail Calculations'!$S:$S,'Detail Calculations'!$U:$U,0,0) -> 8.294508458 | F15: =_xlfn.XLOOKUP(F$8,'Detail Calculations'!$S:$S,'Detail Calculations'!$U:$U,0,0) -> 13.83933055 | G15: =_xlfn.XLOOKUP(G$8,'Detail Calculations'!$S:$S,'Detail Calculations'!$U:$U,0,0) -> 6.624426223 | H15: =_xlfn.XLOOKUP(H$8,'Detail Calculations'!$S:$S,'Detail Calculations'!$U:$U,0,0) -> 69.19665275 | I15: =_xlfn.XLOOKUP(I$8,'Detail Calculations'!$S:$S,'Detail Calculations'!$U:$U,0,0) -> 1.694157156 | J15: =_xlfn.XLOOKUP(J$8,'Detail Calculations'!$S:$S,'Detail Calculations'!$U:$U,0,0) -> 0 | K15: =_xlfn.XLOOKUP(K$8,'Detail Calculations'!$S:$S,'Detail Calculations'!$U:$U,0,0) -> 1.375655611 | L15: =_xlfn.XLOOKUP(L9,'Detail Calculations'!S:S,'Detail Calculations'!U:U,0,0) -> 13.78406922
D16: Overhead | E16: =E15 -> 8.294508458 | F16: 13.83933055 | G16: 6.624426223 | H16: 69.19665275 | I16: 1.694157156 | J16: 0 | K16: 1.375655611 | L16: 13.78406922
D18: Area | H18: =H67 -> 147.3312065 | L18: =L67 -> 24.12212113
D19: Water | H19: =H20 -> 41550.85131 | L19: =L20 -> 8452.391245
D20: Water usage | H20: =IF(AND(ISNUMBER(H66),H28>0),H28*H66,H29*H13)*Summary!$E$127/1000 -> 41550.85131 | L20: =IF(AND(ISNUMBER(L66),L28>0),L28*L66,L29*L13)*Summary!$E$127/1000 -> 8452.391245
E22: =E11 -> SE RD65 | F22: SE RD65 | G22: SE RD65 | H22: SE RD65 | I22: SE RD65 | J22: SE RD65 | K22: SE RD65 | L22: SE RD65
D23: Proportional area from configuration | H23: =_xlfn.XLOOKUP(H$22,'Cooling Configure'!$13:$13,'Cooling Configure'!16:16,0,0) -> 0.035 | L23: =_xlfn.XLOOKUP(L$22,'Cooling Configure'!$13:$13,'Cooling Configure'!16:16,0,0) -> 0.035
D24: Fixed cost | H24: =_xlfn.XLOOKUP(H$22,'Cooling Configure'!$13:$13,'Cooling Configure'!17:17,0,0) -> 0 | L24: =_xlfn.XLOOKUP(L$22,'Cooling Configure'!$13:$13,'Cooling Configure'!17:17,0,0) -> 0
D25: COP to Detail Calculations | E25: =_xlfn.XLOOKUP(E22,'Cooling Configure'!$52:$52,'Cooling Configure'!59:59) -> 405 | F25: =_xlfn.XLOOKUP($F$22,'Cooling Configure'!26:26,'Cooling Configure'!33:33) -> 4 | G25: =_xlfn.XLOOKUP(G22,'Cooling Configure'!$39:$39,'Cooling Configure'!46:46) -> 500 | H25: =_xlfn.XLOOKUP(H$22,'Cooling Configure'!$13:$13,'Cooling Configure'!20:20,0,0) -> 50 | I25: =_xlfn.XLOOKUP(I22,'Cooling Configure'!52:52,'Cooling Configure'!59:59) -> 405 | J25: =_xlfn.XLOOKUP($F$22,'Cooling Configure'!26:26,'Cooling Configure'!33:33) -> 4 | K25: =_xlfn.XLOOKUP(K22,'Cooling Configure'!$39:$39,'Cooling Configure'!46:46) -> 500 | L25: =_xlfn.XLOOKUP(L$22,'Cooling Configure'!$13:$13,'Cooling Configure'!20:20,0,0) -> 50
D26: Heat rejection to air-side
D27: Critical workload efficiency
D28: Fixed water usage from Heat Recovery Input | H28: =_xlfn.XLOOKUP(H22,'Cooling Configure'!13:13,'Cooling Configure'!23:23) -> 0 | L28: =_xlfn.XLOOKUP(L22,'Cooling Configure'!13:13,'Cooling Configure'!23:23) -> 0
D29: Proportional water usage from Heat Recovery | H29: =_xlfn.XLOOKUP(H22,'Cooling Configure'!13:13,'Cooling Configure'!24:24,0,0) -> 1.4 | L29: =_xlfn.XLOOKUP(L22,'Cooling Configure'!13:13,'Cooling Configure'!24:24,0,0) -> 1.4
E30: ='Detail Calculations'!AG57 -> q_drms-hru,lt | F30: ='Detail Calculations'!AG59 -> q_hru_eco-comp,lt | G30: ='Detail Calculations'!AH61 -> q_hru_eco-fc,lt | H30: ='Detail Calculations'!AI63 -> q_hru_fc-fs,lt | I30: ='Detail Calculations'!AG68 -> q_drms-hru,ht | J30: ='Detail Calculations'!AG70 -> q_hru_eco-comp,ht | K30: ='Detail Calculations'!AH72 -> q_hru_eco-fc,ht | L30: ='Detail Calculations'!AI74 -> q_hru_fc-fs,ht
D32: Heat recovery potential | H32: 0 | L32: =_xlfn.XLOOKUP('Detail Calculations'!$AI$74,'Detail Calculations'!S:S,'Detail Calculations'!U:U,0,0)+_xlfn.XLOOKUP(L8,'Detail Calculations'!S:S,'Detail Calculations'!U:U,0,0) -> 689.203461
D33: Number of Units for Capacity | H33: =ISNUMBER(H66) -> FALSE | L33: =ISNUMBER(L66) -> FALSE
D34: Fixed Water Usage | H34: =H28 -> 0 | L34: =L28 -> 0
D35: Fixed Water Usage x Capacity | H35: =H34*H33 -> 0 | L35: =L34*L33 -> 0
D37: Proportional Water Usage | H37: =H29 -> 1.4 | L37: =L29 -> 1.4
D38: Annual Average Load | H38: =H13 -> 3388.034191 | L38: =L13 -> 689.203461
D39: Hours | H39: =Input!E$49 -> 8760 | L39: =Input!I$49 -> 8760
D40: Water Usage per Year | H40: =H37*H38*H39/1000 -> 41550.85131 | L40: =L37*L38*L39/1000 -> 8452.391245
D42: Annual Average Load | H42: =H13 -> 3388.034191 | L42: =L13 -> 689.203461
D43: Hours | H43: =Input!$E$49 -> 8760 | L43: =Input!$E$49 -> 8760
D44: Electricity Cost | H44: =Input!$E$34 -> 0.2 | L44: =Input!$E$34 -> 0.2
D45: OPEX power for Chiller/Heat Recovery | H45: =H42*H43*H44 -> 5935835.902 | L45: =L42*L43*L44 -> 1207484.464
D46: OPEX power | H46: =H13*Summary!$E$127*Summary!$E$112 -> 5935835.902 | L46: =L13*Summary!$E$127*Summary!$E$112 -> 1207484.464
D48: Cap Exp Equipment | H48: =H81 -> 2104731.521 | L48: =L81 -> 344601.7305
D49: Equipment Maintenance Percent | H49: =Input!$E$40 -> 0.03 | L49: =Input!$E$40 -> 0.03
D50: Cap Exp Core and Shell | H50: =H86 -> 265196.1717 | L50: =L86 -> 43419.81804
D51: Core and Shell Percent | H51: =Input!$E$39 -> 0.03 | L51: =Input!E39 -> 0.03
D52: OPEX for Cooling - maintenance | H52: =H48*H49+H50*H51 -> 71097.83079 | L52: =L81*Summary!$E$118+L86*Summary!$E$117 -> 11640.64646
D54: Water Annual Usage | H54: =H20 -> 41550.85131 | L54: =L20 -> 8452.391245
D55: Water unit cost | H55: =Input!$E$37 -> 1 | L55: =Input!$E$37 -> 1
D56: OPEX: water cost, equipment | H56: =H20*H55 -> 41550.85131 | L56: =L20*L55 -> 8452.391245
D58: Heat Recovery Capacity | H58: =-H32 -> 0 | L58: =-L32 -> -689.203461
D59: Value of Heat Recovery | H59: =Input!$E$38 -> 0 | L59: =Input!$E$38 -> 0
D60: Hours | H60: =Input!E49 -> 8760 | L60: =Input!I49 -> 8760
D61: OPEX Credit: heat recovery revenue | H61: =-H32*Summary!$E$116*Summary!$E$127 -> 0 | L61: =-L32*Summary!$E$116*Summary!$E$127 -> 0
D63: Total Cooling OPEX | H63: =H46+H52+H56+H61 -> 6048484.584 | L63: =L46+L52+L56+L61 -> 1227577.501
C65: Capital Expenditures for Cooling
D66: Number | H66: =IF(H70>0,ROUNDUP(H12/H70/Summary!$E$95,0)*_xlfn.IFS(OR(Summary!$E$107="N",Summary!$E$107="N+1"),1,Summary!$E$107="2N",2)+IF(Summary!$E$107="N+1",1,0),"NA") -> NA | L66: =IF(L70>0,ROUNDUP(L12/L70/Summary!$E$95,0)*_xlfn.IFS(OR(Summary!$E$107="N",Summary!$E$107="N+1"),1,Summary!$E$107="2N",2)+IF(Summary!$E$107="N+1",1,0),"NA") -> NA
D67: Area (based on peak) | H67: =(IF(ISNUMBER(H66),H68*H66,0)+H23*H12/Summary!$E$95)*IF(Summary!$E$107="2N",2,1) -> 147.3312065 | L67: =(IF(ISNUMBER(L66),L68*L66,0)+L23*L12/Summary!$E$95)*IF(Summary!$E$107="2N",2,1) -> 24.12212113
D68: Fixed area | H68: =_xlfn.XLOOKUP(H$22,'Cooling Configure'!$13:$13,'Cooling Configure'!15:15,0,0) -> 0 | L68: =_xlfn.XLOOKUP(L$22,'Cooling Configure'!$13:$13,'Cooling Configure'!15:15,0,0) -> 0
D70: Capacity | H70: =_xlfn.XLOOKUP(H$22,'Cooling Configure'!$13:$13,'Cooling Configure'!14:14,0,0) -> 0 | L70: =_xlfn.XLOOKUP(L$22,'Cooling Configure'!$13:$13,'Cooling Configure'!14:14,0,0) -> 0
D72: Number for Capacity | H72: =H66 -> NA | L72: =L66 -> NA
D73: Number for Capacity | H73: =IFERROR(H72*H68,0) -> 0 | L73: =IFERROR(L72*L68,0) -> 0
D74: Peak Load | H74: =H12 -> 4209.463042 | L74: =L12 -> 689.203461
D75: Proportional cost per kW | H75: =_xlfn.XLOOKUP(H$22,'Cooling Configure'!$13:$13,'Cooling Configure'!18:18,0,0) -> 500 | L75: =_xlfn.XLOOKUP(L$22,'Cooling Configure'!$13:$13,'Cooling Configure'!18:18,0,0) -> 500
D76: Load Factor | H76: =Input!$E$11 -> 1 | L76: =Input!$E$11 -> 1
D77: Redundancy | H77: =Input!E$28 -> N+1 | L77: =Input!I$28 -> 0
D78: Units Applied | H78: =IF(H77="2N",2,1) -> 1 | L78: =IF(L77="2N",2,1) -> 1
D80: CAPEX - Cooling equipment | H80: =(H73+H75*H74/H76)*H78 -> 2104731.521 | L80: =(L73+L75*L74/L76)*L78 -> 344601.7305
D81: CAPEX - Cooling equipment | H81: =(IF(ISNUMBER(H66),H66*H24,0)+H12*H75/Summary!$E$95)*IF(Summary!$E$107="2N",2,1) -> 2104731.521 | L81: =(IF(ISNUMBER(L66),L66*L24,0)+L12*L75/Summary!$E$95)*IF(Summary!$E$107="2N",2,1) -> 344601.7305
D83: Proportional losses
D84: Cap Exp per m2 of core and shell | H84: =Input!$E$35 -> 1800 | L84: =Input!$E$35 -> 1800
D85: Area | H85: =H67 -> 147.3312065 | L85: =L67 -> 24.12212113
D86: CAPEX core and shell | H86: =H84*H85 -> 265196.1717 | L86: =L84*L85 -> 43419.81804
D88: Cap Exp per m2 - Fit-Out | H88: =Input!$E$36 -> 1800 | L88: =Input!$E$36 -> 1800
D89: Fit-Out Area | H89: =H85 -> 147.3312065 | L89: =L85 -> 24.12212113
D90: CAPEX fit-out | H90: =H88*H89 -> 265196.1717 | L90: =L88*L89 -> 43419.81804
D92: CAPEX total | H92: =H80+H86+H90 -> 2635123.865 | L92: =L80+L86+L90 -> 431441.3666
D93: CAPEX | H93: =H92 -> 2635123.865 | L93: =L92 -> 431441.3666
D95: OPEX | H95: =H63 -> 6048484.584 | L95: =L63 -> 1227577.501
E97: =IF(ISNUMBER('IT Load Datarooms Calculate'!E86),'IT Load Datarooms Calculate'!E86,0)+'IT Load Datarooms Calculate'!E87*'IT Load Datarooms Calculate'!E15/Summary!$E$95 -> 334.6833333
D99: OPEX: water cost, equipment
D100: OPEX: heat recovery revenue

Sheet Summary
B2: Summary
D3: Resource systems | E3: PowerCrit | F3: PowerMech | G3: Datarooms | H3: HRUs
D4: Peak load | E4: ='Back-up Power Calculate'!F13 -> 4181.789752 | F4: =SUM('Back-up Power Calculate'!K13) -> 960.3526111 | G4: =SUM('IT Load Datarooms Calculate'!E15:H15) -> 3900.192865 | H4: ='Heat Recovery Cooling Calculate'!H12+'Heat Recovery Cooling Calculate'!L12 -> 4898.666503
D5: Average load | E5: ='Back-up Power Calculate'!F12 -> 4181.789752 | F5: =SUM('Back-up Power Calculate'!K12) -> 105.4832827 | G5: =SUM('IT Load Datarooms Calculate'!E19:H19) -> 3900.192865 | H5: ='Heat Recovery Cooling Calculate'!H13+'Heat Recovery Cooling Calculate'!L13 -> 4077.237652
D6: Average overhead | E6: =SUM('Back-up Power Calculate'!E14:I14) -> 126.3915129 | F6: =SUM('Back-up Power Calculate'!J14:L14) -> 2.099117327 | G6: =SUM('IT Load Datarooms Calculate'!E21:H21) -> 145.2167084 | H6: =SUM('Heat Recovery Cooling Calculate'!E15:H15,'Heat Recovery Cooling Calculate'!I15:L15) -> 114.8088
D8: Area | E8: =SUM('Back-up Power Calculate'!E47:I47) -> 1131.309911 | F8: =SUM('Back-up Power Calculate'!J47:L47) -> 202.8264715 | G8: =SUM('IT Load Datarooms Calculate'!E91:H91) -> 1029.403333 | H8: =SUM('Heat Recovery Cooling Calculate'!E18:L18) -> 171.4533276
D9: Water usage: equipment | H9: =SUM('Heat Recovery Cooling Calculate'!E19:L19) -> 50003.24256 | BW9: 2
D10: Heat recovery rate potential | H10: =SUM('Heat Recovery Cooling Calculate'!E32:L32) -> 689.203461 | BW10: =BW9+1 -> 3
D11: Overhead power | E11: =SUM('Back-up Power Calculate'!E15:I15) -> 126.3915129 | F11: =SUM('Back-up Power Calculate'!J15:L15) -> 2.099117327 | G11: =SUM('IT Load Datarooms Calculate'!E22:H22) -> 145.2167084 | H11: =SUM('Heat Recovery Cooling Calculate'!E16:L16) -> 114.8088 | BW11: 4
BW12: 5
D13: Financial systems | E13: PowerCrit | F13: PowerMech | G13: Datarooms | H13: HRUs | BW13: 6
D14: CAPEX: equipment | E14: =SUM('Back-up Power Calculate'!E60:I60) -> 15984293.07 | F14: =SUM('Back-up Power Calculate'!J60:L60) -> 2871454.307 | G14: =SUM('IT Load Datarooms Calculate'!E104:H104) -> 3548919.697 | H14: =SUM('Heat Recovery Cooling Calculate'!E81:L81) -> 2449333.252 | BW14: 7
D15: CAPEX: core and shell | E15: =SUM('Back-up Power Calculate'!E65:I65) -> 2036357.84 | F15: =SUM('Back-up Power Calculate'!J65:L65) -> 365087.6486 | G15: =SUM('IT Load Datarooms Calculate'!E110:H110) -> 1852926 | H15: =SUM('Heat Recovery Cooling Calculate'!E86:L86) -> 308615.9897 | BW15: 8
D16: CAPEX: fit-out | E16: =SUM('Back-up Power Calculate'!E70:I70) -> 2036357.84 | F16: =SUM('Back-up Power Calculate'!J70:L70) -> 365087.6486 | G16: =SUM('IT Load Datarooms Calculate'!E114:H114) -> 1852926 | H16: =SUM('Heat Recovery Cooling Calculate'!E90:L90) -> 308615.9897 | BW16: 9
D17: CAPEX total | E17: =SUM('Back-up Power Calculate'!E103:I103) -> 24149987.05 | F17: =SUM('Back-up Power Calculate'!J103:L103) -> 4343010.555 | G17: =SUM('IT Load Datarooms Calculate'!E116:H116) -> 7254771.697 | H17: =SUM('Heat Recovery Cooling Calculate'!E92:L92) -> 3066565.231 | BW17: 10
D18: OPEX: electrical cost | E18: =SUM('Back-up Power Calculate'!E78:I78) -> 28967789.06 | F18: =SUM('Back-up Power Calculate'!J78:L78) -> 552572.067 | G18: =SUM('IT Load Datarooms Calculate'!E122:H122) -> 6833137.9 | H18: =SUM('Heat Recovery Cooling Calculate'!E46:L46) -> 7143320.366 | BW18: 11
D19: OPEX: maintenance cost | E19: =SUM('Back-up Power Calculate'!E90:I90) -> 540619.5273 | F19: =SUM('Back-up Power Calculate'!J90:L90) -> 97096.25868 | G19: =SUM('IT Load Datarooms Calculate'!E132:H132) -> 162055.3709 | H19: =SUM('Heat Recovery Cooling Calculate'!E52:L52) -> 82738.47724 | BW19: 12
D20: OPEX: water cost, equipment | H20: =SUM('Heat Recovery Cooling Calculate'!E56:L56) -> 50003.24256
D21: OPEX: heat recovery revenue | H21: =SUM('Heat Recovery Cooling Calculate'!E61:L61) -> 0
D22: OPEX total | E22: =SUM('Back-up Power Calculate'!E92:I92) -> 29508408.59 | F22: =SUM('Back-up Power Calculate'!J92:L92) -> 649668.3257 | G22: =SUM('IT Load Datarooms Calculate'!E133:H133) -> 6995193.271 | H22: =SUM('Heat Recovery Cooling Calculate'!E63:L63) -> 7276062.085
D24: ITE power L1 (UPS outputs) | E24: ='Back-up Power Calculate'!H12-'Back-up Power Calculate'!H14 -> 3910.181531 | G24: ='Back-up Power Calculate'!H12 -> 3949.678314 | H24: ='Back-up Power Calculate'!H14 -> 39.49678314
D25: ITE power L2 (PDU outputs) | E25: =SUM('IT Load Datarooms Calculate'!E60:H60) -> 3856.565657
D27: ITE power L4 (node inputs) | E27: =SUM('IT Load Datarooms Calculate'!E62:H62) -> 2868.9
D28: Workload density | E28: =E27/E40 -> 2.786954255
C30: Losses
D31: Critical | E31: =E6 -> 126.3915129
D32: Datarooms | E32: =G6 -> 145.2167084
D33: Mech | E33: =F6+H6 -> 116.9079173
C34: Water usage
D35: utility | E35: ='IT Load Datarooms Calculate'!E52*E120/1000*E127 -> 67601.72121
D36: equipment | E36: =SUM(E9:H9) -> 50003.24256
C38: Floor area
D39: facilities | E39: =SUM(E8:F8,H8) -> 1505.58971
D40: datarooms | E40: =G8 -> 1029.403333
D41: overall | E41: =0.7*(SQRT(E39)+SQRT(E40))^2 -> 3517.401832
D43: Heat recovery rate | E43: =SUM(E10:H10) -> 689.203461
D44: CO2e: utility | E44: ='IT Load Datarooms Calculate'!E52*E119*E127/1000000 -> 13858.35285
D47: Financial NPV analysis
D48: Total Capex | F48: =SUM(F73:F77) -> 33979975.28
D51: Capital Expenditures with 6-year Depreciation | E51: Data Equipment | F51: =F75 -> 3548919.697
D53: Capital Expenditure with 18 year Depreciation | E53: power equip. | F53: =F73 -> 18855747.38
D54: Capital Expenditure with 18 year Depreciation | E54: cooling equip. | F54: =F74 -> 2449333.252
D55: Capital Expenditure with 18 year Depreciation | E55: core and shell | F55: =F76 -> 4562987.478
D56: Capital Expenditure with 18 year Depreciation | E56: fit-out | F56: =F77 -> 4562987.478
D57: Total with 18 year | F57: =SUM(F53:F56) -> 30431055.58
D58: =CONCATENATE("Capex on ",E121," year depreciation schedule") -> Capex on 18 year depreciation schedule | F58: =F73+F74+F76+F77 -> 30431055.58
D59: =CONCATENATE("Capex on ",E122," year depreciation schedule") -> Capex on 6 year depreciation schedule | F59: =F75 -> 3548919.697
D61: Initial Capex Investment (Should be Equity Investment) | F61: =IF(E126=0,-F48,-F48*(1-E125)) -> -10193992.58 | G61: =E126 -> 15 | H61: =E125 -> 0.7
D62: Capex Annual Loan Payments | F62: =IF(E126=0,0,PMT(E124,E126,F48*E125)) -> -2449070.522
D63: =CONCATENATE("Capex Annual Depreciation on ",E121," year schedule") -> Capex Annual Depreciation on 18 year schedule | F63: =-F58/E121 -> -1690614.199 | G63: =E121 -> 18
D64: =CONCATENATE("Capex Annual Depreciation on ",E122," year schedule") -> Capex Annual Depreciation on 6 year schedule | F64: =-F59/E122 -> -591486.6162 | G64: =E122 -> 6
D66: Opex Annual payments | F66: =-F87 -> -44429332.27
D68: Annual Revenue Required to Break Even | F68: 45528655.71 | G68: << Run Goal seek to set E106 to 0, by changing cell C78
D69: Monthly Revenue Required per kW of Critical Power | F69: =F68/E27/12 -> 1322.477131
D72: Financial breakdown
D73: CAPEX | E73: power equip. | F73: =SUM(E14:F14) -> 18855747.38
E74: cooling equip. | F74: =H14 -> 2449333.252
E75: data equip. | F75: =G14 -> 3548919.697
E76: core and shell | F76: =SUM(E15:H15) -> 4562987.478
E77: fit-out | F77: =SUM(E16:H16) -> 4562987.478 | G77: =SUM(F73:F77) -> 33979975.28
D79: OPEX | E79: electrical | F79: =SUM(E18:H18) -> 43496819.39
E80: maintenance | F80: =SUM(E19:H19) -> 882509.6341
E81: water | F81: =SUM(E20:H20) -> 50003.24256
E82: heat recovery | F82: =SUM(E21:H21) -> 0 | G82: =SUM(F79:F82) -> 44429332.27
D85: Financial metrics
D86: CAPEX | F86: =SUM(F73:F77) -> 33979975.28
D87: OPEX | F87: =SUM(F79:F82) -> 44429332.27
D88: CAPEX per Workload | F88: =F86/E27/1000 -> 11.84425225
D91: One | E91: 1
D94: IT Operations Manager
D95: Power capacity utilisation | E95: =Input!$E$11 -> 1 | BX95: 9
D96: Dataroom 1 configuration | E96: =Input!E14 -> 2-dtc-l2l | BX96: =BX95+1 -> 10
D97: Dataroom 2 configuration | E97: =Input!E15 -> 1-air | BX97: 11
D98: Dataroom 3 configuration | E98: =Input!E16 -> None | BX98: 12
D99: Dataroom 4 configuration | E99: =Input!E17 -> None | BX99: 13
BX100: 14
D101: Facilites Operations Manager | BX101: 15
D102: Critical power configuration | E102: =Input!E22 -> SE RD Crit | BW102: 2 | BX102: 16
D103: Mechanical power configuration | E103: =Input!E23 -> SE RD Mech | BW103: =BW102+1 -> 3 | BX103: 17
D104: Redundancy: power | E104: =Input!E24 -> 2N | BW104: 4 | BX104: 18
D105: Cooling configuration: Air | E105: =Input!E26 -> SE RD Air | BW105: 5 | BX105: 19
D106: Cooling configuration: Liquid | E106: =Input!E27 -> SE RD Liquid | BW106: 6 | BX106: 20
D107: Redundancy: cooling | E107: =Input!E28 -> N+1 | BW107: 7 | BX107: 21
D108: Environment: temperature | E108: =Input!E30 -> RD99 Paris | BW108: 8 | BX108: 22
D109: Environment: humidity | E109: =Input!E31 -> RD99 Paris | BW109: 9 | BX109: 23
BW110: 10 | BX110: 24
D111: Finanical Operations Manager | BW111: 11 | BX111: 25
D112: Electricity unit cost | E112: =Input!E34 -> 0.2 | BW112: 12 | BX112: 26
D113: Core and shell unit cost | E113: =Input!E35 -> 1800 | BX113: 27
D114: Fit-out unit cost | E114: =Input!E36 -> 1800 | BX114: 28
D115: Water unit cost | E115: =Input!E37 -> 1 | BX115: 29
D116: Value of heat recovery | E116: =Input!E38 -> 0 | BX116: 30
D117: Core and shell maintenance | E117: =Input!E39 -> 0.03 | BX117: 31
D118: Equipment maintenance | E118: =Input!E40 -> 0.03 | BX118: 32
D119: electricity CO2 impact | E119: =Input!E41 -> 369 | BX119: 33
D120: electricity water impact | E120: =Input!E42 -> 1.8 | BX120: 34
D121: Facility, Power and Cooling lifespan | E121: =Input!E43 -> 18 | BX121: 35
D122: IT equipment lifespan | E122: =Input!E44 -> 6 | BX122: 36
D123: Discount rate for NPV | E123: =Input!E45 -> 0.05 | BX123: 37
D124: CAPEX Financing rate | E124: =Input!E46 -> 0.06 | BX124: 38
D125: CAPEX % Financed | E125: =Input!E47 -> 0.7 | BX125: 39
D126: CAPEX Years Financed | E126: =Input!E48 -> 15 | BX126: 40
D127: Annual hours | E127: =Input!E49 -> 8760
D131: Energy Reuse Factor (ERF) | E131: =H10/'IT Load Datarooms Calculate'!E52 -> 0.1607556727
D132: Water Use Eff. (WUE) | E132: =E36*1000/(E25*E127) -> 1.480107749
D133: CUE (Carbon Use Effectiveness) | E133: ='IT Load Datarooms Calculate'!E78/1000*E119 -> 0.4143540466
D134: Environment zone: reference city | E134: =_xlfn.XLOOKUP(1,(weather!$AD$7:$AD$27=E108)*(weather!$AE$7:$AE$27=E109),weather!$Z$7:$Z$27) -> RD99 Paris

Sheet Detail Calculations
T2: Start Column of Matrix | V2: AR | W2: =V2 -> AR | X2: =V2 -> AR | DT2: Range1 | DU2: Range1 | DV2: Range1 | DW2: Range1 | DX2: Range1 | DY2: Range1 | DZ2: Range1 | EA2: Range1 | EB2: Range1 | EC2: Range1 | ED2: Range1 | EE2: Range1 | EF2: Range1 | EG2: Range1 | EH2: Range1 | EI2: Range1 | EJ2: Range1 | EK2: Range1 | EL2: Range1 | EM2: Range1 | EN2: Range1 | EO2: Range1 | EP2: Range1 | EQ2: Range1 | ER2: Range1 | ES2: Range1 | ET2: Range1 | EU2: Range1 | EV2: Range1 | EW2: Range1 | EX2: Range1 | EY2: Range1 | EZ2: Range1 | FA2: Range1 | FB2: Range1 | FC2: Range1 | FD2: Range1 | FE2: Range1 | FF2: Range1 | FG2: Range1 | FH2: Range1 | FI2: Range1 | FJ2: Range1 | FK2: Range1 | FL2: Range1 | FM2: Range1 | FN2: Range1 | FO2: Range1 | FP2: Range1 | FQ2: Range1 | FR2: Range1 | FS2: Range1 | FT2: Range1 | FU2: Range1 | FV2: Range1 | FW2: Range1 | FX2: Range1 | FY2: Range1 | FZ2: Range1 | GA2: Range1 | GB2: Range1 | GC2: Range1 | GD2: Range1 | GE2: Range1 | GF2: Range1 | GG2: Range1 | GH2: Range1 | GI2: Range1 | GJ2: Range1 | GV2: Range 2 | GW2: Range 2 | GX2: Range 2 | GY2: Range 2 | GZ2: Range 2 | HA2: Range 2 | HB2: Range 2 | HC2: Range 2 | HD2: Range 2 | HE2: Range 2 | HF2: Range 2 | HG2: Range 2 | HH2: Range 2 | HI2: Range 2 | HJ2: Range 2 | HK2: Range 2 | HL2: Range 2 | HM2: Range 2 | HN2: Range 2 | HO2: Range 2 | HP2: Range 2 | HQ2: Range 2 | HR2: Range 2 | HS2: Range 2 | HT2: Range 2 | HU2: Range 2 | HV2: Range 2 | HW2: Range 2 | HX2: Range 2 | HY2: Range 2 | HZ2: Range 2 | IA2: Range 2 | IB2: Range 2 | IC2: Range 2 | ID2: Range 2 | IE2: Range 2 | IF2: Range 2 | IG2: Range 2 | IH2: Range 2 | II2: Range 2 | IJ2: Range 2 | IK2: Range 2 | IL2: Range 2 | IM2: Range 2 | IN2: Range 2 | IO2: Range 2 | IP2: Range 2 | IQ2: Range 2 | IR2: Range 2 | IS2: Range 2 | IT2: Range 2 | IU2: Range 2 | IV2: Range 2 | IW2: Range 2 | IX2: Range 2 | IY2: Range 2 | IZ2: Range 2 | JA2: Range 2 | JB2: Range 2 | JC2: Range 2 | JD2: Range 2 | JE2: Range 2 | JF2: Range 2 | JG2: Range 2 | JH2: Range 2 | JI2: Range 2 | JJ2: Range 2 | JK2: Range 2 | JL2: Range 2
T3: Start Row of Matrix | V3: =ROW(AG12) -> 12 | W3: =ROW(AR89) -> 89 | X3: =ROW(AR156) -> 156 | Z3: =SUMPRODUCT(V12:X12,V10:X10) -> 4181.789752 | AA3: =DU10 -> 91.19577308 | DT3: For Weather 1 | GV3: =W10 -> 0.01643835616 | GX3: =GX29*GV3 -> 15.62875208 | JQ3: Range3 | JR3: Range3 | JS3: Range3 | JT3: Range3 | JU3: Range3 | JV3: Range3 | JW3: Range3 | JX3: Range3 | JY3: Range3 | JZ3: Range3 | KA3: Range3 | KB3: Range3 | KC3: Range3 | KD3: Range3 | KE3: Range3 | KF3: Range3 | KG3: Range3 | KH3: Range3 | KI3: Range3 | KJ3: Range3 | KK3: Range3 | KL3: Range3 | KM3: Range3 | KN3: Range3 | KO3: Range3 | KP3: Range3 | KQ3: Range3 | KR3: Range3 | KS3: Range3 | KT3: Range3 | KU3: Range3 | KV3: Range3 | KW3: Range3 | KX3: Range3 | KY3: Range3 | KZ3: Range3 | LA3: Range3 | LB3: Range3 | LC3: Range3 | LD3: Range3 | LE3: Range3 | LF3: Range3 | LG3: Range3 | LH3: Range3 | LI3: Range3 | LJ3: Range3 | LK3: Range3 | LL3: Range3 | LM3: Range3 | LN3: Range3 | LO3: Range3 | LP3: Range3 | LQ3: Range3 | LR3: Range3 | LS3: Range3 | LT3: Range3 | LU3: Range3 | LV3: Range3 | LW3: Range3 | LX3: Range3 | LY3: Range3 | LZ3: Range3 | MA3: Range3 | MB3: Range3 | MC3: Range3 | MD3: Range3
T4: End Column of Matrix | V4: DE | W4: =V4 -> DE | X4: =V4 -> DE | AA4: =GX10 -> 960.3526111
T5: End Row of Matrix | V5: =ROW(AG77) -> 77 | W5: =ROW(AR154) -> 154 | X5: =ROW(AR221) -> 221 | AA5: =JP10 -> 1137.878294 | DT5: Critical Load | EN5: =EP5+EW5 -> 4181.789752 | EP5: =EP7*EP16 -> 1965.654906 | EW5: =EW7*EW16 -> 2216.134846 | GV5: Average Load
T6: Column for Vector | V6: DG | W6: =V6 -> DG | X6: =V6 -> DG | Z6: =SUMPRODUCT(V25:X25*V10:X10) -> 104.4284499 | DW6: =_xlfn.SEQUENCE(,66) -> 1 | DX6: 2 | DY6: 3 | DZ6: 4 | EA6: 5 | EB6: 6 | EC6: 7 | ED6: 8 | EE6: 9 | EF6: 10 | EG6: 11 | EH6: 12 | EI6: 13 | EJ6: 14 | EK6: 15 | EL6: 16 | EM6: 17 | EN6: 18 | EO6: 19 | EP6: 20 | EQ6: 21 | ER6: 22 | ES6: 23 | ET6: 24 | EU6: 25 | EV6: 26 | EW6: 27 | EX6: 28 | EY6: 29 | EZ6: 30 | FA6: 31 | FB6: 32 | FC6: 33 | FD6: 34 | FE6: 35 | FF6: 36 | FG6: 37 | FH6: 38 | FI6: 39 | FJ6: 40 | FK6: 41 | FL6: 42 | FM6: 43 | FN6: 44 | FO6: 45 | FP6: 46 | FQ6: 47 | FR6: 48 | FS6: 49 | FT6: 50 | FU6: 51 | FV6: 52 | FW6: 53 | FX6: 54 | FY6: 55 | FZ6: 56 | GA6: 57 | GB6: 58 | GC6: 59 | GD6: 60 | GE6: 61 | GF6: 62 | GG6: 63 | GH6: 64 | GI6: 65 | GJ6: 66
T7: Rows | U7: n | V7: =V5-V3+1 -> 66 | W7: =W5-W3+1 -> 66 | X7: =X5-X3+1 -> 66 | DW7: =TRANSPOSE(Vector1) -> 0 | DX7: 0 | DY7: 0 | DZ7: 0 | EA7: 0 | EB7: 0 | EC7: 0 | ED7: 0 | EE7: 0 | EF7: 0 | EG7: 0 | EH7: 0 | EI7: 0 | EJ7: 0 | EK7: 0 | EL7: 0 | EM7: 0 | EN7: 0 | EO7: 0 | EP7: 1849.381723 | EQ7: 0 | ER7: 0 | ES7: 0 | ET7: 0 | EU7: 0 | EV7: 0 | EW7: 2050.811142 | EX7: 0 | EY7: 0 | EZ7: 0 | FA7: 0 | FB7: 0 | FC7: 0 | FD7: 0 | FE7: 0 | FF7: 0 | FG7: 0 | FH7: 0 | FI7: 0 | FJ7: 0 | FK7: 0 | FL7: 0 | FM7: 0 | FN7: 0 | FO7: 0 | FP7: 0 | FQ7: 0 | FR7: 0 | FS7: 0 | FT7: 0 | FU7: 0 | FV7: 0 | FW7: 0 | FX7: 0 | FY7: 0 | FZ7: 0 | GA7: 0 | GB7: 0 | GC7: 0 | GD7: 0 | GE7: 0 | GF7: 0 | GG7: 0 | GH7: 0 | GI7: 0 | GJ7: 0 | GY7: =TRANSPOSE(Vector1) -> 0 | GZ7: 0 | HA7: 0 | HB7: 0 | HC7: 0 | HD7: 0 | HE7: 0 | HF7: 0 | HG7: 0 | HH7: 0 | HI7: 0 | HJ7: 0 | HK7: 0 | HL7: 0 | HM7: 0 | HN7: 0 | HO7: 0 | HP7: 0 | HQ7: 0 | HR7: 1849.381723 | HS7: 0 | HT7: 0 | HU7: 0 | HV7: 0 | HW7: 0 | HX7: 0 | HY7: 2050.811142 | HZ7: 0 | IA7: 0 | IB7: 0 | IC7: 0 | ID7: 0 | IE7: 0 | IF7: 0 | IG7: 0 | IH7: 0 | II7: 0 | IJ7: 0 | IK7: 0 | IL7: 0 | IM7: 0 | IN7: 0 | IO7: 0 | IP7: 0 | IQ7: 0 | IR7: 0 | IS7: 0 | IT7: 0 | IU7: 0 | IV7: 0 | IW7: 0 | IX7: 0 | IY7: 0 | IZ7: 0 | JA7: 0 | JB7: 0 | JC7: 0 | JD7: 0 | JE7: 0 | JF7: 0 | JG7: 0 | JH7: 0 | JI7: 0 | JJ7: 0 | JK7: 0 | JL7: 0 | JQ7: =TRANSPOSE(Vector1) -> 0 | JR7: 0 | JS7: 0 | JT7: 0 | JU7: 0 | JV7: 0 | JW7: 0 | JX7: 0 | JY7: 0 | JZ7: 0 | KA7: 0 | KB7: 0 | KC7: 0 | KD7: 0 | KE7: 0 | KF7: 0 | KG7: 0 | KH7: 0 | KI7: 0 | KJ7: 1849.381723 | KK7: 0 | KL7: 0 | KM7: 0 | KN7: 0 | KO7: 0 | KP7: 0 | KQ7: 2050.811142 | KR7: 0 | KS7: 0 | KT7: 0 | KU7: 0 | KV7: 0 | KW7: 0 | KX7: 0 | KY7: 0 | KZ7: 0 | LA7: 0 | LB7: 0 | LC7: 0 | LD7: 0 | LE7: 0 | LF7: 0 | LG7: 0 | LH7: 0 | LI7: 0 | LJ7: 0 | LK7: 0 | LL7: 0 | LM7: 0 | LN7: 0 | LO7: 0 | LP7: 0 | LQ7: 0 | LR7: 0 | LS7: 0 | LT7: 0 | LU7: 0 | LV7: 0 | LW7: 0 | LX7: 0 | LY7: 0 | LZ7: 0 | MA7: 0 | MB7: 0 | MC7: 0 | MD7: 0
U8: matrix | V8: =_xlfn.CONCAT(V2,V3,":",V4,V5) -> AR12:DE77 | W8: =_xlfn.CONCAT(W2,W3,":",W4,W5) -> AR89:DE154 | X8: =_xlfn.CONCAT(X2,X3,":",X4,X5) -> AR156:DE221
U9: vector | V9: =_xlfn.CONCAT(V6,V3,":",V6,V5) -> DG12:DG77 | W9: =V9 -> DG12:DG77 | X9: =V9 -> DG12:DG77 | AR9: =_xlfn.SEQUENCE(,66) -> 1 | AS9: 2 | AT9: 3 | AU9: 4 | AV9: 5 | AW9: 6 | AX9: 7 | AY9: 8 | AZ9: 9 | BA9: 10 | BB9: 11 | BC9: 12 | BD9: 13 | BE9: 14 | BF9: 15 | BG9: 16 | BH9: 17 | BI9: 18 | BJ9: 19 | BK9: 20 | BL9: 21 | BM9: 22 | BN9: 23 | BO9: 24 | BP9: 25 | BQ9: 26 | BR9: 27 | BS9: 28 | BT9: 29 | BU9: 30 | BV9: 31 | BW9: 32 | BX9: 33 | BY9: 34 | BZ9: 35 | CA9: 36 | CB9: 37 | CC9: 38 | CD9: 39 | CE9: 40 | CF9: 41 | CG9: 42 | CH9: 43 | CI9: 44 | CJ9: 45 | CK9: 46 | CL9: 47 | CM9: 48 | CN9: 49 | CO9: 50 | CP9: 51 | CQ9: 52 | CR9: 53 | CS9: 54 | CT9: 55 | CU9: 56 | CV9: 57 | CW9: 58 | CX9: 59 | CY9: 60 | CZ9: 61 | DA9: 62 | DB9: 63 | DC9: 64 | DD9: 65 | DE9: 66 | EP9: =EP28 -> 0.02317685548 | EW9: =EW28 -> 0.02356770897 | HR9: =HR28 -> 0.1931929935 | HY9: =HY28 -> 0.2940617045 | KJ9: =KJ28 -> 0.2891849028 | KQ9: =KQ28 -> 0.2940617045
S10: Weather Weighting | T10: =Summary!E109 -> RD99 Paris | U10: hr/year | V10: =_xlfn.XLOOKUP(1,('Regional Weather'!$H$10:$H$30=Summary!$E$108)*('Regional Weather'!$I$10:$I$30=Summary!$E$109),'Regional Weather'!J10:J30) -> 0.9835616438 | W10: =_xlfn.XLOOKUP(1,('Regional Weather'!$H$10:$H$30=Summary!$E$108)*('Regional Weather'!$I$10:$I$30=Summary!$E$109),'Regional Weather'!K10:K30) -> 0.01643835616 | X10: =_xlfn.XLOOKUP(1,('Regional Weather'!$H$10:$H$30=Summary!$E$108)*('Regional Weather'!$I$10:$I$30=Summary!$E$109),'Regional Weather'!L10:L30) -> 0 | DT10: Mechanical | DU10: =SUM(DV10:GJ10) -> 91.19577308 | EP10: =EP9*EP7 -> 42.86285294 | EW10: =EW9*EW7 -> 48.33292014 | GV10: Total Mechanical | GX10: =SUM(GY10:JL10) -> 960.3526111 | HR10: =HR9*HR7 -> 357.2875912 | HY10: =HY9*HY7 -> 603.0650199 | JO10: Total Mechanical | JP10: =SUM(JQ10:MD10) -> 1137.878294 | KJ10: =KJ9*KJ7 -> 534.813274 | KQ10: =KQ9*KQ7 -> 603.0650199
T11: Max | U11: Average | V11: 100/100 | W11: 0/100 | X11: 0/0 | AC11: fixed | AD11: prop | AE11: COP | AF11: split | AG11: inputs | AK11: outputs | AR11: =TRANSPOSE(S12:S77) -> e_crit_u-tx | AS11: e_crit_tx-swb | AT11: q_crit_tx-amb | AU11: e_crit_swb-drms | AV11: e_crit_swb-ups | AW11: e_crit_swb-ch | AX11: q_crit_swb-ch | AY11: e_crit_ups-drms | AZ11: e_crit_ups-hru,lt | BA11: e_crit_ups-hru,ht | BB11: q_crit_ups-ch | BC11: q_crit_ch-amb | BD11: e_mech_u-tx | BE11: e_mech_tx-swb | BF11: q_mech_tx-amb | BG11: e_mech_swb-hru,lt | BH11: e_mech_swb-hru,ht | BI11: q_mech_swb-amb | BJ11: e_drms_crit-dr1 | BK11: e_drms_oh-dr1 | BL11: w_drms-dr1 | BM11: e_drms_crit-dr2 | BN11: e_drms_oh-dr2 | BO11: w_drms-dr2 | BP11: e_drms_crit-dr3 | BQ11: e_drms_oh-dr3 | BR11: w_drms-dr3 | BS11: e_drms_crit-dr4 | BT11: e_drms_oh-dr4 | BU11: q_drms_dr1-hru,lt | BV11: q_drms_dr1-hru,ht | BW11: q_drms_dr2-hru,lt | BX11: q_drms_dr2-hru,ht | BY11: q_drms_dr3-hru,lt | BZ11: q_drms_dr3-hru,ht | CA11: q_drms_dr4-hru,lt | CB11: q_drms_dr4-hru,ht | CC11: w_drms-dr4 | CD11: q_drms-hru,lt | CE11: q_drms-hru,ht | CF11: q_dr1_cls,a | CG11: q_dr1_cls,l | CH11: q_dr2_cls,a | CI11: q_dr2_cls,l | CJ11: q_dr3_cls,a | CK11: q_dr3_cls,l | CL11: q_dr4_cls,a | CM11: q_dr4_cls,l | CN11: e_hru_comp,lt | CO11: e_hru_fs,lt | CP11: e_hru_fc,lt | CQ11: q_hru_pump-eco,lt | CR11: q_hru_eco-comp,lt | CS11: q_hru_eco-fc,lt | CT11: q_hru_comp-fs,lt | CU11: q_hru_fc-fs,lt | CV11: q_hru_fs-amb,lt | CW11: e_hru_comp,ht | CX11: e_hru_fs,ht | CY11: e_hru_fc,ht | CZ11: q_hru_pump-eco,ht | DA11: q_hru_eco-comp,ht | DB11: q_hru_eco-fc,ht | DC11: q_hru_comp-fs,ht | DD11: q_hru_fc-fs,ht | DE11: q_hru_fs-amb,ht | DG11: Knowns
S12: e_crit_u-tx | T12: =_xlfn.MAXIFS(V12:X12,$V$10:$X$10,">0") -> 4181.789752 | U12: =SUMPRODUCT($V$10:$X$10,V12:X12) -> 4181.789752 | V12: =MMULT(MINVERSE(_xlfn.MUNIT(V7)-_xlfn.MUNIT(V7)+INDIRECT(V8)),INDIRECT(V9)) -> 4181.789752 | W12: =MMULT(MINVERSE(_xlfn.MUNIT(W7)-_xlfn.MUNIT(W7)+INDIRECT(W8)),INDIRECT(W9)) -> 4181.789752 | X12: =MMULT(MINVERSE(_xlfn.MUNIT(X7)-_xlfn.MUNIT(X7)+INDIRECT(X8)),INDIRECT(X9)) -> 4181.789752 | Y12: =MMULT(MINVERSE(Range1),Vector1) -> 4181.789752 | Z12: PowerCrit | AA12: TX | AB12: Conservation | AG12: e_crit_u-tx | AK12: q_crit_tx-amb | AL12: e_crit_tx-swb | AR12: =IF(ISNUMBER(MATCH(AR$11,$AG12:$AJ12,0)),1,0)*IF(ISNUMBER($AF12),(1-$AF12),1) + IF(ISNUMBER(MATCH(AR$11,$AK12:$AP12,0)),-1,0)*_xlfn.IFS(ISNUMBER($AD12),$AD12,ISNUMBER($AE12),$AE12,ISNUMBER($AF12),$AF12,AND($AD12=0,$AE12=0,$AF12=0),1) -> 1 | AS12: =IF(ISNUMBER(MATCH(AS$11,$AG12:$AJ12,0)),1,0)*IF(ISNUMBER($AF12),(1-$AF12),1) + IF(ISNUMBER(MATCH(AS$11,$AK12:$AP12,0)),-1,0)*_xlfn.IFS(ISNUMBER($AD12),$AD12,ISNUMBER($AE12),$AE12,ISNUMBER($AF12),$AF12,AND($AD12=0,$AE12=0,$AF12=0),1) -> -1 | AT12: =IF(ISNUMBER(MATCH(AT$11,$AG12:$AJ12,0)),1,0)*IF(ISNUMBER($AF12),(1-$AF12),1) + IF(ISNUMBER(MATCH(AT$11,$AK12:$AP12,0)),-1,0)*_xlfn.IFS(ISNUMBER($AD12),$AD12,ISNUMBER($AE12),$AE12,ISNUMBER($AF12),$AF12,AND($AD12=0,$AE12=0,$AF12=0),1) -> -1 | AU12: =IF(ISNUMBER(MATCH(AU$11,$AG12:$AJ12,0)),1,0)*IF(ISNUMBER($AF12),(1-$AF12),1) + IF(ISNUMBER(MATCH(AU$11,$AK12:$AP12,0)),-1,0)*_xlfn.IFS(ISNUMBER($AD12),$AD12,ISNUMBER($AE12),$AE12,ISNUMBER($AF12),$AF12,AND($AD12=0,$AE12=0,$AF12=0),1) -> 0 | AV12: =IF(ISNUMBER(MATCH(AV$11,$AG12:$AJ12,0)),1,0)*IF(ISNUMBER($AF12),(1-$AF12),1) + IF(ISNUMBER(MATCH(AV$11,$AK12:$AP12,0)),-1,0)*_xlfn.IFS(ISNUMBER($AD12),$AD12,ISNUMBER($AE12),$AE12,ISNUMBER($AF12),$AF12,AND($AD12=0,$AE12=0,$AF12=0),1) -> 0 | AW12: =IF(ISNUMBER(MATCH(AW$11,$AG12:$AJ12,0)),1,0)*IF(ISNUMBER($AF12),(1-$AF12),1) + IF(ISNUMBER(MATCH(AW$11,$AK12:$AP12,0)),-1,0)*_xlfn.IFS(ISNUMBER($AD12),$AD12,ISNUMBER($AE12),$AE12,ISNUMBER($AF12),$AF12,AND($AD12=0,$AE12=0,$AF12=0),1) -> 0 | AX12: =IF(ISNUMBER(MATCH(AX$11,$AG12:$AJ12,0)),1,0)*IF(ISNUMBER($AF12),(1-$AF12),1) + IF(ISNUMBER(MATCH(AX$11,$AK12:$AP12,0)),-1,0)*_xlfn.IFS(ISNUMBER($AD12),$AD12,ISNUMBER($AE12),$AE12,ISNUMBER($AF12),$AF12,AND($AD12=0,$AE12=0,$AF12=0),1) -> 0 | AY12: =IF(ISNUMBER(MATCH(AY$11,$AG12:$AJ12,0)),1,0)*IF(ISNUMBER($AF12),(1-$AF12),1) + IF(ISNUMBER(MATCH(AY$11,$AK12:$AP12,0)),-1,0)*_xlfn.IFS(ISNUMBER($AD12),$AD12,ISNUMBER($AE12),$AE12,ISNUMBER($AF12),$AF12,AND($AD12=0,$AE12=0,$AF12=0),1) -> 0 | AZ12: =IF(ISNUMBER(MATCH(AZ$11,$AG12:$AJ12,0)),1,0)*IF(ISNUMBER($AF12),(1-$AF12),1) + IF(ISNUMBER(MATCH(AZ$11,$AK12:$AP12,0)),-1,0)*_xlfn.IFS(ISNUMBER($AD12),$AD12,ISNUMBER($AE12),$AE12,ISNUMBER($AF12),$AF12,AND($AD12=0,$AE12=0,$AF12=0),1) -> 0 | BA12: =IF(ISNUMBER(MATCH(BA$11,$AG12:$AJ12,0)),1,0)*IF(ISNUMBER($AF12),(1-$AF12),1) + IF(ISNUMBER(MATCH(BA$11,$AK12:$AP12,0)),-1,0)*_xlfn.IFS(ISNUMBER($AD12),$AD12,ISNUMBER($AE12),$AE12,ISNUMBER($AF12),$AF12,AND($AD12=0,$AE12=0,$AF12=0),1) -> 0 | BB12: =IF(ISNUMBER(MATCH(BB$11,$AG12:$AJ12,0)),1,0)*IF(ISNUMBER($AF12),(1-$AF12),1) + IF(ISNUMBER(MATCH(BB$11,$AK12:$AP12,0)),-1,0)*_xlfn.IFS(ISNUMBER($AD12),$AD12,ISNUMBER($AE12),$AE12,ISNUMBER($AF12),$AF12,AND($AD12=0,$AE12=0,$AF12=0),1) -> 0 | BC12: =IF(ISNUMBER(MATCH(BC$11,$AG12:$AJ12,0)),1,0)*IF(ISNUMBER($AF12),(1-$AF12),1) + IF(ISNUMBER(MATCH(BC$11,$AK12:$AP12,0)),-1,0)*_xlfn.IFS(ISNUMBER($AD12),$AD12,ISNUMBER($AE12),$AE12,ISNUMBER($AF12),$AF12,AND($AD12=0,$AE12=0,$AF12=0),1) -> 0 | BD12: =IF(ISNUMBER(MATCH(BD$11,$AG12:$AJ12,0)),1,0)*IF(ISNUMBER($AF12),(1-$AF12),1) + IF(ISNUMBER(MATCH(BD$11,$AK12:$AP12,0)),-1,0)*_xlfn.IFS(ISNUMBER($AD12),$AD12,ISNUMBER($AE12),$AE12,ISNUMBER($AF12),$AF12,AND($AD12=0,$AE12=0,$AF12=0),1) -> 0 | BE12: =IF(ISNUMBER(MATCH(BE$11,$AG12:$AJ12,0)),1,0)*IF(ISNUMBER($AF12),(1-$AF12),1) + IF(ISNUMBER(MATCH(BE$11,$AK12:$AP12,0)),-1,0)*_xlfn.IFS(ISNUMBER($AD12),$AD12,ISNUMBER($AE12),$AE12,ISNUMBER($AF12),$AF12,AND($AD12=0,$AE12=0,$AF12=0),1) -> 0 | BF12: =IF(ISNUMBER(MATCH(BF$11,$AG12:$AJ12,0)),1,0)*IF(ISNUMBER($AF12),(1-$AF12),1) + IF(ISNUMBER(MATCH(BF$11,$AK12:$AP12,0)),-1,0)*_xlfn.IFS(ISNUMBER($AD12),$AD12,ISNUMBER($AE12),$AE12,ISNUMBER($AF12),$AF12,AND($AD12=0,$AE12=0,$AF12=0),1) -> 0 | BG12: =IF(ISNUMBER(MATCH(BG$11,$AG12:$AJ12,0)),1,0)*IF(ISNUMBER($AF12),(1-$AF12),1) + IF(ISNUMBER(MATCH(BG$11,$AK12:$AP12,0)),-1,0)*_xlfn.IFS(ISNUMBER($AD12),$AD12,ISNUMBER($AE12),$AE12,ISNUMBER($AF12),$AF12,AND($AD12=0,$AE12=0,$AF12=0),1) -> 0 | BH12: =IF(ISNUMBER(MATCH(BH$11,$AG12:$AJ12,0)),1,0)*IF(ISNUMBER($AF12),(1-$AF12),1) + IF(ISNUMBER(MATCH(BH$11,$AK12:$AP12,0)),-1,0)*_xlfn.IFS(ISNUMBER($AD12),$AD12,ISNUMBER($AE12),$AE12,ISNUMBER($AF12),$AF12,AND($AD12=0,$AE12=0,$AF12=0),1) -> 0 | BI12: =IF(ISNUMBER(MATCH(BI$11,$AG12:$AJ12,0)),1,0)*IF(ISNUMBER($AF12),(1-$AF12),1) + IF(ISNUMBER(MATCH(BI$11,$AK12:$AP12,0)),-1,0)*_xlfn.IFS(ISNUMBER($AD12),$AD12,ISNUMBER($AE12),$AE12,ISNUMBER($AF12),$AF12,AND($AD12=0,$AE12=0,$AF12=0),1) -> 0 | BJ12: =IF(ISNUMBER(MATCH(BJ$11,$AG12:$AJ12,0)),1,0)*IF(ISNUMBER($AF12),(1-$AF12),1) + IF(ISNUMBER(MATCH(BJ$11,$AK12:$AP12,0)),-1,0)*_xlfn.IFS(ISNUMBER($AD12),$AD12,ISNUMBER($AE12),$AE12,ISNUMBER($AF12),$AF12,AND($AD12=0,$AE12=0,$AF12=0),1) -> 0 | BK12: =IF(ISNUMBER(MATCH(BK$11,$AG12:$AJ12,0)),1,0)*IF(ISNUMBER($AF12),(1-$AF12),1) + IF(ISNUMBER(MATCH(BK$11,$AK12:$AP12,0)),-1,0)*_xlfn.IFS(ISNUMBER($AD12),$AD12,ISNUMBER($AE12),$AE12,ISNUMBER($AF12),$AF12,AND($AD12=0,$AE12=0,$AF12=0),1) -> 0 | BL12: =IF(ISNUMBER(MATCH(BL$11,$AG12:$AJ12,0)),1,0)*IF(ISNUMBER($AF12),(1-$AF12),1) + IF(ISNUMBER(MATCH(BL$11,$AK12:$AP12,0)),-1,0)*_xlfn.IFS(ISNUMBER($AD12),$AD12,ISNUMBER($AE12),$AE12,ISNUMBER($AF12),$AF12,AND($AD12=0,$AE12=0,$AF12=0),1) -> 0 | BM12: =IF(ISNUMBER(MATCH(BM$11,$AG12:$AJ12,0)),1,0)*IF(ISNUMBER($AF12),(1-$AF12),1) + IF(ISNUMBER(MATCH(BM$11,$AK12:$AP12,0)),-1,0)*_xlfn.IFS(ISNUMBER($AD12),$AD12,ISNUMBER($AE12),$AE12,ISNUMBER($AF12),$AF12,AND($AD12=0,$AE12=0,$AF12=0),1) -> 0 | BN12: =IF(ISNUMBER(MATCH(BN$11,$AG12:$AJ12,0)),1,0)*IF(ISNUMBER($AF12),(1-$AF12),1) + IF(ISNUMBER(MATCH(BN$11,$AK12:$AP12,0)),-1,0)*_xlfn.IFS(ISNUMBER($AD12),$AD12,ISNUMBER($AE12),$AE12,ISNUMBER($AF12),$AF12,AND($AD12=0,$AE12=0,$AF12=0),1) -> 0 | BO12: =IF(ISNUMBER(MATCH(BO$11,$AG12:$AJ12,0)),1,0)*IF(ISNUMBER($AF12),(1-$AF12),1) + IF(ISNUMBER(MATCH(BO$11,$AK12:$AP12,0)),-1,0)*_xlfn.IFS(ISNUMBER($AD12),$AD12,ISNUMBER($AE12),$AE12,ISNUMBER($AF12),$AF12,AND($AD12=0,$AE12=0,$AF12=0),1) -> 0 | BP12: =IF(ISNUMBER(MATCH(BP$11,$AG12:$AJ12,0)),1,0)*IF(ISNUMBER($AF12),(1-$AF12),1) + IF(ISNUMBER(MATCH(BP$11,$AK12:$AP12,0)),-1,0)*_xlfn.IFS(ISNUMBER($AD12),$AD12,ISNUMBER($AE12),$AE12,ISNUMBER($AF12),$AF12,AND($AD12=0,$AE12=0,$AF12=0),1) -> 0 | BQ12: =IF(ISNUMBER(MATCH(BQ$11,$AG12:$AJ12,0)),1,0)*IF(ISNUMBER($AF12),(1-$AF12),1) + IF(ISNUMBER(MATCH(BQ$11,$AK12:$AP12,0)),-1,0)*_xlfn.IFS(ISNUMBER($AD12),$AD12,ISNUMBER($AE12),$AE12,ISNUMBER($AF12),$AF12,AND($AD12=0,$AE12=0,$AF12=0),1) -> 0 | BR12: =IF(ISNUMBER(MATCH(BR$11,$AG12:$AJ12,0)),1,0)*IF(ISNUMBER($AF12),(1-$AF12),1) + IF(ISNUMBER(MATCH(BR$11,$AK12:$AP12,0)),-1,0)*_xlfn.IFS(ISNUMBER($AD12),$AD12,ISNUMBER($AE12),$AE12,ISNUMBER($AF12),$AF12,AND($AD12=0,$AE12=0,$AF12=0),1) -> 0 | BS12: =IF(ISNUMBER(MATCH(BS$11,$AG12:$AJ12,0)),1,0)*IF(ISNUMBER($AF12),(1-$AF12),1) + IF(ISNUMBER(MATCH(BS$11,$AK12:$AP12,0)),-1,0)*_xlfn.IFS(ISNUMBER($AD12),$AD12,ISNUMBER($AE12),$AE12,ISNUMBER($AF12),$AF12,AND($AD12=0,$AE12=0,$AF12=0),1) -> 0 | BT12: =IF(ISNUMBER(MATCH(BT$11,$AG12:$AJ12,0)),1,0)*IF(ISNUMBER($AF12),(1-$AF12),1) + IF(ISNUMBER(MATCH(BT$11,$AK12:$AP12,0)),-1,0)*_xlfn.IFS(ISNUMBER($AD12),$AD12,ISNUMBER($AE12),$AE12,ISNUMBER($AF12),$AF12,AND($AD12=0,$AE12=0,$AF12=0),1) -> 0 | BU12: =IF(ISNUMBER(MATCH(BU$11,$AG12:$AJ12,0)),1,0)*IF(ISNUMBER($AF12),(1-$AF12),1) + IF(ISNUMBER(MATCH(BU$11,$AK12:$AP12,0)),-1,0)*_xlfn.IFS(ISNUMBER($AD12),$AD12,ISNUMBER($AE12),$AE12,ISNUMBER($AF12),$AF12,AND($AD12=0,$AE12=0,$AF12=0),1) -> 0 | BV12: =IF(ISNUMBER(MATCH(BV$11,$AG12:$AJ12,0)),1,0)*IF(ISNUMBER($AF12),(1-$AF12),1) + IF(ISNUMBER(MATCH(BV$11,$AK12:$AP12,0)),-1,0)*_xlfn.IFS(ISNUMBER($AD12),$AD12,ISNUMBER($AE12),$AE12,ISNUMBER($AF12),$AF12,AND($AD12=0,$AE12=0,$AF12=0),1) -> 0 | BW12: =IF(ISNUMBER(MATCH(BW$11,$AG12:$AJ12,0)),1,0)*IF(ISNUMBER($AF12),(1-$AF12),1) + IF(ISNUMBER(MATCH(BW$11,$AK12:$AP12,0)),-1,0)*_xlfn.IFS(ISNUMBER($AD12),$AD12,ISNUMBER($AE12),$AE12,ISNUMBER($AF12),$AF12,AND($AD12=0,$AE12=0,$AF12=0),1) -> 0 | BX12: =IF(ISNUMBER(MATCH(BX$11,$AG12:$AJ12,0)),1,0)*IF(ISNUMBER($AF12),(1-$AF12),1) + IF(ISNUMBER(MATCH(BX$11,$AK12:$AP12,0)),-1,0)*_xlfn.IFS(ISNUMBER($AD12),$AD12,ISNUMBER($AE12),$AE12,ISNUMBER($AF12),$AF12,AND($AD12=0,$AE12=0,$AF12=0),1) -> 0 | BY12: =IF(ISNUMBER(MATCH(BY$11,$AG12:$AJ12,0)),1,0)*IF(ISNUMBER($AF12),(1-$AF12),1) + IF(ISNUMBER(MATCH(BY$11,$AK12:$AP12,0)),-1,0)*_xlfn.IFS(ISNUMBER($AD12),$AD12,ISNUMBER($AE12),$AE12,ISNUMBER($AF12),$AF12,AND($AD12=0,$AE12=0,$AF12=0),1) -> 0 | BZ12: =IF(ISNUMBER(MATCH(BZ$11,$AG12:$AJ12,0)),1,0)*IF(ISNUMBER($AF12),(1-$AF12),1) + IF(ISNUMBER(MATCH(BZ$11,$AK12:$AP12,0)),-1,0)*_xlfn.IFS(ISNUMBER($AD12),$AD12,ISNUMBER($AE12),$AE12,ISNUMBER($AF12),$AF12,AND($AD12=0,$AE12=0,$AF12=0),1) -> 0 | CA12: =IF(ISNUMBER(MATCH(CA$11,$AG12:$AJ12,0)),1,0)*IF(ISNUMBER($AF12),(1-$AF12),1) + IF(ISNUMBER(MATCH(CA$11,$AK12:$AP12,0)),-1,0)*_xlfn.IFS(ISNUMBER($AD12),$AD12,ISNUMBER($AE12),$AE12,ISNUMBER($AF12),$AF12,AND($AD12=0,$AE12=0,$AF12=0),1) -> 0 | CB12: =IF(ISNUMBER(MATCH(CB$11,$AG12:$AJ12,0)),1,0)*IF(ISNUMBER($AF12),(1-$AF12),1) + IF(ISNUMBER(MATCH(CB$11,$AK12:$AP12,0)),-1,0)*_xlfn.IFS(ISNUMBER($AD12),$AD12,ISNUMBER($AE12),$AE12,ISNUMBER($AF12),$AF12,AND($AD12=0,$AE12=0,$AF12=0),1) -> 0 | CC12: =IF(ISNUMBER(MATCH(CC$11,$AG12:$AJ12,0)),1,0)*IF(ISNUMBER($AF12),(1-$AF12),1) + IF(ISNUMBER(MATCH(CC$11,$AK12:$AP12,0)),-1,0)*_xlfn.IFS(ISNUMBER($AD12),$AD12,ISNUMBER($AE12),$AE12,ISNUMBER($AF12),$AF12,AND($AD12=0,$AE12=0,$AF12=0),1) -> 0 | CD12: =IF(ISNUMBER(MATCH(CD$11,$AG12:$AJ12,0)),1,0)*IF(ISNUMBER($AF12),(1-$AF12),1) + IF(ISNUMBER(MATCH(CD$11,$AK12:$AP12,0)),-1,0)*_xlfn.IFS(ISNUMBER($AD12),$AD12,ISNUMBER($AE12),$AE12,ISNUMBER($AF12),$AF12,AND($AD12=0,$AE12=0,$AF12=0),1) -> 0 | CE12: =IF(ISNUMBER(MATCH(CE$11,$AG12:$AJ12,0)),1,0)*IF(ISNUMBER($AF12),(1-$AF12),1) + IF(ISNUMBER(MATCH(CE$11,$AK12:$AP12,0)),-1,0)*_xlfn.IFS(ISNUMBER($AD12),$AD12,ISNUMBER($AE12),$AE12,ISNUMBER($AF12),$AF12,AND($AD12=0,$AE12=0,$AF12=0),1) -> 0 | CF12: =IF(ISNUMBER(MATCH(CF$11,$AG12:$AJ12,0)),1,0)*IF(ISNUMBER($AF12),(1-$AF12),1) + IF(ISNUMBER(MATCH(CF$11,$AK12:$AP12,0)),-1,0)*_xlfn.IFS(ISNUMBER($AD12),$AD12,ISNUMBER($AE12),$AE12,ISNUMBER($AF12),$AF12,AND($AD12=0,$AE12=0,$AF12=0),1) -> 0 | CG12: =IF(ISNUMBER(MATCH(CG$11,$AG12:$AJ12,0)),1,0)*IF(ISNUMBER($AF12),(1-$AF12),1) + IF(ISNUMBER(MATCH(CG$11,$AK12:$AP12,0)),-1,0)*_xlfn.IFS(ISNUMBER($AD12),$AD12,ISNUMBER($AE12),$AE12,ISNUMBER($AF12),$AF12,AND($AD12=0,$AE12=0,$AF12=0),1) -> 0 | CH12: =IF(ISNUMBER(MATCH(CH$11,$AG12:$AJ12,0)),1,0)*IF(ISNUMBER($AF12),(1-$AF12),1) + IF(ISNUMBER(MATCH(CH$11,$AK12:$AP12,0)),-1,0)*_xlfn.IFS(ISNUMBER($AD12),$AD12,ISNUMBER($AE12),$AE12,ISNUMBER($AF12),$AF12,AND($AD12=0,$AE12=0,$AF12=0),1) -> 0 | CI12: =IF(ISNUMBER(MATCH(CI$11,$AG12:$AJ12,0)),1,0)*IF(ISNUMBER($AF12),(1-$AF12),1) + IF(ISNUMBER(MATCH(CI$11,$AK12:$AP12,0)),-1,0)*_xlfn.IFS(ISNUMBER($AD12),$AD12,ISNUMBER($AE12),$AE12,ISNUMBER($AF12),$AF12,AND($AD12=0,$AE12=0,$AF12=0),1) -> 0 | CJ12: =IF(ISNUMBER(MATCH(CJ$11,$AG12:$AJ12,0)),1,0)*IF(ISNUMBER($AF12),(1-$AF12),1) + IF(ISNUMBER(MATCH(CJ$11,$AK12:$AP12,0)),-1,0)*_xlfn.IFS(ISNUMBER($AD12),$AD12,ISNUMBER($AE12),$AE12,ISNUMBER($AF12),$AF12,AND($AD12=0,$AE12=0,$AF12=0),1) -> 0 | CK12: =IF(ISNUMBER(MATCH(CK$11,$AG12:$AJ12,0)),1,0)*IF(ISNUMBER($AF12),(1-$AF12),1) + IF(ISNUMBER(MATCH(CK$11,$AK12:$AP12,0)),-1,0)*_xlfn.IFS(ISNUMBER($AD12),$AD12,ISNUMBER($AE12),$AE12,ISNUMBER($AF12),$AF12,AND($AD12=0,$AE12=0,$AF12=0),1) -> 0 | CL12: =IF(ISNUMBER(MATCH(CL$11,$AG12:$AJ12,0)),1,0)*IF(ISNUMBER($AF12),(1-$AF12),1) + IF(ISNUMBER(MATCH(CL$11,$AK12:$AP12,0)),-1,0)*_xlfn.IFS(ISNUMBER($AD12),$AD12,ISNUMBER($AE12),$AE12,ISNUMBER($AF12),$AF12,AND($AD12=0,$AE12=0,$AF12=0),1) -> 0 | CM12: =IF(ISNUMBER(MATCH(CM$11,$AG12:$AJ12,0)),1,0)*IF(ISNUMBER($AF12),(1-$AF12),1) + IF(ISNUMBER(MATCH(CM$11,$AK12:$AP12,0)),-1,0)*_xlfn.IFS(ISNUMBER($AD12),$AD12,ISNUMBER($AE12),$AE12,ISNUMBER($AF12),$AF12,AND($AD12=0,$AE12=0,$AF12=0),1) -> 0 | CN12: =IF(ISNUMBER(MATCH(CN$11,$AG12:$AJ12,0)),1,0)*IF(ISNUMBER($AF12),(1-$AF12),1) + IF(ISNUMBER(MATCH(CN$11,$AK12:$AP12,0)),-1,0)*_xlfn.IFS(ISNUMBER($AD12),$AD12,ISNUMBER($AE12),$AE12,ISNUMBER($AF12),$AF12,AND($AD12=0,$AE12=0,$AF12=0),1) -> 0 | CO12: =IF(ISNUMBER(MATCH(CO$11,$AG12:$AJ12,0)),1,0)*IF(ISNUMBER($AF12),(1-$AF12),1) + IF(ISNUMBER(MATCH(CO$11,$AK12:$AP12,0)),-1,0)*_xlfn.IFS(ISNUMBER($AD12),$AD12,ISNUMBER($AE12),$AE12,ISNUMBER($AF12),$AF12,AND($AD12=0,$AE12=0,$AF12=0),1) -> 0 | CP12: =IF(ISNUMBER(MATCH(CP$11,$AG12:$AJ12,0)),1,0)*IF(ISNUMBER($AF12),(1-$AF12),1) + IF(ISNUMBER(MATCH(CP$11,$AK12:$AP12,0)),-1,0)*_xlfn.IFS(ISNUMBER($AD12),$AD12,ISNUMBER($AE12),$AE12,ISNUMBER($AF12),$AF12,AND($AD12=0,$AE12=0,$AF12=0),1) -> 0 | CQ12: =IF(ISNUMBER(MATCH(CQ$11,$AG12:$AJ12,0)),1,0)*IF(ISNUMBER($AF12),(1-$AF12),1) + IF(ISNUMBER(MATCH(CQ$11,$AK12:$AP12,0)),-1,0)*_xlfn.IFS(ISNUMBER($AD12),$AD12,ISNUMBER($AE12),$AE12,ISNUMBER($AF12),$AF12,AND($AD12=0,$AE12=0,$AF12=0),1) -> 0 | CR12: =IF(ISNUMBER(MATCH(CR$11,$AG12:$AJ12,0)),1,0)*IF(ISNUMBER($AF12),(1-$AF12),1) + IF(ISNUMBER(MATCH(CR$11,$AK12:$AP12,0)),-1,0)*_xlfn.IFS(ISNUMBER($AD12),$AD12,ISNUMBER($AE12),$AE12,ISNUMBER($AF12),$AF12,AND($AD12=0,$AE12=0,$AF12=0),1) -> 0 | CS12: =IF(ISNUMBER(MATCH(CS$11,$AG12:$AJ12,0)),1,0)*IF(ISNUMBER($AF12),(1-$AF12),1) + IF(ISNUMBER(MATCH(CS$11,$AK12:$AP12,0)),-1,0)*_xlfn.IFS(ISNUMBER($AD12),$AD12,ISNUMBER($AE12),$AE12,ISNUMBER($AF12),$AF12,AND($AD12=0,$AE12=0,$AF12=0),1) -> 0 | CT12: =IF(ISNUMBER(MATCH(CT$11,$AG12:$AJ12,0)),1,0)*IF(ISNUMBER($AF12),(1-$AF12),1) + IF(ISNUMBER(MATCH(CT$11,$AK12:$AP12,0)),-1,0)*_xlfn.IFS(ISNUMBER($AD12),$AD12,ISNUMBER($AE12),$AE12,ISNUMBER($AF12),$AF12,AND($AD12=0,$AE12=0,$AF12=0),1) -> 0 | CU12: =IF(ISNUMBER(MATCH(CU$11,$AG12:$AJ12,0)),1,0)*IF(ISNUMBER($AF12),(1-$AF12),1) + IF(ISNUMBER(MATCH(CU$11,$AK12:$AP12,0)),-1,0)*_xlfn.IFS(ISNUMBER($AD12),$AD12,ISNUMBER($AE12),$AE12,ISNUMBER($AF12),$AF12,AND($AD12=0,$AE12=0,$AF12=0),1) -> 0 | CV12: =IF(ISNUMBER(MATCH(CV$11,$AG12:$AJ12,0)),1,0)*IF(ISNUMBER($AF12),(1-$AF12),1) + IF(ISNUMBER(MATCH(CV$11,$AK12:$AP12,0)),-1,0)*_xlfn.IFS(ISNUMBER($AD12),$AD12,ISNUMBER($AE12),$AE12,ISNUMBER($AF12),$AF12,AND($AD12=0,$AE12=0,$AF12=0),1) -> 0 | CW12: =IF(ISNUMBER(MATCH(CW$11,$AG12:$AJ12,0)),1,0)*IF(ISNUMBER($AF12),(1-$AF12),1) + IF(ISNUMBER(MATCH(CW$11,$AK12:$AP12,0)),-1,0)*_xlfn.IFS(ISNUMBER($AD12),$AD12,ISNUMBER($AE12),$AE12,ISNUMBER($AF12),$AF12,AND($AD12=0,$AE12=0,$AF12=0),1) -> 0 | CX12: =IF(ISNUMBER(MATCH(CX$11,$AG12:$AJ12,0)),1,0)*IF(ISNUMBER($AF12),(1-$AF12),1) + IF(ISNUMBER(MATCH(CX$11,$AK12:$AP12,0)),-1,0)*_xlfn.IFS(ISNUMBER($AD12),$AD12,ISNUMBER($AE12),$AE12,ISNUMBER($AF12),$AF12,AND($AD12=0,$AE12=0,$AF12=0),1) -> 0 | CY12: =IF(ISNUMBER(MATCH(CY$11,$AG12:$AJ12,0)),1,0)*IF(ISNUMBER($AF12),(1-$AF12),1) + IF(ISNUMBER(MATCH(CY$11,$AK12:$AP12,0)),-1,0)*_xlfn.IFS(ISNUMBER($AD12),$AD12,ISNUMBER($AE12),$AE12,ISNUMBER($AF12),$AF12,AND($AD12=0,$AE12=0,$AF12=0),1) -> 0 | CZ12: =IF(ISNUMBER(MATCH(CZ$11,$AG12:$AJ12,0)),1,0)*IF(ISNUMBER($AF12),(1-$AF12),1) + IF(ISNUMBER(MATCH(CZ$11,$AK12:$AP12,0)),-1,0)*_xlfn.IFS(ISNUMBER($AD12),$AD12,ISNUMBER($AE12),$AE12,ISNUMBER($AF12),$AF12,AND($AD12=0,$AE12=0,$AF12=0),1) -> 0 | DA12: =IF(ISNUMBER(MATCH(DA$11,$AG12:$AJ12,0)),1,0)*IF(ISNUMBER($AF12),(1-$AF12),1) + IF(ISNUMBER(MATCH(DA$11,$AK12:$AP12,0)),-1,0)*_xlfn.IFS(ISNUMBER($AD12),$AD12,ISNUMBER($AE12),$AE12,ISNUMBER($AF12),$AF12,AND($AD12=0,$AE12=0,$AF12=0),1) -> 0 | DB12: =IF(ISNUMBER(MATCH(DB$11,$AG12:$AJ12,0)),1,0)*IF(ISNUMBER($AF12),(1-$AF12),1) + IF(ISNUMBER(MATCH(DB$11,$AK12:$AP12,0)),-1,0)*_xlfn.IFS(ISNUMBER($AD12),$AD12,ISNUMBER($AE12),$AE12,ISNUMBER($AF12),$AF12,AND($AD12=0,$AE12=0,$AF12=0),1) -> 0 | DC12: =IF(ISNUMBER(MATCH(DC$11,$AG12:$AJ12,0)),1,0)*IF(ISNUMBER($AF12),(1-$AF12),1) + IF(ISNUMBER(MATCH(DC$11,$AK12:$AP12,0)),-1,0)*_xlfn.IFS(ISNUMBER($AD12),$AD12,ISNUMBER($AE12),$AE12,ISNUMBER($AF12),$AF12,AND($AD12=0,$AE12=0,$AF12=0),1) -> 0 | DD12: =IF(ISNUMBER(MATCH(DD$11,$AG12:$AJ12,0)),1,0)*IF(ISNUMBER($AF12),(1-$AF12),1) + IF(ISNUMBER(MATCH(DD$11,$AK12:$AP12,0)),-1,0)*_xlfn.IFS(ISNUMBER($AD12),$AD12,ISNUMBER($AE12),$AE12,ISNUMBER($AF12),$AF12,AND($AD12=0,$AE12=0,$AF12=0),1) -> 0 | DE12: =IF(ISNUMBER(MATCH(DE$11,$AG12:$AJ12,0)),1,0)*IF(ISNUMBER($AF12),(1-$AF12),1) + IF(ISNUMBER(MATCH(DE$11,$AK12:$AP12,0)),-1,0)*_xlfn.IFS(ISNUMBER($AD12),$AD12,ISNUMBER($AE12),$AE12,ISNUMBER($AF12),$AF12,AND($AD12=0,$AE12=0,$AF12=0),1) -> 0 | DG12: =AC12+0 -> 0 | DH12: =IF(Z12<>"",Z12,DH11) -> PowerCrit | DI12: =IF(AA12<>"",AA12,DI11) -> TX | DJ12: =AB12 -> Conservation
S13: e_crit_tx-swb | T13: 4139.971855 | U13: 4139.971855 | V13: 4139.971855 | W13: 4139.971855 | X13: 4139.971855 | Y13: 4139.971855 | AB13: Losses | AD13: ='Back-up Power Calculate'!F22 -> 0.01 | AG13: q_crit_tx-amb | AK13: e_crit_u-tx | AR13: =IF(ISNUMBER(MATCH(AR$11,$AG13:$AJ13,0)),1,0)*IF(ISNUMBER($AF13),(1-$AF13),1) + IF(ISNUMBER(MATCH(AR$11,$AK13:$AP13,0)),-1,0)*_xlfn.IFS(ISNUMBER($AD13),$AD13,ISNUMBER($AE13),$AE13,ISNUMBER($AF13),$AF13,AND($AD13=0,$AE13=0,$AF13=0),1) -> -0.01 | AS13: =IF(ISNUMBER(MATCH(AS$11,$AG13:$AJ13,0)),1,0)*IF(ISNUMBER($AF13),(1-$AF13),1) + IF(ISNUMBER(MATCH(AS$11,$AK13:$AP13,0)),-1,0)*_xlfn.IFS(ISNUMBER($AD13),$AD13,ISNUMBER($AE13),$AE13,ISNUMBER($AF13),$AF13,AND($AD13=0,$AE13=0,$AF13=0),1) -> 0 | AT13: =IF(ISNUMBER(MATCH(AT$11,$AG13:$AJ13,0)),1,0)*IF(ISNUMBER($AF13),(1-$AF13),1) + IF(ISNUMBER(MATCH(AT$11,$AK13:$AP13,0)),-1,0)*_xlfn.IFS(ISNUMBER($AD13),$AD13,ISNUMBER($AE13),$AE13,ISNUMBER($AF13),$AF13,AND($AD13=0,$AE13=0,$AF13=0),1) -> 1 | AU13: =IF(ISNUMBER(MATCH(AU$11,$AG13:$AJ13,0)),1,0)*IF(ISNUMBER($AF13),(1-$AF13),1) + IF(ISNUMBER(MATCH(AU$11,$AK13:$AP13,0)),-1,0)*_xlfn.IFS(ISNUMBER($AD13),$AD13,ISNUMBER($AE13),$AE13,ISNUMBER($AF13),$AF13,AND($AD13=0,$AE13=0,$AF13=0),1) -> 0 | AV13: =IF(ISNUMBER(MATCH(AV$11,$AG13:$AJ13,0)),1,0)*IF(ISNUMBER($AF13),(1-$AF13),1) + IF(ISNUMBER(MATCH(AV$11,$AK13:$AP13,0)),-1,0)*_xlfn.IFS(ISNUMBER($AD13),$AD13,ISNUMBER($AE13),$AE13,ISNUMBER($AF13),$AF13,AND($AD13=0,$AE13=0,$AF13=0),1) -> 0 | AW13: =IF(ISNUMBER(MATCH(AW$11,$AG13:$AJ13,0)),1,0)*IF(ISNUMBER($AF13),(1-$AF13),1) + IF(ISNUMBER(MATCH(AW$11,$AK13:$AP13,0)),-1,0)*_xlfn.IFS(ISNUMBER($AD13),$AD13,ISNUMBER($AE13),$AE13,ISNUMBER($AF13),$AF13,AND($AD13=0,$AE13=0,$AF13=0),1) -> 0 | AX13: =IF(ISNUMBER(MATCH(AX$11,$AG13:$AJ13,0)),1,0)*IF(ISNUMBER($AF13),(1-$AF13),1) + IF(ISNUMBER(MATCH(AX$11,$AK13:$AP13,0)),-1,0)*_xlfn.IFS(ISNUMBER($AD13),$AD13,ISNUMBER($AE13),$AE13,ISNUMBER($AF13),$AF13,AND($AD13=0,$AE13=0,$AF13=0),1) -> 0 | AY13: =IF(ISNUMBER(MATCH(AY$11,$AG13:$AJ13,0)),1,0)*IF(ISNUMBER($AF13),(1-$AF13),1) + IF(ISNUMBER(MATCH(AY$11,$AK13:$AP13,0)),-1,0)*_xlfn.IFS(ISNUMBER($AD13),$AD13,ISNUMBER($AE13),$AE13,ISNUMBER($AF13),$AF13,AND($AD13=0,$AE13=0,$AF13=0),1) -> 0 | AZ13: =IF(ISNUMBER(MATCH(AZ$11,$AG13:$AJ13,0)),1,0)*IF(ISNUMBER($AF13),(1-$AF13),1) + IF(ISNUMBER(MATCH(AZ$11,$AK13:$AP13,0)),-1,0)*_xlfn.IFS(ISNUMBER($AD13),$AD13,ISNUMBER($AE13),$AE13,ISNUMBER($AF13),$AF13,AND($AD13=0,$AE13=0,$AF13=0),1) -> 0 | BA13: =IF(ISNUMBER(MATCH(BA$11,$AG13:$AJ13,0)),1,0)*IF(ISNUMBER($AF13),(1-$AF13),1) + IF(ISNUMBER(MATCH(BA$11,$AK13:$AP13,0)),-1,0)*_xlfn.IFS(ISNUMBER($AD13),$AD13,ISNUMBER($AE13),$AE13,ISNUMBER($AF13),$AF13,AND($AD13=0,$AE13=0,$AF13=0),1) -> 0 | BB13: =IF(ISNUMBER(MATCH(BB$11,$AG13:$AJ13,0)),1,0)*IF(ISNUMBER($AF13),(1-$AF13),1) + IF(ISNUMBER(MATCH(BB$11,$AK13:$AP13,0)),-1,0)*_xlfn.IFS(ISNUMBER($AD13),$AD13,ISNUMBER($AE13),$AE13,ISNUMBER($AF13),$AF13,AND($AD13=0,$AE13=0,$AF13=0),1) -> 0 | BC13: =IF(ISNUMBER(MATCH(BC$11,$AG13:$AJ13,0)),1,0)*IF(ISNUMBER($AF13),(1-$AF13),1) + IF(ISNUMBER(MATCH(BC$11,$AK13:$AP13,0)),-1,0)*_xlfn.IFS(ISNUMBER($AD13),$AD13,ISNUMBER($AE13),$AE13,ISNUMBER($AF13),$AF13,AND($AD13=0,$AE13=0,$AF13=0),1) -> 0 | BD13: =IF(ISNUMBER(MATCH(BD$11,$AG13:$AJ13,0)),1,0)*IF(ISNUMBER($AF13),(1-$AF13),1) + IF(ISNUMBER(MATCH(BD$11,$AK13:$AP13,0)),-1,0)*_xlfn.IFS(ISNUMBER($AD13),$AD13,ISNUMBER($AE13),$AE13,ISNUMBER($AF13),$AF13,AND($AD13=0,$AE13=0,$AF13=0),1) -> 0 | BE13: =IF(ISNUMBER(MATCH(BE$11,$AG13:$AJ13,0)),1,0)*IF(ISNUMBER($AF13),(1-$AF13),1) + IF(ISNUMBER(MATCH(BE$11,$AK13:$AP13,0)),-1,0)*_xlfn.IFS(ISNUMBER($AD13),$AD13,ISNUMBER($AE13),$AE13,ISNUMBER($AF13),$AF13,AND($AD13=0,$AE13=0,$AF13=0),1) -> 0 | BF13: =IF(ISNUMBER(MATCH(BF$11,$AG13:$AJ13,0)),1,0)*IF(ISNUMBER($AF13),(1-$AF13),1) + IF(ISNUMBER(MATCH(BF$11,$AK13:$AP13,0)),-1,0)*_xlfn.IFS(ISNUMBER($AD13),$AD13,ISNUMBER($AE13),$AE13,ISNUMBER($AF13),$AF13,AND($AD13=0,$AE13=0,$AF13=0),1) -> 0 | BG13: =IF(ISNUMBER(MATCH(BG$11,$AG13:$AJ13,0)),1,0)*IF(ISNUMBER($AF13),(1-$AF13),1) + IF(ISNUMBER(MATCH(BG$11,$AK13:$AP13,0)),-1,0)*_xlfn.IFS(ISNUMBER($AD13),$AD13,ISNUMBER($AE13),$AE13,ISNUMBER($AF13),$AF13,AND($AD13=0,$AE13=0,$AF13=0),1) -> 0 | BH13: =IF(ISNUMBER(MATCH(BH$11,$AG13:$AJ13,0)),1,0)*IF(ISNUMBER($AF13),(1-$AF13),1) + IF(ISNUMBER(MATCH(BH$11,$AK13:$AP13,0)),-1,0)*_xlfn.IFS(ISNUMBER($AD13),$AD13,ISNUMBER($AE13),$AE13,ISNUMBER($AF13),$AF13,AND($AD13=0,$AE13=0,$AF13=0),1) -> 0 | BI13: =IF(ISNUMBER(MATCH(BI$11,$AG13:$AJ13,0)),1,0)*IF(ISNUMBER($AF13),(1-$AF13),1) + IF(ISNUMBER(MATCH(BI$11,$AK13:$AP13,0)),-1,0)*_xlfn.IFS(ISNUMBER($AD13),$AD13,ISNUMBER($AE13),$AE13,ISNUMBER($AF13),$AF13,AND($AD13=0,$AE13=0,$AF13=0),1) -> 0 | BJ13: =IF(ISNUMBER(MATCH(BJ$11,$AG13:$AJ13,0)),1,0)*IF(ISNUMBER($AF13),(1-$AF13),1) + IF(ISNUMBER(MATCH(BJ$11,$AK13:$AP13,0)),-1,0)*_xlfn.IFS(ISNUMBER($AD13),$AD13,ISNUMBER($AE13),$AE13,ISNUMBER($AF13),$AF13,AND($AD13=0,$AE13=0,$AF13=0),1) -> 0 | BK13: =IF(ISNUMBER(MATCH(BK$11,$AG13:$AJ13,0)),1,0)*IF(ISNUMBER($AF13),(1-$AF13),1) + IF(ISNUMBER(MATCH(BK$11,$AK13:$AP13,0)),-1,0)*_xlfn.IFS(ISNUMBER($AD13),$AD13,ISNUMBER($AE13),$AE13,ISNUMBER($AF13),$AF13,AND($AD13=0,$AE13=0,$AF13=0),1) -> 0 | BL13: =IF(ISNUMBER(MATCH(BL$11,$AG13:$AJ13,0)),1,0)*IF(ISNUMBER($AF13),(1-$AF13),1) + IF(ISNUMBER(MATCH(BL$11,$AK13:$AP13,0)),-1,0)*_xlfn.IFS(ISNUMBER($AD13),$AD13,ISNUMBER($AE13),$AE13,ISNUMBER($AF13),$AF13,AND($AD13=0,$AE13=0,$AF13=0),1) -> 0 | BM13: =IF(ISNUMBER(MATCH(BM$11,$AG13:$AJ13,0)),1,0)*IF(ISNUMBER($AF13),(1-$AF13),1) + IF(ISNUMBER(MATCH(BM$11,$AK13:$AP13,0)),-1,0)*_xlfn.IFS(ISNUMBER($AD13),$AD13,ISNUMBER($AE13),$AE13,ISNUMBER($AF13),$AF13,AND($AD13=0,$AE13=0,$AF13=0),1) -> 0 | BN13: =IF(ISNUMBER(MATCH(BN$11,$AG13:$AJ13,0)),1,0)*IF(ISNUMBER($AF13),(1-$AF13),1) + IF(ISNUMBER(MATCH(BN$11,$AK13:$AP13,0)),-1,0)*_xlfn.IFS(ISNUMBER($AD13),$AD13,ISNUMBER($AE13),$AE13,ISNUMBER($AF13),$AF13,AND($AD13=0,$AE13=0,$AF13=0),1) -> 0 | BO13: =IF(ISNUMBER(MATCH(BO$11,$AG13:$AJ13,0)),1,0)*IF(ISNUMBER($AF13),(1-$AF13),1) + IF(ISNUMBER(MATCH(BO$11,$AK13:$AP13,0)),-1,0)*_xlfn.IFS(ISNUMBER($AD13),$AD13,ISNUMBER($AE13),$AE13,ISNUMBER($AF13),$AF13,AND($AD13=0,$AE13=0,$AF13=0),1) -> 0 | BP13: =IF(ISNUMBER(MATCH(BP$11,$AG13:$AJ13,0)),1,0)*IF(ISNUMBER($AF13),(1-$AF13),1) + IF(ISNUMBER(MATCH(BP$11,$AK13:$AP13,0)),-1,0)*_xlfn.IFS(ISNUMBER($AD13),$AD13,ISNUMBER($AE13),$AE13,ISNUMBER($AF13),$AF13,AND($AD13=0,$AE13=0,$AF13=0),1) -> 0 | BQ13: =IF(ISNUMBER(MATCH(BQ$11,$AG13:$AJ13,0)),1,0)*IF(ISNUMBER($AF13),(1-$AF13),1) + IF(ISNUMBER(MATCH(BQ$11,$AK13:$AP13,0)),-1,0)*_xlfn.IFS(ISNUMBER($AD13),$AD13,ISNUMBER($AE13),$AE13,ISNUMBER($AF13),$AF13,AND($AD13=0,$AE13=0,$AF13=0),1) -> 0 | BR13: =IF(ISNUMBER(MATCH(BR$11,$AG13:$AJ13,0)),1,0)*IF(ISNUMBER($AF13),(1-$AF13),1) + IF(ISNUMBER(MATCH(BR$11,$AK13:$AP13,0)),-1,0)*_xlfn.IFS(ISNUMBER($AD13),$AD13,ISNUMBER($AE13),$AE13,ISNUMBER($AF13),$AF13,AND($AD13=0,$AE13=0,$AF13=0),1) -> 0 | BS13: =IF(ISNUMBER(MATCH(BS$11,$AG13:$AJ13,0)),1,0)*IF(ISNUMBER($AF13),(1-$AF13),1) + IF(ISNUMBER(MATCH(BS$11,$AK13:$AP13,0)),-1,0)*_xlfn.IFS(ISNUMBER($AD13),$AD13,ISNUMBER($AE13),$AE13,ISNUMBER($AF13),$AF13,AND($AD13=0,$AE13=0,$AF13=0),1) -> 0 | BT13: =IF(ISNUMBER(MATCH(BT$11,$AG13:$AJ13,0)),1,0)*IF(ISNUMBER($AF13),(1-$AF13),1) + IF(ISNUMBER(MATCH(BT$11,$AK13:$AP13,0)),-1,0)*_xlfn.IFS(ISNUMBER($AD13),$AD13,ISNUMBER($AE13),$AE13,ISNUMBER($AF13),$AF13,AND($AD13=0,$AE13=0,$AF13=0),1) -> 0 | BU13: =IF(ISNUMBER(MATCH(BU$11,$AG13:$AJ13,0)),1,0)*IF(ISNUMBER($AF13),(1-$AF13),1) + IF(ISNUMBER(MATCH(BU$11,$AK13:$AP13,0)),-1,0)*_xlfn.IFS(ISNUMBER($AD13),$AD13,ISNUMBER($AE13),$AE13,ISNUMBER($AF13),$AF13,AND($AD13=0,$AE13=0,$AF13=0),1) -> 0 | BV13: =IF(ISNUMBER(MATCH(BV$11,$AG13:$AJ13,0)),1,0)*IF(ISNUMBER($AF13),(1-$AF13),1) + IF(ISNUMBER(MATCH(BV$11,$AK13:$AP13,0)),-1,0)*_xlfn.IFS(ISNUMBER($AD13),$AD13,ISNUMBER($AE13),$AE13,ISNUMBER($AF13),$AF13,AND($AD13=0,$AE13=0,$AF13=0),1) -> 0 | BW13: =IF(ISNUMBER(MATCH(BW$11,$AG13:$AJ13,0)),1,0)*IF(ISNUMBER($AF13),(1-$AF13),1) + IF(ISNUMBER(MATCH(BW$11,$AK13:$AP13,0)),-1,0)*_xlfn.IFS(ISNUMBER($AD13),$AD13,ISNUMBER($AE13),$AE13,ISNUMBER($AF13),$AF13,AND($AD13=0,$AE13=0,$AF13=0),1) -> 0 | BX13: =IF(ISNUMBER(MATCH(BX$11,$AG13:$AJ13,0)),1,0)*IF(ISNUMBER($AF13),(1-$AF13),1) + IF(ISNUMBER(MATCH(BX$11,$AK13:$AP13,0)),-1,0)*_xlfn.IFS(ISNUMBER($AD13),$AD13,ISNUMBER($AE13),$AE13,ISNUMBER($AF13),$AF13,AND($AD13=0,$AE13=0,$AF13=0),1) -> 0 | BY13: =IF(ISNUMBER(MATCH(BY$11,$AG13:$AJ13,0)),1,0)*IF(ISNUMBER($AF13),(1-$AF13),1) + IF(ISNUMBER(MATCH(BY$11,$AK13:$AP13,0)),-1,0)*_xlfn.IFS(ISNUMBER($AD13),$AD13,ISNUMBER($AE13),$AE13,ISNUMBER($AF13),$AF13,AND($AD13=0,$AE13=0,$AF13=0),1) -> 0 | BZ13: =IF(ISNUMBER(MATCH(BZ$11,$AG13:$AJ13,0)),1,0)*IF(ISNUMBER($AF13),(1-$AF13),1) + IF(ISNUMBER(MATCH(BZ$11,$AK13:$AP13,0)),-1,0)*_xlfn.IFS(ISNUMBER($AD13),$AD13,ISNUMBER($AE13),$AE13,ISNUMBER($AF13),$AF13,AND($AD13=0,$AE13=0,$AF13=0),1) -> 0 | CA13: =IF(ISNUMBER(MATCH(CA$11,$AG13:$AJ13,0)),1,0)*IF(ISNUMBER($AF13),(1-$AF13),1) + IF(ISNUMBER(MATCH(CA$11,$AK13:$AP13,0)),-1,0)*_xlfn.IFS(ISNUMBER($AD13),$AD13,ISNUMBER($AE13),$AE13,ISNUMBER($AF13),$AF13,AND($AD13=0,$AE13=0,$AF13=0),1) -> 0 | CB13: =IF(ISNUMBER(MATCH(CB$11,$AG13:$AJ13,0)),1,0)*IF(ISNUMBER($AF13),(1-$AF13),1) + IF(ISNUMBER(MATCH(CB$11,$AK13:$AP13,0)),-1,0)*_xlfn.IFS(ISNUMBER($AD13),$AD13,ISNUMBER($AE13),$AE13,ISNUMBER($AF13),$AF13,AND($AD13=0,$AE13=0,$AF13=0),1) -> 0 | CC13: =IF(ISNUMBER(MATCH(CC$11,$AG13:$AJ13,0)),1,0)*IF(ISNUMBER($AF13),(1-$AF13),1) + IF(ISNUMBER(MATCH(CC$11,$AK13:$AP13,0)),-1,0)*_xlfn.IFS(ISNUMBER($AD13),$AD13,ISNUMBER($AE13),$AE13,ISNUMBER($AF13),$AF13,AND($AD13=0,$AE13=0,$AF13=0),1) -> 0 | CD13: =IF(ISNUMBER(MATCH(CD$11,$AG13:$AJ13,0)),1,0)*IF(ISNUMBER($AF13),(1-$AF13),1) + IF(ISNUMBER(MATCH(CD$11,$AK13:$AP13,0)),-1,0)*_xlfn.IFS(ISNUMBER($AD13),$AD13,ISNUMBER($AE13),$AE13,ISNUMBER($AF13),$AF13,AND($AD13=0,$AE13=0,$AF13=0),1) -> 0 | CE13: =IF(ISNUMBER(MATCH(CE$11,$AG13:$AJ13,0)),1,0)*IF(ISNUMBER($AF13),(1-$AF13),1) + IF(ISNUMBER(MATCH(CE$11,$AK13:$AP13,0)),-1,0)*_xlfn.IFS(ISNUMBER($AD13),$AD13,ISNUMBER($AE13),$AE13,ISNUMBER($AF13),$AF13,AND($AD13=0,$AE13=0,$AF13=0),1) -> 0 | CF13: =IF(ISNUMBER(MATCH(CF$11,$AG13:$AJ13,0)),1,0)*IF(ISNUMBER($AF13),(1-$AF13),1) + IF(ISNUMBER(MATCH(CF$11,$AK13:$AP13,0)),-1,0)*_xlfn.IFS(ISNUMBER($AD13),$AD13,ISNUMBER($AE13),$AE13,ISNUMBER($AF13),$AF13,AND($AD13=0,$AE13=0,$AF13=0),1) -> 0 | CG13: =IF(ISNUMBER(MATCH(CG$11,$AG13:$AJ13,0)),1,0)*IF(ISNUMBER($AF13),(1-$AF13),1) + IF(ISNUMBER(MATCH(CG$11,$AK13:$AP13,0)),-1,0)*_xlfn.IFS(ISNUMBER($AD13),$AD13,ISNUMBER($AE13),$AE13,ISNUMBER($AF13),$AF13,AND($AD13=0,$AE13=0,$AF13=0),1) -> 0 | CH13: =IF(ISNUMBER(MATCH(CH$11,$AG13:$AJ13,0)),1,0)*IF(ISNUMBER($AF13),(1-$AF13),1) + IF(ISNUMBER(MATCH(CH$11,$AK13:$AP13,0)),-1,0)*_xlfn.IFS(ISNUMBER($AD13),$AD13,ISNUMBER($AE13),$AE13,ISNUMBER($AF13),$AF13,AND($AD13=0,$AE13=0,$AF13=0),1) -> 0 | CI13: =IF(ISNUMBER(MATCH(CI$11,$AG13:$AJ13,0)),1,0)*IF(ISNUMBER($AF13),(1-$AF13),1) + IF(ISNUMBER(MATCH(CI$11,$AK13:$AP13,0)),-1,0)*_xlfn.IFS(ISNUMBER($AD13),$AD13,ISNUMBER($AE13),$AE13,ISNUMBER($AF13),$AF13,AND($AD13=0,$AE13=0,$AF13=0),1) -> 0 | CJ13: =IF(ISNUMBER(MATCH(CJ$11,$AG13:$AJ13,0)),1,0)*IF(ISNUMBER($AF13),(1-$AF13),1) + IF(ISNUMBER(MATCH(CJ$11,$AK13:$AP13,0)),-1,0)*_xlfn.IFS(ISNUMBER($AD13),$AD13,ISNUMBER($AE13),$AE13,ISNUMBER($AF13),$AF13,AND($AD13=0,$AE13=0,$AF13=0),1) -> 0 | CK13: =IF(ISNUMBER(MATCH(CK$11,$AG13:$AJ13,0)),1,0)*IF(ISNUMBER($AF13),(1-$AF13),1) + IF(ISNUMBER(MATCH(CK$11,$AK13:$AP13,0)),-1,0)*_xlfn.IFS(ISNUMBER($AD13),$AD13,ISNUMBER($AE13),$AE13,ISNUMBER($AF13),$AF13,AND($AD13=0,$AE13=0,$AF13=0),1) -> 0 | CL13: =IF(ISNUMBER(MATCH(CL$11,$AG13:$AJ13,0)),1,0)*IF(ISNUMBER($AF13),(1-$AF13),1) + IF(ISNUMBER(MATCH(CL$11,$AK13:$AP13,0)),-1,0)*_xlfn.IFS(ISNUMBER($AD13),$AD13,ISNUMBER($AE13),$AE13,ISNUMBER($AF13),$AF13,AND($AD13=0,$AE13=0,$AF13=0),1) -> 0 | CM13: =IF(ISNUMBER(MATCH(CM$11,$AG13:$AJ13,0)),1,0)*IF(ISNUMBER($AF13),(1-$AF13),1) + IF(ISNUMBER(MATCH(CM$11,$AK13:$AP13,0)),-1,0)*_xlfn.IFS(ISNUMBER($AD13),$AD13,ISNUMBER($AE13),$AE13,ISNUMBER($AF13),$AF13,AND($AD13=0,$AE13=0,$AF13=0),1) -> 0 | CN13: =IF(ISNUMBER(MATCH(CN$11,$AG13:$AJ13,0)),1,0)*IF(ISNUMBER($AF13),(1-$AF13),1) + IF(ISNUMBER(MATCH(CN$11,$AK13:$AP13,0)),-1,0)*_xlfn.IFS(ISNUMBER($AD13),$AD13,ISNUMBER($AE13),$AE13,ISNUMBER($AF13),$AF13,AND($AD13=0,$AE13=0,$AF13=0),1) -> 0 | CO13: =IF(ISNUMBER(MATCH(CO$11,$AG13:$AJ13,0)),1,0)*IF(ISNUMBER($AF13),(1-$AF13),1) + IF(ISNUMBER(MATCH(CO$11,$AK13:$AP13,0)),-1,0)*_xlfn.IFS(ISNUMBER($AD13),$AD13,ISNUMBER($AE13),$AE13,ISNUMBER($AF13),$AF13,AND($AD13=0,$AE13=0,$AF13=0),1) -> 0 | CP13: =IF(ISNUMBER(MATCH(CP$11,$AG13:$AJ13,0)),1,0)*IF(ISNUMBER($AF13),(1-$AF13),1) + IF(ISNUMBER(MATCH(CP$11,$AK13:$AP13,0)),-1,0)*_xlfn.IFS(ISNUMBER($AD13),$AD13,ISNUMBER($AE13),$AE13,ISNUMBER($AF13),$AF13,AND($AD13=0,$AE13=0,$AF13=0),1) -> 0 | CQ13: =IF(ISNUMBER(MATCH(CQ$11,$AG13:$AJ13,0)),1,0)*IF(ISNUMBER($AF13),(1-$AF13),1) + IF(ISNUMBER(MATCH(CQ$11,$AK13:$AP13,0)),-1,0)*_xlfn.IFS(ISNUMBER($AD13),$AD13,ISNUMBER($AE13),$AE13,ISNUMBER($AF13),$AF13,AND($AD13=0,$AE13=0,$AF13=0),1) -> 0 | CR13: =IF(ISNUMBER(MATCH(CR$11,$AG13:$AJ13,0)),1,0)*IF(ISNUMBER($AF13),(1-$AF13),1) + IF(ISNUMBER(MATCH(CR$11,$AK13:$AP13,0)),-1,0)*_xlfn.IFS(ISNUMBER($AD13),$AD13,ISNUMBER($AE13),$AE13,ISNUMBER($AF13),$AF13,AND($AD13=0,$AE13=0,$AF13=0),1) -> 0 | CS13: =IF(ISNUMBER(MATCH(CS$11,$AG13:$AJ13,0)),1,0)*IF(ISNUMBER($AF13),(1-$AF13),1) + IF(ISNUMBER(MATCH(CS$11,$AK13:$AP13,0)),-1,0)*_xlfn.IFS(ISNUMBER($AD13),$AD13,ISNUMBER($AE13),$AE13,ISNUMBER($AF13),$AF13,AND($AD13=0,$AE13=0,$AF13=0),1) -> 0 | CT13: =IF(ISNUMBER(MATCH(CT$11,$AG13:$AJ13,0)),1,0)*IF(ISNUMBER($AF13),(1-$AF13),1) + IF(ISNUMBER(MATCH(CT$11,$AK13:$AP13,0)),-1,0)*_xlfn.IFS(ISNUMBER($AD13),$AD13,ISNUMBER($AE13),$AE13,ISNUMBER($AF13),$AF13,AND($AD13=0,$AE13=0,$AF13=0),1) -> 0 | CU13: =IF(ISNUMBER(MATCH(CU$11,$AG13:$AJ13,0)),1,0)*IF(ISNUMBER($AF13),(1-$AF13),1) + IF(ISNUMBER(MATCH(CU$11,$AK13:$AP13,0)),-1,0)*_xlfn.IFS(ISNUMBER($AD13),$AD13,ISNUMBER($AE13),$AE13,ISNUMBER($AF13),$AF13,AND($AD13=0,$AE13=0,$AF13=0),1) -> 0 | CV13: =IF(ISNUMBER(MATCH(CV$11,$AG13:$AJ13,0)),1,0)*IF(ISNUMBER($AF13),(1-$AF13),1) + IF(ISNUMBER(MATCH(CV$11,$AK13:$AP13,0)),-1,0)*_xlfn.IFS(ISNUMBER($AD13),$AD13,ISNUMBER($AE13),$AE13,ISNUMBER($AF13),$AF13,AND($AD13=0,$AE13=0,$AF13=0),1) -> 0 | CW13: =IF(ISNUMBER(MATCH(CW$11,$AG13:$AJ13,0)),1,0)*IF(ISNUMBER($AF13),(1-$AF13),1) + IF(ISNUMBER(MATCH(CW$11,$AK13:$AP13,0)),-1,0)*_xlfn.IFS(ISNUMBER($AD13),$AD13,ISNUMBER($AE13),$AE13,ISNUMBER($AF13),$AF13,AND($AD13=0,$AE13=0,$AF13=0),1) -> 0 | CX13: =IF(ISNUMBER(MATCH(CX$11,$AG13:$AJ13,0)),1,0)*IF(ISNUMBER($AF13),(1-$AF13),1) + IF(ISNUMBER(MATCH(CX$11,$AK13:$AP13,0)),-1,0)*_xlfn.IFS(ISNUMBER($AD13),$AD13,ISNUMBER($AE13),$AE13,ISNUMBER($AF13),$AF13,AND($AD13=0,$AE13=0,$AF13=0),1) -> 0 | CY13: =IF(ISNUMBER(MATCH(CY$11,$AG13:$AJ13,0)),1,0)*IF(ISNUMBER($AF13),(1-$AF13),1) + IF(ISNUMBER(MATCH(CY$11,$AK13:$AP13,0)),-1,0)*_xlfn.IFS(ISNUMBER($AD13),$AD13,ISNUMBER($AE13),$AE13,ISNUMBER($AF13),$AF13,AND($AD13=0,$AE13=0,$AF13=0),1) -> 0 | CZ13: =IF(ISNUMBER(MATCH(CZ$11,$AG13:$AJ13,0)),1,0)*IF(ISNUMBER($AF13),(1-$AF13),1) + IF(ISNUMBER(MATCH(CZ$11,$AK13:$AP13,0)),-1,0)*_xlfn.IFS(ISNUMBER($AD13),$AD13,ISNUMBER($AE13),$AE13,ISNUMBER($AF13),$AF13,AND($AD13=0,$AE13=0,$AF13=0),1) -> 0 | DA13: =IF(ISNUMBER(MATCH(DA$11,$AG13:$AJ13,0)),1,0)*IF(ISNUMBER($AF13),(1-$AF13),1) + IF(ISNUMBER(MATCH(DA$11,$AK13:$AP13,0)),-1,0)*_xlfn.IFS(ISNUMBER($AD13),$AD13,ISNUMBER($AE13),$AE13,ISNUMBER($AF13),$AF13,AND($AD13=0,$AE13=0,$AF13=0),1) -> 0 | DB13: =IF(ISNUMBER(MATCH(DB$11,$AG13:$AJ13,0)),1,0)*IF(ISNUMBER($AF13),(1-$AF13),1) + IF(ISNUMBER(MATCH(DB$11,$AK13:$AP13,0)),-1,0)*_xlfn.IFS(ISNUMBER($AD13),$AD13,ISNUMBER($AE13),$AE13,ISNUMBER($AF13),$AF13,AND($AD13=0,$AE13=0,$AF13=0),1) -> 0 | DC13: =IF(ISNUMBER(MATCH(DC$11,$AG13:$AJ13,0)),1,0)*IF(ISNUMBER($AF13),(1-$AF13),1) + IF(ISNUMBER(MATCH(DC$11,$AK13:$AP13,0)),-1,0)*_xlfn.IFS(ISNUMBER($AD13),$AD13,ISNUMBER($AE13),$AE13,ISNUMBER($AF13),$AF13,AND($AD13=0,$AE13=0,$AF13=0),1) -> 0 | DD13: =IF(ISNUMBER(MATCH(DD$11,$AG13:$AJ13,0)),1,0)*IF(ISNUMBER($AF13),(1-$AF13),1) + IF(ISNUMBER(MATCH(DD$11,$AK13:$AP13,0)),-1,0)*_xlfn.IFS(ISNUMBER($AD13),$AD13,ISNUMBER($AE13),$AE13,ISNUMBER($AF13),$AF13,AND($AD13=0,$AE13=0,$AF13=0),1) -> 0 | DE13: =IF(ISNUMBER(MATCH(DE$11,$AG13:$AJ13,0)),1,0)*IF(ISNUMBER($AF13),(1-$AF13),1) + IF(ISNUMBER(MATCH(DE$11,$AK13:$AP13,0)),-1,0)*_xlfn.IFS(ISNUMBER($AD13),$AD13,ISNUMBER($AE13),$AE13,ISNUMBER($AF13),$AF13,AND($AD13=0,$AE13=0,$AF13=0),1) -> 0 | DG13: 0 | DH13: PowerCrit | DI13: TX | DJ13: Losses
S14: q_crit_tx-amb | T14: 41.81789752 | U14: 41.81789752 | V14: 41.81789752 | W14: 41.81789752 | X14: 41.81789752 | Y14: 41.81789752 | AA14: SWB | AB14: Conservation | AG14: e_crit_tx-swb | AK14: e_crit_swb-drms | AL14: e_crit_swb-ups | AM14: e_crit_swb-ch | AN14: q_crit_swb-ch | AR14: =IF(ISNUMBER(MATCH(AR$11,$AG14:$AJ14,0)),1,0)*IF(ISNUMBER($AF14),(1-$AF14),1) + IF(ISNUMBER(MATCH(AR$11,$AK14:$AP14,0)),-1,0)*_xlfn.IFS(ISNUMBER($AD14),$AD14,ISNUMBER($AE14),$AE14,ISNUMBER($AF14),$AF14,AND($AD14=0,$AE14=0,$AF14=0),1) -> 0 | AS14: =IF(ISNUMBER(MATCH(AS$11,$AG14:$AJ14,0)),1,0)*IF(ISNUMBER($AF14),(1-$AF14),1) + IF(ISNUMBER(MATCH(AS$11,$AK14:$AP14,0)),-1,0)*_xlfn.IFS(ISNUMBER($AD14),$AD14,ISNUMBER($AE14),$AE14,ISNUMBER($AF14),$AF14,AND($AD14=0,$AE14=0,$AF14=0),1) -> 1 | AT14: =IF(ISNUMBER(MATCH(AT$11,$AG14:$AJ14,0)),1,0)*IF(ISNUMBER($AF14),(1-$AF14),1) + IF(ISNUMBER(MATCH(AT$11,$AK14:$AP14,0)),-1,0)*_xlfn.IFS(ISNUMBER($AD14),$AD14,ISNUMBER($AE14),$AE14,ISNUMBER($AF14),$AF14,AND($AD14=0,$AE14=0,$AF14=0),1) -> 0 | AU14: =IF(ISNUMBER(MATCH(AU$11,$AG14:$AJ14,0)),1,0)*IF(ISNUMBER($AF14),(1-$AF14),1) + IF(ISNUMBER(MATCH(AU$11,$AK14:$AP14,0)),-1,0)*_xlfn.IFS(ISNUMBER($AD14),$AD14,ISNUMBER($AE14),$AE14,ISNUMBER($AF14),$AF14,AND($AD14=0,$AE14=0,$AF14=0),1) -> -1 | AV14: =IF(ISNUMBER(MATCH(AV$11,$AG14:$AJ14,0)),1,0)*IF(ISNUMBER($AF14),(1-$AF14),1) + IF(ISNUMBER(MATCH(AV$11,$AK14:$AP14,0)),-1,0)*_xlfn.IFS(ISNUMBER($AD14),$AD14,ISNUMBER($AE14),$AE14,ISNUMBER($AF14),$AF14,AND($AD14=0,$AE14=0,$AF14=0),1) -> -1 | AW14: =IF(ISNUMBER(MATCH(AW$11,$AG14:$AJ14,0)),1,0)*IF(ISNUMBER($AF14),(1-$AF14),1) + IF(ISNUMBER(MATCH(AW$11,$AK14:$AP14,0)),-1,0)*_xlfn.IFS(ISNUMBER($AD14),$AD14,ISNUMBER($AE14),$AE14,ISNUMBER($AF14),$AF14,AND($AD14=0,$AE14=0,$AF14=0),1) -> -1 | AX14: =IF(ISNUMBER(MATCH(AX$11,$AG14:$AJ14,0)),1,0)*IF(ISNUMBER($AF14),(1-$AF14),1) + IF(ISNUMBER(MATCH(AX$11,$AK14:$AP14,0)),-1,0)*_xlfn.IFS(ISNUMBER($AD14),$AD14,ISNUMBER($AE14),$AE14,ISNUMBER($AF14),$AF14,AND($AD14=0,$AE14=0,$AF14=0),1) -> -1 | AY14: =IF(ISNUMBER(MATCH(AY$11,$AG14:$AJ14,0)),1,0)*IF(ISNUMBER($AF14),(1-$AF14),1) + IF(ISNUMBER(MATCH(AY$11,$AK14:$AP14,0)),-1,0)*_xlfn.IFS(ISNUMBER($AD14),$AD14,ISNUMBER($AE14),$AE14,ISNUMBER($AF14),$AF14,AND($AD14=0,$AE14=0,$AF14=0),1) -> 0 | AZ14: =IF(ISNUMBER(MATCH(AZ$11,$AG14:$AJ14,0)),1,0)*IF(ISNUMBER($AF14),(1-$AF14),1) + IF(ISNUMBER(MATCH(AZ$11,$AK14:$AP14,0)),-1,0)*_xlfn.IFS(ISNUMBER($AD14),$AD14,ISNUMBER($AE14),$AE14,ISNUMBER($AF14),$AF14,AND($AD14=0,$AE14=0,$AF14=0),1) -> 0 | BA14: =IF(ISNUMBER(MATCH(BA$11,$AG14:$AJ14,0)),1,0)*IF(ISNUMBER($AF14),(1-$AF14),1) + IF(ISNUMBER(MATCH(BA$11,$AK14:$AP14,0)),-1,0)*_xlfn.IFS(ISNUMBER($AD14),$AD14,ISNUMBER($AE14),$AE14,ISNUMBER($AF14),$AF14,AND($AD14=0,$AE14=0,$AF14=0),1) -> 0 | BB14: =IF(ISNUMBER(MATCH(BB$11,$AG14:$AJ14,0)),1,0)*IF(ISNUMBER($AF14),(1-$AF14),1) + IF(ISNUMBER(MATCH(BB$11,$AK14:$AP14,0)),-1,0)*_xlfn.IFS(ISNUMBER($AD14),$AD14,ISNUMBER($AE14),$AE14,ISNUMBER($AF14),$AF14,AND($AD14=0,$AE14=0,$AF14=0),1) -> 0 | BC14: =IF(ISNUMBER(MATCH(BC$11,$AG14:$AJ14,0)),1,0)*IF(ISNUMBER($AF14),(1-$AF14),1) + IF(ISNUMBER(MATCH(BC$11,$AK14:$AP14,0)),-1,0)*_xlfn.IFS(ISNUMBER($AD14),$AD14,ISNUMBER($AE14),$AE14,ISNUMBER($AF14),$AF14,AND($AD14=0,$AE14=0,$AF14=0),1) -> 0 | BD14: =IF(ISNUMBER(MATCH(BD$11,$AG14:$AJ14,0)),1,0)*IF(ISNUMBER($AF14),(1-$AF14),1) + IF(ISNUMBER(MATCH(BD$11,$AK14:$AP14,0)),-1,0)*_xlfn.IFS(ISNUMBER($AD14),$AD14,ISNUMBER($AE14),$AE14,ISNUMBER($AF14),$AF14,AND($AD14=0,$AE14=0,$AF14=0),1) -> 0 | BE14: =IF(ISNUMBER(MATCH(BE$11,$AG14:$AJ14,0)),1,0)*IF(ISNUMBER($AF14),(1-$AF14),1) + IF(ISNUMBER(MATCH(BE$11,$AK14:$AP14,0)),-1,0)*_xlfn.IFS(ISNUMBER($AD14),$AD14,ISNUMBER($AE14),$AE14,ISNUMBER($AF14),$AF14,AND($AD14=0,$AE14=0,$AF14=0),1) -> 0 | BF14: =IF(ISNUMBER(MATCH(BF$11,$AG14:$AJ14,0)),1,0)*IF(ISNUMBER($AF14),(1-$AF14),1) + IF(ISNUMBER(MATCH(BF$11,$AK14:$AP14,0)),-1,0)*_xlfn.IFS(ISNUMBER($AD14),$AD14,ISNUMBER($AE14),$AE14,ISNUMBER($AF14),$AF14,AND($AD14=0,$AE14=0,$AF14=0),1) -> 0 | BG14: =IF(ISNUMBER(MATCH(BG$11,$AG14:$AJ14,0)),1,0)*IF(ISNUMBER($AF14),(1-$AF14),1) + IF(ISNUMBER(MATCH(BG$11,$AK14:$AP14,0)),-1,0)*_xlfn.IFS(ISNUMBER($AD14),$AD14,ISNUMBER($AE14),$AE14,ISNUMBER($AF14),$AF14,AND($AD14=0,$AE14=0,$AF14=0),1) -> 0 | BH14: =IF(ISNUMBER(MATCH(BH$11,$AG14:$AJ14,0)),1,0)*IF(ISNUMBER($AF14),(1-$AF14),1) + IF(ISNUMBER(MATCH(BH$11,$AK14:$AP14,0)),-1,0)*_xlfn.IFS(ISNUMBER($AD14),$AD14,ISNUMBER($AE14),$AE14,ISNUMBER($AF14),$AF14,AND($AD14=0,$AE14=0,$AF14=0),1) -> 0 | BI14: =IF(ISNUMBER(MATCH(BI$11,$AG14:$AJ14,0)),1,0)*IF(ISNUMBER($AF14),(1-$AF14),1) + IF(ISNUMBER(MATCH(BI$11,$AK14:$AP14,0)),-1,0)*_xlfn.IFS(ISNUMBER($AD14),$AD14,ISNUMBER($AE14),$AE14,ISNUMBER($AF14),$AF14,AND($AD14=0,$AE14=0,$AF14=0),1) -> 0 | BJ14: =IF(ISNUMBER(MATCH(BJ$11,$AG14:$AJ14,0)),1,0)*IF(ISNUMBER($AF14),(1-$AF14),1) + IF(ISNUMBER(MATCH(BJ$11,$AK14:$AP14,0)),-1,0)*_xlfn.IFS(ISNUMBER($AD14),$AD14,ISNUMBER($AE14),$AE14,ISNUMBER($AF14),$AF14,AND($AD14=0,$AE14=0,$AF14=0),1) -> 0 | BK14: =IF(ISNUMBER(MATCH(BK$11,$AG14:$AJ14,0)),1,0)*IF(ISNUMBER($AF14),(1-$AF14),1) + IF(ISNUMBER(MATCH(BK$11,$AK14:$AP14,0)),-1,0)*_xlfn.IFS(ISNUMBER($AD14),$AD14,ISNUMBER($AE14),$AE14,ISNUMBER($AF14),$AF14,AND($AD14=0,$AE14=0,$AF14=0),1) -> 0 | BL14: =IF(ISNUMBER(MATCH(BL$11,$AG14:$AJ14,0)),1,0)*IF(ISNUMBER($AF14),(1-$AF14),1) + IF(ISNUMBER(MATCH(BL$11,$AK14:$AP14,0)),-1,0)*_xlfn.IFS(ISNUMBER($AD14),$AD14,ISNUMBER($AE14),$AE14,ISNUMBER($AF14),$AF14,AND($AD14=0,$AE14=0,$AF14=0),1) -> 0 | BM14: =IF(ISNUMBER(MATCH(BM$11,$AG14:$AJ14,0)),1,0)*IF(ISNUMBER($AF14),(1-$AF14),1) + IF(ISNUMBER(MATCH(BM$11,$AK14:$AP14,0)),-1,0)*_xlfn.IFS(ISNUMBER($AD14),$AD14,ISNUMBER($AE14),$AE14,ISNUMBER($AF14),$AF14,AND($AD14=0,$AE14=0,$AF14=0),1) -> 0 | BN14: =IF(ISNUMBER(MATCH(BN$11,$AG14:$AJ14,0)),1,0)*IF(ISNUMBER($AF14),(1-$AF14),1) + IF(ISNUMBER(MATCH(BN$11,$AK14:$AP14,0)),-1,0)*_xlfn.IFS(ISNUMBER($AD14),$AD14,ISNUMBER($AE14),$AE14,ISNUMBER($AF14),$AF14,AND($AD14=0,$AE14=0,$AF14=0),1) -> 0 | BO14: =IF(ISNUMBER(MATCH(BO$11,$AG14:$AJ14,0)),1,0)*IF(ISNUMBER($AF14),(1-$AF14),1) + IF(ISNUMBER(MATCH(BO$11,$AK14:$AP14,0)),-1,0)*_xlfn.IFS(ISNUMBER($AD14),$AD14,ISNUMBER($AE14),$AE14,ISNUMBER($AF14),$AF14,AND($AD14=0,$AE14=0,$AF14=0),1) -> 0 | BP14: =IF(ISNUMBER(MATCH(BP$11,$AG14:$AJ14,0)),1,0)*IF(ISNUMBER($AF14),(1-$AF14),1) + IF(ISNUMBER(MATCH(BP$11,$AK14:$AP14,0)),-1,0)*_xlfn.IFS(ISNUMBER($AD14),$AD14,ISNUMBER($AE14),$AE14,ISNUMBER($AF14),$AF14,AND($AD14=0,$AE14=0,$AF14=0),1) -> 0 | BQ14: =IF(ISNUMBER(MATCH(BQ$11,$AG14:$AJ14,0)),1,0)*IF(ISNUMBER($AF14),(1-$AF14),1) + IF(ISNUMBER(MATCH(BQ$11,$AK14:$AP14,0)),-1,0)*_xlfn.IFS(ISNUMBER($AD14),$AD14,ISNUMBER($AE14),$AE14,ISNUMBER($AF14),$AF14,AND($AD14=0,$AE14=0,$AF14=0),1) -> 0 | BR14: =IF(ISNUMBER(MATCH(BR$11,$AG14:$AJ14,0)),1,0)*IF(ISNUMBER($AF14),(1-$AF14),1) + IF(ISNUMBER(MATCH(BR$11,$AK14:$AP14,0)),-1,0)*_xlfn.IFS(ISNUMBER($AD14),$AD14,ISNUMBER($AE14),$AE14,ISNUMBER($AF14),$AF14,AND($AD14=0,$AE14=0,$AF14=0),1) -> 0 | BS14: =IF(ISNUMBER(MATCH(BS$11,$AG14:$AJ14,0)),1,0)*IF(ISNUMBER($AF14),(1-$AF14),1) + IF(ISNUMBER(MATCH(BS$11,$AK14:$AP14,0)),-1,0)*_xlfn.IFS(ISNUMBER($AD14),$AD14,ISNUMBER($AE14),$AE14,ISNUMBER($AF14),$AF14,AND($AD14=0,$AE14=0,$AF14=0),1) -> 0 | BT14: =IF(ISNUMBER(MATCH(BT$11,$AG14:$AJ14,0)),1,0)*IF(ISNUMBER($AF14),(1-$AF14),1) + IF(ISNUMBER(MATCH(BT$11,$AK14:$AP14,0)),-1,0)*_xlfn.IFS(ISNUMBER($AD14),$AD14,ISNUMBER($AE14),$AE14,ISNUMBER($AF14),$AF14,AND($AD14=0,$AE14=0,$AF14=0),1) -> 0 | BU14: =IF(ISNUMBER(MATCH(BU$11,$AG14:$AJ14,0)),1,0)*IF(ISNUMBER($AF14),(1-$AF14),1) + IF(ISNUMBER(MATCH(BU$11,$AK14:$AP14,0)),-1,0)*_xlfn.IFS(ISNUMBER($AD14),$AD14,ISNUMBER($AE14),$AE14,ISNUMBER($AF14),$AF14,AND($AD14=0,$AE14=0,$AF14=0),1) -> 0 | BV14: =IF(ISNUMBER(MATCH(BV$11,$AG14:$AJ14,0)),1,0)*IF(ISNUMBER($AF14),(1-$AF14),1) + IF(ISNUMBER(MATCH(BV$11,$AK14:$AP14,0)),-1,0)*_xlfn.IFS(ISNUMBER($AD14),$AD14,ISNUMBER($AE14),$AE14,ISNUMBER($AF14),$AF14,AND($AD14=0,$AE14=0,$AF14=0),1) -> 0 | BW14: =IF(ISNUMBER(MATCH(BW$11,$AG14:$AJ14,0)),1,0)*IF(ISNUMBER($AF14),(1-$AF14),1) + IF(ISNUMBER(MATCH(BW$11,$AK14:$AP14,0)),-1,0)*_xlfn.IFS(ISNUMBER($AD14),$AD14,ISNUMBER($AE14),$AE14,ISNUMBER($AF14),$AF14,AND($AD14=0,$AE14=0,$AF14=0),1) -> 0 | BX14: =IF(ISNUMBER(MATCH(BX$11,$AG14:$AJ14,0)),1,0)*IF(ISNUMBER($AF14),(1-$AF14),1) + IF(ISNUMBER(MATCH(BX$11,$AK14:$AP14,0)),-1,0)*_xlfn.IFS(ISNUMBER($AD14),$AD14,ISNUMBER($AE14),$AE14,ISNUMBER($AF14),$AF14,AND($AD14=0,$AE14=0,$AF14=0),1) -> 0 | BY14: =IF(ISNUMBER(MATCH(BY$11,$AG14:$AJ14,0)),1,0)*IF(ISNUMBER($AF14),(1-$AF14),1) + IF(ISNUMBER(MATCH(BY$11,$AK14:$AP14,0)),-1,0)*_xlfn.IFS(ISNUMBER($AD14),$AD14,ISNUMBER($AE14),$AE14,ISNUMBER($AF14),$AF14,AND($AD14=0,$AE14=0,$AF14=0),1) -> 0 | BZ14: =IF(ISNUMBER(MATCH(BZ$11,$AG14:$AJ14,0)),1,0)*IF(ISNUMBER($AF14),(1-$AF14),1) + IF(ISNUMBER(MATCH(BZ$11,$AK14:$AP14,0)),-1,0)*_xlfn.IFS(ISNUMBER($AD14),$AD14,ISNUMBER($AE14),$AE14,ISNUMBER($AF14),$AF14,AND($AD14=0,$AE14=0,$AF14=0),1) -> 0 | CA14: =IF(ISNUMBER(MATCH(CA$11,$AG14:$AJ14,0)),1,0)*IF(ISNUMBER($AF14),(1-$AF14),1) + IF(ISNUMBER(MATCH(CA$11,$AK14:$AP14,0)),-1,0)*_xlfn.IFS(ISNUMBER($AD14),$AD14,ISNUMBER($AE14),$AE14,ISNUMBER($AF14),$AF14,AND($AD14=0,$AE14=0,$AF14=0),1) -> 0 | CB14: =IF(ISNUMBER(MATCH(CB$11,$AG14:$AJ14,0)),1,0)*IF(ISNUMBER($AF14),(1-$AF14),1) + IF(ISNUMBER(MATCH(CB$11,$AK14:$AP14,0)),-1,0)*_xlfn.IFS(ISNUMBER($AD14),$AD14,ISNUMBER($AE14),$AE14,ISNUMBER($AF14),$AF14,AND($AD14=0,$AE14=0,$AF14=0),1) -> 0 | CC14: =IF(ISNUMBER(MATCH(CC$11,$AG14:$AJ14,0)),1,0)*IF(ISNUMBER($AF14),(1-$AF14),1) + IF(ISNUMBER(MATCH(CC$11,$AK14:$AP14,0)),-1,0)*_xlfn.IFS(ISNUMBER($AD14),$AD14,ISNUMBER($AE14),$AE14,ISNUMBER($AF14),$AF14,AND($AD14=0,$AE14=0,$AF14=0),1) -> 0 | CD14: =IF(ISNUMBER(MATCH(CD$11,$AG14:$AJ14,0)),1,0)*IF(ISNUMBER($AF14),(1-$AF14),1) + IF(ISNUMBER(MATCH(CD$11,$AK14:$AP14,0)),-1,0)*_xlfn.IFS(ISNUMBER($AD14),$AD14,ISNUMBER($AE14),$AE14,ISNUMBER($AF14),$AF14,AND($AD14=0,$AE14=0,$AF14=0),1) -> 0 | CE14: =IF(ISNUMBER(MATCH(CE$11,$AG14:$AJ14,0)),1,0)*IF(ISNUMBER($AF14),(1-$AF14),1) + IF(ISNUMBER(MATCH(CE$11,$AK14:$AP14,0)),-1,0)*_xlfn.IFS(ISNUMBER($AD14),$AD14,ISNUMBER($AE14),$AE14,ISNUMBER($AF14),$AF14,AND($AD14=0,$AE14=0,$AF14=0),1) -> 0 | CF14: =IF(ISNUMBER(MATCH(CF$11,$AG14:$AJ14,0)),1,0)*IF(ISNUMBER($AF14),(1-$AF14),1) + IF(ISNUMBER(MATCH(CF$11,$AK14:$AP14,0)),-1,0)*_xlfn.IFS(ISNUMBER($AD14),$AD14,ISNUMBER($AE14),$AE14,ISNUMBER($AF14),$AF14,AND($AD14=0,$AE14=0,$AF14=0),1) -> 0 | CG14: =IF(ISNUMBER(MATCH(CG$11,$AG14:$AJ14,0)),1,0)*IF(ISNUMBER($AF14),(1-$AF14),1) + IF(ISNUMBER(MATCH(CG$11,$AK14:$AP14,0)),-1,0)*_xlfn.IFS(ISNUMBER($AD14),$AD14,ISNUMBER($AE14),$AE14,ISNUMBER($AF14),$AF14,AND($AD14=0,$AE14=0,$AF14=0),1) -> 0 | CH14: =IF(ISNUMBER(MATCH(CH$11,$AG14:$AJ14,0)),1,0)*IF(ISNUMBER($AF14),(1-$AF14),1) + IF(ISNUMBER(MATCH(CH$11,$AK14:$AP14,0)),-1,0)*_xlfn.IFS(ISNUMBER($AD14),$AD14,ISNUMBER($AE14),$AE14,ISNUMBER($AF14),$AF14,AND($AD14=0,$AE14=0,$AF14=0),1) -> 0 | CI14: =IF(ISNUMBER(MATCH(CI$11,$AG14:$AJ14,0)),1,0)*IF(ISNUMBER($AF14),(1-$AF14),1) + IF(ISNUMBER(MATCH(CI$11,$AK14:$AP14,0)),-1,0)*_xlfn.IFS(ISNUMBER($AD14),$AD14,ISNUMBER($AE14),$AE14,ISNUMBER($AF14),$AF14,AND($AD14=0,$AE14=0,$AF14=0),1) -> 0 | CJ14: =IF(ISNUMBER(MATCH(CJ$11,$AG14:$AJ14,0)),1,0)*IF(ISNUMBER($AF14),(1-$AF14),1) + IF(ISNUMBER(MATCH(CJ$11,$AK14:$AP14,0)),-1,0)*_xlfn.IFS(ISNUMBER($AD14),$AD14,ISNUMBER($AE14),$AE14,ISNUMBER($AF14),$AF14,AND($AD14=0,$AE14=0,$AF14=0),1) -> 0 | CK14: =IF(ISNUMBER(MATCH(CK$11,$AG14:$AJ14,0)),1,0)*IF(ISNUMBER($AF14),(1-$AF14),1) + IF(ISNUMBER(MATCH(CK$11,$AK14:$AP14,0)),-1,0)*_xlfn.IFS(ISNUMBER($AD14),$AD14,ISNUMBER($AE14),$AE14,ISNUMBER($AF14),$AF14,AND($AD14=0,$AE14=0,$AF14=0),1) -> 0 | CL14: =IF(ISNUMBER(MATCH(CL$11,$AG14:$AJ14,0)),1,0)*IF(ISNUMBER($AF14),(1-$AF14),1) + IF(ISNUMBER(MATCH(CL$11,$AK14:$AP14,0)),-1,0)*_xlfn.IFS(ISNUMBER($AD14),$AD14,ISNUMBER($AE14),$AE14,ISNUMBER($AF14),$AF14,AND($AD14=0,$AE14=0,$AF14=0),1) -> 0 | CM14: =IF(ISNUMBER(MATCH(CM$11,$AG14:$AJ14,0)),1,0)*IF(ISNUMBER($AF14),(1-$AF14),1) + IF(ISNUMBER(MATCH(CM$11,$AK14:$AP14,0)),-1,0)*_xlfn.IFS(ISNUMBER($AD14),$AD14,ISNUMBER($AE14),$AE14,ISNUMBER($AF14),$AF14,AND($AD14=0,$AE14=0,$AF14=0),1) -> 0 | CN14: =IF(ISNUMBER(MATCH(CN$11,$AG14:$AJ14,0)),1,0)*IF(ISNUMBER($AF14),(1-$AF14),1) + IF(ISNUMBER(MATCH(CN$11,$AK14:$AP14,0)),-1,0)*_xlfn.IFS(ISNUMBER($AD14),$AD14,ISNUMBER($AE14),$AE14,ISNUMBER($AF14),$AF14,AND($AD14=0,$AE14=0,$AF14=0),1) -> 0 | CO14: =IF(ISNUMBER(MATCH(CO$11,$AG14:$AJ14,0)),1,0)*IF(ISNUMBER($AF14),(1-$AF14),1) + IF(ISNUMBER(MATCH(CO$11,$AK14:$AP14,0)),-1,0)*_xlfn.IFS(ISNUMBER($AD14),$AD14,ISNUMBER($AE14),$AE14,ISNUMBER($AF14),$AF14,AND($AD14=0,$AE14=0,$AF14=0),1) -> 0 | CP14: =IF(ISNUMBER(MATCH(CP$11,$AG14:$AJ14,0)),1,0)*IF(ISNUMBER($AF14),(1-$AF14),1) + IF(ISNUMBER(MATCH(CP$11,$AK14:$AP14,0)),-1,0)*_xlfn.IFS(ISNUMBER($AD14),$AD14,ISNUMBER($AE14),$AE14,ISNUMBER($AF14),$AF14,AND($AD14=0,$AE14=0,$AF14=0),1) -> 0 | CQ14: =IF(ISNUMBER(MATCH(CQ$11,$AG14:$AJ14,0)),1,0)*IF(ISNUMBER($AF14),(1-$AF14),1) + IF(ISNUMBER(MATCH(CQ$11,$AK14:$AP14,0)),-1,0)*_xlfn.IFS(ISNUMBER($AD14),$AD14,ISNUMBER($AE14),$AE14,ISNUMBER($AF14),$AF14,AND($AD14=0,$AE14=0,$AF14=0),1) -> 0 | CR14: =IF(ISNUMBER(MATCH(CR$11,$AG14:$AJ14,0)),1,0)*IF(ISNUMBER($AF14),(1-$AF14),1) + IF(ISNUMBER(MATCH(CR$11,$AK14:$AP14,0)),-1,0)*_xlfn.IFS(ISNUMBER($AD14),$AD14,ISNUMBER($AE14),$AE14,ISNUMBER($AF14),$AF14,AND($AD14=0,$AE14=0,$AF14=0),1) -> 0 | CS14: =IF(ISNUMBER(MATCH(CS$11,$AG14:$AJ14,0)),1,0)*IF(ISNUMBER($AF14),(1-$AF14),1) + IF(ISNUMBER(MATCH(CS$11,$AK14:$AP14,0)),-1,0)*_xlfn.IFS(ISNUMBER($AD14),$AD14,ISNUMBER($AE14),$AE14,ISNUMBER($AF14),$AF14,AND($AD14=0,$AE14=0,$AF14=0),1) -> 0 | CT14: =IF(ISNUMBER(MATCH(CT$11,$AG14:$AJ14,0)),1,0)*IF(ISNUMBER($AF14),(1-$AF14),1) + IF(ISNUMBER(MATCH(CT$11,$AK14:$AP14,0)),-1,0)*_xlfn.IFS(ISNUMBER($AD14),$AD14,ISNUMBER($AE14),$AE14,ISNUMBER($AF14),$AF14,AND($AD14=0,$AE14=0,$AF14=0),1) -> 0 | CU14: =IF(ISNUMBER(MATCH(CU$11,$AG14:$AJ14,0)),1,0)*IF(ISNUMBER($AF14),(1-$AF14),1) + IF(ISNUMBER(MATCH(CU$11,$AK14:$AP14,0)),-1,0)*_xlfn.IFS(ISNUMBER($AD14),$AD14,ISNUMBER($AE14),$AE14,ISNUMBER($AF14),$AF14,AND($AD14=0,$AE14=0,$AF14=0),1) -> 0 | CV14: =IF(ISNUMBER(MATCH(CV$11,$AG14:$AJ14,0)),1,0)*IF(ISNUMBER($AF14),(1-$AF14),1) + IF(ISNUMBER(MATCH(CV$11,$AK14:$AP14,0)),-1,0)*_xlfn.IFS(ISNUMBER($AD14),$AD14,ISNUMBER($AE14),$AE14,ISNUMBER($AF14),$AF14,AND($AD14=0,$AE14=0,$AF14=0),1) -> 0 | CW14: =IF(ISNUMBER(MATCH(CW$11,$AG14:$AJ14,0)),1,0)*IF(ISNUMBER($AF14),(1-$AF14),1) + IF(ISNUMBER(MATCH(CW$11,$AK14:$AP14,0)),-1,0)*_xlfn.IFS(ISNUMBER($AD14),$AD14,ISNUMBER($AE14),$AE14,ISNUMBER($AF14),$AF14,AND($AD14=0,$AE14=0,$AF14=0),1) -> 0 | CX14: =IF(ISNUMBER(MATCH(CX$11,$AG14:$AJ14,0)),1,0)*IF(ISNUMBER($AF14),(1-$AF14),1) + IF(ISNUMBER(MATCH(CX$11,$AK14:$AP14,0)),-1,0)*_xlfn.IFS(ISNUMBER($AD14),$AD14,ISNUMBER($AE14),$AE14,ISNUMBER($AF14),$AF14,AND($AD14=0,$AE14=0,$AF14=0),1) -> 0 | CY14: =IF(ISNUMBER(MATCH(CY$11,$AG14:$AJ14,0)),1,0)*IF(ISNUMBER($AF14),(1-$AF14),1) + IF(ISNUMBER(MATCH(CY$11,$AK14:$AP14,0)),-1,0)*_xlfn.IFS(ISNUMBER($AD14),$AD14,ISNUMBER($AE14),$AE14,ISNUMBER($AF14),$AF14,AND($AD14=0,$AE14=0,$AF14=0),1) -> 0 | CZ14: =IF(ISNUMBER(MATCH(CZ$11,$AG14:$AJ14,0)),1,0)*IF(ISNUMBER($AF14),(1-$AF14),1) + IF(ISNUMBER(MATCH(CZ$11,$AK14:$AP14,0)),-1,0)*_xlfn.IFS(ISNUMBER($AD14),$AD14,ISNUMBER($AE14),$AE14,ISNUMBER($AF14),$AF14,AND($AD14=0,$AE14=0,$AF14=0),1) -> 0 | DA14: =IF(ISNUMBER(MATCH(DA$11,$AG14:$AJ14,0)),1,0)*IF(ISNUMBER($AF14),(1-$AF14),1) + IF(ISNUMBER(MATCH(DA$11,$AK14:$AP14,0)),-1,0)*_xlfn.IFS(ISNUMBER($AD14),$AD14,ISNUMBER($AE14),$AE14,ISNUMBER($AF14),$AF14,AND($AD14=0,$AE14=0,$AF14=0),1) -> 0 | DB14: =IF(ISNUMBER(MATCH(DB$11,$AG14:$AJ14,0)),1,0)*IF(ISNUMBER($AF14),(1-$AF14),1) + IF(ISNUMBER(MATCH(DB$11,$AK14:$AP14,0)),-1,0)*_xlfn.IFS(ISNUMBER($AD14),$AD14,ISNUMBER($AE14),$AE14,ISNUMBER($AF14),$AF14,AND($AD14=0,$AE14=0,$AF14=0),1) -> 0 | DC14: =IF(ISNUMBER(MATCH(DC$11,$AG14:$AJ14,0)),1,0)*IF(ISNUMBER($AF14),(1-$AF14),1) + IF(ISNUMBER(MATCH(DC$11,$AK14:$AP14,0)),-1,0)*_xlfn.IFS(ISNUMBER($AD14),$AD14,ISNUMBER($AE14),$AE14,ISNUMBER($AF14),$AF14,AND($AD14=0,$AE14=0,$AF14=0),1) -> 0 | DD14: =IF(ISNUMBER(MATCH(DD$11,$AG14:$AJ14,0)),1,0)*IF(ISNUMBER($AF14),(1-$AF14),1) + IF(ISNUMBER(MATCH(DD$11,$AK14:$AP14,0)),-1,0)*_xlfn.IFS(ISNUMBER($AD14),$AD14,ISNUMBER($AE14),$AE14,ISNUMBER($AF14),$AF14,AND($AD14=0,$AE14=0,$AF14=0),1) -> 0 | DE14: =IF(ISNUMBER(MATCH(DE$11,$AG14:$AJ14,0)),1,0)*IF(ISNUMBER($AF14),(1-$AF14),1) + IF(ISNUMBER(MATCH(DE$11,$AK14:$AP14,0)),-1,0)*_xlfn.IFS(ISNUMBER($AD14),$AD14,ISNUMBER($AE14),$AE14,ISNUMBER($AF14),$AF14,AND($AD14=0,$AE14=0,$AF14=0),1) -> 0 | DG14: 0 | DH14: PowerCrit | DI14: SWB | DJ14: Conservation
S15: e_crit_swb-drms | T15: 145.2167084 | U15: 145.2167084 | V15: 145.2167084 | W15: 145.2167084 | X15: 145.2167084 | Y15: 145.2167084 | AB15: Losses | AD15: ='Back-up Power Calculate'!G22 -> 0.01 | AG15: q_crit_swb-ch | AK15: e_crit_tx-swb | AR15: =IF(ISNUMBER(MATCH(AR$11,$AG15:$AJ15,0)),1,0)*IF(ISNUMBER($AF15),(1-$AF15),1) + IF(ISNUMBER(MATCH(AR$11,$AK15:$AP15,0)),-1,0)*_xlfn.IFS(ISNUMBER($AD15),$AD15,ISNUMBER($AE15),$AE15,ISNUMBER($AF15),$AF15,AND($AD15=0,$AE15=0,$AF15=0),1) -> 0 | AS15: =IF(ISNUMBER(MATCH(AS$11,$AG15:$AJ15,0)),1,0)*IF(ISNUMBER($AF15),(1-$AF15),1) + IF(ISNUMBER(MATCH(AS$11,$AK15:$AP15,0)),-1,0)*_xlfn.IFS(ISNUMBER($AD15),$AD15,ISNUMBER($AE15),$AE15,ISNUMBER($AF15),$AF15,AND($AD15=0,$AE15=0,$AF15=0),1) -> -0.01 | AT15: =IF(ISNUMBER(MATCH(AT$11,$AG15:$AJ15,0)),1,0)*IF(ISNUMBER($AF15),(1-$AF15),1) + IF(ISNUMBER(MATCH(AT$11,$AK15:$AP15,0)),-1,0)*_xlfn.IFS(ISNUMBER($AD15),$AD15,ISNUMBER($AE15),$AE15,ISNUMBER($AF15),$AF15,AND($AD15=0,$AE15=0,$AF15=0),1) -> 0 | AU15: =IF(ISNUMBER(MATCH(AU$11,$AG15:$AJ15,0)),1,0)*IF(ISNUMBER($AF15),(1-$AF15),1) + IF(ISNUMBER(MATCH(AU$11,$AK15:$AP15,0)),-1,0)*_xlfn.IFS(ISNUMBER($AD15),$AD15,ISNUMBER($AE15),$AE15,ISNUMBER($AF15),$AF15,AND($AD15=0,$AE15=0,$AF15=0),1) -> 0 | AV15: =IF(ISNUMBER(MATCH(AV$11,$AG15:$AJ15,0)),1,0)*IF(ISNUMBER($AF15),(1-$AF15),1) + IF(ISNUMBER(MATCH(AV$11,$AK15:$AP15,0)),-1,0)*_xlfn.IFS(ISNUMBER($AD15),$AD15,ISNUMBER($AE15),$AE15,ISNUMBER($AF15),$AF15,AND($AD15=0,$AE15=0,$AF15=0),1) -> 0 | AW15: =IF(ISNUMBER(MATCH(AW$11,$AG15:$AJ15,0)),1,0)*IF(ISNUMBER($AF15),(1-$AF15),1) + IF(ISNUMBER(MATCH(AW$11,$AK15:$AP15,0)),-1,0)*_xlfn.IFS(ISNUMBER($AD15),$AD15,ISNUMBER($AE15),$AE15,ISNUMBER($AF15),$AF15,AND($AD15=0,$AE15=0,$AF15=0),1) -> 0 | AX15: =IF(ISNUMBER(MATCH(AX$11,$AG15:$AJ15,0)),1,0)*IF(ISNUMBER($AF15),(1-$AF15),1) + IF(ISNUMBER(MATCH(AX$11,$AK15:$AP15,0)),-1,0)*_xlfn.IFS(ISNUMBER($AD15),$AD15,ISNUMBER($AE15),$AE15,ISNUMBER($AF15),$AF15,AND($AD15=0,$AE15=0,$AF15=0),1) -> 1 | AY15: =IF(ISNUMBER(MATCH(AY$11,$AG15:$AJ15,0)),1,0)*IF(ISNUMBER($AF15),(1-$AF15),1) + IF(ISNUMBER(MATCH(AY$11,$AK15:$AP15,0)),-1,0)*_xlfn.IFS(ISNUMBER($AD15),$AD15,ISNUMBER($AE15),$AE15,ISNUMBER($AF15),$AF15,AND($AD15=0,$AE15=0,$AF15=0),1) -> 0 | AZ15: =IF(ISNUMBER(MATCH(AZ$11,$AG15:$AJ15,0)),1,0)*IF(ISNUMBER($AF15),(1-$AF15),1) + IF(ISNUMBER(MATCH(AZ$11,$AK15:$AP15,0)),-1,0)*_xlfn.IFS(ISNUMBER($AD15),$AD15,ISNUMBER($AE15),$AE15,ISNUMBER($AF15),$AF15,AND($AD15=0,$AE15=0,$AF15=0),1) -> 0 | BA15: =IF(ISNUMBER(MATCH(BA$11,$AG15:$AJ15,0)),1,0)*IF(ISNUMBER($AF15),(1-$AF15),1) + IF(ISNUMBER(MATCH(BA$11,$AK15:$AP15,0)),-1,0)*_xlfn.IFS(ISNUMBER($AD15),$AD15,ISNUMBER($AE15),$AE15,ISNUMBER($AF15),$AF15,AND($AD15=0,$AE15=0,$AF15=0),1) -> 0 | BB15: =IF(ISNUMBER(MATCH(BB$11,$AG15:$AJ15,0)),1,0)*IF(ISNUMBER($AF15),(1-$AF15),1) + IF(ISNUMBER(MATCH(BB$11,$AK15:$AP15,0)),-1,0)*_xlfn.IFS(ISNUMBER($AD15),$AD15,ISNUMBER($AE15),$AE15,ISNUMBER($AF15),$AF15,AND($AD15=0,$AE15=0,$AF15=0),1) -> 0 | BC15: =IF(ISNUMBER(MATCH(BC$11,$AG15:$AJ15,0)),1,0)*IF(ISNUMBER($AF15),(1-$AF15),1) + IF(ISNUMBER(MATCH(BC$11,$AK15:$AP15,0)),-1,0)*_xlfn.IFS(ISNUMBER($AD15),$AD15,ISNUMBER($AE15),$AE15,ISNUMBER($AF15),$AF15,AND($AD15=0,$AE15=0,$AF15=0),1) -> 0 | BD15: =IF(ISNUMBER(MATCH(BD$11,$AG15:$AJ15,0)),1,0)*IF(ISNUMBER($AF15),(1-$AF15),1) + IF(ISNUMBER(MATCH(BD$11,$AK15:$AP15,0)),-1,0)*_xlfn.IFS(ISNUMBER($AD15),$AD15,ISNUMBER($AE15),$AE15,ISNUMBER($AF15),$AF15,AND($AD15=0,$AE15=0,$AF15=0),1) -> 0 | BE15: =IF(ISNUMBER(MATCH(BE$11,$AG15:$AJ15,0)),1,0)*IF(ISNUMBER($AF15),(1-$AF15),1) + IF(ISNUMBER(MATCH(BE$11,$AK15:$AP15,0)),-1,0)*_xlfn.IFS(ISNUMBER($AD15),$AD15,ISNUMBER($AE15),$AE15,ISNUMBER($AF15),$AF15,AND($AD15=0,$AE15=0,$AF15=0),1) -> 0 | BF15: =IF(ISNUMBER(MATCH(BF$11,$AG15:$AJ15,0)),1,0)*IF(ISNUMBER($AF15),(1-$AF15),1) + IF(ISNUMBER(MATCH(BF$11,$AK15:$AP15,0)),-1,0)*_xlfn.IFS(ISNUMBER($AD15),$AD15,ISNUMBER($AE15),$AE15,ISNUMBER($AF15),$AF15,AND($AD15=0,$AE15=0,$AF15=0),1) -> 0 | BG15: =IF(ISNUMBER(MATCH(BG$11,$AG15:$AJ15,0)),1,0)*IF(ISNUMBER($AF15),(1-$AF15),1) + IF(ISNUMBER(MATCH(BG$11,$AK15:$AP15,0)),-1,0)*_xlfn.IFS(ISNUMBER($AD15),$AD15,ISNUMBER($AE15),$AE15,ISNUMBER($AF15),$AF15,AND($AD15=0,$AE15=0,$AF15=0),1) -> 0 | BH15: =IF(ISNUMBER(MATCH(BH$11,$AG15:$AJ15,0)),1,0)*IF(ISNUMBER($AF15),(1-$AF15),1) + IF(ISNUMBER(MATCH(BH$11,$AK15:$AP15,0)),-1,0)*_xlfn.IFS(ISNUMBER($AD15),$AD15,ISNUMBER($AE15),$AE15,ISNUMBER($AF15),$AF15,AND($AD15=0,$AE15=0,$AF15=0),1) -> 0 | BI15: =IF(ISNUMBER(MATCH(BI$11,$AG15:$AJ15,0)),1,0)*IF(ISNUMBER($AF15),(1-$AF15),1) + IF(ISNUMBER(MATCH(BI$11,$AK15:$AP15,0)),-1,0)*_xlfn.IFS(ISNUMBER($AD15),$AD15,ISNUMBER($AE15),$AE15,ISNUMBER($AF15),$AF15,AND($AD15=0,$AE15=0,$AF15=0),1) -> 0 | BJ15: =IF(ISNUMBER(MATCH(BJ$11,$AG15:$AJ15,0)),1,0)*IF(ISNUMBER($AF15),(1-$AF15),1) + IF(ISNUMBER(MATCH(BJ$11,$AK15:$AP15,0)),-1,0)*_xlfn.IFS(ISNUMBER($AD15),$AD15,ISNUMBER($AE15),$AE15,ISNUMBER($AF15),$AF15,AND($AD15=0,$AE15=0,$AF15=0),1) -> 0 | BK15: =IF(ISNUMBER(MATCH(BK$11,$AG15:$AJ15,0)),1,0)*IF(ISNUMBER($AF15),(1-$AF15),1) + IF(ISNUMBER(MATCH(BK$11,$AK15:$AP15,0)),-1,0)*_xlfn.IFS(ISNUMBER($AD15),$AD15,ISNUMBER($AE15),$AE15,ISNUMBER($AF15),$AF15,AND($AD15=0,$AE15=0,$AF15=0),1) -> 0 | BL15: =IF(ISNUMBER(MATCH(BL$11,$AG15:$AJ15,0)),1,0)*IF(ISNUMBER($AF15),(1-$AF15),1) + IF(ISNUMBER(MATCH(BL$11,$AK15:$AP15,0)),-1,0)*_xlfn.IFS(ISNUMBER($AD15),$AD15,ISNUMBER($AE15),$AE15,ISNUMBER($AF15),$AF15,AND($AD15=0,$AE15=0,$AF15=0),1) -> 0 | BM15: =IF(ISNUMBER(MATCH(BM$11,$AG15:$AJ15,0)),1,0)*IF(ISNUMBER($AF15),(1-$AF15),1) + IF(ISNUMBER(MATCH(BM$11,$AK15:$AP15,0)),-1,0)*_xlfn.IFS(ISNUMBER($AD15),$AD15,ISNUMBER($AE15),$AE15,ISNUMBER($AF15),$AF15,AND($AD15=0,$AE15=0,$AF15=0),1) -> 0 | BN15: =IF(ISNUMBER(MATCH(BN$11,$AG15:$AJ15,0)),1,0)*IF(ISNUMBER($AF15),(1-$AF15),1) + IF(ISNUMBER(MATCH(BN$11,$AK15:$AP15,0)),-1,0)*_xlfn.IFS(ISNUMBER($AD15),$AD15,ISNUMBER($AE15),$AE15,ISNUMBER($AF15),$AF15,AND($AD15=0,$AE15=0,$AF15=0),1) -> 0 | BO15: =IF(ISNUMBER(MATCH(BO$11,$AG15:$AJ15,0)),1,0)*IF(ISNUMBER($AF15),(1-$AF15),1) + IF(ISNUMBER(MATCH(BO$11,$AK15:$AP15,0)),-1,0)*_xlfn.IFS(ISNUMBER($AD15),$AD15,ISNUMBER($AE15),$AE15,ISNUMBER($AF15),$AF15,AND($AD15=0,$AE15=0,$AF15=0),1) -> 0 | BP15: =IF(ISNUMBER(MATCH(BP$11,$AG15:$AJ15,0)),1,0)*IF(ISNUMBER($AF15),(1-$AF15),1) + IF(ISNUMBER(MATCH(BP$11,$AK15:$AP15,0)),-1,0)*_xlfn.IFS(ISNUMBER($AD15),$AD15,ISNUMBER($AE15),$AE15,ISNUMBER($AF15),$AF15,AND($AD15=0,$AE15=0,$AF15=0),1) -> 0 | BQ15: =IF(ISNUMBER(MATCH(BQ$11,$AG15:$AJ15,0)),1,0)*IF(ISNUMBER($AF15),(1-$AF15),1) + IF(ISNUMBER(MATCH(BQ$11,$AK15:$AP15,0)),-1,0)*_xlfn.IFS(ISNUMBER($AD15),$AD15,ISNUMBER($AE15),$AE15,ISNUMBER($AF15),$AF15,AND($AD15=0,$AE15=0,$AF15=0),1) -> 0 | BR15: =IF(ISNUMBER(MATCH(BR$11,$AG15:$AJ15,0)),1,0)*IF(ISNUMBER($AF15),(1-$AF15),1) + IF(ISNUMBER(MATCH(BR$11,$AK15:$AP15,0)),-1,0)*_xlfn.IFS(ISNUMBER($AD15),$AD15,ISNUMBER($AE15),$AE15,ISNUMBER($AF15),$AF15,AND($AD15=0,$AE15=0,$AF15=0),1) -> 0 | BS15: =IF(ISNUMBER(MATCH(BS$11,$AG15:$AJ15,0)),1,0)*IF(ISNUMBER($AF15),(1-$AF15),1) + IF(ISNUMBER(MATCH(BS$11,$AK15:$AP15,0)),-1,0)*_xlfn.IFS(ISNUMBER($AD15),$AD15,ISNUMBER($AE15),$AE15,ISNUMBER($AF15),$AF15,AND($AD15=0,$AE15=0,$AF15=0),1) -> 0 | BT15: =IF(ISNUMBER(MATCH(BT$11,$AG15:$AJ15,0)),1,0)*IF(ISNUMBER($AF15),(1-$AF15),1) + IF(ISNUMBER(MATCH(BT$11,$AK15:$AP15,0)),-1,0)*_xlfn.IFS(ISNUMBER($AD15),$AD15,ISNUMBER($AE15),$AE15,ISNUMBER($AF15),$AF15,AND($AD15=0,$AE15=0,$AF15=0),1) -> 0 | BU15: =IF(ISNUMBER(MATCH(BU$11,$AG15:$AJ15,0)),1,0)*IF(ISNUMBER($AF15),(1-$AF15),1) + IF(ISNUMBER(MATCH(BU$11,$AK15:$AP15,0)),-1,0)*_xlfn.IFS(ISNUMBER($AD15),$AD15,ISNUMBER($AE15),$AE15,ISNUMBER($AF15),$AF15,AND($AD15=0,$AE15=0,$AF15=0),1) -> 0 | BV15: =IF(ISNUMBER(MATCH(BV$11,$AG15:$AJ15,0)),1,0)*IF(ISNUMBER($AF15),(1-$AF15),1) + IF(ISNUMBER(MATCH(BV$11,$AK15:$AP15,0)),-1,0)*_xlfn.IFS(ISNUMBER($AD15),$AD15,ISNUMBER($AE15),$AE15,ISNUMBER($AF15),$AF15,AND($AD15=0,$AE15=0,$AF15=0),1) -> 0 | BW15: =IF(ISNUMBER(MATCH(BW$11,$AG15:$AJ15,0)),1,0)*IF(ISNUMBER($AF15),(1-$AF15),1) + IF(ISNUMBER(MATCH(BW$11,$AK15:$AP15,0)),-1,0)*_xlfn.IFS(ISNUMBER($AD15),$AD15,ISNUMBER($AE15),$AE15,ISNUMBER($AF15),$AF15,AND($AD15=0,$AE15=0,$AF15=0),1) -> 0 | BX15: =IF(ISNUMBER(MATCH(BX$11,$AG15:$AJ15,0)),1,0)*IF(ISNUMBER($AF15),(1-$AF15),1) + IF(ISNUMBER(MATCH(BX$11,$AK15:$AP15,0)),-1,0)*_xlfn.IFS(ISNUMBER($AD15),$AD15,ISNUMBER($AE15),$AE15,ISNUMBER($AF15),$AF15,AND($AD15=0,$AE15=0,$AF15=0),1) -> 0 | BY15: =IF(ISNUMBER(MATCH(BY$11,$AG15:$AJ15,0)),1,0)*IF(ISNUMBER($AF15),(1-$AF15),1) + IF(ISNUMBER(MATCH(BY$11,$AK15:$AP15,0)),-1,0)*_xlfn.IFS(ISNUMBER($AD15),$AD15,ISNUMBER($AE15),$AE15,ISNUMBER($AF15),$AF15,AND($AD15=0,$AE15=0,$AF15=0),1) -> 0 | BZ15: =IF(ISNUMBER(MATCH(BZ$11,$AG15:$AJ15,0)),1,0)*IF(ISNUMBER($AF15),(1-$AF15),1) + IF(ISNUMBER(MATCH(BZ$11,$AK15:$AP15,0)),-1,0)*_xlfn.IFS(ISNUMBER($AD15),$AD15,ISNUMBER($AE15),$AE15,ISNUMBER($AF15),$AF15,AND($AD15=0,$AE15=0,$AF15=0),1) -> 0 | CA15: =IF(ISNUMBER(MATCH(CA$11,$AG15:$AJ15,0)),1,0)*IF(ISNUMBER($AF15),(1-$AF15),1) + IF(ISNUMBER(MATCH(CA$11,$AK15:$AP15,0)),-1,0)*_xlfn.IFS(ISNUMBER($AD15),$AD15,ISNUMBER($AE15),$AE15,ISNUMBER($AF15),$AF15,AND($AD15=0,$AE15=0,$AF15=0),1) -> 0 | CB15: =IF(ISNUMBER(MATCH(CB$11,$AG15:$AJ15,0)),1,0)*IF(ISNUMBER($AF15),(1-$AF15),1) + IF(ISNUMBER(MATCH(CB$11,$AK15:$AP15,0)),-1,0)*_xlfn.IFS(ISNUMBER($AD15),$AD15,ISNUMBER($AE15),$AE15,ISNUMBER($AF15),$AF15,AND($AD15=0,$AE15=0,$AF15=0),1) -> 0 | CC15: =IF(ISNUMBER(MATCH(CC$11,$AG15:$AJ15,0)),1,0)*IF(ISNUMBER($AF15),(1-$AF15),1) + IF(ISNUMBER(MATCH(CC$11,$AK15:$AP15,0)),-1,0)*_xlfn.IFS(ISNUMBER($AD15),$AD15,ISNUMBER($AE15),$AE15,ISNUMBER($AF15),$AF15,AND($AD15=0,$AE15=0,$AF15=0),1) -> 0 | CD15: =IF(ISNUMBER(MATCH(CD$11,$AG15:$AJ15,0)),1,0)*IF(ISNUMBER($AF15),(1-$AF15),1) + IF(ISNUMBER(MATCH(CD$11,$AK15:$AP15,0)),-1,0)*_xlfn.IFS(ISNUMBER($AD15),$AD15,ISNUMBER($AE15),$AE15,ISNUMBER($AF15),$AF15,AND($AD15=0,$AE15=0,$AF15=0),1) -> 0 | CE15: =IF(ISNUMBER(MATCH(CE$11,$AG15:$AJ15,0)),1,0)*IF(ISNUMBER($AF15),(1-$AF15),1) + IF(ISNUMBER(MATCH(CE$11,$AK15:$AP15,0)),-1,0)*_xlfn.IFS(ISNUMBER($AD15),$AD15,ISNUMBER($AE15),$AE15,ISNUMBER($AF15),$AF15,AND($AD15=0,$AE15=0,$AF15=0),1) -> 0 | CF15: =IF(ISNUMBER(MATCH(CF$11,$AG15:$AJ15,0)),1,0)*IF(ISNUMBER($AF15),(1-$AF15),1) + IF(ISNUMBER(MATCH(CF$11,$AK15:$AP15,0)),-1,0)*_xlfn.IFS(ISNUMBER($AD15),$AD15,ISNUMBER($AE15),$AE15,ISNUMBER($AF15),$AF15,AND($AD15=0,$AE15=0,$AF15=0),1) -> 0 | CG15: =IF(ISNUMBER(MATCH(CG$11,$AG15:$AJ15,0)),1,0)*IF(ISNUMBER($AF15),(1-$AF15),1) + IF(ISNUMBER(MATCH(CG$11,$AK15:$AP15,0)),-1,0)*_xlfn.IFS(ISNUMBER($AD15),$AD15,ISNUMBER($AE15),$AE15,ISNUMBER($AF15),$AF15,AND($AD15=0,$AE15=0,$AF15=0),1) -> 0 | CH15: =IF(ISNUMBER(MATCH(CH$11,$AG15:$AJ15,0)),1,0)*IF(ISNUMBER($AF15),(1-$AF15),1) + IF(ISNUMBER(MATCH(CH$11,$AK15:$AP15,0)),-1,0)*_xlfn.IFS(ISNUMBER($AD15),$AD15,ISNUMBER($AE15),$AE15,ISNUMBER($AF15),$AF15,AND($AD15=0,$AE15=0,$AF15=0),1) -> 0 | CI15: =IF(ISNUMBER(MATCH(CI$11,$AG15:$AJ15,0)),1,0)*IF(ISNUMBER($AF15),(1-$AF15),1) + IF(ISNUMBER(MATCH(CI$11,$AK15:$AP15,0)),-1,0)*_xlfn.IFS(ISNUMBER($AD15),$AD15,ISNUMBER($AE15),$AE15,ISNUMBER($AF15),$AF15,AND($AD15=0,$AE15=0,$AF15=0),1) -> 0 | CJ15: =IF(ISNUMBER(MATCH(CJ$11,$AG15:$AJ15,0)),1,0)*IF(ISNUMBER($AF15),(1-$AF15),1) + IF(ISNUMBER(MATCH(CJ$11,$AK15:$AP15,0)),-1,0)*_xlfn.IFS(ISNUMBER($AD15),$AD15,ISNUMBER($AE15),$AE15,ISNUMBER($AF15),$AF15,AND($AD15=0,$AE15=0,$AF15=0),1) -> 0 | CK15: =IF(ISNUMBER(MATCH(CK$11,$AG15:$AJ15,0)),1,0)*IF(ISNUMBER($AF15),(1-$AF15),1) + IF(ISNUMBER(MATCH(CK$11,$AK15:$AP15,0)),-1,0)*_xlfn.IFS(ISNUMBER($AD15),$AD15,ISNUMBER($AE15),$AE15,ISNUMBER($AF15),$AF15,AND($AD15=0,$AE15=0,$AF15=0),1) -> 0 | CL15: =IF(ISNUMBER(MATCH(CL$11,$AG15:$AJ15,0)),1,0)*IF(ISNUMBER($AF15),(1-$AF15),1) + IF(ISNUMBER(MATCH(CL$11,$AK15:$AP15,0)),-1,0)*_xlfn.IFS(ISNUMBER($AD15),$AD15,ISNUMBER($AE15),$AE15,ISNUMBER($AF15),$AF15,AND($AD15=0,$AE15=0,$AF15=0),1) -> 0 | CM15: =IF(ISNUMBER(MATCH(CM$11,$AG15:$AJ15,0)),1,0)*IF(ISNUMBER($AF15),(1-$AF15),1) + IF(ISNUMBER(MATCH(CM$11,$AK15:$AP15,0)),-1,0)*_xlfn.IFS(ISNUMBER($AD15),$AD15,ISNUMBER($AE15),$AE15,ISNUMBER($AF15),$AF15,AND($AD15=0,$AE15=0,$AF15=0),1) -> 0 | CN15: =IF(ISNUMBER(MATCH(CN$11,$AG15:$AJ15,0)),1,0)*IF(ISNUMBER($AF15),(1-$AF15),1) + IF(ISNUMBER(MATCH(CN$11,$AK15:$AP15,0)),-1,0)*_xlfn.IFS(ISNUMBER($AD15),$AD15,ISNUMBER($AE15),$AE15,ISNUMBER($AF15),$AF15,AND($AD15=0,$AE15=0,$AF15=0),1) -> 0 | CO15: =IF(ISNUMBER(MATCH(CO$11,$AG15:$AJ15,0)),1,0)*IF(ISNUMBER($AF15),(1-$AF15),1) + IF(ISNUMBER(MATCH(CO$11,$AK15:$AP15,0)),-1,0)*_xlfn.IFS(ISNUMBER($AD15),$AD15,ISNUMBER($AE15),$AE15,ISNUMBER($AF15),$AF15,AND($AD15=0,$AE15=0,$AF15=0),1) -> 0 | CP15: =IF(ISNUMBER(MATCH(CP$11,$AG15:$AJ15,0)),1,0)*IF(ISNUMBER($AF15),(1-$AF15),1) + IF(ISNUMBER(MATCH(CP$11,$AK15:$AP15,0)),-1,0)*_xlfn.IFS(ISNUMBER($AD15),$AD15,ISNUMBER($AE15),$AE15,ISNUMBER($AF15),$AF15,AND($AD15=0,$AE15=0,$AF15=0),1) -> 0 | CQ15: =IF(ISNUMBER(MATCH(CQ$11,$AG15:$AJ15,0)),1,0)*IF(ISNUMBER($AF15),(1-$AF15),1) + IF(ISNUMBER(MATCH(CQ$11,$AK15:$AP15,0)),-1,0)*_xlfn.IFS(ISNUMBER($AD15),$AD15,ISNUMBER($AE15),$AE15,ISNUMBER($AF15),$AF15,AND($AD15=0,$AE15=0,$AF15=0),1) -> 0 | CR15: =IF(ISNUMBER(MATCH(CR$11,$AG15:$AJ15,0)),1,0)*IF(ISNUMBER($AF15),(1-$AF15),1) + IF(ISNUMBER(MATCH(CR$11,$AK15:$AP15,0)),-1,0)*_xlfn.IFS(ISNUMBER($AD15),$AD15,ISNUMBER($AE15),$AE15,ISNUMBER($AF15),$AF15,AND($AD15=0,$AE15=0,$AF15=0),1) -> 0 | CS15: =IF(ISNUMBER(MATCH(CS$11,$AG15:$AJ15,0)),1,0)*IF(ISNUMBER($AF15),(1-$AF15),1) + IF(ISNUMBER(MATCH(CS$11,$AK15:$AP15,0)),-1,0)*_xlfn.IFS(ISNUMBER($AD15),$AD15,ISNUMBER($AE15),$AE15,ISNUMBER($AF15),$AF15,AND($AD15=0,$AE15=0,$AF15=0),1) -> 0 | CT15: =IF(ISNUMBER(MATCH(CT$11,$AG15:$AJ15,0)),1,0)*IF(ISNUMBER($AF15),(1-$AF15),1) + IF(ISNUMBER(MATCH(CT$11,$AK15:$AP15,0)),-1,0)*_xlfn.IFS(ISNUMBER($AD15),$AD15,ISNUMBER($AE15),$AE15,ISNUMBER($AF15),$AF15,AND($AD15=0,$AE15=0,$AF15=0),1) -> 0 | CU15: =IF(ISNUMBER(MATCH(CU$11,$AG15:$AJ15,0)),1,0)*IF(ISNUMBER($AF15),(1-$AF15),1) + IF(ISNUMBER(MATCH(CU$11,$AK15:$AP15,0)),-1,0)*_xlfn.IFS(ISNUMBER($AD15),$AD15,ISNUMBER($AE15),$AE15,ISNUMBER($AF15),$AF15,AND($AD15=0,$AE15=0,$AF15=0),1) -> 0 | CV15: =IF(ISNUMBER(MATCH(CV$11,$AG15:$AJ15,0)),1,0)*IF(ISNUMBER($AF15),(1-$AF15),1) + IF(ISNUMBER(MATCH(CV$11,$AK15:$AP15,0)),-1,0)*_xlfn.IFS(ISNUMBER($AD15),$AD15,ISNUMBER($AE15),$AE15,ISNUMBER($AF15),$AF15,AND($AD15=0,$AE15=0,$AF15=0),1) -> 0 | CW15: =IF(ISNUMBER(MATCH(CW$11,$AG15:$AJ15,0)),1,0)*IF(ISNUMBER($AF15),(1-$AF15),1) + IF(ISNUMBER(MATCH(CW$11,$AK15:$AP15,0)),-1,0)*_xlfn.IFS(ISNUMBER($AD15),$AD15,ISNUMBER($AE15),$AE15,ISNUMBER($AF15),$AF15,AND($AD15=0,$AE15=0,$AF15=0),1) -> 0 | CX15: =IF(ISNUMBER(MATCH(CX$11,$AG15:$AJ15,0)),1,0)*IF(ISNUMBER($AF15),(1-$AF15),1) + IF(ISNUMBER(MATCH(CX$11,$AK15:$AP15,0)),-1,0)*_xlfn.IFS(ISNUMBER($AD15),$AD15,ISNUMBER($AE15),$AE15,ISNUMBER($AF15),$AF15,AND($AD15=0,$AE15=0,$AF15=0),1) -> 0 | CY15: =IF(ISNUMBER(MATCH(CY$11,$AG15:$AJ15,0)),1,0)*IF(ISNUMBER($AF15),(1-$AF15),1) + IF(ISNUMBER(MATCH(CY$11,$AK15:$AP15,0)),-1,0)*_xlfn.IFS(ISNUMBER($AD15),$AD15,ISNUMBER($AE15),$AE15,ISNUMBER($AF15),$AF15,AND($AD15=0,$AE15=0,$AF15=0),1) -> 0 | CZ15: =IF(ISNUMBER(MATCH(CZ$11,$AG15:$AJ15,0)),1,0)*IF(ISNUMBER($AF15),(1-$AF15),1) + IF(ISNUMBER(MATCH(CZ$11,$AK15:$AP15,0)),-1,0)*_xlfn.IFS(ISNUMBER($AD15),$AD15,ISNUMBER($AE15),$AE15,ISNUMBER($AF15),$AF15,AND($AD15=0,$AE15=0,$AF15=0),1) -> 0 | DA15: =IF(ISNUMBER(MATCH(DA$11,$AG15:$AJ15,0)),1,0)*IF(ISNUMBER($AF15),(1-$AF15),1) + IF(ISNUMBER(MATCH(DA$11,$AK15:$AP15,0)),-1,0)*_xlfn.IFS(ISNUMBER($AD15),$AD15,ISNUMBER($AE15),$AE15,ISNUMBER($AF15),$AF15,AND($AD15=0,$AE15=0,$AF15=0),1) -> 0 | DB15: =IF(ISNUMBER(MATCH(DB$11,$AG15:$AJ15,0)),1,0)*IF(ISNUMBER($AF15),(1-$AF15),1) + IF(ISNUMBER(MATCH(DB$11,$AK15:$AP15,0)),-1,0)*_xlfn.IFS(ISNUMBER($AD15),$AD15,ISNUMBER($AE15),$AE15,ISNUMBER($AF15),$AF15,AND($AD15=0,$AE15=0,$AF15=0),1) -> 0 | DC15: =IF(ISNUMBER(MATCH(DC$11,$AG15:$AJ15,0)),1,0)*IF(ISNUMBER($AF15),(1-$AF15),1) + IF(ISNUMBER(MATCH(DC$11,$AK15:$AP15,0)),-1,0)*_xlfn.IFS(ISNUMBER($AD15),$AD15,ISNUMBER($AE15),$AE15,ISNUMBER($AF15),$AF15,AND($AD15=0,$AE15=0,$AF15=0),1) -> 0 | DD15: =IF(ISNUMBER(MATCH(DD$11,$AG15:$AJ15,0)),1,0)*IF(ISNUMBER($AF15),(1-$AF15),1) + IF(ISNUMBER(MATCH(DD$11,$AK15:$AP15,0)),-1,0)*_xlfn.IFS(ISNUMBER($AD15),$AD15,ISNUMBER($AE15),$AE15,ISNUMBER($AF15),$AF15,AND($AD15=0,$AE15=0,$AF15=0),1) -> 0 | DE15: =IF(ISNUMBER(MATCH(DE$11,$AG15:$AJ15,0)),1,0)*IF(ISNUMBER($AF15),(1-$AF15),1) + IF(ISNUMBER(MATCH(DE$11,$AK15:$AP15,0)),-1,0)*_xlfn.IFS(ISNUMBER($AD15),$AD15,ISNUMBER($AE15),$AE15,ISNUMBER($AF15),$AF15,AND($AD15=0,$AE15=0,$AF15=0),1) -> 0 | DG15: 0 | DH15: PowerCrit | DI15: SWB | DJ15: Losses | DW15: =TRANSPOSE(AG12:AG87) -> e_crit_u-tx | DX15: q_crit_tx-amb | DY15: e_crit_tx-swb | DZ15: q_crit_swb-ch | EA15: e_crit_swb-ups | EB15: q_crit_ups-ch | EC15: e_crit_swb-ch | ED15: q_crit_swb-ch | EE15: e_mech_u-tx | EF15: q_mech_tx-amb | EG15: e_mech_tx-swb | EH15: q_mech_swb-amb | EI15: e_crit_swb-drms | EJ15: e_crit_ups-drms | EK15: q_drms-hru,lt | EL15: q_drms-hru,ht | EM15: e_drms_crit-dr1 | EN15: q_dr1_cls,a | EO15: q_drms_dr1-hru,ht | EP15: e_drms_crit-dr1 | EQ15: e_drms_oh-dr1 | ER15: q_dr1_cls,a | ES15: w_drms-dr1 | ET15: e_drms_crit-dr2 | EU15: q_dr2_cls,a | EV15: q_drms_dr2-hru,ht | EW15: e_drms_crit-dr2 | EX15: e_drms_oh-dr2 | EY15: q_dr2_cls,a | EZ15: w_drms-dr2 | FA15: e_drms_crit-dr3 | FB15: q_dr3_cls,a | FC15: q_drms_dr3-hru,ht | FD15: e_drms_crit-dr3 | FE15: e_drms_oh-dr3 | FF15: q_dr3_cls,a | FG15: w_drms-dr3 | FH15: e_drms_crit-dr4 | FI15: q_dr4_cls,a | FJ15: q_drms_dr4-hru,ht | FK15: e_drms_crit-dr4 | FL15: e_drms_oh-dr4 | FM15: q_dr4_cls,a | FN15: w_drms-dr4 | FO15: e_mech_swb-hru,lt | FP15: q_drms-hru,lt | FQ15: q_drms-hru,lt | FR15: q_hru_eco-comp,lt | FS15: q_hru_eco-comp,lt | FT15: e_hru_fc,lt | FU15: q_hru_eco-fc,lt | FV15: e_hru_fs,lt | FW15: q_hru_comp-fs,lt | FX15: q_hru_pump-eco,lt | FY15: q_hru_eco-fc,lt | FZ15: e_mech_swb-hru,ht | GA15: q_drms-hru,ht | GB15: q_drms-hru,ht | GC15: q_hru_eco-comp,ht | GD15: q_hru_eco-comp,ht | GE15: e_hru_fc,ht | GF15: q_hru_eco-fc,ht | GG15: e_hru_fs,ht | GH15: q_hru_comp-fs,ht | GI15: q_hru_pump-eco,ht | GJ15: q_hru_eco-fc,ht | GK15: 0 | GL15: e_crit_u-tx | GM15: e_mech_u-tx | GN15: e_crit_ups-drms | GO15: e_drms_crit-dr1 | GP15: e_drms_crit-dr2 | GQ15: e_drms_crit-dr3 | GR15: e_drms_crit-dr4 | GS15: q_drms-hru,lt | GT15: q_drms-hru,ht
S16: e_crit_swb-ups | T16: 3949.678314 | U16: 3949.678314 | V16: 3949.678314 | W16: 3949.678314 | X16: 3949.678314 | Y16: 3949.678314 | AA16: UPS | AB16: Conservation | AG16: e_crit_swb-ups | AK16: e_crit_ups-drms | AL16: e_crit_ups-hru,ht | AM16: e_crit_ups-hru,lt | AN16: q_crit_ups-ch | AR16: =IF(ISNUMBER(MATCH(AR$11,$AG16:$AJ16,0)),1,0)*IF(ISNUMBER($AF16),(1-$AF16),1) + IF(ISNUMBER(MATCH(AR$11,$AK16:$AP16,0)),-1,0)*_xlfn.IFS(ISNUMBER($AD16),$AD16,ISNUMBER($AE16),$AE16,ISNUMBER($AF16),$AF16,AND($AD16=0,$AE16=0,$AF16=0),1) -> 0 | AS16: =IF(ISNUMBER(MATCH(AS$11,$AG16:$AJ16,0)),1,0)*IF(ISNUMBER($AF16),(1-$AF16),1) + IF(ISNUMBER(MATCH(AS$11,$AK16:$AP16,0)),-1,0)*_xlfn.IFS(ISNUMBER($AD16),$AD16,ISNUMBER($AE16),$AE16,ISNUMBER($AF16),$AF16,AND($AD16=0,$AE16=0,$AF16=0),1) -> 0 | AT16: =IF(ISNUMBER(MATCH(AT$11,$AG16:$AJ16,0)),1,0)*IF(ISNUMBER($AF16),(1-$AF16),1) + IF(ISNUMBER(MATCH(AT$11,$AK16:$AP16,0)),-1,0)*_xlfn.IFS(ISNUMBER($AD16),$AD16,ISNUMBER($AE16),$AE16,ISNUMBER($AF16),$AF16,AND($AD16=0,$AE16=0,$AF16=0),1) -> 0 | AU16: =IF(ISNUMBER(MATCH(AU$11,$AG16:$AJ16,0)),1,0)*IF(ISNUMBER($AF16),(1-$AF16),1) + IF(ISNUMBER(MATCH(AU$11,$AK16:$AP16,0)),-1,0)*_xlfn.IFS(ISNUMBER($AD16),$AD16,ISNUMBER($AE16),$AE16,ISNUMBER($AF16),$AF16,AND($AD16=0,$AE16=0,$AF16=0),1) -> 0 | AV16: =IF(ISNUMBER(MATCH(AV$11,$AG16:$AJ16,0)),1,0)*IF(ISNUMBER($AF16),(1-$AF16),1) + IF(ISNUMBER(MATCH(AV$11,$AK16:$AP16,0)),-1,0)*_xlfn.IFS(ISNUMBER($AD16),$AD16,ISNUMBER($AE16),$AE16,ISNUMBER($AF16),$AF16,AND($AD16=0,$AE16=0,$AF16=0),1) -> 1 | AW16: =IF(ISNUMBER(MATCH(AW$11,$AG16:$AJ16,0)),1,0)*IF(ISNUMBER($AF16),(1-$AF16),1) + IF(ISNUMBER(MATCH(AW$11,$AK16:$AP16,0)),-1,0)*_xlfn.IFS(ISNUMBER($AD16),$AD16,ISNUMBER($AE16),$AE16,ISNUMBER($AF16),$AF16,AND($AD16=0,$AE16=0,$AF16=0),1) -> 0 | AX16: =IF(ISNUMBER(MATCH(AX$11,$AG16:$AJ16,0)),1,0)*IF(ISNUMBER($AF16),(1-$AF16),1) + IF(ISNUMBER(MATCH(AX$11,$AK16:$AP16,0)),-1,0)*_xlfn.IFS(ISNUMBER($AD16),$AD16,ISNUMBER($AE16),$AE16,ISNUMBER($AF16),$AF16,AND($AD16=0,$AE16=0,$AF16=0),1) -> 0 | AY16: =IF(ISNUMBER(MATCH(AY$11,$AG16:$AJ16,0)),1,0)*IF(ISNUMBER($AF16),(1-$AF16),1) + IF(ISNUMBER(MATCH(AY$11,$AK16:$AP16,0)),-1,0)*_xlfn.IFS(ISNUMBER($AD16),$AD16,ISNUMBER($AE16),$AE16,ISNUMBER($AF16),$AF16,AND($AD16=0,$AE16=0,$AF16=0),1) -> -1 | AZ16: =IF(ISNUMBER(MATCH(AZ$11,$AG16:$AJ16,0)),1,0)*IF(ISNUMBER($AF16),(1-$AF16),1) + IF(ISNUMBER(MATCH(AZ$11,$AK16:$AP16,0)),-1,0)*_xlfn.IFS(ISNUMBER($AD16),$AD16,ISNUMBER($AE16),$AE16,ISNUMBER($AF16),$AF16,AND($AD16=0,$AE16=0,$AF16=0),1) -> -1 | BA16: =IF(ISNUMBER(MATCH(BA$11,$AG16:$AJ16,0)),1,0)*IF(ISNUMBER($AF16),(1-$AF16),1) + IF(ISNUMBER(MATCH(BA$11,$AK16:$AP16,0)),-1,0)*_xlfn.IFS(ISNUMBER($AD16),$AD16,ISNUMBER($AE16),$AE16,ISNUMBER($AF16),$AF16,AND($AD16=0,$AE16=0,$AF16=0),1) -> -1 | BB16: =IF(ISNUMBER(MATCH(BB$11,$AG16:$AJ16,0)),1,0)*IF(ISNUMBER($AF16),(1-$AF16),1) + IF(ISNUMBER(MATCH(BB$11,$AK16:$AP16,0)),-1,0)*_xlfn.IFS(ISNUMBER($AD16),$AD16,ISNUMBER($AE16),$AE16,ISNUMBER($AF16),$AF16,AND($AD16=0,$AE16=0,$AF16=0),1) -> -1 | BC16: =IF(ISNUMBER(MATCH(BC$11,$AG16:$AJ16,0)),1,0)*IF(ISNUMBER($AF16),(1-$AF16),1) + IF(ISNUMBER(MATCH(BC$11,$AK16:$AP16,0)),-1,0)*_xlfn.IFS(ISNUMBER($AD16),$AD16,ISNUMBER($AE16),$AE16,ISNUMBER($AF16),$AF16,AND($AD16=0,$AE16=0,$AF16=0),1) -> 0 | BD16: =IF(ISNUMBER(MATCH(BD$11,$AG16:$AJ16,0)),1,0)*IF(ISNUMBER($AF16),(1-$AF16),1) + IF(ISNUMBER(MATCH(BD$11,$AK16:$AP16,0)),-1,0)*_xlfn.IFS(ISNUMBER($AD16),$AD16,ISNUMBER($AE16),$AE16,ISNUMBER($AF16),$AF16,AND($AD16=0,$AE16=0,$AF16=0),1) -> 0 | BE16: =IF(ISNUMBER(MATCH(BE$11,$AG16:$AJ16,0)),1,0)*IF(ISNUMBER($AF16),(1-$AF16),1) + IF(ISNUMBER(MATCH(BE$11,$AK16:$AP16,0)),-1,0)*_xlfn.IFS(ISNUMBER($AD16),$AD16,ISNUMBER($AE16),$AE16,ISNUMBER($AF16),$AF16,AND($AD16=0,$AE16=0,$AF16=0),1) -> 0 | BF16: =IF(ISNUMBER(MATCH(BF$11,$AG16:$AJ16,0)),1,0)*IF(ISNUMBER($AF16),(1-$AF16),1) + IF(ISNUMBER(MATCH(BF$11,$AK16:$AP16,0)),-1,0)*_xlfn.IFS(ISNUMBER($AD16),$AD16,ISNUMBER($AE16),$AE16,ISNUMBER($AF16),$AF16,AND($AD16=0,$AE16=0,$AF16=0),1) -> 0 | BG16: =IF(ISNUMBER(MATCH(BG$11,$AG16:$AJ16,0)),1,0)*IF(ISNUMBER($AF16),(1-$AF16),1) + IF(ISNUMBER(MATCH(BG$11,$AK16:$AP16,0)),-1,0)*_xlfn.IFS(ISNUMBER($AD16),$AD16,ISNUMBER($AE16),$AE16,ISNUMBER($AF16),$AF16,AND($AD16=0,$AE16=0,$AF16=0),1) -> 0 | BH16: =IF(ISNUMBER(MATCH(BH$11,$AG16:$AJ16,0)),1,0)*IF(ISNUMBER($AF16),(1-$AF16),1) + IF(ISNUMBER(MATCH(BH$11,$AK16:$AP16,0)),-1,0)*_xlfn.IFS(ISNUMBER($AD16),$AD16,ISNUMBER($AE16),$AE16,ISNUMBER($AF16),$AF16,AND($AD16=0,$AE16=0,$AF16=0),1) -> 0 | BI16: =IF(ISNUMBER(MATCH(BI$11,$AG16:$AJ16,0)),1,0)*IF(ISNUMBER($AF16),(1-$AF16),1) + IF(ISNUMBER(MATCH(BI$11,$AK16:$AP16,0)),-1,0)*_xlfn.IFS(ISNUMBER($AD16),$AD16,ISNUMBER($AE16),$AE16,ISNUMBER($AF16),$AF16,AND($AD16=0,$AE16=0,$AF16=0),1) -> 0 | BJ16: =IF(ISNUMBER(MATCH(BJ$11,$AG16:$AJ16,0)),1,0)*IF(ISNUMBER($AF16),(1-$AF16),1) + IF(ISNUMBER(MATCH(BJ$11,$AK16:$AP16,0)),-1,0)*_xlfn.IFS(ISNUMBER($AD16),$AD16,ISNUMBER($AE16),$AE16,ISNUMBER($AF16),$AF16,AND($AD16=0,$AE16=0,$AF16=0),1) -> 0 | BK16: =IF(ISNUMBER(MATCH(BK$11,$AG16:$AJ16,0)),1,0)*IF(ISNUMBER($AF16),(1-$AF16),1) + IF(ISNUMBER(MATCH(BK$11,$AK16:$AP16,0)),-1,0)*_xlfn.IFS(ISNUMBER($AD16),$AD16,ISNUMBER($AE16),$AE16,ISNUMBER($AF16),$AF16,AND($AD16=0,$AE16=0,$AF16=0),1) -> 0 | BL16: =IF(ISNUMBER(MATCH(BL$11,$AG16:$AJ16,0)),1,0)*IF(ISNUMBER($AF16),(1-$AF16),1) + IF(ISNUMBER(MATCH(BL$11,$AK16:$AP16,0)),-1,0)*_xlfn.IFS(ISNUMBER($AD16),$AD16,ISNUMBER($AE16),$AE16,ISNUMBER($AF16),$AF16,AND($AD16=0,$AE16=0,$AF16=0),1) -> 0 | BM16: =IF(ISNUMBER(MATCH(BM$11,$AG16:$AJ16,0)),1,0)*IF(ISNUMBER($AF16),(1-$AF16),1) + IF(ISNUMBER(MATCH(BM$11,$AK16:$AP16,0)),-1,0)*_xlfn.IFS(ISNUMBER($AD16),$AD16,ISNUMBER($AE16),$AE16,ISNUMBER($AF16),$AF16,AND($AD16=0,$AE16=0,$AF16=0),1) -> 0 | BN16: =IF(ISNUMBER(MATCH(BN$11,$AG16:$AJ16,0)),1,0)*IF(ISNUMBER($AF16),(1-$AF16),1) + IF(ISNUMBER(MATCH(BN$11,$AK16:$AP16,0)),-1,0)*_xlfn.IFS(ISNUMBER($AD16),$AD16,ISNUMBER($AE16),$AE16,ISNUMBER($AF16),$AF16,AND($AD16=0,$AE16=0,$AF16=0),1) -> 0 | BO16: =IF(ISNUMBER(MATCH(BO$11,$AG16:$AJ16,0)),1,0)*IF(ISNUMBER($AF16),(1-$AF16),1) + IF(ISNUMBER(MATCH(BO$11,$AK16:$AP16,0)),-1,0)*_xlfn.IFS(ISNUMBER($AD16),$AD16,ISNUMBER($AE16),$AE16,ISNUMBER($AF16),$AF16,AND($AD16=0,$AE16=0,$AF16=0),1) -> 0 | BP16: =IF(ISNUMBER(MATCH(BP$11,$AG16:$AJ16,0)),1,0)*IF(ISNUMBER($AF16),(1-$AF16),1) + IF(ISNUMBER(MATCH(BP$11,$AK16:$AP16,0)),-1,0)*_xlfn.IFS(ISNUMBER($AD16),$AD16,ISNUMBER($AE16),$AE16,ISNUMBER($AF16),$AF16,AND($AD16=0,$AE16=0,$AF16=0),1) -> 0 | BQ16: =IF(ISNUMBER(MATCH(BQ$11,$AG16:$AJ16,0)),1,0)*IF(ISNUMBER($AF16),(1-$AF16),1) + IF(ISNUMBER(MATCH(BQ$11,$AK16:$AP16,0)),-1,0)*_xlfn.IFS(ISNUMBER($AD16),$AD16,ISNUMBER($AE16),$AE16,ISNUMBER($AF16),$AF16,AND($AD16=0,$AE16=0,$AF16=0),1) -> 0 | BR16: =IF(ISNUMBER(MATCH(BR$11,$AG16:$AJ16,0)),1,0)*IF(ISNUMBER($AF16),(1-$AF16),1) + IF(ISNUMBER(MATCH(BR$11,$AK16:$AP16,0)),-1,0)*_xlfn.IFS(ISNUMBER($AD16),$AD16,ISNUMBER($AE16),$AE16,ISNUMBER($AF16),$AF16,AND($AD16=0,$AE16=0,$AF16=0),1) -> 0 | BS16: =IF(ISNUMBER(MATCH(BS$11,$AG16:$AJ16,0)),1,0)*IF(ISNUMBER($AF16),(1-$AF16),1) + IF(ISNUMBER(MATCH(BS$11,$AK16:$AP16,0)),-1,0)*_xlfn.IFS(ISNUMBER($AD16),$AD16,ISNUMBER($AE16),$AE16,ISNUMBER($AF16),$AF16,AND($AD16=0,$AE16=0,$AF16=0),1) -> 0 | BT16: =IF(ISNUMBER(MATCH(BT$11,$AG16:$AJ16,0)),1,0)*IF(ISNUMBER($AF16),(1-$AF16),1) + IF(ISNUMBER(MATCH(BT$11,$AK16:$AP16,0)),-1,0)*_xlfn.IFS(ISNUMBER($AD16),$AD16,ISNUMBER($AE16),$AE16,ISNUMBER($AF16),$AF16,AND($AD16=0,$AE16=0,$AF16=0),1) -> 0 | BU16: =IF(ISNUMBER(MATCH(BU$11,$AG16:$AJ16,0)),1,0)*IF(ISNUMBER($AF16),(1-$AF16),1) + IF(ISNUMBER(MATCH(BU$11,$AK16:$AP16,0)),-1,0)*_xlfn.IFS(ISNUMBER($AD16),$AD16,ISNUMBER($AE16),$AE16,ISNUMBER($AF16),$AF16,AND($AD16=0,$AE16=0,$AF16=0),1) -> 0 | BV16: =IF(ISNUMBER(MATCH(BV$11,$AG16:$AJ16,0)),1,0)*IF(ISNUMBER($AF16),(1-$AF16),1) + IF(ISNUMBER(MATCH(BV$11,$AK16:$AP16,0)),-1,0)*_xlfn.IFS(ISNUMBER($AD16),$AD16,ISNUMBER($AE16),$AE16,ISNUMBER($AF16),$AF16,AND($AD16=0,$AE16=0,$AF16=0),1) -> 0 | BW16: =IF(ISNUMBER(MATCH(BW$11,$AG16:$AJ16,0)),1,0)*IF(ISNUMBER($AF16),(1-$AF16),1) + IF(ISNUMBER(MATCH(BW$11,$AK16:$AP16,0)),-1,0)*_xlfn.IFS(ISNUMBER($AD16),$AD16,ISNUMBER($AE16),$AE16,ISNUMBER($AF16),$AF16,AND($AD16=0,$AE16=0,$AF16=0),1) -> 0 | BX16: =IF(ISNUMBER(MATCH(BX$11,$AG16:$AJ16,0)),1,0)*IF(ISNUMBER($AF16),(1-$AF16),1) + IF(ISNUMBER(MATCH(BX$11,$AK16:$AP16,0)),-1,0)*_xlfn.IFS(ISNUMBER($AD16),$AD16,ISNUMBER($AE16),$AE16,ISNUMBER($AF16),$AF16,AND($AD16=0,$AE16=0,$AF16=0),1) -> 0 | BY16: =IF(ISNUMBER(MATCH(BY$11,$AG16:$AJ16,0)),1,0)*IF(ISNUMBER($AF16),(1-$AF16),1) + IF(ISNUMBER(MATCH(BY$11,$AK16:$AP16,0)),-1,0)*_xlfn.IFS(ISNUMBER($AD16),$AD16,ISNUMBER($AE16),$AE16,ISNUMBER($AF16),$AF16,AND($AD16=0,$AE16=0,$AF16=0),1) -> 0 | BZ16: =IF(ISNUMBER(MATCH(BZ$11,$AG16:$AJ16,0)),1,0)*IF(ISNUMBER($AF16),(1-$AF16),1) + IF(ISNUMBER(MATCH(BZ$11,$AK16:$AP16,0)),-1,0)*_xlfn.IFS(ISNUMBER($AD16),$AD16,ISNUMBER($AE16),$AE16,ISNUMBER($AF16),$AF16,AND($AD16=0,$AE16=0,$AF16=0),1) -> 0 | CA16: =IF(ISNUMBER(MATCH(CA$11,$AG16:$AJ16,0)),1,0)*IF(ISNUMBER($AF16),(1-$AF16),1) + IF(ISNUMBER(MATCH(CA$11,$AK16:$AP16,0)),-1,0)*_xlfn.IFS(ISNUMBER($AD16),$AD16,ISNUMBER($AE16),$AE16,ISNUMBER($AF16),$AF16,AND($AD16=0,$AE16=0,$AF16=0),1) -> 0 | CB16: =IF(ISNUMBER(MATCH(CB$11,$AG16:$AJ16,0)),1,0)*IF(ISNUMBER($AF16),(1-$AF16),1) + IF(ISNUMBER(MATCH(CB$11,$AK16:$AP16,0)),-1,0)*_xlfn.IFS(ISNUMBER($AD16),$AD16,ISNUMBER($AE16),$AE16,ISNUMBER($AF16),$AF16,AND($AD16=0,$AE16=0,$AF16=0),1) -> 0 | CC16: =IF(ISNUMBER(MATCH(CC$11,$AG16:$AJ16,0)),1,0)*IF(ISNUMBER($AF16),(1-$AF16),1) + IF(ISNUMBER(MATCH(CC$11,$AK16:$AP16,0)),-1,0)*_xlfn.IFS(ISNUMBER($AD16),$AD16,ISNUMBER($AE16),$AE16,ISNUMBER($AF16),$AF16,AND($AD16=0,$AE16=0,$AF16=0),1) -> 0 | CD16: =IF(ISNUMBER(MATCH(CD$11,$AG16:$AJ16,0)),1,0)*IF(ISNUMBER($AF16),(1-$AF16),1) + IF(ISNUMBER(MATCH(CD$11,$AK16:$AP16,0)),-1,0)*_xlfn.IFS(ISNUMBER($AD16),$AD16,ISNUMBER($AE16),$AE16,ISNUMBER($AF16),$AF16,AND($AD16=0,$AE16=0,$AF16=0),1) -> 0 | CE16: =IF(ISNUMBER(MATCH(CE$11,$AG16:$AJ16,0)),1,0)*IF(ISNUMBER($AF16),(1-$AF16),1) + IF(ISNUMBER(MATCH(CE$11,$AK16:$AP16,0)),-1,0)*_xlfn.IFS(ISNUMBER($AD16),$AD16,ISNUMBER($AE16),$AE16,ISNUMBER($AF16),$AF16,AND($AD16=0,$AE16=0,$AF16=0),1) -> 0 | CF16: =IF(ISNUMBER(MATCH(CF$11,$AG16:$AJ16,0)),1,0)*IF(ISNUMBER($AF16),(1-$AF16),1) + IF(ISNUMBER(MATCH(CF$11,$AK16:$AP16,0)),-1,0)*_xlfn.IFS(ISNUMBER($AD16),$AD16,ISNUMBER($AE16),$AE16,ISNUMBER($AF16),$AF16,AND($AD16=0,$AE16=0,$AF16=0),1) -> 0 | CG16: =IF(ISNUMBER(MATCH(CG$11,$AG16:$AJ16,0)),1,0)*IF(ISNUMBER($AF16),(1-$AF16),1) + IF(ISNUMBER(MATCH(CG$11,$AK16:$AP16,0)),-1,0)*_xlfn.IFS(ISNUMBER($AD16),$AD16,ISNUMBER($AE16),$AE16,ISNUMBER($AF16),$AF16,AND($AD16=0,$AE16=0,$AF16=0),1) -> 0 | CH16: =IF(ISNUMBER(MATCH(CH$11,$AG16:$AJ16,0)),1,0)*IF(ISNUMBER($AF16),(1-$AF16),1) + IF(ISNUMBER(MATCH(CH$11,$AK16:$AP16,0)),-1,0)*_xlfn.IFS(ISNUMBER($AD16),$AD16,ISNUMBER($AE16),$AE16,ISNUMBER($AF16),$AF16,AND($AD16=0,$AE16=0,$AF16=0),1) -> 0 | CI16: =IF(ISNUMBER(MATCH(CI$11,$AG16:$AJ16,0)),1,0)*IF(ISNUMBER($AF16),(1-$AF16),1) + IF(ISNUMBER(MATCH(CI$11,$AK16:$AP16,0)),-1,0)*_xlfn.IFS(ISNUMBER($AD16),$AD16,ISNUMBER($AE16),$AE16,ISNUMBER($AF16),$AF16,AND($AD16=0,$AE16=0,$AF16=0),1) -> 0 | CJ16: =IF(ISNUMBER(MATCH(CJ$11,$AG16:$AJ16,0)),1,0)*IF(ISNUMBER($AF16),(1-$AF16),1) + IF(ISNUMBER(MATCH(CJ$11,$AK16:$AP16,0)),-1,0)*_xlfn.IFS(ISNUMBER($AD16),$AD16,ISNUMBER($AE16),$AE16,ISNUMBER($AF16),$AF16,AND($AD16=0,$AE16=0,$AF16=0),1) -> 0 | CK16: =IF(ISNUMBER(MATCH(CK$11,$AG16:$AJ16,0)),1,0)*IF(ISNUMBER($AF16),(1-$AF16),1) + IF(ISNUMBER(MATCH(CK$11,$AK16:$AP16,0)),-1,0)*_xlfn.IFS(ISNUMBER($AD16),$AD16,ISNUMBER($AE16),$AE16,ISNUMBER($AF16),$AF16,AND($AD16=0,$AE16=0,$AF16=0),1) -> 0 | CL16: =IF(ISNUMBER(MATCH(CL$11,$AG16:$AJ16,0)),1,0)*IF(ISNUMBER($AF16),(1-$AF16),1) + IF(ISNUMBER(MATCH(CL$11,$AK16:$AP16,0)),-1,0)*_xlfn.IFS(ISNUMBER($AD16),$AD16,ISNUMBER($AE16),$AE16,ISNUMBER($AF16),$AF16,AND($AD16=0,$AE16=0,$AF16=0),1) -> 0 | CM16: =IF(ISNUMBER(MATCH(CM$11,$AG16:$AJ16,0)),1,0)*IF(ISNUMBER($AF16),(1-$AF16),1) + IF(ISNUMBER(MATCH(CM$11,$AK16:$AP16,0)),-1,0)*_xlfn.IFS(ISNUMBER($AD16),$AD16,ISNUMBER($AE16),$AE16,ISNUMBER($AF16),$AF16,AND($AD16=0,$AE16=0,$AF16=0),1) -> 0 | CN16: =IF(ISNUMBER(MATCH(CN$11,$AG16:$AJ16,0)),1,0)*IF(ISNUMBER($AF16),(1-$AF16),1) + IF(ISNUMBER(MATCH(CN$11,$AK16:$AP16,0)),-1,0)*_xlfn.IFS(ISNUMBER($AD16),$AD16,ISNUMBER($AE16),$AE16,ISNUMBER($AF16),$AF16,AND($AD16=0,$AE16=0,$AF16=0),1) -> 0 | CO16: =IF(ISNUMBER(MATCH(CO$11,$AG16:$AJ16,0)),1,0)*IF(ISNUMBER($AF16),(1-$AF16),1) + IF(ISNUMBER(MATCH(CO$11,$AK16:$AP16,0)),-1,0)*_xlfn.IFS(ISNUMBER($AD16),$AD16,ISNUMBER($AE16),$AE16,ISNUMBER($AF16),$AF16,AND($AD16=0,$AE16=0,$AF16=0),1) -> 0 | CP16: =IF(ISNUMBER(MATCH(CP$11,$AG16:$AJ16,0)),1,0)*IF(ISNUMBER($AF16),(1-$AF16),1) + IF(ISNUMBER(MATCH(CP$11,$AK16:$AP16,0)),-1,0)*_xlfn.IFS(ISNUMBER($AD16),$AD16,ISNUMBER($AE16),$AE16,ISNUMBER($AF16),$AF16,AND($AD16=0,$AE16=0,$AF16=0),1) -> 0 | CQ16: =IF(ISNUMBER(MATCH(CQ$11,$AG16:$AJ16,0)),1,0)*IF(ISNUMBER($AF16),(1-$AF16),1) + IF(ISNUMBER(MATCH(CQ$11,$AK16:$AP16,0)),-1,0)*_xlfn.IFS(ISNUMBER($AD16),$AD16,ISNUMBER($AE16),$AE16,ISNUMBER($AF16),$AF16,AND($AD16=0,$AE16=0,$AF16=0),1) -> 0 | CR16: =IF(ISNUMBER(MATCH(CR$11,$AG16:$AJ16,0)),1,0)*IF(ISNUMBER($AF16),(1-$AF16),1) + IF(ISNUMBER(MATCH(CR$11,$AK16:$AP16,0)),-1,0)*_xlfn.IFS(ISNUMBER($AD16),$AD16,ISNUMBER($AE16),$AE16,ISNUMBER($AF16),$AF16,AND($AD16=0,$AE16=0,$AF16=0),1) -> 0 | CS16: =IF(ISNUMBER(MATCH(CS$11,$AG16:$AJ16,0)),1,0)*IF(ISNUMBER($AF16),(1-$AF16),1) + IF(ISNUMBER(MATCH(CS$11,$AK16:$AP16,0)),-1,0)*_xlfn.IFS(ISNUMBER($AD16),$AD16,ISNUMBER($AE16),$AE16,ISNUMBER($AF16),$AF16,AND($AD16=0,$AE16=0,$AF16=0),1) -> 0 | CT16: =IF(ISNUMBER(MATCH(CT$11,$AG16:$AJ16,0)),1,0)*IF(ISNUMBER($AF16),(1-$AF16),1) + IF(ISNUMBER(MATCH(CT$11,$AK16:$AP16,0)),-1,0)*_xlfn.IFS(ISNUMBER($AD16),$AD16,ISNUMBER($AE16),$AE16,ISNUMBER($AF16),$AF16,AND($AD16=0,$AE16=0,$AF16=0),1) -> 0 | CU16: =IF(ISNUMBER(MATCH(CU$11,$AG16:$AJ16,0)),1,0)*IF(ISNUMBER($AF16),(1-$AF16),1) + IF(ISNUMBER(MATCH(CU$11,$AK16:$AP16,0)),-1,0)*_xlfn.IFS(ISNUMBER($AD16),$AD16,ISNUMBER($AE16),$AE16,ISNUMBER($AF16),$AF16,AND($AD16=0,$AE16=0,$AF16=0),1) -> 0 | CV16: =IF(ISNUMBER(MATCH(CV$11,$AG16:$AJ16,0)),1,0)*IF(ISNUMBER($AF16),(1-$AF16),1) + IF(ISNUMBER(MATCH(CV$11,$AK16:$AP16,0)),-1,0)*_xlfn.IFS(ISNUMBER($AD16),$AD16,ISNUMBER($AE16),$AE16,ISNUMBER($AF16),$AF16,AND($AD16=0,$AE16=0,$AF16=0),1) -> 0 | CW16: =IF(ISNUMBER(MATCH(CW$11,$AG16:$AJ16,0)),1,0)*IF(ISNUMBER($AF16),(1-$AF16),1) + IF(ISNUMBER(MATCH(CW$11,$AK16:$AP16,0)),-1,0)*_xlfn.IFS(ISNUMBER($AD16),$AD16,ISNUMBER($AE16),$AE16,ISNUMBER($AF16),$AF16,AND($AD16=0,$AE16=0,$AF16=0),1) -> 0 | CX16: =IF(ISNUMBER(MATCH(CX$11,$AG16:$AJ16,0)),1,0)*IF(ISNUMBER($AF16),(1-$AF16),1) + IF(ISNUMBER(MATCH(CX$11,$AK16:$AP16,0)),-1,0)*_xlfn.IFS(ISNUMBER($AD16),$AD16,ISNUMBER($AE16),$AE16,ISNUMBER($AF16),$AF16,AND($AD16=0,$AE16=0,$AF16=0),1) -> 0 | CY16: =IF(ISNUMBER(MATCH(CY$11,$AG16:$AJ16,0)),1,0)*IF(ISNUMBER($AF16),(1-$AF16),1) + IF(ISNUMBER(MATCH(CY$11,$AK16:$AP16,0)),-1,0)*_xlfn.IFS(ISNUMBER($AD16),$AD16,ISNUMBER($AE16),$AE16,ISNUMBER($AF16),$AF16,AND($AD16=0,$AE16=0,$AF16=0),1) -> 0 | CZ16: =IF(ISNUMBER(MATCH(CZ$11,$AG16:$AJ16,0)),1,0)*IF(ISNUMBER($AF16),(1-$AF16),1) + IF(ISNUMBER(MATCH(CZ$11,$AK16:$AP16,0)),-1,0)*_xlfn.IFS(ISNUMBER($AD16),$AD16,ISNUMBER($AE16),$AE16,ISNUMBER($AF16),$AF16,AND($AD16=0,$AE16=0,$AF16=0),1) -> 0 | DA16: =IF(ISNUMBER(MATCH(DA$11,$AG16:$AJ16,0)),1,0)*IF(ISNUMBER($AF16),(1-$AF16),1) + IF(ISNUMBER(MATCH(DA$11,$AK16:$AP16,0)),-1,0)*_xlfn.IFS(ISNUMBER($AD16),$AD16,ISNUMBER($AE16),$AE16,ISNUMBER($AF16),$AF16,AND($AD16=0,$AE16=0,$AF16=0),1) -> 0 | DB16: =IF(ISNUMBER(MATCH(DB$11,$AG16:$AJ16,0)),1,0)*IF(ISNUMBER($AF16),(1-$AF16),1) + IF(ISNUMBER(MATCH(DB$11,$AK16:$AP16,0)),-1,0)*_xlfn.IFS(ISNUMBER($AD16),$AD16,ISNUMBER($AE16),$AE16,ISNUMBER($AF16),$AF16,AND($AD16=0,$AE16=0,$AF16=0),1) -> 0 | DC16: =IF(ISNUMBER(MATCH(DC$11,$AG16:$AJ16,0)),1,0)*IF(ISNUMBER($AF16),(1-$AF16),1) + IF(ISNUMBER(MATCH(DC$11,$AK16:$AP16,0)),-1,0)*_xlfn.IFS(ISNUMBER($AD16),$AD16,ISNUMBER($AE16),$AE16,ISNUMBER($AF16),$AF16,AND($AD16=0,$AE16=0,$AF16=0),1) -> 0 | DD16: =IF(ISNUMBER(MATCH(DD$11,$AG16:$AJ16,0)),1,0)*IF(ISNUMBER($AF16),(1-$AF16),1) + IF(ISNUMBER(MATCH(DD$11,$AK16:$AP16,0)),-1,0)*_xlfn.IFS(ISNUMBER($AD16),$AD16,ISNUMBER($AE16),$AE16,ISNUMBER($AF16),$AF16,AND($AD16=0,$AE16=0,$AF16=0),1) -> 0 | DE16: =IF(ISNUMBER(MATCH(DE$11,$AG16:$AJ16,0)),1,0)*IF(ISNUMBER($AF16),(1-$AF16),1) + IF(ISNUMBER(MATCH(DE$11,$AK16:$AP16,0)),-1,0)*_xlfn.IFS(ISNUMBER($AD16),$AD16,ISNUMBER($AE16),$AE16,ISNUMBER($AF16),$AF16,AND($AD16=0,$AE16=0,$AF16=0),1) -> 0 | DG16: 0 | DH16: PowerCrit | DI16: UPS | DJ16: Conservation | DT16: =AK12 -> q_crit_tx-amb | DU16: =SUM(DW16:GJ16) -> 16.51835031 | DV16: =SUMPRODUCT(_xlfn.ANCHORARRAY($DW$7),DW16:GJ16) -> 4181.789752 | DW16: =MINVERSE(Range1) -> 1.01010101 | DX16: 1.01010101 | DY16: 1.020772725 | DZ16: 1.067171485 | EA16: 1.031552235 | EB16: 1.077950995 | EC16: 0 | ED16: -0.04639876023 | EE16: 0 | EF16: 0 | EG16: 0 | EH16: 0 | EI16: 1.020772725 | EJ16: 1.031552235 | EK16: 0.002547042555 | EL16: 0.002547042555 | EM16: -0.002547042555 | EN16: -0.002547042555 | EO16: 0.002547042555 | EP16: 1.062871381 | EQ16: 1.023319768 | ER16: 0 | ES16: 0 | ET16: -0.002547042555 | EU16: -0.002547042555 | EV16: 0.002547042555 | EW16: 1.080613812 | EX16: 1.023319768 | EY16: 0 | EZ16: 0 | FA16: -0.002547042555 | FB16: -0.002547042555 | FC16: 0.002547042555 | FD16: 1.034099277 | FE16: 1.023319768 | FF16: 0 | FG16: 0 | FH16: -0.002547042555 | FI16: -0.002547042555 | FJ16: 0.002547042555 | FK16: 1.034099277 | FL16: 1.023319768 | FM16: 0 | FN16: 0 | FO16: 0 | FP16: 0 | FQ16: -0.002547042555 | FR16: 0 | FS16: 0 | FT16: 0 | FU16: 0 | FV16: 0 | FW16: 0 | FX16: 0 | FY16: 0 | FZ16: 0 | GA16: 0 | GB16: -0.002547042555 | GC16: 0 | GD16: 0 | GE16: 0 | GF16: 0 | GG16: 0 | GH16: 0 | GI16: 0 | GJ16: 0 | GV16: =DT16 -> q_crit_tx-amb | GX16: =SUMPRODUCT(GY16:JL16,_xlfn.ANCHORARRAY($GY$7)) -> 4181.789752 | GY16: =MINVERSE(Range2) -> 1.01010101 | GZ16: 1.01010101 | HA16: 1.020772725 | HB16: 1.067171485 | HC16: 1.031552235 | HD16: 1.077950995 | HE16: 0 | HF16: -0.04639876023 | HG16: 0 | HH16: 0 | HI16: 0 | HJ16: 0 | HK16: 1.020772725 | HL16: 1.031552235 | HM16: 0.002547042555 | HN16: 0.002547042555 | HO16: -0.002547042555 | HP16: -0.002547042555 | HQ16: 0.002547042555 | HR16: 1.062871381 | HS16: 1.023319768 | HT16: -2.295146854e-16 | HU16: 0 | HV16: -0.002547042555 | HW16: -0.002547042555 | HX16: 0.002547042555 | HY16: 1.080613812 | HZ16: 1.023319768 | IA16: -2.295026712e-16 | IB16: 0 | IC16: -0.002547042555 | ID16: -0.002547042555 | IE16: 0.002547042555 | IF16: 1.034099277 | IG16: 1.023319768 | IH16: -2.295146854e-16 | II16: 0 | IJ16: -0.002547042555 | IK16: -0.002547042555 | IL16: 0.002547042555 | IM16: 1.034099277 | IN16: 1.023319768 | IO16: -2.295146854e-16 | IP16: 0 | IQ16: 0 | IR16: 0 | IS16: -0.002547042555 | IT16: 0 | IU16: 0 | IV16: 0 | IW16: 3.507150707e-19 | IX16: 0 | IY16: 0 | IZ16: 0 | JA16: 0 | JB16: 0 | JC16: 0 | JD16: -0.002547042555 | JE16: 0 | JF16: 0 | JG16: 0 | JH16: 0 | JI16: 0 | JJ16: 0 | JK16: 0 | JL16: 0 | JO16: =GV16 -> q_crit_tx-amb | JP16: =SUMPRODUCT(JQ16:MD16,_xlfn.ANCHORARRAY($JQ$7)) -> 4181.789752 | JQ16: =MINVERSE(Range3) -> 1.01010101 | JR16: 1.01010101 | JS16: 1.020772725 | JT16: 1.067171485 | JU16: 1.031552235 | JV16: 1.077950995 | JW16: 0 | JX16: -0.04639876023 | JY16: 0 | JZ16: 0 | KA16: 0 | KB16: 0 | KC16: 1.020772725 | KD16: 1.031552235 | KE16: 0.002547042555 | KF16: 0.002547042555 | KG16: -0.002547042555 | KH16: -0.002547042555 | KI16: 0.002547042555 | KJ16: 1.062871381 | KK16: 1.023319768 | KL16: -2.295146854e-16 | KM16: 0 | KN16: -0.002547042555 | KO16: -0.002547042555 | KP16: 0.002547042555 | KQ16: 1.080613812 | KR16: 1.023319768 | KS16: -2.295026712e-16 | KT16: 0 | KU16: -0.002547042555 | KV16: -0.002547042555 | KW16: 0.002547042555 | KX16: 1.034099277 | KY16: 1.023319768 | KZ16: -2.295146854e-16 | LA16: 0 | LB16: -0.002547042555 | LC16: -0.002547042555 | LD16: 0.002547042555 | LE16: 1.034099277 | LF16: 1.023319768 | LG16: -2.295146854e-16 | LH16: 0 | LI16: 0 | LJ16: 0 | LK16: -0.002547042555 | LL16: 0 | LM16: 0 | LN16: 0 | LO16: 3.507150707e-19 | LP16: 0 | LQ16: 0 | LR16: 0 | LS16: 0 | LT16: 0 | LU16: 0 | LV16: -0.002547042555 | LW16: 0 | LX16: 0 | LY16: 0 | LZ16: 0 | MA16: 0 | MB16: 0 | MC16: 0 | MD16: 0
